Workbook

Sheet MENU
A14: Observaciones al Correo Electrónico
A15: dejecutiva@tse.go.cr

Sheet C1.1
A2: CUADRO 1.1 COSTA RICA: JUNTAS, ELECTORADO, VOTOS POR PARTIDO, NULOS, BLANCOS Y ABSTENCIONISMO, PARA PRESIDENCIA Y
A3: VICEPRESIDENCIAS DE LA REPÚBLICA, POR PROVINCIA, ELECCIONES 7 DE FEBRERO 2010
A5: JUNTAS, ELECTORADO, VOTOS POR PARTIDO, NULOS, BLANCOS Y ABSTENCIONISMO | B5: COSTA RICA | C5: PROVINCIA
C6: SAN JOSÉ | D6: ALAJUELA | E6: CARTAGO | F6: HEREDIA | G6: GUANACASTE | H6: PUNTARENAS | I6: LIMÓN
A9: JUNTAS | B9: =SUM(C9:I9) -> 6617 | C9: 2232 | D9: 1252 | E9: 746 | F9: 604 | G9: 550 | H9: 702 | I9: 531
A11: ELECTORADO | B11: =SUM(C11:I11) -> 2822491 | C11: 1008177 | D11: 524215 | E11: 328782 | F11: 278544 | G11: 199237 | H11: 259408 | I11: 224128
A13: VOTOS RECIBIDOS | B13: =SUM(C13:I13) -> 1950847 | C13: =+C16+C27+C28 -> 704284 | D13: 374952 | E13: 243705 | F13: 203705 | G13: 131940 | H13: 154540 | I13: 137721
A14: PARTICIPACIÓN 1/ | B14: =+B13/B11*100 -> 69.11791747 | C14: =+C13/C11*100 -> 69.85717786 | D14: 71.52637754 | E14: 74.12358341 | F14: 73.13207249 | G14: 66.22263937 | H14: 59.5741072 | I14: 61.44747644
A16: VOTOS VÁLIDOS | B16: =SUM(C16:I16) -> 1911333 | C16: =SUM(C17:C25) -> 692765 | D16: 367843 | E16: 239146 | F16: 200493 | G16: 128125 | H16: 150167 | I16: 132794
A17: UNIDAD SOCIAL CRISTIANA | B17: 74114 | C17: 24609 | D17: 11887 | E17: 10143 | F17: 6382 | G17: 7777 | H17: 6676 | I17: 6640
A18: INTEGRACIÓN NACIONAL | B18: 2049 | C18: 970 | D18: 275 | E18: 240 | F18: 165 | G18: 97 | H18: 134 | I18: 168
A19: ALIANZA PATRIÓTICA | B19: 3158 | C19: 870 | D19: 659 | E19: 388 | F19: 288 | G19: 305 | H19: 303 | I19: 345
A20: RENOVACIÓN COSTARRICENSE | B20: 13945 | C20: 3852 | D20: 2788 | E20: 977 | F20: 1164 | G20: 1510 | H20: 1131 | I20: 2523
A21: FRENTE AMPLIO | B21: 6782 | C21: 2536 | D21: 830 | E21: 937 | F21: 905 | G21: 373 | H21: 519 | I21: 682
A22: LIBERACIÓN NACIONAL | B22: 896516 | C22: 322976 | D22: 166655 | E22: 118926 | F22: 93471 | G22: 65843 | H22: 73431 | I22: 55214
A23: MOVIMIENTO LIBERTARIO | B23: 399788 | C23: 122116 | D23: 80590 | E23: 46414 | F23: 39016 | G23: 29841 | H23: 40078 | I23: 41733
A24: ACCIÓN CIUDADANA | B24: 478877 | C24: 200382 | D24: 97399 | E24: 56095 | F24: 55425 | G24: 20341 | H24: 26014 | I24: 23221
A25: ACCESIBILIDAD SIN EXCLUSIÓN | B25: 36104 | C25: 14454 | D25: 6760 | E25: 5026 | F25: 3677 | G25: 2038 | H25: 1881 | I25: 2268
A27: VOTOS NULOS | B27: =SUM(C27:I27) -> 32555 | C27: 9674 | D27: 5798 | E27: 3763 | F27: 2644 | G27: 3063 | H27: 3568 | I27: 4045
A28: VOTOS BLANCOS | B28: =SUM(C28:I28) -> 6959 | C28: 1845 | D28: 1311 | E28: 796 | F28: 568 | G28: 752 | H28: 805 | I28: 882
A30: ABSTENCIONISMO | B30: =+B11-B13 -> 871644 | C30: =+C11-C13 -> 303893 | D30: 149263 | E30: 85077 | F30: 74839 | G30: 67297 | H30: 104868 | I30: 86407
B31: =+B30/B11*100 -> 30.88208253 | C31: =+C30/C11*100 -> 30.14282214 | D31: 28.47362246 | E31: 25.87641659 | F31: 26.86792751 | G31: 33.77736063 | H31: 40.4258928 | I31: 38.55252356
A34: 1/ Porcentaje de participación: se calcula dividiendo la cantidad de votos recibidos entre el electorado inscrito

Sheet C1.2
A2: CUADRO 1.2 COSTA RICA: JUNTAS, ELECTORADO, PARTICIPACIÓN, VOTOS POR PARTIDO, NULOS, BLANCOS Y ABSTENCIONISMO PARA PRESIDENCIA Y VICEPRESIDENCIAS DE LA REPÚBLICA, SEGÚN PROVINCIA Y CANTÓN ELECCIONES 7 DE FEBRERO 2010
A4: PROVINCIA Y CANTÓN | B4: JUNTAS | C4: ELECTORADO | D4: VOTOS RECIBIDOS | R4: ABSTENCIONISMO
D5: TOTAL GENERAL | E5: % PARTICIPACIÓN | F5: VOTOS VÁLIDOS | P5: NULOS | Q5: BLANCOS | R5: ABSOLUTO | S5: %
F6: TOTAL | G6: UNIDAD SOCIAL CRISTIANA | H6: INTEGRACIÓN NACIONAL | I6: ALIANZA PATRIÓTICA | J6: RENOVACIÓN COSTARRICENSE | K6: FRENTE AMPLIO | L6: LIBERACIÓN NACIONAL | M6: MOVIMIENTO LIBERTARIO | N6: ACCIÓN CIUDADANA | O6: ACCESIBILIDAD SIN EXCLUSIÓN
A8: COSTA RICA | B8: =+B10+B33+B51+B62+B75+B89+B103 -> 6617 | C8: =+C10+C33+C51+C62+C75+C89+C103 -> 2822491 | D8: =+D10+D33+D51+D62+D75+D89+D103 -> 1950847 | E8: =+D8/C8*100 -> 69.11791747 | F8: =+F10+F33+F51+F62+F75+F89+F103 -> 1911333 | G8: =+G10+G33+G51+G62+G75+G89+G103 -> 74114 | H8: =+H10+H33+H51+H62+H75+H89+H103 -> 2049 | I8: 3158 | J8: 13945 | K8: 6782 | L8: 896516 | M8: 399788 | N8: 478877 | O8: 36104 | P8: 32555 | Q8: 6959 | R8: 871644 | S8: =+R8/C8*100 -> 30.88208253
A10: PROVINCIA SAN JOSÉ | B10: 2232 | C10: 1008177 | D10: 704284 | E10: =+D10/C10*100 -> 69.85717786 | F10: 692765 | G10: 24609 | H10: 970 | I10: 870 | J10: 3852 | K10: 2536 | L10: 322976 | M10: 122116 | N10: 200382 | O10: 14454 | P10: 9674 | Q10: 1845 | R10: 303893 | S10: =+R10/C10*100 -> 30.14282214
A12: SAN JOSÉ | B12: 469 | C12: 226027 | D12: 153333 | E12: =+D12/C12*100 -> 67.83835559 | F12: 151017 | G12: 6436 | H12: 179 | I12: 164 | J12: 941 | K12: 618 | L12: 70913 | M12: 27690 | N12: 40882 | O12: 3194 | P12: 2023 | Q12: 293 | R12: 72694 | S12: =+R12/C12*100 -> 32.16164441
A13: ESCAZÚ | B13: 82 | C13: 39855 | D13: 28967 | E13: 72.68096851 | F13: 28571 | G13: 688 | H13: 21 | I13: 31 | J13: 115 | K13: 92 | L13: 14627 | M13: 5979 | N13: 6427 | O13: 591 | P13: 345 | Q13: 51 | R13: 10888 | S13: 27.31903149
A14: DESAMPARADOS | B14: 308 | C14: 143636 | D14: 99995 | E14: 69.6169484 | F14: 98265 | G14: 3711 | H14: 202 | I14: 123 | J14: 543 | K14: 337 | L14: 45760 | M14: 18539 | N14: 26706 | O14: 2344 | P14: 1532 | Q14: 198 | R14: 43641 | S14: 30.3830516
A15: PURISCAL | B15: 70 | C15: 24260 | D15: 17626 | E15: 72.65457543 | F15: 17319 | G15: 640 | H15: 11 | I15: 36 | J15: 64 | K15: 40 | L15: 9127 | M15: 3067 | N15: 4086 | O15: 248 | P15: 213 | Q15: 94 | R15: 6634 | S15: 27.34542457
A16: TARRAZÚ | B16: 28 | C16: 10376 | D16: 6954 | E16: 67.02004626 | F16: 6782 | G16: 351 | H16: 17 | I16: 14 | J16: 30 | K16: 17 | L16: 3263 | M16: 1266 | N16: 1737 | O16: 87 | P16: 122 | Q16: 50 | R16: 3422 | S16: 32.97995374
A17: ASERRÍ | B17: 86 | C17: 36900 | D17: 25385 | E17: 68.79403794 | F17: 24852 | G17: 945 | H17: 78 | I17: 24 | J17: 122 | K17: 113 | L17: 11430 | M17: 4977 | N17: 6560 | O17: 603 | P17: 425 | Q17: 108 | R17: 11515 | S17: 31.20596206
A18: MORA | B18: 43 | C18: 17043 | D18: 12351 | E18: 72.46963563 | F18: 12053 | G18: 488 | H18: 7 | I18: 19 | J18: 78 | K18: 37 | L18: 5815 | M18: 2551 | N18: 2810 | O18: 248 | P18: 234 | Q18: 64 | R18: 4692 | S18: 27.53036437
A19: GOICOECHEA | B19: 179 | C19: 85706 | D19: 59764 | E19: 69.73140737 | F19: 58891 | G19: 1945 | H19: 142 | I19: 58 | J19: 401 | K19: 306 | L19: 25171 | M19: 10512 | N19: 19077 | O19: 1279 | P19: 768 | Q19: 105 | R19: 25942 | S19: 30.26859263
A20: SANTA ANA | B20: 58 | C20: 27313 | D20: 19968 | E20: 73.10804379 | F20: 19665 | G20: 761 | H20: 14 | I20: 22 | J20: 131 | K20: 59 | L20: 9605 | M20: 4214 | N20: 4494 | O20: 365 | P20: 232 | Q20: 71 | R20: 7345 | S20: 26.89195621
A21: ALAJUELITA | B21: 93 | C21: 44270 | D21: 29153 | E21: 65.85272193 | F21: 28592 | G21: 1294 | H21: 25 | I21: 36 | J21: 214 | K21: 107 | L21: 12914 | M21: 6801 | N21: 6201 | O21: 1000 | P21: 484 | Q21: 77 | R21: 15117 | S21: 34.14727807
A22: VÁZQUEZ DE CORONADO | B22: 91 | C22: 44773 | D22: 33084 | E22: 73.89274786 | F22: 32642 | G22: 1088 | H22: 45 | I22: 51 | J22: 178 | K22: 143 | L22: 14375 | M22: 5578 | N22: 10452 | O22: 732 | P22: 382 | Q22: 60 | R22: 11689 | S22: 26.10725214
A23: ACOSTA | B23: 44 | C23: 14081 | D23: 10028 | E23: 71.21653292 | F23: 9786 | G23: 360 | H23: 13 | I23: 36 | J23: 54 | K23: 16 | L23: 4569 | M23: 1849 | N23: 2707 | O23: 182 | P23: 174 | Q23: 68 | R23: 4053 | S23: 28.78346708
A24: TIBÁS | B24: 115 | C24: 55673 | D24: 39545 | E24: 71.0308408 | F24: 39027 | G24: 1379 | H24: 38 | I24: 39 | J24: 218 | K24: 130 | L24: 17778 | M24: 6956 | N24: 11740 | O24: 749 | P24: 440 | Q24: 78 | R24: 16128 | S24: 28.9691592
A25: MORAVIA | B25: 83 | C25: 39778 | D25: 29174 | E25: 73.34204837 | F25: 28821 | G25: 836 | H25: 35 | I25: 47 | J25: 153 | K25: 102 | L25: 13403 | M25: 4259 | N25: 9500 | O25: 486 | P25: 302 | Q25: 51 | R25: 10604 | S25: 26.65795163
A26: MONTES DE OCA | B26: 85 | C26: 41139 | D26: 30592 | E26: 74.36252704 | F26: 30231 | G26: 773 | H26: 48 | I26: 23 | J26: 106 | K26: 154 | L26: 13560 | M26: 3641 | N26: 11467 | O26: 459 | P26: 312 | Q26: 49 | R26: 10547 | S26: 25.63747296
A27: TURRUBARES | B27: 16 | C27: 3963 | D27: 2980 | E27: 75.19555892 | F27: 2921 | G27: 248 | H27: 3 | I27: 5 | J27: 8 | K27: 6 | L27: 1642 | M27: 549 | N27: 438 | O27: 22 | P27: 50 | Q27: 9 | R27: 983 | S27: 24.80444108
A28: DOTA | B28: 14 | C28: 4789 | D28: 3215 | E28: 67.13301316 | F28: 3163 | G28: 99 | H28: 4 | I28: 10 | J28: 14 | K28: 5 | L28: 1361 | M28: 355 | N28: 1281 | O28: 34 | P28: 33 | Q28: 19 | R28: 1574 | S28: 32.86698684
A29: CURRIDABAT | B29: 91 | C29: 43957 | D29: 31958 | E29: 72.70286871 | F29: 31439 | G29: 865 | H29: 36 | I29: 21 | J29: 174 | K29: 91 | L29: 15373 | M29: 5430 | N29: 8805 | O29: 644 | P29: 448 | Q29: 71 | R29: 11999 | S29: 27.29713129
A30: PÉREZ ZELEDÓN | B30: 251 | C30: 96629 | D30: 64803 | E30: 67.06371793 | F30: 63449 | G30: 1492 | H30: 48 | I30: 91 | J30: 276 | K30: 147 | L30: 29435 | M30: 6983 | N30: 23886 | O30: 1091 | P30: 1075 | Q30: 279 | R30: 31826 | S30: 32.93628207
A31: LEÓN CORTÉS | B31: 26 | C31: 8009 | D31: 5409 | E31: 67.53652141 | F31: 5279 | G31: 210 | H31: 4 | I31: 20 | J31: 32 | K31: 16 | L31: 2855 | M31: 920 | N31: 1126 | O31: 96 | P31: 80 | Q31: 50 | R31: 2600 | S31: 32.46347859
A33: PROVINCIA ALAJUELA | B33: 1252 | C33: 524215 | D33: 374952 | E33: =+D33/C33*100 -> 71.52637754 | F33: 367843 | G33: 11887 | H33: 275 | I33: 659 | J33: 2788 | K33: 830 | L33: 166655 | M33: 80590 | N33: 97399 | O33: 6760 | P33: 5798 | Q33: 1311 | R33: 149263 | S33: =+R33/C33*100 -> 28.47362246
A35: ALAJUELA | B35: 376 | C35: 170966 | D35: 119832 | E35: =+D35/C35*100 -> 70.09112923 | F35: 117764 | G35: 3868 | H35: 97 | I35: 159 | J35: 682 | K35: 279 | L35: 54697 | M35: 27992 | N35: 27209 | O35: 2781 | P35: 1810 | Q35: 258 | R35: 51134 | S35: =+R35/C35*100 -> 29.90887077
A36: SAN RAMÓN | B36: 126 | C36: 52853 | D36: 38829 | E36: 73.46602842 | F36: 38088 | G36: 889 | H36: 25 | I36: 83 | J36: 289 | K36: 104 | L36: 15201 | M36: 5793 | N36: 15177 | O36: 527 | P36: 566 | Q36: 175 | R36: 14024 | S36: 26.53397158
A37: GRECIA | B37: 119 | C37: 50109 | D37: 36847 | E37: 73.53369654 | F37: 36246 | G37: 997 | H37: 28 | I37: 59 | J37: 243 | K37: 89 | L37: 16519 | M37: 7943 | N37: 9432 | O37: 936 | P37: 491 | Q37: 110 | R37: 13262 | S37: 26.46630346
A38: SAN MATEO | B38: 11 | C38: 3798 | D38: 2669 | E38: 70.27382833 | F38: 2597 | G38: 142 | H38: 5 | I38: 8 | J38: 29 | K38: 6 | L38: 1307 | M38: 731 | N38: 339 | O38: 30 | P38: 56 | Q38: 16 | R38: 1129 | S38: 29.72617167
A39: ATENAS | B39: 41 | C39: 17379 | D39: 13238 | E39: 76.17239197 | F39: 13000 | G39: 444 | H39: 7 | I39: 32 | J39: 80 | K39: 34 | L39: 5599 | M39: 2049 | N39: 4505 | O39: 250 | P39: 185 | Q39: 53 | R39: 4141 | S39: 23.82760803
A40: NARANJO | B40: 66 | C40: 27740 | D40: 20180 | E40: 72.74693583 | F40: 19807 | G40: 661 | H40: 20 | I40: 28 | J40: 135 | K40: 52 | L40: 9186 | M40: 4602 | N40: 4810 | O40: 313 | P40: 287 | Q40: 86 | R40: 7560 | S40: 27.25306417
A41: PALMARES | B41: 53 | C41: 24911 | D41: 18637 | E41: 74.81433905 | F41: 18261 | G41: 466 | H41: 10 | I41: 81 | J41: 91 | K41: 63 | L41: 8264 | M41: 2891 | N41: 6105 | O41: 290 | P41: 287 | Q41: 89 | R41: 6274 | S41: 25.18566095
A42: POÁS | B42: 42 | C42: 17866 | D42: 13636 | E42: 76.32374342 | F42: 13432 | G42: 366 | H42: 11 | I42: 20 | J42: 69 | K42: 24 | L42: 6429 | M42: 3711 | N42: 2527 | O42: 275 | P42: 173 | Q42: 31 | R42: 4230 | S42: 23.67625658
A43: OROTINA | B43: 31 | C43: 12685 | D43: 8560 | E43: 67.4812771 | F43: 8410 | G43: 510 | H43: 6 | I43: 8 | J43: 71 | K43: 9 | L43: 4626 | M43: 1988 | N43: 1059 | O43: 133 | P43: 124 | Q43: 26 | R43: 4125 | S43: 32.5187229
A44: SAN CARLOS | B44: 219 | C44: 86525 | D44: 62275 | E44: 71.97341809 | F44: 61053 | G44: 1792 | H44: 39 | I44: 97 | J44: 695 | K44: 98 | L44: 26876 | M44: 13474 | N44: 17248 | O44: 734 | P44: 979 | Q44: 243 | R44: 24250 | S44: 28.02658191
A45: ALFARO RUIZ | B45: 22 | C45: 7844 | D45: 6461 | E45: 82.36868944 | F45: 6370 | G45: 226 | H45: 3 | I45: 10 | J45: 13 | K45: 8 | L45: 3124 | M45: 719 | N45: 2198 | O45: 69 | P45: 66 | Q45: 25 | R45: 1383 | S45: 17.63131056
A46: VALVERDE VEGA | B46: 29 | C46: 12623 | D46: 9152 | E46: 72.50257467 | F46: 8985 | G46: 359 | H46: 5 | I46: 10 | J46: 108 | K46: 14 | L46: 3334 | M46: 3466 | N46: 1533 | O46: 156 | P46: 132 | Q46: 35 | R46: 3471 | S46: 27.49742533
A47: UPALA | B47: 64 | C47: 21183 | D47: 13136 | E47: 62.01199075 | F47: 12709 | G47: 522 | H47: 10 | I47: 38 | J47: 76 | K47: 26 | L47: 6626 | M47: 2391 | N47: 2885 | O47: 135 | P47: 323 | Q47: 104 | R47: 8047 | S47: 37.98800925
A48: LOS CHILES | B48: 28 | C48: 9004 | D48: 5801 | E48: 64.42692137 | F48: 5633 | G48: 282 | H48: 6 | I48: 13 | J48: 98 | K48: 9 | L48: 2250 | M48: 1462 | N48: 1462 | O48: 51 | P48: 139 | Q48: 29 | R48: 3203 | S48: 35.57307863
A49: GUATUSO | B49: 25 | C49: 8729 | D49: 5699 | E49: 65.28812006 | F49: 5488 | G49: 363 | H49: 3 | I49: 13 | J49: 109 | K49: 15 | L49: 2617 | M49: 1378 | N49: 910 | O49: 80 | P49: 180 | Q49: 31 | R49: 3030 | S49: 34.71187994
A51: PROVINCIA CARTAGO | B51: 746 | C51: 328782 | D51: 243705 | E51: =+D51/C51*100 -> 74.12358341 | F51: 239146 | G51: 10143 | H51: 240 | I51: 388 | J51: 977 | K51: 937 | L51: 118926 | M51: 46414 | N51: 56095 | O51: 5026 | P51: 3763 | Q51: 796 | R51: 85077 | S51: =+R51/C51*100 -> 25.87641659
A53: CARTAGO | B53: 223 | C53: 104564 | D53: 79840 | E53: =+D53/C53*100 -> 76.35515091 | F53: 78498 | G53: 2861 | H53: 79 | I53: 101 | J53: 316 | K53: 391 | L53: 40298 | M53: 14738 | N53: 18176 | O53: 1538 | P53: 1126 | Q53: 216 | R53: 24724 | S53: =+R53/C53*100 -> 23.64484909
A54: PARAÍSO | B54: 87 | C54: 39163 | D54: 28997 | E54: 74.04182519 | F54: 28389 | G54: 1366 | H54: 19 | I54: 47 | J54: 103 | K54: 115 | L54: 13033 | M54: 6026 | N54: 7079 | O54: 601 | P54: 488 | Q54: 120 | R54: 10166 | S54: 25.95817481
A55: LA UNIÓN | B55: 123 | C55: 57841 | D55: 41471 | E55: 71.69827631 | F55: 40756 | G55: 1638 | H55: 57 | I55: 67 | J55: 240 | K55: 164 | L55: 18046 | M55: 8093 | N55: 11334 | O55: 1117 | P55: 623 | Q55: 92 | R55: 16370 | S55: 28.30172369
A56: JIMÉNEZ | B56: 28 | C56: 10397 | D56: 7787 | E56: 74.89660479 | F56: 7581 | G56: 416 | H56: 9 | I56: 13 | J56: 25 | K56: 12 | L56: 4144 | M56: 1264 | N56: 1526 | O56: 172 | P56: 146 | Q56: 60 | R56: 2610 | S56: 25.10339521
A57: TURRIALBA | B57: 140 | C57: 51433 | D57: 36209 | E57: 70.40032664 | F57: 35464 | G57: 1787 | H57: 33 | I57: 78 | J57: 120 | K57: 99 | L57: 18415 | M57: 6490 | N57: 7871 | O57: 571 | P57: 600 | Q57: 145 | R57: 15224 | S57: 29.59967336
A58: ALVARADO | B58: 21 | C58: 8510 | D58: 6265 | E58: 73.61927145 | F58: 6124 | G58: 281 | H58: 4 | I58: 10 | J58: 17 | K58: 11 | L58: 3035 | M58: 1078 | N58: 1579 | O58: 109 | P58: 107 | Q58: 34 | R58: 2245 | S58: 26.38072855
A59: OREAMUNO | B59: 64 | C59: 30006 | D59: 22354 | E59: 74.49843365 | F59: 21937 | G59: 788 | H59: 22 | I59: 43 | J59: 81 | K59: 73 | L59: 11186 | M59: 4491 | N59: 4797 | O59: 456 | P59: 355 | Q59: 62 | R59: 7652 | S59: 25.50156635
A60: EL GUARCO | B60: 60 | C60: 26868 | D60: 20782 | E60: 77.34851868 | F60: 20397 | G60: 1006 | H60: 17 | I60: 29 | J60: 75 | K60: 72 | L60: 10769 | M60: 4234 | N60: 3733 | O60: 462 | P60: 318 | Q60: 67 | R60: 6086 | S60: 22.65148132
A62: PROVINCIA HEREDIA | B62: 604 | C62: 278544 | D62: 203705 | E62: =+D62/C62*100 -> 73.13207249 | F62: 200493 | G62: 6382 | H62: 165 | I62: 288 | J62: 1164 | K62: 905 | L62: 93471 | M62: 39016 | N62: 55425 | O62: 3677 | P62: 2644 | Q62: 568 | R62: 74839 | S62: =+R62/C62*100 -> 26.86792751
A64: HEREDIA | B64: 176 | C64: 84511 | D64: 61372 | E64: =+D64/C64*100 -> 72.62013229 | F64: 60598 | G64: 1939 | H64: 51 | I64: 64 | J64: 250 | K64: 335 | L64: 29625 | M64: 10412 | N64: 16836 | O64: 1086 | P64: 638 | Q64: 136 | R64: 23139 | S64: =+R64/C64*100 -> 27.37986771
A65: BARVA | B65: 58 | C65: 26982 | D65: 20374 | E65: =+D65/C65*100 -> 75.50959899 | F65: 20089 | G65: 459 | H65: 20 | I65: 38 | J65: 92 | K65: 128 | L65: 8569 | M65: 3917 | N65: 6500 | O65: 366 | P65: 237 | Q65: 48 | R65: 6608 | S65: =+R65/C65*100 -> 24.49040101
A66: SANTO DOMINGO | B66: 63 | C66: 30208 | D66: 22877 | E66: =+D66/C66*100 -> 75.73159428 | F66: 22592 | G66: 638 | H66: 22 | I66: 18 | J66: 99 | K66: 88 | L66: 10469 | M66: 3970 | N66: 6808 | O66: 480 | P66: 230 | Q66: 55 | R66: 7331 | S66: =+R66/C66*100 -> 24.26840572
A67: SANTA BÁRBARA | B67: 48 | C67: 22277 | D67: 16419 | E67: =+D67/C67*100 -> 73.70382008 | F67: 16146 | G67: 459 | H67: 14 | I67: 34 | J67: 93 | K67: 79 | L67: 7111 | M67: 3743 | N67: 4270 | O67: 343 | P67: 225 | Q67: 48 | R67: 5858 | S67: =+R67/C67*100 -> 26.29617992
A68: SAN RAFAEL | B68: 62 | C68: 29077 | D68: 20853 | E68: 71.71647694 | F68: 20485 | G68: 575 | H68: 20 | I68: 20 | J68: 82 | K68: 94 | L68: 9076 | M68: 4324 | N68: 5930 | O68: 364 | P68: 284 | Q68: 84 | R68: 8224 | S68: 28.28352306
A69: SAN ISIDRO | B69: 28 | C69: 12800 | D69: 9545 | E69: 74.5703125 | F69: 9374 | G69: 290 | H69: 3 | I69: 11 | J69: 38 | K69: 22 | L69: 4537 | M69: 1444 | N69: 2844 | O69: 185 | P69: 128 | Q69: 43 | R69: 3255 | S69: 25.4296875
A70: BELÉN | B70: 32 | C70: 15687 | D70: 12012 | E70: 76.5729585 | F70: 11847 | G70: 558 | H70: 4 | I70: 10 | J70: 21 | K70: 31 | L70: 6152 | M70: 2137 | N70: 2742 | O70: 192 | P70: 136 | Q70: 29 | R70: 3675 | S70: 23.4270415
A71: FLORES | B71: 27 | C71: 13404 | D71: 10271 | E71: 76.62638019 | F71: 10116 | G71: 334 | H71: 5 | I71: 27 | J71: 39 | K71: 26 | L71: 5183 | M71: 1873 | N71: 2477 | O71: 152 | P71: 121 | Q71: 34 | R71: 3133 | S71: 23.37361981
A72: SAN PABLO | B72: 38 | C72: 17791 | D72: 13469 | E72: 75.70681805 | F72: 13304 | G72: 696 | H72: 9 | I72: 17 | J72: 61 | K72: 51 | L72: 6145 | M72: 2065 | N72: 4022 | O72: 238 | P72: 143 | Q72: 22 | R72: 4322 | S72: 24.29318195
A73: SARAPIQUÍ | B73: 72 | C73: 25807 | D73: 16513 | E73: 63.98651529 | F73: 15942 | G73: 434 | H73: 17 | I73: 49 | J73: 389 | K73: 51 | L73: 6604 | M73: 5131 | N73: 2996 | O73: 271 | P73: 502 | Q73: 69 | R73: 9294 | S73: 36.01348471
A75: PROVINCIA GUANACASTE | B75: 550 | C75: 199237 | D75: 131940 | E75: =+D75/C75*100 -> 66.22263937 | F75: 128125 | G75: 7777 | H75: 97 | I75: 305 | J75: 1510 | K75: 373 | L75: 65843 | M75: 29841 | N75: 20341 | O75: 2038 | P75: 3063 | Q75: 752 | R75: 67297 | S75: =+R75/C75*100 -> 33.77736063
A77: LIBERIA | B77: 84 | C77: 36952 | D77: 22680 | E77: =+D77/C77*100 -> 61.37692141 | F77: 22097 | G77: 1466 | H77: 18 | I77: 34 | J77: 258 | K77: 47 | L77: 9942 | M77: 5132 | N77: 4250 | O77: 950 | P77: 466 | Q77: 117 | R77: 14272 | S77: =+R77/C77*100 -> 38.62307859
A78: NICOYA | B78: 106 | C78: 34993 | D78: 24486 | E78: 69.9739948 | F78: 23722 | G78: 1728 | H78: 18 | I78: 57 | J78: 161 | K78: 105 | L78: 12875 | M78: 5603 | N78: 2921 | O78: 254 | P78: 615 | Q78: 149 | R78: 10507 | S78: 30.0260052
A79: SANTA CRUZ | B79: 89 | C79: 33780 | D79: 22655 | E79: 67.06631143 | F79: 21879 | G79: 1279 | H79: 15 | I79: 47 | J79: 222 | K79: 69 | L79: 11650 | M79: 4991 | N79: 3379 | O79: 227 | P79: 628 | Q79: 148 | R79: 11125 | S79: 32.93368857
A80: BAGACES | B80: 31 | C80: 10928 | D80: 7050 | E80: 64.51317716 | F80: 6872 | G80: 333 | H80: 5 | I80: 22 | J80: 154 | K80: 5 | L80: 3324 | M80: 1292 | N80: 1659 | O80: 78 | P80: 140 | Q80: 38 | R80: 3878 | S80: 35.48682284
A81: CARRILLO | B81: 47 | C81: 19540 | D81: 12272 | E81: 62.80450358 | F81: 11939 | G81: 896 | H81: 8 | I81: 22 | J81: 193 | K81: 34 | L81: 6618 | M81: 2800 | N81: 1213 | O81: 155 | P81: 262 | Q81: 71 | R81: 7268 | S81: 37.19549642
A82: CAÑAS | B82: 42 | C82: 17069 | D82: 10691 | E82: 62.63401488 | F82: 10433 | G82: 663 | H82: 5 | I82: 13 | J82: 162 | K82: 23 | L82: 5520 | M82: 2141 | N82: 1766 | O82: 140 | P82: 203 | Q82: 55 | R82: 6378 | S82: 37.36598512
A83: ABANGARES | B83: 37 | C83: 11481 | D83: 7808 | E83: 68.00801324 | F83: 7537 | G83: 396 | H83: 8 | I83: 45 | J83: 68 | K83: 51 | L83: 3560 | M83: 2156 | N83: 1187 | O83: 66 | P83: 227 | Q83: 44 | R83: 3673 | S83: 31.99198676
A84: TILARÁN | B84: 39 | C84: 13144 | D84: 9504 | E84: 72.30675593 | F84: 9261 | G84: 336 | H84: 8 | I84: 24 | J84: 114 | K84: 18 | L84: 4264 | M84: 2396 | N84: 2015 | O84: 86 | P84: 203 | Q84: 40 | R84: 3640 | S84: 27.69324407
A85: NANDAYURE | B85: 29 | C85: 7390 | D85: 5343 | E85: 72.30040595 | F85: 5183 | G85: 190 | H85: 4 | I85: 21 | J85: 42 | K85: 7 | L85: 3133 | M85: 947 | N85: 807 | O85: 32 | P85: 123 | Q85: 37 | R85: 2047 | S85: 27.69959405
A86: LA CRUZ | B86: 28 | C86: 9025 | D86: 5748 | E86: 63.68975069 | F86: 5596 | G86: 354 | H86: 6 | I86: 5 | J86: 102 | K86: 11 | L86: 2839 | M86: 1699 | N86: 556 | O86: 24 | P86: 128 | Q86: 24 | R86: 3277 | S86: 36.31024931
A87: HOJANCHA | B87: 18 | C87: 4935 | D87: 3703 | E87: 75.03546099 | F87: 3606 | G87: 136 | H87: 2 | I87: 15 | J87: 34 | K87: 3 | L87: 2118 | M87: 684 | N87: 588 | O87: 26 | P87: 68 | Q87: 29 | R87: 1232 | S87: 24.96453901
A89: PROVINCIA PUNTARENAS | B89: 702 | C89: 259408 | D89: 154540 | E89: =+D89/C89*100 -> 59.5741072 | F89: 150167 | G89: 6676 | H89: 134 | I89: 303 | J89: 1131 | K89: 519 | L89: 73431 | M89: 40078 | N89: 26014 | O89: 1881 | P89: 3568 | Q89: 805 | R89: 104868 | S89: =+R89/C89*100 -> 40.4258928
A91: PUNTARENAS | B91: 200 | C91: 76163 | D91: 46464 | E91: =+D91/C91*100 -> 61.00600029 | F91: 45328 | G91: 2816 | H91: 42 | I91: 73 | J91: 299 | K91: 190 | L91: 21882 | M91: 12851 | N91: 6537 | O91: 638 | P91: 954 | Q91: 182 | R91: 29699 | S91: =+R91/C91*100 -> 38.99399971
A92: ESPARZA | B92: 47 | C92: 18283 | D92: 12688 | E92: 69.39780124 | F92: 12473 | G92: 636 | H92: 14 | I92: 13 | J92: 53 | K92: 19 | L92: 6173 | M92: 3181 | N92: 2216 | O92: 168 | P92: 193 | Q92: 22 | R92: 5595 | S92: 30.60219876
A93: BUENOS AIRES | B93: 77 | C93: 26649 | D93: 15518 | E93: 58.23107809 | F93: 15039 | G93: 355 | H93: 15 | I93: 37 | J93: 91 | K93: 61 | L93: 7347 | M93: 3239 | N93: 3691 | O93: 203 | P93: 383 | Q93: 96 | R93: 11131 | S93: 41.76892191
A94: MONTES DE ORO | B94: 25 | C94: 8556 | D94: 5779 | E94: 67.54324451 | F94: 5636 | G94: 234 | H94: 6 | I94: 13 | J94: 22 | K94: 13 | L94: 2582 | M94: 1327 | N94: 1369 | O94: 70 | P94: 114 | Q94: 29 | R94: 2777 | S94: 32.45675549
A95: OSA | B95: 54 | C95: 18252 | D95: 10796 | E95: 59.14968223 | F95: 10436 | G95: 393 | H95: 11 | I95: 27 | J95: 110 | K95: 37 | L95: 5169 | M95: 3209 | N95: 1345 | O95: 135 | P95: 278 | Q95: 82 | R95: 7456 | S95: 40.85031777
A96: AGUIRRE | B96: 44 | C96: 16283 | D96: 9529 | E96: 58.52115703 | F96: 9298 | G96: 467 | H96: 9 | I96: 21 | J96: 124 | K96: 28 | L96: 4809 | M96: 2410 | N96: 1290 | O96: 140 | P96: 188 | Q96: 43 | R96: 6754 | S96: 41.47884297
A97: GOLFITO | B97: 65 | C97: 24375 | D97: 13231 | E97: 54.28102564 | F97: 12800 | G97: 401 | H97: 10 | I97: 27 | J97: 69 | K97: 43 | L97: 6213 | M97: 3664 | N97: 2242 | O97: 131 | P97: 334 | Q97: 97 | R97: 11144 | S97: 45.71897436
A98: COTO BRUS | B98: 72 | C98: 25753 | D98: 14592 | E98: 56.66135984 | F98: 14096 | G98: 374 | H98: 11 | I98: 32 | J98: 54 | K98: 42 | L98: 6958 | M98: 3394 | N98: 3068 | O98: 163 | P98: 395 | Q98: 101 | R98: 11161 | S98: 43.33864016
A99: PARRITA | B99: 32 | C99: 9503 | D99: 6134 | E99: 64.54803746 | F99: 5942 | G99: 235 | H99: 6 | I99: 12 | J99: 112 | K99: 9 | L99: 3214 | M99: 1849 | N99: 463 | O99: 42 | P99: 153 | Q99: 39 | R99: 3369 | S99: 35.45196254
A100: CORREDORES | B100: 66 | C100: 27134 | D100: 14714 | E100: 54.22716887 | F100: 14143 | G100: 463 | H100: 8 | I100: 40 | J100: 183 | K100: 65 | L100: 6257 | M100: 3706 | N100: 3260 | O100: 161 | P100: 479 | Q100: 92 | R100: 12420 | S100: 45.77283113
A101: GARABITO | B101: 20 | C101: 8457 | D101: 5095 | E101: 60.2459501 | F101: 4976 | G101: 302 | H101: 2 | I101: 8 | J101: 14 | K101: 12 | L101: 2827 | M101: 1248 | N101: 533 | O101: 30 | P101: 97 | Q101: 22 | R101: 3362 | S101: 39.7540499
A103: PROVINCIA LIMÓN | B103: 531 | C103: 224128 | D103: 137721 | E103: =+D103/C103*100 -> 61.44747644 | F103: 132794 | G103: 6640 | H103: 168 | I103: 345 | J103: 2523 | K103: 682 | L103: 55214 | M103: 41733 | N103: 23221 | O103: 2268 | P103: 4045 | Q103: 882 | R103: 86407 | S103: =+R103/C103*100 -> 38.55252356
A105: LIMÓN | B105: 142 | C105: 61180 | D105: 35348 | E105: =+D105/C105*100 -> 57.77705132 | F105: 34179 | G105: 1838 | H105: 58 | I105: 80 | J105: 520 | K105: 125 | L105: 14045 | M105: 9908 | N105: 6889 | O105: 716 | P105: 932 | Q105: 237 | R105: 25832 | S105: =+R105/C105*100 -> 42.22294868
A106: POCOCÍ | B106: 170 | C106: 73072 | D106: 47140 | E106: 64.51171447 | F106: 45630 | G106: 1472 | H106: 50 | I106: 92 | J106: 820 | K106: 239 | L106: 17254 | M106: 16400 | N106: 8475 | O106: 828 | P106: 1291 | Q106: 219 | R106: 25932 | S106: 35.48828553
A107: SIQUIRRES | B107: 84 | C107: 33841 | D107: 20308 | E107: 60.01004698 | F107: 19570 | G107: 1062 | H107: 16 | I107: 40 | J107: 379 | K107: 172 | L107: 9717 | M107: 5351 | N107: 2511 | O107: 322 | P107: 631 | Q107: 107 | R107: 13533 | S107: 39.98995302
A108: TALAMANCA | B108: 38 | C108: 15029 | D108: 8900 | E108: 59.21884357 | F108: 8492 | G108: 988 | H108: 14 | I108: 23 | J108: 125 | K108: 40 | L108: 3473 | M108: 1775 | N108: 1998 | O108: 56 | P108: 292 | Q108: 116 | R108: 6129 | S108: 40.78115643
A109: MATINA | B109: 44 | C109: 17995 | D109: 11559 | E109: 64.23450959 | F109: 11028 | G109: 806 | H109: 14 | I109: 69 | J109: 457 | K109: 43 | L109: 4851 | M109: 3417 | N109: 1266 | O109: 105 | P109: 414 | Q109: 117 | R109: 6436 | S109: 35.76549041
A110: GUÁCIMO | B110: 53 | C110: 23011 | D110: 14466 | E110: 62.86558602 | F110: 13895 | G110: 474 | H110: 16 | I110: 41 | J110: 222 | K110: 63 | L110: 5874 | M110: 4882 | N110: 2082 | O110: 241 | P110: 485 | Q110: 86 | R110: 8545 | S110: 37.13441398

Sheet C1.3
A2: CUADRO 1.3 SAN JOSÉ: JUNTAS, ELECTORADO, PARTICIPACIÓN, VOTOS POR PARTIDO, NULOS, BLANCOS Y ABSTENCIONISMO PARA PRESIDENCIA Y VICEPRESIDENCIAS DE LA REPÚBLICA, SEGÚN CANTÓN Y DISTRITO ADMINISTRATIVO ELECCIONES 7 DE FEBRERO 2010
A4: CANTÓN Y DISTRITO ADMINISTRATIVO | B4: JUNTAS | C4: ELECTORADO | D4: VOTOS RECIBIDOS | R4: ABSTENCIONISMO
D5: TOTAL GENERAL | E5: % PARTICIPACIÓN | F5: VOTOS VÁLIDOS | P5: NULOS | Q5: BLANCOS | R5: ABSOLUTO | S5: %
F6: TOTAL | G6: UNIDAD SOCIAL CRISTIANA | H6: INTEGRACIÓN NACIONAL | I6: ALIANZA PATRIÓTICA | J6: RENOVACIÓN COSTARRICENSE | K6: FRENTE AMPLIO | L6: LIBERACIÓN NACIONAL | M6: MOVIMIENTO LIBERTARIO | N6: ACCIÓN CIUDADANA | O6: ACCESIBILIDAD SIN EXCLUSIÓN
A8: PROVINCIA SAN JOSÉ | B8: 2232 | C8: 1008177 | D8: 704284 | E8: =+D8/C8*100 -> 69.85717786 | F8: 692765 | G8: 24609 | H8: 970 | I8: 870 | J8: 3852 | K8: 2536 | L8: 322976 | M8: 122116 | N8: 200382 | O8: 14454 | P8: 9674 | Q8: 1845 | R8: 303893 | S8: =+R8/C8*100 -> 30.14282214
A9: CANTÓN 1 SAN JOSÉ | B9: 469 | C9: 226027 | D9: 153333 | E9: 67.83835559 | F9: 151017 | G9: 6436 | H9: 179 | I9: 164 | J9: 941 | K9: 618 | L9: 70913 | M9: 27690 | N9: 40882 | O9: 3194 | P9: 2023 | Q9: 293 | R9: 72694 | S9: 32.16164441
A10: CARMEN | B10: 11 | C10: 4665 | D10: 3097 | E10: 66.38799571 | F10: 3058 | G10: 106 | H10: 4 | I10: 4 | J10: 7 | K10: 18 | L10: 1577 | M10: 411 | N10: 895 | O10: 36 | P10: 31 | Q10: 8 | R10: 1568 | S10: 33.61200429
A11: MERCED | B11: 21 | C11: 9723 | D11: 6321 | E11: 65.01079914 | F11: 6228 | G11: 273 | H11: 5 | I11: 6 | J11: 35 | K11: 24 | L11: 2908 | M11: 1207 | N11: 1651 | O11: 119 | P11: 77 | Q11: 16 | R11: 3402 | S11: 34.98920086
A12: HOSPITAL | B12: 40 | C12: 18596 | D12: 11807 | E12: 63.49214885 | F12: 11598 | G12: 573 | H12: 6 | I12: 18 | J12: 70 | K12: 67 | L12: 5417 | M12: 2437 | N12: 2710 | O12: 300 | P12: 183 | Q12: 26 | R12: 6789 | S12: 36.50785115
A13: CATEDRAL | B13: 32 | C13: 15318 | D13: 10338 | E13: 67.48922836 | F13: 10203 | G13: 505 | H13: 19 | I13: 11 | J13: 48 | K13: 45 | L13: 4556 | M13: 1680 | N13: 3159 | O13: 180 | P13: 113 | Q13: 22 | R13: 4980 | S13: 32.51077164
A14: ZAPOTE | B14: 36 | C14: 17556 | D14: 12914 | E14: 73.55889724 | F14: 12788 | G14: 376 | H14: 15 | I14: 8 | J14: 50 | K14: 41 | L14: 5814 | M14: 1739 | N14: 4538 | O14: 207 | P14: 102 | Q14: 24 | R14: 4642 | S14: 26.44110276
A15: SAN FRANCISCO DE DOS RÍOS | B15: 38 | C15: 18426 | D15: 13551 | E15: 73.54281993 | F15: 13429 | G15: 363 | H15: 19 | I15: 10 | J15: 57 | K15: 60 | L15: 6401 | M15: 1751 | N15: 4598 | O15: 170 | P15: 108 | Q15: 14 | R15: 4875 | S15: 26.45718007
A16: URUCA | B16: 29 | C16: 13229 | D16: 8903 | E16: 67.29911558 | F16: 8751 | G16: 323 | H16: 8 | I16: 15 | J16: 51 | K16: 23 | L16: 4232 | M16: 1948 | N16: 1999 | O16: 152 | P16: 131 | Q16: 21 | R16: 4326 | S16: 32.70088442
A17: MATA REDONDA | B17: 15 | C17: 7347 | D17: 5159 | E17: 70.21913706 | F17: 5117 | G17: 186 | H17: 6 | I17: 2 | J17: 20 | K17: 17 | L17: 2931 | M17: 718 | N17: 1166 | O17: 71 | P17: 38 | Q17: 4 | R17: 2188 | S17: 29.78086294
A18: PAVAS | B18: 97 | C18: 47928 | D18: 32036 | E18: 66.84192956 | F18: 31448 | G18: 1466 | H18: 37 | I18: 33 | J18: 270 | K18: 96 | L18: 15431 | M18: 6996 | N18: 6494 | O18: 625 | P18: 527 | Q18: 61 | R18: 15892 | S18: 33.15807044
A19: HATILLO | B19: 90 | C19: 43806 | D19: 28967 | E19: 66.12564489 | F19: 28492 | G19: 1393 | H19: 23 | I19: 36 | J19: 221 | K19: 122 | L19: 12967 | M19: 5236 | N19: 7643 | O19: 851 | P19: 423 | Q19: 52 | R19: 14839 | S19: 33.87435511
A20: SAN SEBASTIÁN | B20: 60 | C20: 29433 | D20: 20240 | E20: 68.76635069 | F20: 19905 | G20: 872 | H20: 37 | I20: 21 | J20: 112 | K20: 105 | L20: 8679 | M20: 3567 | N20: 6029 | O20: 483 | P20: 290 | Q20: 45 | R20: 9193 | S20: 31.23364931
A21: CANTÓN 2 ESCAZÚ | B21: 82 | C21: 39855 | D21: 28967 | E21: 72.68096851 | F21: 28571 | G21: 688 | H21: 21 | I21: 31 | J21: 115 | K21: 92 | L21: 14627 | M21: 5979 | N21: 6427 | O21: 591 | P21: 345 | Q21: 51 | R21: 10888 | S21: 27.31903149
A22: ESCAZÚ | B22: 23 | C22: 11404 | D22: 8436 | E22: 73.9740442 | F22: 8326 | G22: 242 | H22: 7 | I22: 10 | J22: 42 | K22: 28 | L22: 4003 | M22: 1852 | N22: 1988 | O22: 154 | P22: 98 | Q22: 12 | R22: 2968 | S22: 26.0259558
A23: SAN ANTONIO | B23: 26 | C23: 12763 | D23: 8898 | E23: 69.71715114 | F23: 8710 | G23: 225 | H23: 4 | I23: 15 | J23: 49 | K23: 33 | L23: 3674 | M23: 2070 | N23: 2332 | O23: 308 | P23: 163 | Q23: 25 | R23: 3865 | S23: 30.28284886
A24: SAN RAFAEL | B24: 33 | C24: 15688 | D24: 11633 | E24: 74.15221826 | F24: 11535 | G24: 221 | H24: 10 | I24: 6 | J24: 24 | K24: 31 | L24: 6950 | M24: 2057 | N24: 2107 | O24: 129 | P24: 84 | Q24: 14 | R24: 4055 | S24: 25.84778174
A25: CANTÓN 3 DESAMPARADOS | B25: 308 | C25: 143636 | D25: 99995 | E25: 69.6169484 | F25: 98265 | G25: 3711 | H25: 202 | I25: 123 | J25: 543 | K25: 337 | L25: 45760 | M25: 18539 | N25: 26706 | O25: 2344 | P25: 1532 | Q25: 198 | R25: 43641 | S25: 30.3830516
A26: DESAMPARADOS | B26: 61 | C26: 29804 | D26: 21553 | E26: 72.31579654 | F26: 21256 | G26: 785 | H26: 40 | I26: 21 | J26: 119 | K26: 75 | L26: 9528 | M26: 3532 | N26: 6690 | O26: 466 | P26: 270 | Q26: 27 | R26: 8251 | S26: 27.68420346
A27: SAN MIGUEL | B27: 52 | C27: 23888 | D27: 15997 | E27: 66.96667783 | F27: 15647 | G27: 652 | H27: 70 | I27: 21 | J27: 103 | K27: 44 | L27: 7472 | M27: 3326 | N27: 3575 | O27: 384 | P27: 313 | Q27: 37 | R27: 7891 | S27: 33.03332217
A28: SAN JUAN DE DIOS | B28: 23 | C28: 11533 | D28: 7762 | E28: 67.30252319 | F28: 7630 | G28: 340 | H28: 10 | I28: 5 | J28: 61 | K28: 28 | L28: 3211 | M28: 1945 | N28: 1806 | O28: 224 | P28: 121 | Q28: 11 | R28: 3771 | S28: 32.69747681
A29: SAN RAFAEL ARRIBA | B29: 23 | C29: 10180 | D29: 7156 | E29: 70.29469548 | F29: 7043 | G29: 278 | H29: 16 | I29: 9 | J29: 41 | K29: 16 | L29: 3173 | M29: 1215 | N29: 2104 | O29: 191 | P29: 100 | Q29: 13 | R29: 3024 | S29: 29.70530452
A30: SAN ANTONIO | B30: 17 | C30: 8403 | D30: 6271 | E30: 74.62810901 | F30: 6199 | G30: 179 | H30: 3 | I30: 6 | J30: 19 | K30: 31 | L30: 3019 | M30: 869 | N30: 1967 | O30: 106 | P30: 63 | Q30: 9 | R30: 2132 | S30: 25.37189099
A31: FRAILES | B31: 7 | C31: 2593 | D31: 1834 | E31: 70.72888546 | F31: 1786 | G31: 64 | H31: 1 | I31: 3 | J31: 10 | K31: 8 | L31: 1203 | M31: 227 | N31: 254 | O31: 16 | P31: 39 | Q31: 9 | R31: 759 | S31: 29.27111454
A32: PATARRÁ | B32: 12 | C32: 5383 | D32: 3540 | E32: 65.76258592 | F32: 3464 | G32: 145 | H32: 9 | I32: 6 | J32: 17 | K32: 15 | L32: 1636 | M32: 664 | N32: 894 | O32: 78 | P32: 64 | Q32: 12 | R32: 1843 | S32: 34.23741408
A33: SAN CRISTÓBAL | B33: 7 | C33: 2789 | D33: 2158 | E33: 77.37540337 | F33: 2110 | G33: 30 | H33: 2 | I33: 6 | J33: 5 | K33: 5 | L33: 1376 | M33: 305 | N33: 335 | O33: 46 | P33: 38 | Q33: 10 | R33: 631 | S33: 22.62459663
A34: ROSARIO | B34: 9 | C34: 2478 | D34: 1749 | E34: 70.5811138 | F34: 1711 | G34: 42 | H34: 1 | I34: 3 | J34: 2 | K34: 4 | L34: 1043 | M34: 328 | N34: 249 | O34: 39 | P34: 33 | Q34: 5 | R34: 729 | S34: 29.4188862
A35: DAMAS | B35: 18 | C35: 8436 | D35: 6109 | E35: 72.41583689 | F35: 6000 | G35: 218 | H35: 9 | I35: 16 | J35: 33 | K35: 23 | L35: 2723 | M35: 1015 | N35: 1763 | O35: 200 | P35: 89 | Q35: 20 | R35: 2327 | S35: 27.58416311
A36: SAN RAFAEL ABAJO | B36: 30 | C36: 14551 | D36: 10250 | E36: 70.44189403 | F36: 10089 | G36: 376 | H36: 14 | I36: 7 | J36: 38 | K36: 28 | L36: 4349 | M36: 2069 | N36: 2961 | O36: 247 | P36: 155 | Q36: 6 | R36: 4301 | S36: 29.55810597
A37: GRAVILIAS | B37: 26 | C37: 12489 | D37: 9292 | E37: 74.4014733 | F37: 9191 | G37: 374 | H37: 16 | I37: 10 | J37: 36 | K37: 38 | L37: 3964 | M37: 1420 | N37: 3153 | O37: 180 | P37: 86 | Q37: 15 | R37: 3197 | S37: 25.5985267
A38: LOS GUIDO | B38: 23 | C38: 11109 | D38: 6324 | E38: 56.9268161 | F38: 6139 | G38: 228 | H38: 11 | I38: 10 | J38: 59 | K38: 22 | L38: 3063 | M38: 1624 | N38: 955 | O38: 167 | P38: 161 | Q38: 24 | R38: 4785 | S38: 43.0731839
A39: CANTÓN 4 PURISCAL | B39: 70 | C39: 24260 | D39: 17626 | E39: 72.65457543 | F39: 17319 | G39: 640 | H39: 11 | I39: 36 | J39: 64 | K39: 40 | L39: 9127 | M39: 3067 | N39: 4086 | O39: 248 | P39: 213 | Q39: 94 | R39: 6634 | S39: 27.34542457
A40: SANTIAGO | B40: 21 | C40: 9303 | D40: 6867 | E40: =+D40/C40*100 -> 73.81489842 | F40: 6780 | G40: 266 | H40: 2 | I40: 7 | J40: 26 | K40: 16 | L40: 3417 | M40: 1144 | N40: 1811 | O40: 91 | P40: 67 | Q40: 20 | R40: 2436 | S40: =+R40/C40*100 -> 26.18510158
A41: MERCEDES SUR | B41: 13 | C41: 3683 | D41: 2711 | E41: 73.60847135 | F41: 2650 | G41: 80 | H41: 1 | I41: 9 | J41: 14 | K41: 6 | L41: 1370 | M41: 515 | N41: 617 | O41: 38 | P41: 42 | Q41: 19 | R41: 972 | S41: 26.39152865
A42: BARBACOAS | B42: 8 | C42: 2894 | D42: 2212 | E42: 76.43400138 | F42: 2166 | G42: 53 | H42: 4 | I42: 5 | J42: 2 | K42: 2 | L42: 1192 | M42: 392 | N42: 482 | O42: 34 | P42: 34 | Q42: 12 | R42: 682 | S42: 23.56599862
A43: GRIFO ALTO | B43: 3 | C43: 847 | D43: 600 | E43: 70.83825266 | F43: 591 | G43: 18 | H43: 1 | I43: 6 | J43: 4 | K43: 3 | L43: 268 | M43: 92 | N43: 190 | O43: 9 | P43: 6 | Q43: 3 | R43: 247 | S43: 29.16174734
A44: SAN RAFAEL | B44: 3 | C44: 1165 | D44: 796 | E44: 68.32618026 | F44: 778 | G44: 77 | H44: 0 | I44: 1 | J44: 1 | K44: 3 | L44: 380 | M44: 153 | N44: 147 | O44: 16 | P44: 11 | Q44: 7 | R44: 369 | S44: 31.67381974
A45: CANDELARITA | B45: 4 | C45: 1268 | D45: 943 | E45: 74.36908517 | F45: 929 | G45: 26 | H45: 0 | I45: 3 | J45: 3 | K45: 3 | L45: 615 | M45: 122 | N45: 147 | O45: 10 | P45: 9 | Q45: 5 | R45: 325 | S45: 25.63091483
A46: DESAMPARADITOS | B46: 1 | C46: 488 | D46: 353 | E46: 72.33606557 | F46: 350 | G46: 16 | H46: 0 | I46: 0 | J46: 1 | K46: 1 | L46: 146 | M46: 69 | N46: 109 | O46: 8 | P46: 2 | Q46: 1 | R46: 135 | S46: 27.66393443
A47: SAN ANTONIO | B47: 6 | C47: 2501 | D47: 1746 | E47: 69.81207517 | F47: 1718 | G47: 67 | H47: 2 | I47: 1 | J47: 7 | K47: 3 | L47: 911 | M47: 363 | N47: 341 | O47: 23 | P47: 17 | Q47: 11 | R47: 755 | S47: 30.18792483
A48: CHIRES | B48: 11 | C48: 2111 | D48: 1398 | E48: 66.22453813 | F48: 1357 | G48: 37 | H48: 1 | I48: 4 | J48: 6 | K48: 3 | L48: 828 | M48: 217 | N48: 242 | O48: 19 | P48: 25 | Q48: 16 | R48: 713 | S48: 33.77546187
A49: CANTÓN 5 TARRAZÚ | B49: 28 | C49: 10376 | D49: 6954 | E49: 67.02004626 | F49: 6782 | G49: 351 | H49: 17 | I49: 14 | J49: 30 | K49: 17 | L49: 3263 | M49: 1266 | N49: 1737 | O49: 87 | P49: 122 | Q49: 50 | R49: 3422 | S49: 32.97995374
A50: SAN MARCOS | B50: 15 | C50: 6550 | D50: 4462 | E50: 68.1221374 | F50: 4383 | G50: 238 | H50: 9 | I50: 9 | J50: 20 | K50: 14 | L50: 2046 | M50: 775 | N50: 1208 | O50: 64 | P50: 54 | Q50: 25 | R50: 2088 | S50: 31.8778626
A51: SAN LORENZO | B51: 10 | C51: 2589 | D51: 1679 | E51: 64.85129394 | F51: 1633 | G51: 88 | H51: 6 | I51: 3 | J51: 6 | K51: 3 | L51: 823 | M51: 295 | N51: 395 | O51: 14 | P51: 27 | Q51: 19 | R51: 910 | S51: 35.14870606
A52: SAN CARLOS | B52: 3 | C52: 1237 | D52: 813 | E52: 65.72352466 | F52: 766 | G52: 25 | H52: 2 | I52: 2 | J52: 4 | K52: 0 | L52: 394 | M52: 196 | N52: 134 | O52: 9 | P52: 41 | Q52: 6 | R52: 424 | S52: 34.27647534
A53: CANTÓN 6 ASERRÍ | B53: 86 | C53: 36900 | D53: 25385 | E53: 68.79403794 | F53: 24852 | G53: 945 | H53: 78 | I53: 24 | J53: 122 | K53: 113 | L53: 11430 | M53: 4977 | N53: 6560 | O53: 603 | P53: 425 | Q53: 108 | R53: 11515 | S53: 31.20596206
A54: ASERRÍ | B54: 44 | C54: 21006 | D54: 14365 | E54: 68.38522327 | F54: 14077 | G54: 579 | H54: 46 | I54: 8 | J54: 68 | K54: 57 | L54: 6239 | M54: 2782 | N54: 3931 | O54: 367 | P54: 244 | Q54: 44 | R54: 6641 | S54: 31.61477673
A55: TARBACA | B55: 5 | C55: 1530 | D55: 1056 | E55: 69.01960784 | F55: 1037 | G55: 38 | H55: 6 | I55: 1 | J55: 1 | K55: 4 | L55: 502 | M55: 206 | N55: 257 | O55: 22 | P55: 14 | Q55: 5 | R55: 474 | S55: 30.98039216
A56: VUELTA DE JORCO | B56: 11 | C56: 4225 | D56: 3068 | E56: 72.61538462 | F56: 3003 | G56: 116 | H56: 11 | I56: 7 | J56: 12 | K56: 7 | L56: 1343 | M56: 692 | N56: 758 | O56: 57 | P56: 49 | Q56: 16 | R56: 1157 | S56: 27.38461538
A57: SAN GABRIEL | B57: 7 | C57: 3154 | D57: 2306 | E57: 73.11350666 | F57: 2256 | G57: 53 | H57: 3 | I57: 3 | J57: 7 | K57: 21 | L57: 1093 | M57: 445 | N57: 576 | O57: 55 | P57: 34 | Q57: 16 | R57: 848 | S57: 26.88649334
A58: LEGUA | B58: 5 | C58: 1066 | D58: 708 | E58: 66.41651032 | F58: 697 | G58: 10 | H58: 1 | I58: 0 | J58: 9 | K58: 3 | L58: 338 | M58: 86 | N58: 242 | O58: 8 | P58: 4 | Q58: 7 | R58: 358 | S58: 33.58348968
A59: MONTERREY | B59: 3 | C59: 680 | D59: 455 | E59: 66.91176471 | F59: 442 | G59: 15 | H59: 0 | I59: 0 | J59: 3 | K59: 2 | L59: 303 | M59: 47 | N59: 65 | O59: 7 | P59: 7 | Q59: 6 | R59: 225 | S59: 33.08823529
A60: SALITRILLOS | B60: 11 | C60: 5239 | D60: 3427 | E60: 65.4132468 | F60: 3340 | G60: 134 | H60: 11 | I60: 5 | J60: 22 | K60: 19 | L60: 1612 | M60: 719 | N60: 731 | O60: 87 | P60: 73 | Q60: 14 | R60: 1812 | S60: 34.5867532
A61: CANTÓN 7 MORA | B61: 43 | C61: 17043 | D61: 12351 | E61: 72.46963563 | F61: 12053 | G61: 488 | H61: 7 | I61: 19 | J61: 78 | K61: 37 | L61: 5815 | M61: 2551 | N61: 2810 | O61: 248 | P61: 234 | Q61: 64 | R61: 4692 | S61: 27.53036437
A62: COLÓN | B62: 24 | C62: 10560 | D62: 7856 | E62: 74.39393939 | F62: 7709 | G62: 294 | H62: 5 | I62: 14 | J62: 43 | K62: 24 | L62: 3634 | M62: 1483 | N62: 2047 | O62: 165 | P62: 120 | Q62: 27 | R62: 2704 | S62: 25.60606061
A63: GUAYABO | B63: 6 | C63: 2404 | D63: 1668 | E63: 69.3843594 | F63: 1625 | G63: 76 | H63: 0 | I63: 1 | J63: 7 | K63: 6 | L63: 824 | M63: 342 | N63: 344 | O63: 25 | P63: 31 | Q63: 12 | R63: 736 | S63: 30.6156406
A64: TABARCIA | B64: 10 | C64: 3360 | D64: 2321 | E64: 69.07738095 | F64: 2223 | G64: 103 | H64: 1 | I64: 4 | J64: 28 | K64: 7 | L64: 1071 | M64: 648 | N64: 318 | O64: 43 | P64: 77 | Q64: 21 | R64: 1039 | S64: 30.92261905
A65: PIEDRAS NEGRAS | B65: 1 | C65: 223 | D65: 155 | E65: 69.50672646 | F65: 154 | G65: 6 | H65: 1 | I65: 0 | J65: 0 | K65: 0 | L65: 100 | M65: 17 | N65: 26 | O65: 4 | P65: 1 | Q65: 0 | R65: 68 | S65: 30.49327354
A66: PICAGRES | B66: 2 | C66: 496 | D66: 351 | E66: 70.76612903 | F66: 342 | G66: 9 | H66: 0 | I66: 0 | J66: 0 | K66: 0 | L66: 186 | M66: 61 | N66: 75 | O66: 11 | P66: 5 | Q66: 4 | R66: 145 | S66: 29.23387097
A67: CANTÓN 8 GOICOECHEA | B67: 179 | C67: 85706 | D67: 59764 | E67: 69.73140737 | F67: 58891 | G67: 1945 | H67: 142 | I67: 58 | J67: 401 | K67: 306 | L67: 25171 | M67: 10512 | N67: 19077 | O67: 1279 | P67: 768 | Q67: 105 | R67: 25942 | S67: 30.26859263
A68: GUADALUPE | B68: 43 | C68: 20768 | D68: 14830 | E68: 71.40793529 | F68: 14643 | G68: 442 | H68: 38 | I68: 13 | J68: 80 | K68: 83 | L68: 6196 | M68: 2211 | N68: 5321 | O68: 259 | P68: 162 | Q68: 25 | R68: 5938 | S68: 28.59206471
A69: SAN FRANCISCO | B69: 5 | C69: 2116 | D69: 1563 | E69: 73.8657845 | F69: 1536 | G69: 53 | H69: 6 | I69: 0 | J69: 5 | K69: 9 | L69: 668 | M69: 303 | N69: 442 | O69: 50 | P69: 21 | Q69: 6 | R69: 553 | S69: 26.1342155
A70: CALLE BLANCOS | B70: 24 | C70: 11781 | D70: 8699 | E70: 73.83923266 | F70: 8586 | G70: 294 | H70: 13 | I70: 9 | J70: 25 | K70: 49 | L70: 3752 | M70: 1448 | N70: 2816 | O70: 180 | P70: 104 | Q70: 9 | R70: 3082 | S70: 26.16076734
A71: MATA DE PLÁTANO | B71: 24 | C71: 11564 | D71: 8337 | E71: 72.09443099 | F71: 8245 | G71: 189 | H71: 19 | I71: 8 | J71: 30 | K71: 42 | L71: 3540 | M71: 1165 | N71: 3118 | O71: 134 | P71: 85 | Q71: 7 | R71: 3227 | S71: 27.90556901
A72: IPÍS | B72: 44 | C72: 21240 | D72: 14918 | E72: =+D72/C72*100 -> 70.2354049 | F72: 14689 | G72: 530 | H72: 32 | I72: 13 | J72: 141 | K72: 66 | L72: 6222 | M72: 2801 | N72: 4495 | O72: 389 | P72: 192 | Q72: 37 | R72: 6322 | S72: =+R72/C72*100 -> 29.7645951
A73: RANCHO REDONDO | B73: 7 | C73: 2753 | D73: 1876 | E73: 68.14384308 | F73: 1840 | G73: 56 | H73: 4 | I73: 1 | J73: 24 | K73: 3 | L73: 919 | M73: 417 | N73: 380 | O73: 36 | P73: 28 | Q73: 8 | R73: 877 | S73: 31.85615692
A74: PURRAL | B74: 32 | C74: 15484 | D74: 9541 | E74: 61.61844485 | F74: 9352 | G74: 381 | H74: 30 | I74: 14 | J74: 96 | K74: 54 | L74: 3874 | M74: 2167 | N74: 2505 | O74: 231 | P74: 176 | Q74: 13 | R74: 5943 | S74: 38.38155515
A75: CANTÓN 9 SANTA ANA | B75: 58 | C75: 27313 | D75: 19968 | E75: 73.10804379 | F75: 19665 | G75: 761 | H75: 14 | I75: 22 | J75: 131 | K75: 59 | L75: 9605 | M75: 4214 | N75: 4494 | O75: 365 | P75: 232 | Q75: 71 | R75: 7345 | S75: 26.89195621
A76: SANTA ANA | B76: 15 | C76: 7385 | D76: 5588 | E76: 75.66689235 | F76: 5529 | G76: 248 | H76: 2 | I76: 6 | J76: 37 | K76: 26 | L76: 2741 | M76: 1073 | N76: 1297 | O76: 99 | P76: 47 | Q76: 12 | R76: 1797 | S76: 24.33310765
A77: SALITRAL | B77: 6 | C77: 2310 | D77: 1603 | E77: 69.39393939 | F77: 1573 | G77: 70 | H77: 1 | I77: 1 | J77: 7 | K77: 5 | L77: 793 | M77: 348 | N77: 324 | O77: 24 | P77: 24 | Q77: 6 | R77: 707 | S77: 30.60606061
A78: POZOS | B78: 16 | C78: 7749 | D78: 5551 | E78: 71.63504968 | F78: 5452 | G78: 198 | H78: 5 | I78: 8 | J78: 30 | K78: 12 | L78: 2770 | M78: 1183 | N78: 1138 | O78: 108 | P78: 81 | Q78: 18 | R78: 2198 | S78: 28.36495032
A79: URUCA | B79: 10 | C79: 4608 | D79: 3354 | E79: 72.78645833 | F79: 3304 | G79: 121 | H79: 3 | I79: 3 | J79: 24 | K79: 5 | L79: 1555 | M79: 783 | N79: 748 | O79: 62 | P79: 35 | Q79: 15 | R79: 1254 | S79: 27.21354167
A80: PIEDADES | B80: 8 | C80: 4049 | D80: 2970 | E80: 73.3514448 | F80: 2919 | G80: 80 | H80: 3 | I80: 4 | J80: 20 | K80: 10 | L80: 1401 | M80: 606 | N80: 740 | O80: 55 | P80: 35 | Q80: 16 | R80: 1079 | S80: 26.6485552
A81: BRASIL | B81: 3 | C81: 1212 | D81: 902 | E81: 74.42244224 | F81: 888 | G81: 44 | H81: 0 | I81: 0 | J81: 13 | K81: 1 | L81: 345 | M81: 221 | N81: 247 | O81: 17 | P81: 10 | Q81: 4 | R81: 310 | S81: 25.57755776
A82: CANTÓN 10 ALAJUELITA | B82: 93 | C82: 44270 | D82: 29153 | E82: 65.85272193 | F82: 28592 | G82: 1294 | H82: 25 | I82: 36 | J82: 214 | K82: 107 | L82: 12914 | M82: 6801 | N82: 6201 | O82: 1000 | P82: 484 | Q82: 77 | R82: 15117 | S82: 34.14727807
A83: ALAJUELITA | B83: 19 | C83: 9434 | D83: 6409 | E83: 67.93512826 | F83: 6314 | G83: 293 | H83: 8 | I83: 7 | J83: 50 | K83: 22 | L83: 2813 | M83: 1441 | N83: 1466 | O83: 214 | P83: 80 | Q83: 15 | R83: 3025 | S83: 32.06487174
A84: SAN JOSÉCITO | B84: 14 | C84: 6825 | D84: 4613 | E84: 67.58974359 | F84: 4542 | G84: 223 | H84: 7 | I84: 6 | J84: 23 | K84: 19 | L84: 1986 | M84: 901 | N84: 1206 | O84: 171 | P84: 61 | Q84: 10 | R84: 2212 | S84: 32.41025641
A85: SAN ANTONIO | B85: 4 | C85: 1310 | D85: 873 | E85: 66.64122137 | F85: 857 | G85: 22 | H85: 1 | I85: 1 | J85: 5 | K85: 3 | L85: 370 | M85: 193 | N85: 228 | O85: 34 | P85: 14 | Q85: 2 | R85: 437 | S85: 33.35877863
A86: CONCEPCIÓN | B86: 24 | C86: 11231 | D86: 7383 | E86: 65.73769032 | F86: 7235 | G86: 326 | H86: 2 | I86: 8 | J86: 55 | K86: 29 | L86: 3251 | M86: 1723 | N86: 1562 | O86: 279 | P86: 129 | Q86: 19 | R86: 3848 | S86: 34.26230968
A87: SAN FELIPE | B87: 32 | C87: 15470 | D87: 9875 | E87: 63.8332256 | F87: 9644 | G87: 430 | H87: 7 | I87: 14 | J87: 81 | K87: 34 | L87: 4494 | M87: 2543 | N87: 1739 | O87: 302 | P87: 200 | Q87: 31 | R87: 5595 | S87: 36.1667744
A88: CANTÓN 11 VÁZQUEZ DE CORONADO | B88: 91 | C88: 44773 | D88: 33084 | E88: 73.89274786 | F88: 32642 | G88: 1088 | H88: 45 | I88: 51 | J88: 178 | K88: 143 | L88: 14375 | M88: 5578 | N88: 10452 | O88: 732 | P88: 382 | Q88: 60 | R88: 11689 | S88: 26.10725214
A89: SAN ISIDRO | B89: 27 | C89: 13368 | D89: 10086 | E89: 75.44883303 | F89: 9969 | G89: 387 | H89: 11 | I89: 13 | J89: 49 | K89: 43 | L89: 4295 | M89: 1647 | N89: 3311 | O89: 213 | P89: 101 | Q89: 16 | R89: 3282 | S89: 24.55116697
A90: SAN RAFAEL | B90: 10 | C90: 4795 | D90: 3471 | E90: 72.38790407 | F90: 3417 | G90: 94 | H90: 8 | I90: 5 | J90: 11 | K90: 14 | L90: 1744 | M90: 585 | N90: 899 | O90: 57 | P90: 48 | Q90: 6 | R90: 1324 | S90: 27.61209593
A91: DULCE NOMBRE DE JESÚS | B91: 16 | C91: 7846 | D91: 5588 | E91: 71.22100433 | F91: 5509 | G91: 162 | H91: 10 | I91: 7 | J91: 32 | K91: 28 | L91: 2378 | M91: 1001 | N91: 1740 | O91: 151 | P91: 68 | Q91: 11 | R91: 2258 | S91: 28.77899567
A92: PATALILLO | B92: 29 | C92: 14186 | D92: 10943 | E92: 77.13943324 | F92: 10808 | G92: 316 | H92: 12 | I92: 21 | J92: 73 | K92: 47 | L92: 4665 | M92: 1799 | N92: 3637 | O92: 238 | P92: 120 | Q92: 15 | R92: 3243 | S92: 22.86056676
A93: CASCAJAL | B93: 9 | C93: 4578 | D93: 2996 | E93: 65.44342508 | F93: 2939 | G93: 129 | H93: 4 | I93: 5 | J93: 13 | K93: 11 | L93: 1293 | M93: 546 | N93: 865 | O93: 73 | P93: 45 | Q93: 12 | R93: 1582 | S93: 34.55657492
A94: CANTÓN 12 ACOSTA | B94: 44 | C94: 14081 | D94: 10028 | E94: 71.21653292 | F94: 9786 | G94: 360 | H94: 13 | I94: 36 | J94: 54 | K94: 16 | L94: 4569 | M94: 1849 | N94: 2707 | O94: 182 | P94: 174 | Q94: 68 | R94: 4053 | S94: 28.78346708
A95: SAN IGNACIO | B95: 15 | C95: 5987 | D95: 4563 | E95: 76.21513279 | F95: 4494 | G95: 180 | H95: 3 | I95: 8 | J95: 6 | K95: 5 | L95: 2001 | M95: 655 | N95: 1560 | O95: 76 | P95: 49 | Q95: 20 | R95: 1424 | S95: 23.78486721
A96: GUAITIL | B96: 6 | C96: 1802 | D96: 1187 | E96: 65.87125416 | F96: 1157 | G96: 53 | H96: 4 | I96: 3 | J96: 6 | K96: 3 | L96: 565 | M96: 205 | N96: 290 | O96: 28 | P96: 22 | Q96: 8 | R96: 615 | S96: 34.12874584
A97: PALMICHAL | B97: 9 | C97: 3191 | D97: 2338 | E97: 73.26856785 | F97: 2276 | G97: 79 | H97: 3 | I97: 9 | J97: 34 | K97: 5 | L97: 1106 | M97: 492 | N97: 510 | O97: 38 | P97: 48 | Q97: 14 | R97: 853 | S97: 26.73143215
A98: CANGREJAL | B98: 5 | C98: 1362 | D98: 864 | E98: 63.43612335 | F98: 826 | G98: 19 | H98: 2 | I98: 13 | J98: 4 | K98: 1 | L98: 323 | M98: 223 | N98: 213 | O98: 28 | P98: 25 | Q98: 13 | R98: 498 | S98: 36.56387665
A99: SABANILLAS | B99: 9 | C99: 1739 | D99: 1076 | E99: 61.8746406 | F99: 1033 | G99: 29 | H99: 1 | I99: 3 | J99: 4 | K99: 2 | L99: 574 | M99: 274 | N99: 134 | O99: 12 | P99: 30 | Q99: 13 | R99: 663 | S99: 38.1253594
A100: CANTÓN 13 TIBÁS | B100: 115 | C100: 55673 | D100: 39545 | E100: 71.0308408 | F100: 39027 | G100: 1379 | H100: 38 | I100: 39 | J100: 218 | K100: 130 | L100: 17778 | M100: 6956 | N100: 11740 | O100: 749 | P100: 440 | Q100: 78 | R100: 16128 | S100: 28.9691592
A101: SAN JUAN | B101: 45 | C101: 22022 | D101: 16043 | E101: 72.8498774 | F101: 15871 | G101: 488 | H101: 12 | I101: 20 | J101: 77 | K101: 43 | L101: 7436 | M101: 2301 | N101: 5211 | O101: 283 | P101: 142 | Q101: 30 | R101: 5979 | S101: 27.1501226
A102: CINCO ESQUINAS | B102: 15 | C102: 7166 | D102: 4746 | E102: 66.22941669 | F102: 4680 | G102: 236 | H102: 5 | I102: 6 | J102: 31 | K102: 26 | L102: 2050 | M102: 979 | N102: 1260 | O102: 87 | P102: 60 | Q102: 6 | R102: 2420 | S102: 33.77058331
A103: ANSELMO LLORENTE | B103: 18 | C103: 8743 | D103: 6609 | E103: 75.59190209 | F103: 6552 | G103: 190 | H103: 5 | I103: 4 | J103: 29 | K103: 26 | L103: 2959 | M103: 892 | N103: 2338 | O103: 109 | P103: 47 | Q103: 10 | R103: 2134 | S103: 24.40809791
A104: LEÓN XIII | B104: 17 | C104: 8112 | D104: 5246 | E104: =+D104/C104*100 -> 64.66962525 | F104: 5096 | G104: 255 | H104: 7 | I104: 7 | J104: 39 | K104: 16 | L104: 2267 | M104: 1608 | N104: 755 | O104: 142 | P104: 130 | Q104: 20 | R104: 2866 | S104: =+R104/C104*100 -> 35.33037475
A105: COLIMA | B105: 20 | C105: 9630 | D105: 6901 | E105: 71.66147456 | F105: 6828 | G105: 210 | H105: 9 | I105: 2 | J105: 42 | K105: 19 | L105: 3066 | M105: 1176 | N105: 2176 | O105: 128 | P105: 61 | Q105: 12 | R105: 2729 | S105: 28.33852544
A106: CANTÓN 14 MORAVIA | B106: 83 | C106: 39778 | D106: 29174 | E106: 73.34204837 | F106: 28821 | G106: 836 | H106: 35 | I106: 47 | J106: 153 | K106: 102 | L106: 13403 | M106: 4259 | N106: 9500 | O106: 486 | P106: 302 | Q106: 51 | R106: 10604 | S106: 26.65795163
A107: SAN VICENTE | B107: 52 | C107: 25252 | D107: 18946 | E107: 75.02772058 | F107: 18743 | G107: 489 | H107: 17 | I107: 28 | J107: 81 | K107: 64 | L107: 9059 | M107: 2387 | N107: 6392 | O107: 226 | P107: 169 | Q107: 34 | R107: 6306 | S107: 24.97227942
A108: SAN JERÓNIMO | B108: 8 | C108: 3328 | D108: 2304 | E108: 69.23076923 | F108: 2263 | G108: 83 | H108: 1 | I108: 3 | J108: 12 | K108: 0 | L108: 973 | M108: 444 | N108: 695 | O108: 52 | P108: 37 | Q108: 4 | R108: 1024 | S108: 30.76923077
A109: LA TRINIDAD | B109: 23 | C109: 11198 | D109: 7924 | E109: 70.76263619 | F109: 7815 | G109: 264 | H109: 17 | I109: 16 | J109: 60 | K109: 38 | L109: 3371 | M109: 1428 | N109: 2413 | O109: 208 | P109: 96 | Q109: 13 | R109: 3274 | S109: 29.23736381
A110: CANTÓN 15 MONTES DE OCA | B110: 85 | C110: 41139 | D110: 30592 | E110: 74.36252704 | F110: 30231 | G110: 773 | H110: 48 | I110: 23 | J110: 106 | K110: 154 | L110: 13560 | M110: 3641 | N110: 11467 | O110: 459 | P110: 312 | Q110: 49 | R110: 10547 | S110: 25.63747296
A111: SAN PEDRO | B111: 43 | C111: 21113 | D111: 15485 | E111: 73.34343769 | F111: 15314 | G111: 412 | H111: 18 | I111: 13 | J111: 58 | K111: 70 | L111: 7065 | M111: 1836 | N111: 5644 | O111: 198 | P111: 146 | Q111: 25 | R111: 5628 | S111: 26.65656231
A112: SABANILLA | B112: 23 | C112: 11139 | D112: 8536 | E112: 76.63165455 | F112: 8450 | G112: 184 | H112: 18 | I112: 6 | J112: 21 | K112: 38 | L112: 3700 | M112: 971 | N112: 3376 | O112: 136 | P112: 70 | Q112: 16 | R112: 2603 | S112: 23.36834545
A113: MERCEDES | B113: 7 | C113: 3066 | D113: 2308 | E113: 75.27723418 | F113: 2279 | G113: 66 | H113: 4 | I113: 2 | J113: 9 | K113: 18 | L113: 968 | M113: 236 | N113: 948 | O113: 28 | P113: 27 | Q113: 2 | R113: 758 | S113: 24.72276582
A114: SAN RAFAEL | B114: 12 | C114: 5821 | D114: 4263 | E114: 73.23483937 | F114: 4188 | G114: 111 | H114: 8 | I114: 2 | J114: 18 | K114: 28 | L114: 1827 | M114: 598 | N114: 1499 | O114: 97 | P114: 69 | Q114: 6 | R114: 1558 | S114: 26.76516063
A115: CANTÓN 16 TURRUBARES | B115: 16 | C115: 3963 | D115: 2980 | E115: 75.19555892 | F115: 2921 | G115: 248 | H115: 3 | I115: 5 | J115: 8 | K115: 6 | L115: 1642 | M115: 549 | N115: 438 | O115: 22 | P115: 50 | Q115: 9 | R115: 983 | S115: 24.80444108
A116: SAN PABLO | B116: 3 | C116: 1089 | D116: 825 | E116: 75.75757576 | F116: 819 | G116: 57 | H116: 0 | I116: 0 | J116: 2 | K116: 3 | L116: 460 | M116: 135 | N116: 155 | O116: 7 | P116: 4 | Q116: 2 | R116: 264 | S116: 24.24242424
A117: SAN PEDRO | B117: 1 | C117: 407 | D117: 355 | E117: 87.22358722 | F117: 351 | G117: 33 | H117: 1 | I117: 1 | J117: 1 | K117: 0 | L117: 187 | M117: 61 | N117: 66 | O117: 1 | P117: 2 | Q117: 2 | R117: 52 | S117: 12.77641278
A118: SAN JUAN DE MATA | B118: 2 | C118: 787 | D118: 539 | E118: 68.48792884 | F118: 524 | G118: 27 | H118: 0 | I118: 2 | J118: 1 | K118: 0 | L118: 285 | M118: 137 | N118: 64 | O118: 8 | P118: 14 | Q118: 1 | R118: 248 | S118: 31.51207116
A119: SAN LUIS | B119: 4 | C119: 436 | D119: 329 | E119: 75.4587156 | F119: 322 | G119: 28 | H119: 1 | I119: 0 | J119: 1 | K119: 1 | L119: 173 | M119: 67 | N119: 45 | O119: 6 | P119: 6 | Q119: 1 | R119: 107 | S119: 24.5412844
A120: CARARA | B120: 6 | C120: 1244 | D120: 932 | E120: 74.91961415 | F120: 905 | G120: 103 | H120: 1 | I120: 2 | J120: 3 | K120: 2 | L120: 537 | M120: 149 | N120: 108 | O120: 0 | P120: 24 | Q120: 3 | R120: 312 | S120: 25.08038585
A121: CANTÓN 17 DOTA | B121: 14 | C121: 4789 | D121: 3215 | E121: 67.13301316 | F121: 3163 | G121: 99 | H121: 4 | I121: 10 | J121: 14 | K121: 5 | L121: 1361 | M121: 355 | N121: 1281 | O121: 34 | P121: 33 | Q121: 19 | R121: 1574 | S121: 32.86698684
A122: SANTA MARÍA | B122: 8 | C122: 3351 | D122: 2158 | E122: 64.39868696 | F122: 2123 | G122: 83 | H122: 3 | I122: 6 | J122: 9 | K122: 4 | L122: 868 | M122: 216 | N122: 911 | O122: 23 | P122: 22 | Q122: 13 | R122: 1193 | S122: 35.60131304
A123: JARDÍN | B123: 1 | C123: 225 | D123: 141 | E123: 62.66666667 | F123: 139 | G123: 1 | H123: 0 | I123: 0 | J123: 0 | K123: 0 | L123: 76 | M123: 24 | N123: 37 | O123: 1 | P123: 2 | Q123: 0 | R123: 84 | S123: 37.33333333
A124: COPEY | B124: 5 | C124: 1213 | D124: 916 | E124: 75.51525144 | F124: 901 | G124: 15 | H124: 1 | I124: 4 | J124: 5 | K124: 1 | L124: 417 | M124: 115 | N124: 333 | O124: 10 | P124: 9 | Q124: 6 | R124: 297 | S124: 24.48474856
A125: CANTÓN 18 CURRIDABAT | B125: 91 | C125: 43957 | D125: 31958 | E125: 72.70286871 | F125: 31439 | G125: 865 | H125: 36 | I125: 21 | J125: 174 | K125: 91 | L125: 15373 | M125: 5430 | N125: 8805 | O125: 644 | P125: 448 | Q125: 71 | R125: 11999 | S125: 27.29713129
A126: CURRIDABAT | B126: 47 | C126: 23410 | D126: 17305 | E126: 73.92140111 | F126: 17082 | G126: 420 | H126: 20 | I126: 10 | J126: 73 | K126: 58 | L126: 8385 | M126: 2539 | N126: 5319 | O126: 258 | P126: 192 | Q126: 31 | R126: 6105 | S126: 26.07859889
A127: GRANADILLA | B127: 17 | C127: 7806 | D127: 5713 | E127: 73.18729183 | F127: 5650 | G127: 158 | H127: 7 | I127: 9 | J127: 36 | K127: 19 | L127: 2705 | M127: 1055 | N127: 1531 | O127: 130 | P127: 54 | Q127: 9 | R127: 2093 | S127: 26.81270817
A128: SÁNCHEZ | B128: 7 | C128: 3135 | D128: 2562 | E128: 81.72248804 | F128: 2544 | G128: 50 | H128: 2 | I128: 0 | J128: 5 | K128: 4 | L128: 1595 | M128: 329 | N128: 545 | O128: 14 | P128: 14 | Q128: 4 | R128: 573 | S128: 18.27751196
A129: TIRRASES | B129: 20 | C129: 9606 | D129: 6378 | E129: 66.3960025 | F129: 6163 | G129: 237 | H129: 7 | I129: 2 | J129: 60 | K129: 10 | L129: 2688 | M129: 1507 | N129: 1410 | O129: 242 | P129: 188 | Q129: 27 | R129: 3228 | S129: 33.6039975
A130: CANTÓN 19 PÉREZ ZELEDÓN | B130: 251 | C130: 96629 | D130: 64803 | E130: 67.06371793 | F130: 63449 | G130: 1492 | H130: 48 | I130: 91 | J130: 276 | K130: 147 | L130: 29435 | M130: 6983 | N130: 23886 | O130: 1091 | P130: 1075 | Q130: 279 | R130: 31826 | S130: 32.93628207
A131: SAN ISIDRO DE EL GENERAL | B131: 83 | C131: 35780 | D131: 24252 | E131: 67.78088317 | F131: 23793 | G131: 544 | H131: 15 | I131: 36 | J131: 95 | K131: 55 | L131: 9873 | M131: 2514 | N131: 10167 | O131: 494 | P131: 371 | Q131: 88 | R131: 11528 | S131: 32.21911683
A132: EL GENERAL | B132: 11 | C132: 4305 | D132: 3111 | E132: 72.26480836 | F132: 3063 | G132: 29 | H132: 4 | I132: 3 | J132: 6 | K132: 7 | L132: 1468 | M132: 217 | N132: 1297 | O132: 32 | P132: 35 | Q132: 13 | R132: 1194 | S132: 27.73519164
A133: DANIEL FLORES | B133: 52 | C133: 22315 | D133: 14929 | E133: 66.90118754 | F133: 14615 | G133: 380 | H133: 8 | I133: 10 | J133: 59 | K133: 33 | L133: 6631 | M133: 1720 | N133: 5491 | O133: 283 | P133: 253 | Q133: 61 | R133: 7386 | S133: 33.09881246
A134: RIVAS | B134: 15 | C134: 4541 | D134: 3225 | E134: 71.01959921 | F134: 3160 | G134: 87 | H134: 7 | I134: 6 | J134: 15 | K134: 5 | L134: 1466 | M134: 253 | N134: 1257 | O134: 64 | P134: 44 | Q134: 21 | R134: 1316 | S134: 28.98040079
A135: SAN PEDRO | B135: 15 | C135: 5433 | D135: 3418 | E135: 62.91183508 | F135: 3328 | G135: 103 | H135: 2 | I135: 6 | J135: 14 | K135: 10 | L135: 1761 | M135: 607 | N135: 793 | O135: 32 | P135: 71 | Q135: 19 | R135: 2015 | S135: 37.08816492
A136: PLATANARES | B136: 16 | C136: 5499 | D136: 3713 | E136: =+D136/C136*100 -> 67.52136752 | F136: 3632 | G136: 96 | H136: 4 | I136: 9 | J136: 27 | K136: 9 | L136: 1922 | M136: 461 | N136: 1069 | O136: 35 | P136: 63 | Q136: 18 | R136: 1786 | S136: =+R136/C136*100 -> 32.47863248
A137: PEJIBAYE | B137: 18 | C137: 5429 | D137: 3481 | E137: 64.11862221 | F137: 3392 | G137: 39 | H137: 6 | I137: 7 | J137: 23 | K137: 8 | L137: 1707 | M137: 333 | N137: 1235 | O137: 34 | P137: 77 | Q137: 12 | R137: 1948 | S137: 35.88137779
A138: CAJÓN | B138: 15 | C138: 6070 | D138: 3742 | E138: 61.64744646 | F138: 3643 | G138: 96 | H138: 1 | I138: 2 | J138: 13 | K138: 7 | L138: 1969 | M138: 413 | N138: 1078 | O138: 64 | P138: 79 | Q138: 20 | R138: 2328 | S138: 38.35255354
A139: BARÚ | B139: 5 | C139: 1774 | D139: 1137 | E139: 64.09244645 | F139: 1106 | G139: 22 | H139: 1 | I139: 6 | J139: 8 | K139: 3 | L139: 573 | M139: 177 | N139: 304 | O139: 12 | P139: 24 | Q139: 7 | R139: 637 | S139: 35.90755355
A140: RÍO NUEVO | B140: 8 | C140: 2191 | D140: 1508 | E140: 68.82701963 | F140: 1480 | G140: 38 | H140: 0 | I140: 3 | J140: 1 | K140: 3 | L140: 913 | M140: 109 | N140: 399 | O140: 14 | P140: 23 | Q140: 5 | R140: 683 | S140: 31.17298037
A141: PÁRAMO | B141: 13 | C141: 3292 | D141: 2287 | E141: 69.47144593 | F141: 2237 | G141: 58 | H141: 0 | I141: 3 | J141: 15 | K141: 7 | L141: 1152 | M141: 179 | N141: 796 | O141: 27 | P141: 35 | Q141: 15 | R141: 1005 | S141: 30.52855407
A142: CANTÓN 20 LEÓN CORTÉS | B142: 26 | C142: 8009 | D142: 5409 | E142: 67.53652141 | F142: 5279 | G142: 210 | H142: 4 | I142: 20 | J142: 32 | K142: 16 | L142: 2855 | M142: 920 | N142: 1126 | O142: 96 | P142: 80 | Q142: 50 | R142: 2600 | S142: 32.46347859
A143: SAN PABLO | B143: 6 | C143: 2792 | D143: 1870 | E143: 66.97707736 | F143: 1833 | G143: 86 | H143: 0 | I143: 7 | J143: 6 | K143: 6 | L143: 883 | M143: 394 | N143: 407 | O143: 44 | P143: 21 | Q143: 16 | R143: 922 | S143: 33.02292264
A144: SAN ANDRÉS | B144: 4 | C144: 992 | D144: 584 | E144: 58.87096774 | F144: 577 | G144: 37 | H144: 1 | I144: 1 | J144: 9 | K144: 0 | L144: 294 | M144: 104 | N144: 126 | O144: 5 | P144: 4 | Q144: 3 | R144: 408 | S144: 41.12903226
A145: LLANO BONITO | B145: 5 | C145: 1295 | D145: 866 | E145: 66.87258687 | F145: 841 | G145: 14 | H145: 2 | I145: 0 | J145: 3 | K145: 4 | L145: 529 | M145: 92 | N145: 188 | O145: 9 | P145: 14 | Q145: 11 | R145: 429 | S145: 33.12741313
A146: SAN ISIDRO | B146: 4 | C146: 1040 | D146: 679 | E146: 65.28846154 | F146: 659 | G146: 15 | H146: 0 | I146: 0 | J146: 6 | K146: 4 | L146: 395 | M146: 119 | N146: 115 | O146: 5 | P146: 14 | Q146: 6 | R146: 361 | S146: 34.71153846
A147: SANTA CRUZ | B147: 5 | C147: 1203 | D147: 910 | E147: 75.64422278 | F147: 877 | G147: 48 | H147: 1 | I147: 5 | J147: 5 | K147: 2 | L147: 465 | M147: 137 | N147: 193 | O147: 21 | P147: 23 | Q147: 10 | R147: 293 | S147: 24.35577722
A148: SAN ANTONIO | B148: 2 | C148: 687 | D148: 500 | E148: 72.78020378 | F148: 492 | G148: 10 | H148: 0 | I148: 7 | J148: 3 | K148: 0 | L148: 289 | M148: 74 | N148: 97 | O148: 12 | P148: 4 | Q148: 4 | R148: 187 | S148: 27.21979622

Sheet C1.4
A2: CUADRO 1.4 ALAJUELA: JUNTAS, ELECTORADO, PARTICIPACIÓN, VOTOS POR PARTIDO, NULOS, BLANCOS Y ABSTENCIONISMO PARA PRESIDENCIA Y VICEPRESIDENCIAS DE LA REPÚBLICA, SEGÚN CANTÓN Y DISTRITO ADMINISTRATIVO ELECCIONES 7 DE FEBRERO 2010
A4: CANTÓN Y DISTRITO ADMINISTRATIVO | B4: JUNTAS | C4: ELECTORADO | D4: VOTOS RECIBIDOS | R4: ABSTENCIONISMO
D5: TOTAL GENERAL | E5: % PARTICIPACIÓN | F5: VOTOS VÁLIDOS | P5: NULOS | Q5: BLANCOS | R5: ABSOLUTO | S5: %
F6: TOTAL | G6: UNIDAD SOCIAL CRISTIANA | H6: INTEGRACIÓN NACIONAL | I6: ALIANZA PATRIÓTICA | J6: RENOVACIÓN COSTARRICENSE | K6: FRENTE AMPLIO | L6: LIBERACIÓN NACIONAL | M6: MOVIMIENTO LIBERTARIO | N6: ACCIÓN CIUDADANA | O6: ACCESIBILIDAD SIN EXCLUSIÓN
A8: PROVINCIA ALAJUELA | B8: 1252 | C8: 524215 | D8: 374952 | E8: =+D8/C8*100 -> 71.52637754 | F8: 367843 | G8: 11887 | H8: 275 | I8: 659 | J8: 2788 | K8: 830 | L8: 166655 | M8: 80590 | N8: 97399 | O8: 6760 | P8: 5798 | Q8: 1311 | R8: 149263 | S8: =+R8/C8*100 -> 28.47362246
A9: CANTÓN 1 ALAJUELA | B9: 376 | C9: 170966 | D9: 119832 | E9: 70.09112923 | F9: 117764 | G9: 3868 | H9: 97 | I9: 159 | J9: 682 | K9: 279 | L9: 54697 | M9: 27992 | N9: 27209 | O9: 2781 | P9: 1810 | Q9: 258 | R9: 51134 | S9: 29.90887077
A10: ALAJUELA | B10: 78 | C10: 37877 | D10: 27042 | E10: 71.39424981 | F10: 26708 | G10: 887 | H10: 24 | I10: 32 | J10: 133 | K10: 80 | L10: 12725 | M10: 5462 | N10: 6847 | O10: 518 | P10: 286 | Q10: 48 | R10: 10835 | S10: 28.60575019
A11: SAN JOSÉ | B11: 59 | C11: 28420 | D11: 19944 | E11: 70.17593244 | F11: 19618 | G11: 607 | H11: 16 | I11: 24 | J11: 107 | K11: 53 | L11: 8630 | M11: 4897 | N11: 4834 | O11: 450 | P11: 274 | Q11: 52 | R11: 8476 | S11: 29.82406756
A12: CARRIZAL | B12: 10 | C12: 4008 | D12: 2757 | E12: 68.78742515 | F12: 2676 | G12: 110 | H12: 3 | I12: 5 | J12: 10 | K12: 5 | L12: 1187 | M12: 559 | N12: 728 | O12: 69 | P12: 70 | Q12: 11 | R12: 1251 | S12: 31.21257485
A13: SAN ANTONIO | B13: 39 | C13: 19195 | D13: 13339 | E13: 69.49205522 | F13: 13104 | G13: 328 | H13: 6 | I13: 16 | J13: 114 | K13: 28 | L13: 6134 | M13: 3331 | N13: 2835 | O13: 312 | P13: 211 | Q13: 24 | R13: 5856 | S13: 30.50794478
A14: GUÁCIMA | B14: 24 | C14: 10822 | D14: 7767 | E14: 71.77046757 | F14: 7572 | G14: 242 | H14: 7 | I14: 16 | J14: 66 | K14: 8 | L14: 3594 | M14: 1864 | N14: 1526 | O14: 249 | P14: 183 | Q14: 12 | R14: 3055 | S14: 28.22953243
A15: SAN ISIDRO | B15: 23 | C15: 10208 | D15: 7096 | E15: 69.51410658 | F15: 6913 | G15: 255 | H15: 2 | I15: 5 | J15: 29 | K15: 11 | L15: 3202 | M15: 1712 | N15: 1492 | O15: 205 | P15: 161 | Q15: 22 | R15: 3112 | S15: 30.48589342
A16: SABANILLA | B16: 12 | C16: 4480 | D16: 3107 | E16: 69.35267857 | F16: 3033 | G16: 75 | H16: 4 | I16: 5 | J16: 20 | K16: 2 | L16: 1442 | M16: 805 | N16: 597 | O16: 83 | P16: 64 | Q16: 10 | R16: 1373 | S16: 30.64732143
A17: SAN RAFAEL | B17: 39 | C17: 14357 | D17: 9543 | E17: 66.4693181 | F17: 9411 | G17: 462 | H17: 7 | I17: 20 | J17: 42 | K17: 25 | L17: 4499 | M17: 2259 | N17: 1891 | O17: 206 | P17: 117 | Q17: 15 | R17: 4814 | S17: 33.5306819
A18: RÍO SEGUNDO | B18: 18 | C18: 8807 | D18: 6086 | E18: 69.10412172 | F18: 5988 | G18: 183 | H18: 7 | I18: 9 | J18: 30 | K18: 12 | L18: 2877 | M18: 1494 | N18: 1220 | O18: 156 | P18: 89 | Q18: 9 | R18: 2721 | S18: 30.89587828
A19: DESAMPARADOS | B19: 31 | C19: 14840 | D19: 10433 | E19: 70.3032345 | F19: 10229 | G19: 320 | H19: 8 | I19: 12 | J19: 63 | K19: 16 | L19: 4602 | M19: 2715 | N19: 2221 | O19: 272 | P19: 179 | Q19: 25 | R19: 4407 | S19: 29.6967655
A20: TURRÚCARES | B20: 11 | C20: 4585 | D20: 3351 | E20: 73.08615049 | F20: 3287 | G20: 110 | H20: 3 | I20: 3 | J20: 7 | K20: 10 | L20: 1543 | M20: 647 | N20: 895 | O20: 69 | P20: 55 | Q20: 9 | R20: 1234 | S20: 26.91384951
A21: TAMBOR | B21: 17 | C21: 7696 | D21: 5471 | E21: 71.08887734 | F21: 5389 | G21: 164 | H21: 4 | I21: 7 | J21: 40 | K21: 16 | L21: 2422 | M21: 1391 | N21: 1216 | O21: 129 | P21: 74 | Q21: 8 | R21: 2225 | S21: 28.91112266
A22: GARITA | B22: 9 | C22: 4105 | D22: 2838 | E22: 69.13520097 | F22: 2794 | G22: 78 | H22: 4 | I22: 2 | J22: 14 | K22: 4 | L22: 1293 | M22: 670 | N22: 682 | O22: 47 | P22: 37 | Q22: 7 | R22: 1267 | S22: 30.86479903
A23: SARAPIQUÍ | B23: 6 | C23: 1566 | D23: 1058 | E23: 67.56066411 | F23: 1042 | G23: 47 | H23: 2 | I23: 3 | J23: 7 | K23: 9 | L23: 547 | M23: 186 | N23: 225 | O23: 16 | P23: 10 | Q23: 6 | R23: 508 | S23: 32.43933589
A24: CANTÓN 2 SAN RAMÓN | B24: 126 | C24: 52853 | D24: 38829 | E24: 73.46602842 | F24: 38088 | G24: 889 | H24: 25 | I24: 83 | J24: 289 | K24: 104 | L24: 15201 | M24: 5793 | N24: 15177 | O24: 527 | P24: 566 | Q24: 175 | R24: 14024 | S24: 26.53397158
A25: SAN RAMÓN | B25: 27 | C25: 13065 | D25: 9887 | E25: 75.67546881 | F25: 9743 | G25: 201 | H25: 8 | I25: 15 | J25: 63 | K25: 29 | L25: 3925 | M25: 1184 | N25: 4196 | O25: 122 | P25: 112 | Q25: 32 | R25: 3178 | S25: 24.32453119
A26: SANTIAGO | B26: 8 | C26: 2914 | D26: 2174 | E26: 74.60535347 | F26: 2129 | G26: 27 | H26: 1 | I26: 1 | J26: 13 | K26: 9 | L26: 981 | M26: 281 | N26: 788 | O26: 28 | P26: 28 | Q26: 17 | R26: 740 | S26: 25.39464653
A27: SAN JUAN | B27: 18 | C27: 8195 | D27: 5799 | E27: 70.76266016 | F27: 5705 | G27: 142 | H27: 2 | I27: 11 | J27: 42 | K27: 18 | L27: 2205 | M27: 988 | N27: 2199 | O27: 98 | P27: 75 | Q27: 19 | R27: 2396 | S27: 29.23733984
A28: PIEDADES NORTE | B28: 11 | C28: 4335 | D28: 3249 | E28: 74.94809689 | F28: 3193 | G28: 46 | H28: 4 | I28: 5 | J28: 17 | K28: 5 | L28: 1210 | M28: 624 | N28: 1222 | O28: 60 | P28: 40 | Q28: 16 | R28: 1086 | S28: 25.05190311
A29: PIEDADES SUR | B29: 9 | C29: 2579 | D29: 1935 | E29: 75.02908104 | F29: 1894 | G29: 22 | H29: 0 | I29: 5 | J29: 15 | K29: 8 | L29: 637 | M29: 211 | N29: 968 | O29: 28 | P29: 29 | Q29: 12 | R29: 644 | S29: 24.97091896
A30: SAN RAFAEL | B30: 11 | C30: 4886 | D30: 3544 | E30: 72.53376995 | F30: 3461 | G30: 97 | H30: 2 | I30: 5 | J30: 27 | K30: 9 | L30: 1474 | M30: 542 | N30: 1273 | O30: 32 | P30: 69 | Q30: 14 | R30: 1342 | S30: 27.46623005
A31: SAN ISIDRO | B31: 5 | C31: 2314 | D31: 1683 | E31: 72.73120138 | F31: 1644 | G31: 22 | H31: 2 | I31: 9 | J31: 7 | K31: 4 | L31: 697 | M31: 233 | N31: 643 | O31: 27 | P31: 27 | Q31: 12 | R31: 631 | S31: 27.26879862
A32: ÁNGELES | B32: 11 | C32: 4412 | D32: 3233 | E32: 73.2774252 | F32: 3155 | G32: 81 | H32: 1 | I32: 5 | J32: 24 | K32: 7 | L32: 1060 | M32: 592 | N32: 1352 | O32: 33 | P32: 63 | Q32: 15 | R32: 1179 | S32: 26.7225748
A33: ALFARO | B33: 8 | C33: 3129 | D33: 2255 | E33: 72.06775328 | F33: 2205 | G33: 59 | H33: 1 | I33: 4 | J33: 23 | K33: 10 | L33: 842 | M33: 318 | N33: 916 | O33: 32 | P33: 35 | Q33: 15 | R33: 874 | S33: 27.93224672
A34: VOLIO | B34: 3 | C34: 1275 | D34: 932 | E34: 73.09803922 | F34: 914 | G34: 21 | H34: 1 | I34: 4 | J34: 4 | K34: 1 | L34: 400 | M34: 165 | N34: 304 | O34: 14 | P34: 12 | Q34: 6 | R34: 343 | S34: 26.90196078
A35: CONCEPCIÓN | B35: 3 | C35: 1459 | D35: 1082 | E35: 74.16038382 | F35: 1060 | G35: 16 | H35: 0 | I35: 9 | J35: 11 | K35: 2 | L35: 435 | M35: 215 | N35: 343 | O35: 29 | P35: 17 | Q35: 5 | R35: 377 | S35: 25.83961618
A36: ZAPOTAL | B36: 3 | C36: 303 | D36: 223 | E36: 73.59735974 | F36: 215 | G36: 8 | H36: 0 | I36: 1 | J36: 0 | K36: 0 | L36: 101 | M36: 40 | N36: 64 | O36: 1 | P36: 6 | Q36: 2 | R36: 80 | S36: 26.40264026
A37: PEÑAS BLANCAS | B37: 9 | C37: 3987 | D37: 2833 | E37: 71.05593178 | F37: 2770 | G37: 147 | H37: 3 | I37: 9 | J37: 43 | K37: 2 | L37: 1234 | M37: 400 | N37: 909 | O37: 23 | P37: 53 | Q37: 10 | R37: 1154 | S37: 28.94406822
A38: CANTÓN 3 GRECIA | B38: 119 | C38: 50109 | D38: 36847 | E38: 73.53369654 | F38: 36246 | G38: 997 | H38: 28 | I38: 59 | J38: 243 | K38: 89 | L38: 16519 | M38: 7943 | N38: 9432 | O38: 936 | P38: 491 | Q38: 110 | R38: 13262 | S38: 26.46630346
A39: GRECIA | B39: 28 | C39: 13674 | D39: 10073 | E39: 73.6653503 | F39: 9969 | G39: 271 | H39: 6 | I39: 8 | J39: 77 | K39: 30 | L39: 4630 | M39: 1976 | N39: 2727 | O39: 244 | P39: 81 | Q39: 23 | R39: 3601 | S39: 26.3346497
A40: SAN ISIDRO | B40: 10 | C40: 3716 | D40: 2798 | E40: =+D40/C40*100 -> 75.29601722 | F40: 2746 | G40: 115 | H40: 4 | I40: 5 | J40: 19 | K40: 4 | L40: 1141 | M40: 673 | N40: 716 | O40: 69 | P40: 46 | Q40: 6 | R40: 918 | S40: =+R40/C40*100 -> 24.70398278
A41: SAN JOSÉ | B41: 11 | C41: 5261 | D41: 4053 | E41: 77.03858582 | F41: 3995 | G41: 103 | H41: 5 | I41: 10 | J41: 18 | K41: 7 | L41: 1713 | M41: 897 | N41: 1143 | O41: 99 | P41: 43 | Q41: 15 | R41: 1208 | S41: 22.96141418
A42: SAN ROQUE | B42: 18 | C42: 7196 | D42: 5733 | E42: 79.6692607 | F42: 5636 | G42: 111 | H42: 1 | I42: 4 | J42: 25 | K42: 13 | L42: 2506 | M42: 985 | N42: 1854 | O42: 137 | P42: 77 | Q42: 20 | R42: 1463 | S42: 20.3307393
A43: TACARES | B43: 10 | C43: 4682 | D43: 3401 | E43: 72.63989748 | F43: 3344 | G43: 93 | H43: 6 | I43: 5 | J43: 19 | K43: 14 | L43: 1600 | M43: 967 | N43: 549 | O43: 91 | P43: 44 | Q43: 13 | R43: 1281 | S43: 27.36010252
A44: RÍO CUARTO | B44: 14 | C44: 4612 | D44: 2734 | E44: 59.28013877 | F44: 2670 | G44: 71 | H44: 1 | I44: 4 | J44: 29 | K44: 2 | L44: 1280 | M44: 662 | N44: 585 | O44: 36 | P44: 55 | Q44: 9 | R44: 1878 | S44: 40.71986123
A45: PUENTE DE PIEDRA | B45: 16 | C45: 6392 | D45: 4771 | E45: 74.64017522 | F45: 4671 | G45: 163 | H45: 2 | I45: 12 | J45: 32 | K45: 13 | L45: 2319 | M45: 1139 | N45: 799 | O45: 192 | P45: 88 | Q45: 12 | R45: 1621 | S45: 25.35982478
A46: BOLÍVAR | B46: 12 | C46: 4576 | D46: 3284 | E46: 71.76573427 | F46: 3215 | G46: 70 | H46: 3 | I46: 11 | J46: 24 | K46: 6 | L46: 1330 | M46: 644 | N46: 1059 | O46: 68 | P46: 57 | Q46: 12 | R46: 1292 | S46: 28.23426573
A47: CANTÓN 4 SAN MATEO | B47: 11 | C47: 3798 | D47: 2669 | E47: 70.27382833 | F47: 2597 | G47: 142 | H47: 5 | I47: 8 | J47: 29 | K47: 6 | L47: 1307 | M47: 731 | N47: 339 | O47: 30 | P47: 56 | Q47: 16 | R47: 1129 | S47: 29.72617167
A48: SAN MATEO | B48: 6 | C48: 1955 | D48: 1404 | E48: 71.81585678 | F48: 1372 | G48: 84 | H48: 3 | I48: 2 | J48: 23 | K48: 5 | L48: 675 | M48: 387 | N48: 176 | O48: 17 | P48: 29 | Q48: 3 | R48: 551 | S48: 28.18414322
A49: DESMONTE | B49: 1 | C49: 386 | D49: 287 | E49: 74.35233161 | F49: 280 | G49: 15 | H49: 0 | I49: 0 | J49: 2 | K49: 0 | L49: 136 | M49: 73 | N49: 49 | O49: 5 | P49: 4 | Q49: 3 | R49: 99 | S49: 25.64766839
A50: JESÚS MARÍA | B50: 4 | C50: 1457 | D50: 978 | E50: 67.12422787 | F50: 945 | G50: 43 | H50: 2 | I50: 6 | J50: 4 | K50: 1 | L50: 496 | M50: 271 | N50: 114 | O50: 8 | P50: 23 | Q50: 10 | R50: 479 | S50: 32.87577213
A51: CANTÓN 5 ATENAS | B51: 41 | C51: 17379 | D51: 13238 | E51: 76.17239197 | F51: 13000 | G51: 444 | H51: 7 | I51: 32 | J51: 80 | K51: 34 | L51: 5599 | M51: 2049 | N51: 4505 | O51: 250 | P51: 185 | Q51: 53 | R51: 4141 | S51: 23.82760803
A52: ATENAS | B52: 14 | C52: 6015 | D52: 4693 | E52: 78.02161264 | F52: 4646 | G52: 172 | H52: 2 | I52: 4 | J52: 15 | K52: 12 | L52: 2057 | M52: 592 | N52: 1714 | O52: 78 | P52: 39 | Q52: 8 | R52: 1322 | S52: 21.97838736
A53: JESÚS | B53: 6 | C53: 2594 | D53: 2010 | E53: 77.48650732 | F53: 1979 | G53: 48 | H53: 1 | I53: 4 | J53: 10 | K53: 1 | L53: 899 | M53: 368 | N53: 613 | O53: 35 | P53: 24 | Q53: 7 | R53: 584 | S53: 22.51349268
A54: MERCEDES | B54: 4 | C54: 1826 | D54: 1335 | E54: 73.11062432 | F54: 1308 | G54: 42 | H54: 1 | I54: 1 | J54: 9 | K54: 3 | L54: 455 | M54: 279 | N54: 487 | O54: 31 | P54: 17 | Q54: 10 | R54: 491 | S54: 26.88937568
A55: SAN ISIDRO | B55: 5 | C55: 1930 | D55: 1476 | E55: 76.47668394 | F55: 1429 | G55: 49 | H55: 0 | I55: 9 | J55: 19 | K55: 4 | L55: 550 | M55: 273 | N55: 502 | O55: 23 | P55: 37 | Q55: 10 | R55: 454 | S55: 23.52331606
A56: CONCEPCIÓN | B56: 5 | C56: 2224 | D56: 1768 | E56: 79.49640288 | F56: 1736 | G56: 77 | H56: 2 | I56: 8 | J56: 15 | K56: 4 | L56: 834 | M56: 257 | N56: 496 | O56: 43 | P56: 23 | Q56: 9 | R56: 456 | S56: 20.50359712
A57: SAN JOSÉ | B57: 2 | C57: 1020 | D57: 684 | E57: 67.05882353 | F57: 672 | G57: 20 | H57: 1 | I57: 2 | J57: 7 | K57: 4 | L57: 281 | M57: 102 | N57: 245 | O57: 10 | P57: 9 | Q57: 3 | R57: 336 | S57: 32.94117647
A58: SANTA EULALIA | B58: 3 | C58: 1188 | D58: 839 | E58: 70.62289562 | F58: 812 | G58: 12 | H58: 0 | I58: 0 | J58: 4 | K58: 4 | L58: 324 | M58: 122 | N58: 324 | O58: 22 | P58: 25 | Q58: 2 | R58: 349 | S58: 29.37710438
A59: ESCOBAL | B59: 2 | C59: 582 | D59: 433 | E59: 74.39862543 | F59: 418 | G59: 24 | H59: 0 | I59: 4 | J59: 1 | K59: 2 | L59: 199 | M59: 56 | N59: 124 | O59: 8 | P59: 11 | Q59: 4 | R59: 149 | S59: 25.60137457
A60: CANTÓN 6 NARANJO | B60: 66 | C60: 27740 | D60: 20180 | E60: 72.74693583 | F60: 19807 | G60: 661 | H60: 20 | I60: 28 | J60: 135 | K60: 52 | L60: 9186 | M60: 4602 | N60: 4810 | O60: 313 | P60: 287 | Q60: 86 | R60: 7560 | S60: 27.25306417
A61: NARANJO | B61: 26 | C61: 11639 | D61: 8252 | E61: 70.89956182 | F61: 8117 | G61: 249 | H61: 7 | I61: 10 | J61: 56 | K61: 18 | L61: 3769 | M61: 1887 | N61: 1988 | O61: 133 | P61: 108 | Q61: 27 | R61: 3387 | S61: 29.10043818
A62: SAN MIGUEL | B62: 5 | C62: 2241 | D62: 1609 | E62: 71.79830433 | F62: 1570 | G62: 60 | H62: 0 | I62: 5 | J62: 17 | K62: 6 | L62: 743 | M62: 410 | N62: 298 | O62: 31 | P62: 33 | Q62: 6 | R62: 632 | S62: 28.20169567
A63: SAN JOSÉ | B63: 6 | C63: 2050 | D63: 1599 | E63: 78 | F63: 1577 | G63: 49 | H63: 4 | I63: 3 | J63: 9 | K63: 6 | L63: 653 | M63: 294 | N63: 533 | O63: 26 | P63: 10 | Q63: 12 | R63: 451 | S63: 22
A64: CIRRÍ SUR | B64: 6 | C64: 2797 | D64: 2020 | E64: 72.22023597 | F64: 1977 | G64: 68 | H64: 1 | I64: 1 | J64: 12 | K64: 6 | L64: 855 | M64: 446 | N64: 551 | O64: 37 | P64: 30 | Q64: 13 | R64: 777 | S64: 27.77976403
A65: SAN JERÓNIMO | B65: 5 | C65: 1923 | D65: 1418 | E65: 73.73894956 | F65: 1389 | G65: 77 | H65: 2 | I65: 1 | J65: 17 | K65: 0 | L65: 646 | M65: 382 | N65: 256 | O65: 8 | P65: 21 | Q65: 8 | R65: 505 | S65: 26.26105044
A66: SAN JUAN | B66: 5 | C66: 1986 | D66: 1520 | E66: 76.53575025 | F66: 1492 | G66: 46 | H66: 1 | I66: 1 | J66: 12 | K66: 3 | L66: 740 | M66: 357 | N66: 312 | O66: 20 | P66: 21 | Q66: 7 | R66: 466 | S66: 23.46424975
A67: EL ROSARIO | B67: 6 | C67: 2205 | D67: 1630 | E67: 73.92290249 | F67: 1589 | G67: 18 | H67: 3 | I67: 4 | J67: 8 | K67: 6 | L67: 813 | M67: 417 | N67: 287 | O67: 33 | P67: 35 | Q67: 6 | R67: 575 | S67: 26.07709751
A68: PALMITOS | B68: 7 | C68: 2899 | D68: 2132 | E68: 73.5426009 | F68: 2096 | G68: 94 | H68: 2 | I68: 3 | J68: 4 | K68: 7 | L68: 967 | M68: 409 | N68: 585 | O68: 25 | P68: 29 | Q68: 7 | R68: 767 | S68: 26.4573991
A69: CANTÓN 7 PALMARES | B69: 53 | C69: 24911 | D69: 18637 | E69: 74.81433905 | F69: 18261 | G69: 466 | H69: 10 | I69: 81 | J69: 91 | K69: 63 | L69: 8264 | M69: 2891 | N69: 6105 | O69: 290 | P69: 287 | Q69: 89 | R69: 6274 | S69: 25.18566095
A70: PALMARES | B70: 10 | C70: 4903 | D70: 3771 | E70: 76.91209464 | F70: 3725 | G70: 99 | H70: 1 | I70: 16 | J70: 16 | K70: 16 | L70: 1688 | M70: 429 | N70: 1408 | O70: 52 | P70: 40 | Q70: 6 | R70: 1132 | S70: 23.08790536
A71: ZARAGOZA | B71: 14 | C71: 6500 | D71: 4871 | E71: 74.93846154 | F71: 4785 | G71: 169 | H71: 4 | I71: 12 | J71: 19 | K71: 17 | L71: 2126 | M71: 661 | N71: 1716 | O71: 61 | P71: 66 | Q71: 20 | R71: 1629 | S71: 25.06153846
A72: BUENOS AIRES | B72: 9 | C72: 4506 | D72: 3397 | E72: =+D72/C72*100 -> 75.38837106 | F72: 3330 | G72: 57 | H72: 2 | I72: 14 | J72: 13 | K72: 11 | L72: 1447 | M72: 556 | N72: 1152 | O72: 78 | P72: 44 | Q72: 23 | R72: 1109 | S72: =+R72/C72*100 -> 24.61162894
A73: SANTIAGO | B73: 4 | C73: 1591 | D73: 1149 | E73: 72.21873036 | F73: 1113 | G73: 32 | H73: 0 | I73: 4 | J73: 4 | K73: 0 | L73: 572 | M73: 192 | N73: 296 | O73: 13 | P73: 26 | Q73: 10 | R73: 442 | S73: 27.78126964
A74: CANDELARIA | B74: 3 | C74: 1409 | D74: 994 | E74: 70.54648687 | F74: 965 | G74: 26 | H74: 1 | I74: 3 | J74: 6 | K74: 2 | L74: 455 | M74: 250 | N74: 206 | O74: 16 | P74: 23 | Q74: 6 | R74: 415 | S74: 29.45351313
A75: ESQUIPULAS | B75: 7 | C75: 3408 | D75: 2420 | E75: 71.00938967 | F75: 2359 | G75: 46 | H75: 1 | I75: 17 | J75: 23 | K75: 6 | L75: 1098 | M75: 517 | N75: 622 | O75: 29 | P75: 48 | Q75: 13 | R75: 988 | S75: 28.99061033
A76: LA GRANJA | B76: 6 | C76: 2594 | D76: 2035 | E76: 78.45026985 | F76: 1984 | G76: 37 | H76: 1 | I76: 15 | J76: 10 | K76: 11 | L76: 878 | M76: 286 | N76: 705 | O76: 41 | P76: 40 | Q76: 11 | R76: 559 | S76: 21.54973015
A77: CANTÓN 8 POÁS | B77: 42 | C77: 17866 | D77: 13636 | E77: 76.32374342 | F77: 13432 | G77: 366 | H77: 11 | I77: 20 | J77: 69 | K77: 24 | L77: 6429 | M77: 3711 | N77: 2527 | O77: 275 | P77: 173 | Q77: 31 | R77: 4230 | S77: 23.67625658
A78: SAN PEDRO | B78: 15 | C78: 6315 | D78: 4937 | E78: 78.17893903 | F78: 4884 | G78: 162 | H78: 5 | I78: 6 | J78: 21 | K78: 9 | L78: 2257 | M78: 1268 | N78: 1041 | O78: 115 | P78: 40 | Q78: 13 | R78: 1378 | S78: 21.82106097
A79: SAN JUAN | B79: 5 | C79: 1888 | D79: 1407 | E79: 74.52330508 | F79: 1383 | G79: 45 | H79: 2 | I79: 3 | J79: 3 | K79: 4 | L79: 680 | M79: 396 | N79: 218 | O79: 32 | P79: 23 | Q79: 1 | R79: 481 | S79: 25.47669492
A80: SAN RAFAEL | B80: 8 | C80: 3152 | D80: 2610 | E80: 82.80456853 | F80: 2565 | G80: 50 | H80: 2 | I80: 6 | J80: 13 | K80: 2 | L80: 1358 | M80: 622 | N80: 457 | O80: 55 | P80: 39 | Q80: 6 | R80: 542 | S80: 17.19543147
A81: CARRILLOS | B81: 11 | C81: 5175 | D81: 3762 | E81: 72.69565217 | F81: 3696 | G81: 96 | H81: 2 | I81: 3 | J81: 26 | K81: 8 | L81: 1718 | M81: 1092 | N81: 687 | O81: 64 | P81: 58 | Q81: 8 | R81: 1413 | S81: 27.30434783
A82: SABANA REDONDA | B82: 3 | C82: 1336 | D82: 920 | E82: 68.86227545 | F82: 904 | G82: 13 | H82: 0 | I82: 2 | J82: 6 | K82: 1 | L82: 416 | M82: 333 | N82: 124 | O82: 9 | P82: 13 | Q82: 3 | R82: 416 | S82: 31.13772455
A83: CANTÓN 9 OROTINA | B83: 31 | C83: 12685 | D83: 8560 | E83: 67.4812771 | F83: 8410 | G83: 510 | H83: 6 | I83: 8 | J83: 71 | K83: 9 | L83: 4626 | M83: 1988 | N83: 1059 | O83: 133 | P83: 124 | Q83: 26 | R83: 4125 | S83: 32.5187229
A84: OROTINA | B84: 16 | C84: 6826 | D84: 4802 | E84: 70.34866686 | F84: 4736 | G84: 317 | H84: 4 | I84: 5 | J84: 42 | K84: 6 | L84: 2627 | M84: 976 | N84: 683 | O84: 76 | P84: 50 | Q84: 16 | R84: 2024 | S84: 29.65133314
A85: EL MASTATE | B85: 3 | C85: 1257 | D85: 852 | E85: 67.78042959 | F85: 832 | G85: 27 | H85: 0 | I85: 0 | J85: 7 | K85: 3 | L85: 415 | M85: 264 | N85: 107 | O85: 9 | P85: 17 | Q85: 3 | R85: 405 | S85: 32.21957041
A86: HACIENDA VIEJA | B86: 2 | C86: 787 | D86: 536 | E86: 68.10673443 | F86: 529 | G86: 25 | H86: 1 | I86: 1 | J86: 4 | K86: 0 | L86: 277 | M86: 134 | N86: 77 | O86: 10 | P86: 5 | Q86: 2 | R86: 251 | S86: 31.89326557
A87: COYOLAR | B87: 7 | C87: 2798 | D87: 1723 | E87: 61.57969979 | F87: 1681 | G87: 122 | H87: 1 | I87: 1 | J87: 15 | K87: 0 | L87: 939 | M87: 441 | N87: 133 | O87: 29 | P87: 37 | Q87: 5 | R87: 1075 | S87: 38.42030021
A88: LA CEIBA | B88: 3 | C88: 1017 | D88: 647 | E88: 63.61848574 | F88: 632 | G88: 19 | H88: 0 | I88: 1 | J88: 3 | K88: 0 | L88: 368 | M88: 173 | N88: 59 | O88: 9 | P88: 15 | Q88: 0 | R88: 370 | S88: 36.38151426
A89: CANTÓN 10 SAN CARLOS | B89: 219 | C89: 86525 | D89: 62275 | E89: 71.97341809 | F89: 61053 | G89: 1792 | H89: 39 | I89: 97 | J89: 695 | K89: 98 | L89: 26876 | M89: 13474 | N89: 17248 | O89: 734 | P89: 979 | Q89: 243 | R89: 24250 | S89: 28.02658191
A90: QUESADA | B90: 67 | C90: 28651 | D90: 20893 | E90: 72.92241109 | F90: 20570 | G90: 615 | H90: 10 | I90: 27 | J90: 202 | K90: 40 | L90: 9223 | M90: 4042 | N90: 6145 | O90: 266 | P90: 259 | Q90: 64 | R90: 7758 | S90: 27.07758891
A91: FLORENCIA | B91: 22 | C91: 8748 | D91: 6402 | E91: 73.1824417 | F91: 6251 | G91: 211 | H91: 4 | I91: 10 | J91: 75 | K91: 12 | L91: 2674 | M91: 1705 | N91: 1470 | O91: 90 | P91: 123 | Q91: 28 | R91: 2346 | S91: 26.8175583
A92: BUENAVISTA | B92: 1 | C92: 283 | D92: 205 | E92: 72.43816254 | F92: 202 | G92: 5 | H92: 0 | I92: 0 | J92: 0 | K92: 0 | L92: 114 | M92: 38 | N92: 42 | O92: 3 | P92: 3 | Q92: 0 | R92: 78 | S92: 27.56183746
A93: AGUAS ZARCAS | B93: 22 | C93: 10064 | D93: 7214 | E93: 71.68124006 | F93: 7056 | G93: 210 | H93: 5 | I93: 7 | J93: 106 | K93: 11 | L93: 3207 | M93: 1950 | N93: 1481 | O93: 79 | P93: 135 | Q93: 23 | R93: 2850 | S93: 28.31875994
A94: VENECIA | B94: 12 | C94: 5041 | D94: 3803 | E94: 75.44138068 | F94: 3719 | G94: 101 | H94: 1 | I94: 5 | J94: 23 | K94: 3 | L94: 1780 | M94: 649 | N94: 1101 | O94: 56 | P94: 66 | Q94: 18 | R94: 1238 | S94: 24.55861932
A95: PITAL | B95: 17 | C95: 7598 | D95: 5136 | E95: 67.59673598 | F95: 5038 | G95: 148 | H95: 5 | I95: 14 | J95: 56 | K95: 4 | L95: 1926 | M95: 1355 | N95: 1473 | O95: 57 | P95: 74 | Q95: 24 | R95: 2462 | S95: 32.40326402
A96: LA FORTUNA | B96: 17 | C96: 6794 | D96: 4622 | E96: 68.03061525 | F96: 4526 | G96: 122 | H96: 3 | I96: 6 | J96: 51 | K96: 7 | L96: 2019 | M96: 982 | N96: 1304 | O96: 32 | P96: 82 | Q96: 14 | R96: 2172 | S96: 31.96938475
A97: LA TIGRA | B97: 9 | C97: 3329 | D97: 2613 | E97: 78.49203965 | F97: 2549 | G97: 56 | H97: 2 | I97: 6 | J97: 49 | K97: 3 | L97: 936 | M97: 366 | N97: 1094 | O97: 37 | P97: 44 | Q97: 20 | R97: 716 | S97: 21.50796035
A98: LA PALMERA | B98: 8 | C98: 3092 | D98: 2339 | E98: 75.64683053 | F98: 2292 | G98: 75 | H98: 1 | I98: 2 | J98: 64 | K98: 4 | L98: 1153 | M98: 504 | N98: 464 | O98: 25 | P98: 36 | Q98: 11 | R98: 753 | S98: 24.35316947
A99: VENADO | B99: 3 | C99: 986 | D99: 683 | E99: 69.26977688 | F99: 669 | G99: 27 | H99: 0 | I99: 1 | J99: 13 | K99: 0 | L99: 272 | M99: 131 | N99: 223 | O99: 2 | P99: 11 | Q99: 3 | R99: 303 | S99: 30.73022312
A100: CUTRIS | B100: 14 | C100: 3842 | D100: 2712 | E100: 70.58823529 | F100: 2652 | G100: 91 | H100: 3 | I100: 6 | J100: 20 | K100: 3 | L100: 1235 | M100: 655 | N100: 615 | O100: 24 | P100: 45 | Q100: 15 | R100: 1130 | S100: 29.41176471
A101: MONTERREY | B101: 7 | C101: 1861 | D101: 1381 | E101: 74.20741537 | F101: 1349 | G101: 38 | H101: 2 | I101: 7 | J101: 3 | K101: 4 | L101: 624 | M101: 175 | N101: 478 | O101: 18 | P101: 26 | Q101: 6 | R101: 480 | S101: 25.79258463
A102: POCOSOL | B102: 20 | C102: 6236 | D102: 4272 | E102: 68.50545221 | F102: 4180 | G102: 93 | H102: 3 | I102: 6 | J102: 33 | K102: 7 | L102: 1713 | M102: 922 | N102: 1358 | O102: 45 | P102: 75 | Q102: 17 | R102: 1964 | S102: 31.49454779
A103: CANTÓN 11 ALFARO RUIZ | B103: 22 | C103: 7844 | D103: 6461 | E103: 82.36868944 | F103: 6370 | G103: 226 | H103: 3 | I103: 10 | J103: 13 | K103: 8 | L103: 3124 | M103: 719 | N103: 2198 | O103: 69 | P103: 66 | Q103: 25 | R103: 1383 | S103: 17.63131056
A104: ZARCERO | B104: 8 | C104: 3320 | D104: 2671 | E104: =+D104/C104*100 -> 80.45180723 | F104: 2628 | G104: 96 | H104: 2 | I104: 4 | J104: 7 | K104: 2 | L104: 1196 | M104: 326 | N104: 960 | O104: 35 | P104: 33 | Q104: 10 | R104: 649 | S104: =+R104/C104*100 -> 19.54819277
A105: LAGUNA | B105: 2 | C105: 1015 | D105: 845 | E105: 83.25123153 | F105: 837 | G105: 35 | H105: 0 | I105: 2 | J105: 2 | K105: 3 | L105: 421 | M105: 110 | N105: 254 | O105: 10 | P105: 6 | Q105: 2 | R105: 170 | S105: 16.74876847
A106: TAPESCO | B106: 2 | C106: 806 | D106: 669 | E106: 83.00248139 | F106: 658 | G106: 34 | H106: 0 | I106: 0 | J106: 0 | K106: 0 | L106: 366 | M106: 80 | N106: 174 | O106: 4 | P106: 11 | Q106: 0 | R106: 137 | S106: 16.99751861
A107: GUADALUPE | B107: 3 | C107: 412 | D107: 340 | E107: 82.52427184 | F107: 331 | G107: 17 | H107: 0 | I107: 2 | J107: 0 | K107: 0 | L107: 158 | M107: 41 | N107: 105 | O107: 8 | P107: 2 | Q107: 7 | R107: 72 | S107: 17.47572816
A108: PALMIRA | B108: 2 | C108: 797 | D108: 669 | E108: 83.93977415 | F108: 658 | G108: 23 | H108: 0 | I108: 0 | J108: 0 | K108: 1 | L108: 324 | M108: 72 | N108: 231 | O108: 7 | P108: 7 | Q108: 4 | R108: 128 | S108: 16.06022585
A109: ZAPOTE | B109: 2 | C109: 420 | D109: 339 | E109: 80.71428571 | F109: 337 | G109: 9 | H109: 0 | I109: 0 | J109: 0 | K109: 2 | L109: 181 | M109: 30 | N109: 115 | O109: 0 | P109: 1 | Q109: 1 | R109: 81 | S109: 19.28571429
A110: BRISAS | B110: 3 | C110: 1074 | D110: 928 | E110: 86.40595903 | F110: 921 | G110: 12 | H110: 1 | I110: 2 | J110: 4 | K110: 0 | L110: 478 | M110: 60 | N110: 359 | O110: 5 | P110: 6 | Q110: 1 | R110: 146 | S110: 13.59404097
A111: CANTÓN 12 VALVERDE VEGA | B111: 29 | C111: 12623 | D111: 9152 | E111: 72.50257467 | F111: 8985 | G111: 359 | H111: 5 | I111: 10 | J111: 108 | K111: 14 | L111: 3334 | M111: 3466 | N111: 1533 | O111: 156 | P111: 132 | Q111: 35 | R111: 3471 | S111: 27.49742533
A112: SARCHÍ NORTE | B112: 12 | C112: 5449 | D112: 3927 | E112: 72.06826941 | F112: 3852 | G112: 181 | H112: 2 | I112: 2 | J112: 67 | K112: 4 | L112: 1367 | M112: 1530 | N112: 620 | O112: 79 | P112: 58 | Q112: 17 | R112: 1522 | S112: 27.93173059
A113: SARCHÍ SUR | B113: 8 | C113: 3836 | D113: 2714 | E113: 70.75078206 | F113: 2666 | G113: 102 | H113: 1 | I113: 3 | J113: 27 | K113: 2 | L113: 1020 | M113: 1004 | N113: 465 | O113: 42 | P113: 37 | Q113: 11 | R113: 1122 | S113: 29.24921794
A114: TORO AMARILLO | B114: 1 | C114: 153 | D114: 124 | E114: 81.04575163 | F114: 123 | G114: 0 | H114: 0 | I114: 0 | J114: 0 | K114: 0 | L114: 43 | M114: 63 | N114: 17 | O114: 0 | P114: 0 | Q114: 1 | R114: 29 | S114: 18.95424837
A115: SAN PEDRO | B115: 5 | C115: 1956 | D115: 1485 | E115: 75.9202454 | F115: 1462 | G115: 43 | H115: 0 | I115: 5 | J115: 5 | K115: 5 | L115: 586 | M115: 547 | N115: 251 | O115: 20 | P115: 18 | Q115: 5 | R115: 471 | S115: 24.0797546
A116: RODRÍGUEZ | B116: 3 | C116: 1229 | D116: 902 | E116: 73.39300244 | F116: 882 | G116: 33 | H116: 2 | I116: 0 | J116: 9 | K116: 3 | L116: 318 | M116: 322 | N116: 180 | O116: 15 | P116: 19 | Q116: 1 | R116: 327 | S116: 26.60699756
A117: CANTÓN 13 UPALA | B117: 64 | C117: 21183 | D117: 13136 | E117: 62.01199075 | F117: 12709 | G117: 522 | H117: 10 | I117: 38 | J117: 76 | K117: 26 | L117: 6626 | M117: 2391 | N117: 2885 | O117: 135 | P117: 323 | Q117: 104 | R117: 8047 | S117: 37.98800925
A118: UPALA | B118: 21 | C118: 8139 | D118: 5187 | E118: 63.73018798 | F118: 5042 | G118: 210 | H118: 2 | I118: 13 | J118: 29 | K118: 17 | L118: 2647 | M118: 949 | N118: 1101 | O118: 74 | P118: 116 | Q118: 29 | R118: 2952 | S118: 36.26981202
A119: AGUAS CLARAS | B119: 11 | C119: 2843 | D119: 1832 | E119: 64.43897292 | F119: 1751 | G119: 64 | H119: 3 | I119: 4 | J119: 12 | K119: 4 | L119: 1009 | M119: 298 | N119: 345 | O119: 12 | P119: 62 | Q119: 19 | R119: 1011 | S119: 35.56102708
A120: SAN JOSÉ (PIZOTE) | B120: 10 | C120: 3057 | D120: 1621 | E120: 53.02584233 | F120: 1570 | G120: 71 | H120: 3 | I120: 4 | J120: 4 | K120: 3 | L120: 773 | M120: 328 | N120: 379 | O120: 5 | P120: 23 | Q120: 28 | R120: 1436 | S120: 46.97415767
A121: BIJAGUA | B121: 8 | C121: 2462 | D121: 1644 | E121: 66.77497969 | F121: 1581 | G121: 22 | H121: 1 | I121: 4 | J121: 16 | K121: 1 | L121: 746 | M121: 240 | N121: 528 | O121: 23 | P121: 56 | Q121: 7 | R121: 818 | S121: 33.22502031
A122: DELICIAS | B122: 4 | C122: 1624 | D122: 979 | E122: 60.28325123 | F122: 954 | G122: 27 | H122: 0 | I122: 10 | J122: 7 | K122: 1 | L122: 507 | M122: 120 | N122: 276 | O122: 6 | P122: 17 | Q122: 8 | R122: 645 | S122: 39.71674877
A123: DOS RÍOS | B123: 5 | C123: 1434 | D123: 771 | E123: 53.76569038 | F123: 739 | G123: 57 | H123: 0 | I123: 1 | J123: 6 | K123: 0 | L123: 326 | M123: 242 | N123: 103 | O123: 4 | P123: 24 | Q123: 8 | R123: 663 | S123: 46.23430962
A124: YOLILLAL | B124: 5 | C124: 1624 | D124: 1102 | E124: 67.85714286 | F124: 1072 | G124: 71 | H124: 1 | I124: 2 | J124: 2 | K124: 0 | L124: 618 | M124: 214 | N124: 153 | O124: 11 | P124: 25 | Q124: 5 | R124: 522 | S124: 32.14285714
A125: CANTÓN 14 LOS CHILES | B125: 28 | C125: 9004 | D125: 5801 | E125: 64.42692137 | F125: 5633 | G125: 282 | H125: 6 | I125: 13 | J125: 98 | K125: 9 | L125: 2250 | M125: 1462 | N125: 1462 | O125: 51 | P125: 139 | Q125: 29 | R125: 3203 | S125: 35.57307863
A126: LOS CHILES | B126: 13 | C126: 4496 | D126: 2819 | E126: 62.70017794 | F126: 2740 | G126: 202 | H126: 5 | I126: 2 | J126: 65 | K126: 9 | L126: 1218 | M126: 700 | N126: 510 | O126: 29 | P126: 62 | Q126: 17 | R126: 1677 | S126: 37.29982206
A127: CAÑO NEGRO | B127: 3 | C127: 881 | D127: 571 | E127: 64.81271283 | F127: 547 | G127: 33 | H127: 0 | I127: 1 | J127: 22 | K127: 0 | L127: 285 | M127: 166 | N127: 39 | O127: 1 | P127: 20 | Q127: 4 | R127: 310 | S127: 35.18728717
A128: EL AMPARO | B128: 8 | C128: 2341 | D128: 1517 | E128: 64.80136694 | F128: 1478 | G128: 30 | H128: 0 | I128: 5 | J128: 9 | K128: 0 | L128: 498 | M128: 339 | N128: 584 | O128: 13 | P128: 33 | Q128: 6 | R128: 824 | S128: 35.19863306
A129: SAN JORGE | B129: 4 | C129: 1286 | D129: 894 | E129: 69.51788491 | F129: 868 | G129: 17 | H129: 1 | I129: 5 | J129: 2 | K129: 0 | L129: 249 | M129: 257 | N129: 329 | O129: 8 | P129: 24 | Q129: 2 | R129: 392 | S129: 30.48211509
A130: CANTÓN 15 GUATUSO | B130: 25 | C130: 8729 | D130: 5699 | E130: 65.28812006 | F130: 5488 | G130: 363 | H130: 3 | I130: 13 | J130: 109 | K130: 15 | L130: 2617 | M130: 1378 | N130: 910 | O130: 80 | P130: 180 | Q130: 31 | R130: 3030 | S130: 34.71187994
A131: SAN RAFAEL | B131: 14 | C131: 4439 | D131: 2941 | E131: 66.25366073 | F131: 2834 | G131: 212 | H131: 1 | I131: 2 | J131: 49 | K131: 9 | L131: 1320 | M131: 698 | N131: 497 | O131: 46 | P131: 89 | Q131: 18 | R131: 1498 | S131: 33.74633927
A132: BUENAVISTA | B132: 3 | C132: 922 | D132: 589 | E132: 63.88286334 | F132: 569 | G132: 35 | H132: 0 | I132: 2 | J132: 24 | K132: 5 | L132: 248 | M132: 127 | N132: 122 | O132: 6 | P132: 17 | Q132: 3 | R132: 333 | S132: 36.11713666
A133: COTE | B133: 1 | C133: 544 | D133: 350 | E133: 64.33823529 | F133: 334 | G133: 17 | H133: 0 | I133: 0 | J133: 5 | K133: 0 | L133: 156 | M133: 98 | N133: 56 | O133: 2 | P133: 15 | Q133: 1 | R133: 194 | S133: 35.66176471
A134: KATIRA | B134: 7 | C134: 2824 | D134: 1819 | E134: 64.4121813 | F134: 1751 | G134: 99 | H134: 2 | I134: 9 | J134: 31 | K134: 1 | L134: 893 | M134: 455 | N134: 235 | O134: 26 | P134: 59 | Q134: 9 | R134: 1005 | S134: 35.5878187

Sheet C1.5
A2: CUADRO 1.5 CARTAGO: JUNTAS, ELECTORADO, PARTICIPACIÓN, VOTOS POR PARTIDO, NULOS, BLANCOS Y ABSTENCIONISMO PARA PRESIDENCIA Y VICEPRESIDENCIAS DE LA REPÚBLICA, SEGÚN CANTÓN Y DISTRITO ADMINISTRATIVO ELECCIONES 7 DE FEBRERO 2010
A4: CANTÓN Y DISTRITO ADMINISTRATIVO | B4: JUNTAS | C4: ELECTORADO | D4: VOTOS RECIBIDOS | R4: ABSTENCIONISMO
D5: TOTAL GENERAL | E5: % PARTICIPACIÓN | F5: VOTOS VÁLIDOS | P5: NULOS | Q5: BLANCOS | R5: ABSOLUTO | S5: %
F6: TOTAL | G6: UNIDAD SOCIAL CRISTIANA | H6: INTEGRACIÓN NACIONAL | I6: ALIANZA PATRIÓTICA | J6: RENOVACIÓN COSTARRICENSE | K6: FRENTE AMPLIO | L6: LIBERACIÓN NACIONAL | M6: MOVIMIENTO LIBERTARIO | N6: ACCIÓN CIUDADANA | O6: ACCESIBILIDAD SIN EXCLUSIÓN
A8: PROVINCIA CARTAGO | B8: 746 | C8: 328782 | D8: 243705 | E8: =+D8/C8*100 -> 74.12358341 | F8: 239146 | G8: 10143 | H8: 240 | I8: 388 | J8: 977 | K8: 937 | L8: 118926 | M8: 46414 | N8: 56095 | O8: 5026 | P8: 3763 | Q8: 796 | R8: 85077 | S8: =+R8/C8*100 -> 25.87641659
A9: CANTÓN 1 CARTAGO | B9: 223 | C9: 104564 | D9: 79840 | E9: 76.35515091 | F9: 78498 | G9: 2861 | H9: 79 | I9: 101 | J9: 316 | K9: 391 | L9: 40298 | M9: 14738 | N9: 18176 | O9: 1538 | P9: 1126 | Q9: 216 | R9: 24724 | S9: 23.64484909
A10: ORIENTAL | B10: 27 | C10: 13347 | D10: 10489 | E10: 78.58694838 | F10: 10370 | G10: 401 | H10: 12 | I10: 18 | J10: 29 | K10: 63 | L10: 5235 | M10: 1484 | N10: 2992 | O10: 136 | P10: 110 | Q10: 9 | R10: 2858 | S10: 21.41305162
A11: OCCIDENTAL | B11: 20 | C11: 9665 | D11: 7674 | E11: 79.39989653 | F11: 7588 | G11: 234 | H11: 6 | I11: 5 | J11: 25 | K11: 54 | L11: 3850 | M11: 1170 | N11: 2133 | O11: 111 | P11: 71 | Q11: 15 | R11: 1991 | S11: 20.60010347
A12: CARMEN | B12: 25 | C12: 11878 | D12: 9072 | E12: 76.37649436 | F12: 8935 | G12: 296 | H12: 3 | I12: 6 | J12: 27 | K12: 64 | L12: 4485 | M12: 1668 | N12: 2179 | O12: 207 | P12: 119 | Q12: 18 | R12: 2806 | S12: 23.62350564
A13: SAN NICOLÁS | B13: 34 | C13: 16082 | D13: 12020 | E13: 74.74194752 | F13: 11815 | G13: 422 | H13: 10 | I13: 15 | J13: 72 | K13: 58 | L13: 6218 | M13: 2480 | N13: 2282 | O13: 258 | P13: 175 | Q13: 30 | R13: 4062 | S13: 25.25805248
A14: AGUACALIENTE O SAN FRANCISCO | B14: 44 | C14: 20317 | D14: 15359 | E14: 75.59679086 | F14: 15074 | G14: 643 | H14: 19 | I14: 20 | J14: 73 | K14: 68 | L14: 7628 | M14: 3336 | N14: 2949 | O14: 338 | P14: 237 | Q14: 48 | R14: 4958 | S14: 24.40320914
A15: GUADALUPE O ARENILLA | B15: 20 | C15: 10009 | D15: 7823 | E15: 78.15965631 | F15: 7711 | G15: 279 | H15: 7 | I15: 12 | J15: 25 | K15: 33 | L15: 3885 | M15: 1742 | N15: 1577 | O15: 151 | P15: 95 | Q15: 17 | R15: 2186 | S15: 21.84034369
A16: CORRALILLO | B16: 18 | C16: 7164 | D16: 5416 | E16: 75.60022334 | F16: 5277 | G16: 144 | H16: 11 | I16: 5 | J16: 30 | K16: 12 | L16: 3411 | M16: 639 | N16: 937 | O16: 88 | P16: 107 | Q16: 32 | R16: 1748 | S16: 24.39977666
A17: TIERRA BLANCA | B17: 8 | C17: 3851 | D17: 2973 | E17: 77.20072708 | F17: 2911 | G17: 74 | H17: 4 | I17: 4 | J17: 10 | K17: 9 | L17: 1130 | M17: 446 | N17: 1178 | O17: 56 | P17: 58 | Q17: 4 | R17: 878 | S17: 22.79927292
A18: DULCE NOMBRE | B18: 13 | C18: 6049 | D18: 4671 | E18: 77.2193751 | F18: 4585 | G18: 208 | H18: 4 | I18: 10 | J18: 14 | K18: 18 | L18: 2296 | M18: 866 | N18: 1038 | O18: 131 | P18: 70 | Q18: 16 | R18: 1378 | S18: 22.7806249
A19: LLANO GRANDE | B19: 6 | C19: 2763 | D19: 1917 | E19: 69.38110749 | F19: 1878 | G19: 64 | H19: 2 | I19: 5 | J19: 2 | K19: 5 | L19: 860 | M19: 341 | N19: 560 | O19: 39 | P19: 26 | Q19: 13 | R19: 846 | S19: 30.61889251
A20: QUEBRADILLA | B20: 8 | C20: 3439 | D20: 2426 | E20: 70.54376272 | F20: 2354 | G20: 96 | H20: 1 | I20: 1 | J20: 9 | K20: 7 | L20: 1300 | M20: 566 | N20: 351 | O20: 23 | P20: 58 | Q20: 14 | R20: 1013 | S20: 29.45623728
A21: CANTÓN 2 PARAÍSO | B21: 87 | C21: 39163 | D21: 28997 | E21: 74.04182519 | F21: 28389 | G21: 1366 | H21: 19 | I21: 47 | J21: 103 | K21: 115 | L21: 13033 | M21: 6026 | N21: 7079 | O21: 601 | P21: 488 | Q21: 120 | R21: 10166 | S21: 25.95817481
A22: PARAÍSO | B22: 34 | C22: 16468 | D22: 12532 | E22: 76.09910129 | F22: 12319 | G22: 500 | H22: 8 | I22: 13 | J22: 21 | K22: 52 | L22: 5611 | M22: 2137 | N22: 3659 | O22: 318 | P22: 169 | Q22: 44 | R22: 3936 | S22: 23.90089871
A23: SANTIAGO | B23: 9 | C23: 3381 | D23: 2440 | E23: 72.16799763 | F23: 2368 | G23: 82 | H23: 1 | I23: 3 | J23: 27 | K23: 8 | L23: 1430 | M23: 376 | N23: 402 | O23: 39 | P23: 58 | Q23: 14 | R23: 941 | S23: 27.83200237
A24: OROSI | B24: 15 | C24: 6204 | D24: 4576 | E24: 73.75886525 | F24: 4447 | G24: 260 | H24: 3 | I24: 10 | J24: 8 | K24: 7 | L24: 1861 | M24: 1092 | N24: 1144 | O24: 62 | P24: 111 | Q24: 18 | R24: 1628 | S24: 26.24113475
A25: CACHÍ | B25: 10 | C25: 3917 | D25: 2970 | E25: 75.82333418 | F25: 2917 | G25: 211 | H25: 1 | I25: 6 | J25: 14 | K25: 17 | L25: 1361 | M25: 521 | N25: 730 | O25: 56 | P25: 34 | Q25: 19 | R25: 947 | S25: 24.17666582
A26: LLANOS DE SANTA LUCÍA | B26: 19 | C26: 9193 | D26: 6479 | E26: 70.47753726 | F26: 6338 | G26: 313 | H26: 6 | I26: 15 | J26: 33 | K26: 31 | L26: 2770 | M26: 1900 | N26: 1144 | O26: 126 | P26: 116 | Q26: 25 | R26: 2714 | S26: 29.52246274
A27: CANTÓN 3 LA UNIÓN | B27: 123 | C27: 57841 | D27: 41471 | E27: 71.69827631 | F27: 40756 | G27: 1638 | H27: 57 | I27: 67 | J27: 240 | K27: 164 | L27: 18046 | M27: 8093 | N27: 11334 | O27: 1117 | P27: 623 | Q27: 92 | R27: 16370 | S27: 28.30172369
A28: TRES RÍOS | B28: 21 | C28: 10238 | D28: 7842 | E28: 76.5969916 | F28: 7758 | G28: 268 | H28: 10 | I28: 10 | J28: 37 | K28: 37 | L28: 3450 | M28: 1276 | N28: 2457 | O28: 213 | P28: 73 | Q28: 11 | R28: 2396 | S28: 23.4030084
A29: SAN DIEGO | B29: 23 | C29: 11059 | D29: 7674 | E29: 69.39144588 | F29: 7545 | G29: 394 | H29: 12 | I29: 8 | J29: 46 | K29: 30 | L29: 3179 | M29: 1659 | N29: 2027 | O29: 190 | P29: 114 | Q29: 15 | R29: 3385 | S29: 30.60855412
A30: SAN JUAN | B30: 14 | C30: 6792 | D30: 5153 | E30: 75.86866902 | F30: 5093 | G30: 116 | H30: 8 | I30: 7 | J30: 17 | K30: 15 | L30: 2346 | M30: 746 | N30: 1732 | O30: 106 | P30: 51 | Q30: 9 | R30: 1639 | S30: 24.13133098
A31: SAN RAFAEL | B31: 16 | C31: 7055 | D31: 5045 | E31: 71.50956768 | F31: 4928 | G31: 200 | H31: 6 | I31: 14 | J31: 43 | K31: 23 | L31: 2178 | M31: 1051 | N31: 1231 | O31: 182 | P31: 109 | Q31: 8 | R31: 2010 | S31: 28.49043232
A32: CONCEPCIÓN | B32: 20 | C32: 9234 | D32: 6766 | E32: 73.27268789 | F32: 6634 | G32: 239 | H32: 9 | I32: 10 | J32: 33 | K32: 32 | L32: 2847 | M32: 1413 | N32: 1854 | O32: 197 | P32: 113 | Q32: 19 | R32: 2468 | S32: 26.72731211
A33: DULCE NOMBRE | B33: 12 | C33: 5181 | D33: 3527 | E33: 68.07566107 | F33: 3455 | G33: 228 | H33: 5 | I33: 6 | J33: 29 | K33: 11 | L33: 1535 | M33: 737 | N33: 796 | O33: 108 | P33: 62 | Q33: 10 | R33: 1654 | S33: 31.92433893
A34: SAN RAMÓN | B34: 6 | C34: 3018 | D34: 2212 | E34: 73.2935719 | F34: 2181 | G34: 41 | H34: 3 | I34: 2 | J34: 15 | K34: 10 | L34: 1030 | M34: 319 | N34: 713 | O34: 48 | P34: 22 | Q34: 9 | R34: 806 | S34: 26.7064281
A35: RÍO AZUL | B35: 11 | C35: 5264 | D35: 3252 | E35: 61.7781155 | F35: 3162 | G35: 152 | H35: 4 | I35: 10 | J35: 20 | K35: 6 | L35: 1481 | M35: 892 | N35: 524 | O35: 73 | P35: 79 | Q35: 11 | R35: 2012 | S35: 38.2218845
A36: CANTÓN 4 JIMÉNEZ | B36: 28 | C36: 10397 | D36: 7787 | E36: 74.89660479 | F36: 7581 | G36: 416 | H36: 9 | I36: 13 | J36: 25 | K36: 12 | L36: 4144 | M36: 1264 | N36: 1526 | O36: 172 | P36: 146 | Q36: 60 | R36: 2610 | S36: 25.10339521
A37: JUAN VIÑAS | B37: 14 | C37: 4872 | D37: 3657 | E37: 75.06157635 | F37: 3560 | G37: 144 | H37: 6 | I37: 4 | J37: 15 | K37: 7 | L37: 2204 | M37: 467 | N37: 609 | O37: 104 | P37: 68 | Q37: 29 | R37: 1215 | S37: 24.93842365
A38: TUCURRIQUE | B38: 7 | C38: 3089 | D38: 2303 | E38: 74.55487213 | F38: 2245 | G38: 217 | H38: 1 | I38: 8 | J38: 4 | K38: 5 | L38: 940 | M38: 514 | N38: 532 | O38: 24 | P38: 40 | Q38: 18 | R38: 786 | S38: 25.44512787
A39: PEJIBAYE | B39: 7 | C39: 2436 | D39: 1827 | E39: 75 | F39: 1776 | G39: 55 | H39: 2 | I39: 1 | J39: 6 | K39: 0 | L39: 1000 | M39: 283 | N39: 385 | O39: 44 | P39: 38 | Q39: 13 | R39: 609 | S39: 25
A40: CANTÓN 5 TURRIALBA | B40: 140 | C40: 51433 | D40: 36209 | E40: =+D40/C40*100 -> 70.40032664 | F40: 35464 | G40: 1787 | H40: 33 | I40: 78 | J40: 120 | K40: 99 | L40: 18415 | M40: 6490 | N40: 7871 | O40: 571 | P40: 600 | Q40: 145 | R40: 15224 | S40: =+R40/C40*100 -> 29.59967336
A41: TURRIALBA | B41: 49 | C41: 20825 | D41: 15538 | E41: 74.6122449 | F41: 15325 | G41: 730 | H41: 8 | I41: 19 | J41: 42 | K41: 49 | L41: 7930 | M41: 2298 | N41: 4009 | O41: 240 | P41: 174 | Q41: 39 | R41: 5287 | S41: 25.3877551
A42: LA SUIZA | B42: 17 | C42: 6076 | D42: 4288 | E42: 70.57274523 | F42: 4198 | G42: 179 | H42: 5 | I42: 13 | J42: 13 | K42: 10 | L42: 2097 | M42: 880 | N42: 913 | O42: 88 | P42: 81 | Q42: 9 | R42: 1788 | S42: 29.42725477
A43: PERALTA | B43: 1 | C43: 296 | D43: 211 | E43: 71.28378378 | F43: 205 | G43: 61 | H43: 0 | I43: 0 | J43: 1 | K43: 0 | L43: 93 | M43: 37 | N43: 12 | O43: 1 | P43: 6 | Q43: 0 | R43: 85 | S43: 28.71621622
A44: SANTA CRUZ | B44: 9 | C44: 2413 | D44: 1580 | E44: 65.47865727 | F44: 1537 | G44: 41 | H44: 5 | I44: 3 | J44: 5 | K44: 0 | L44: 855 | M44: 319 | N44: 288 | O44: 21 | P44: 40 | Q44: 3 | R44: 833 | S44: 34.52134273
A45: SANTA TERESITA | B45: 12 | C45: 3468 | D45: 2403 | E45: 69.29065744 | F45: 2350 | G45: 86 | H45: 4 | I45: 10 | J45: 10 | K45: 4 | L45: 1247 | M45: 591 | N45: 369 | O45: 29 | P45: 40 | Q45: 13 | R45: 1065 | S45: 30.70934256
A46: PAVONES | B46: 7 | C46: 3205 | D46: 2182 | E46: 68.08112324 | F46: 2123 | G46: 140 | H46: 3 | I46: 7 | J46: 12 | K46: 2 | L46: 1076 | M46: 425 | N46: 421 | O46: 37 | P46: 37 | Q46: 22 | R46: 1023 | S46: 31.91887676
A47: TUIS | B47: 6 | C47: 1710 | D47: 1207 | E47: 70.58479532 | F47: 1164 | G47: 34 | H47: 3 | I47: 5 | J47: 4 | K47: 1 | L47: 573 | M47: 261 | N47: 260 | O47: 23 | P47: 36 | Q47: 7 | R47: 503 | S47: 29.41520468
A48: TAYUTIC | B48: 5 | C48: 1680 | D48: 1143 | E48: 68.03571429 | F48: 1119 | G48: 30 | H48: 1 | I48: 4 | J48: 4 | K48: 3 | L48: 645 | M48: 203 | N48: 195 | O48: 34 | P48: 18 | Q48: 6 | R48: 537 | S48: 31.96428571
A49: SANTA ROSA | B49: 8 | C49: 3757 | D49: 2827 | E49: 75.24620708 | F49: 2777 | G49: 103 | H49: 0 | I49: 8 | J49: 7 | K49: 7 | L49: 1585 | M49: 475 | N49: 562 | O49: 30 | P49: 43 | Q49: 7 | R49: 930 | S49: 24.75379292
A50: TRES EQUIS | B50: 4 | C50: 1248 | D50: 856 | E50: 68.58974359 | F50: 827 | G50: 71 | H50: 0 | I50: 0 | J50: 5 | K50: 1 | L50: 424 | M50: 194 | N50: 121 | O50: 11 | P50: 23 | Q50: 6 | R50: 392 | S50: 31.41025641
A51: LA ISABEL | B51: 11 | C51: 4359 | D51: 3132 | E51: 71.85134205 | F51: 3064 | G51: 203 | H51: 2 | I51: 7 | J51: 10 | K51: 15 | L51: 1522 | M51: 685 | N51: 572 | O51: 48 | P51: 55 | Q51: 13 | R51: 1227 | S51: 28.14865795
A52: CHIRRIPÓ | B52: 11 | C52: 2396 | D52: 842 | E52: 35.14190317 | F52: 775 | G52: 109 | H52: 2 | I52: 2 | J52: 7 | K52: 7 | L52: 368 | M52: 122 | N52: 149 | O52: 9 | P52: 47 | Q52: 20 | R52: 1554 | S52: 64.85809683
A53: CANTÓN 6 ALVARADO | B53: 21 | C53: 8510 | D53: 6265 | E53: 73.61927145 | F53: 6124 | G53: 281 | H53: 4 | I53: 10 | J53: 17 | K53: 11 | L53: 3035 | M53: 1078 | N53: 1579 | O53: 109 | P53: 107 | Q53: 34 | R53: 2245 | S53: 26.38072855
A54: PACAYAS | B54: 10 | C54: 3702 | D54: 2621 | E54: 70.7995678 | F54: 2565 | G54: 51 | H54: 3 | I54: 4 | J54: 8 | K54: 6 | L54: 1228 | M54: 419 | N54: 810 | O54: 36 | P54: 45 | Q54: 11 | R54: 1081 | S54: 29.2004322
A55: CERVANTES | B55: 7 | C55: 3407 | D55: 2613 | E55: 76.69503962 | F55: 2551 | G55: 168 | H55: 1 | I55: 4 | J55: 8 | K55: 5 | L55: 1354 | M55: 445 | N55: 507 | O55: 59 | P55: 48 | Q55: 14 | R55: 794 | S55: 23.30496038
A56: CAPELLADES | B56: 4 | C56: 1401 | D56: 1031 | E56: 73.59029265 | F56: 1008 | G56: 62 | H56: 0 | I56: 2 | J56: 1 | K56: 0 | L56: 453 | M56: 214 | N56: 262 | O56: 14 | P56: 14 | Q56: 9 | R56: 370 | S56: 26.40970735
A57: CANTÓN 7 OREAMUNO | B57: 64 | C57: 30006 | D57: 22354 | E57: 74.49843365 | F57: 21937 | G57: 788 | H57: 22 | I57: 43 | J57: 81 | K57: 73 | L57: 11186 | M57: 4491 | N57: 4797 | O57: 456 | P57: 355 | Q57: 62 | R57: 7652 | S57: 25.50156635
A58: SAN RAFAEL | B58: 38 | C58: 18790 | D58: 14283 | E58: 76.01383715 | F58: 14061 | G58: 456 | H58: 12 | I58: 23 | J58: 56 | K58: 59 | L58: 7213 | M58: 2825 | N58: 3111 | O58: 306 | P58: 196 | Q58: 26 | R58: 4507 | S58: 23.98616285
A59: COT | B59: 12 | C59: 5677 | D59: 4262 | E59: 75.07486348 | F59: 4150 | G59: 224 | H59: 6 | I59: 12 | J59: 18 | K59: 9 | L59: 1899 | M59: 1004 | N59: 906 | O59: 72 | P59: 96 | Q59: 16 | R59: 1415 | S59: 24.92513652
A60: POTRERO CERRADO | B60: 3 | C60: 1227 | D60: 852 | E60: 69.43765281 | F60: 840 | G60: 31 | H60: 2 | I60: 3 | J60: 1 | K60: 0 | L60: 388 | M60: 180 | N60: 217 | O60: 18 | P60: 11 | Q60: 1 | R60: 375 | S60: 30.56234719
A61: CIPRESES | B61: 5 | C61: 2223 | D61: 1614 | E61: 72.60458839 | F61: 1572 | G61: 33 | H61: 2 | I61: 4 | J61: 3 | K61: 4 | L61: 913 | M61: 267 | N61: 304 | O61: 42 | P61: 35 | Q61: 7 | R61: 609 | S61: 27.39541161
A62: SANTA ROSA | B62: 6 | C62: 2089 | D62: 1343 | E62: 64.28913356 | F62: 1314 | G62: 44 | H62: 0 | I62: 1 | J62: 3 | K62: 1 | L62: 773 | M62: 215 | N62: 259 | O62: 18 | P62: 17 | Q62: 12 | R62: 746 | S62: 35.71086644
A63: CANTÓN 8 EL GUARCO | B63: 60 | C63: 26868 | D63: 20782 | E63: 77.34851868 | F63: 20397 | G63: 1006 | H63: 17 | I63: 29 | J63: 75 | K63: 72 | L63: 10769 | M63: 4234 | N63: 3733 | O63: 462 | P63: 318 | Q63: 67 | R63: 6086 | S63: 22.65148132
A64: EL TEJAR | B64: 33 | C64: 15525 | D64: 12206 | E64: 78.6215781 | F64: 12028 | G64: 456 | H64: 9 | I64: 13 | J64: 43 | K64: 52 | L64: 6146 | M64: 2474 | N64: 2581 | O64: 254 | P64: 160 | Q64: 18 | R64: 3319 | S64: 21.3784219
A65: SAN ISIDRO | B65: 15 | C65: 6700 | D65: 5148 | E65: 76.8358209 | F65: 5029 | G65: 244 | H65: 7 | I65: 11 | J65: 17 | K65: 15 | L65: 2778 | M65: 1077 | N65: 731 | O65: 149 | P65: 97 | Q65: 22 | R65: 1552 | S65: 23.1641791
A66: TOBOSI | B66: 10 | C66: 4262 | D66: 3132 | E66: 73.486626 | F66: 3053 | G66: 297 | H66: 1 | I66: 4 | J66: 14 | K66: 5 | L66: 1683 | M66: 618 | N66: 374 | O66: 57 | P66: 53 | Q66: 26 | R66: 1130 | S66: 26.513374
A67: PATIO DE AGUA | B67: 2 | C67: 381 | D67: 296 | E67: 77.69028871 | F67: 287 | G67: 9 | H67: 0 | I67: 1 | J67: 1 | K67: 0 | L67: 162 | M67: 65 | N67: 47 | O67: 2 | P67: 8 | Q67: 1 | R67: 85 | S67: 22.30971129

Sheet C1.6
A2: CUADRO 1.6 HEREDIA: JUNTAS, ELECTORADO, PARTICIPACIÓN, VOTOS POR PARTIDO, NULOS, BLANCOS Y ABSTENCIONISMO PARA PRESIDENCIA Y VICEPRESIDENCIAS DE LA REPÚBLICA, SEGÚN CANTÓN Y DISTRITO ADMINISTRATIVO ELECCIONES 7 DE FEBRERO 2010
A4: CANTÓN Y DISTRITO ADMINISTRATIVO | B4: JUNTAS | C4: ELECTORADO | D4: VOTOS RECIBIDOS | R4: ABSTENCIONISMO
D5: TOTAL GENERAL | E5: % PARTICIPACIÓN | F5: VOTOS VÁLIDOS | P5: NULOS | Q5: BLANCOS | R5: ABSOLUTO | S5: %
F6: TOTAL | G6: UNIDAD SOCIAL CRISTIANA | H6: INTEGRACIÓN NACIONAL | I6: ALIANZA PATRIÓTICA | J6: RENOVACIÓN COSTARRICENSE | K6: FRENTE AMPLIO | L6: LIBERACIÓN NACIONAL | M6: MOVIMIENTO LIBERTARIO | N6: ACCIÓN CIUDADANA | O6: ACCESIBILIDAD SIN EXCLUSIÓN
A8: PROVINCIA HEREDIA | B8: 604 | C8: 278544 | D8: 203705 | E8: =+D8/C8*100 -> 73.13207249 | F8: 200493 | G8: 6382 | H8: 165 | I8: 288 | J8: 1164 | K8: 905 | L8: 93471 | M8: 39016 | N8: 55425 | O8: 3677 | P8: 2644 | Q8: 568 | R8: 74839 | S8: =+R8/C8*100 -> 26.86792751
A9: CANTÓN 1 HEREDIA | B9: 176 | C9: 84511 | D9: 61372 | E9: 72.62013229 | F9: 60598 | G9: 1939 | H9: 51 | I9: 64 | J9: 250 | K9: 335 | L9: 29625 | M9: 10412 | N9: 16836 | O9: 1086 | P9: 638 | Q9: 136 | R9: 23139 | S9: 27.37986771
A10: HEREDIA | B10: 38 | C10: 18262 | D10: 13605 | E10: 74.49895959 | F10: 13478 | G10: 449 | H10: 9 | I10: 11 | J10: 44 | K10: 112 | L10: 6652 | M10: 1821 | N10: 4172 | O10: 208 | P10: 103 | Q10: 24 | R10: 4657 | S10: 25.50104041
A11: MERCEDES | B11: 37 | C11: 18289 | D11: 14157 | E11: 77.40718465 | F11: 14011 | G11: 383 | H11: 13 | I11: 13 | J11: 39 | K11: 72 | L11: 6620 | M11: 2035 | N11: 4603 | O11: 233 | P11: 116 | Q11: 30 | R11: 4132 | S11: 22.59281535
A12: SAN FRANCISCO | B12: 64 | C12: 30848 | D12: 21381 | E12: 69.31081432 | F12: 21033 | G12: 663 | H12: 16 | I12: 27 | J12: 102 | K12: 101 | L12: 10196 | M12: 4300 | N12: 5224 | O12: 404 | P12: 294 | Q12: 54 | R12: 9467 | S12: 30.68918568
A13: ULLOA | B13: 35 | C13: 16621 | D13: 11918 | E13: 71.70447025 | F13: 11772 | G13: 408 | H13: 13 | I13: 13 | J13: 65 | K13: 49 | L13: 5996 | M13: 2175 | N13: 2815 | O13: 238 | P13: 121 | Q13: 25 | R13: 4703 | S13: 28.29552975
A14: VARABLANCA | B14: 2 | C14: 491 | D14: 311 | E14: 63.3401222 | F14: 304 | G14: 36 | H14: 0 | I14: 0 | J14: 0 | K14: 1 | L14: 161 | M14: 81 | N14: 22 | O14: 3 | P14: 4 | Q14: 3 | R14: 180 | S14: 36.6598778
A15: CANTÓN 2 BARVA | B15: 58 | C15: 26982 | D15: 20374 | E15: 75.50959899 | F15: 20089 | G15: 459 | H15: 20 | I15: 38 | J15: 92 | K15: 128 | L15: 8569 | M15: 3917 | N15: 6500 | O15: 366 | P15: 237 | Q15: 48 | R15: 6608 | S15: 24.49040101
A16: BARVA | B16: 12 | C16: 5798 | D16: 4484 | E16: 77.33701276 | F16: 4438 | G16: 98 | H16: 3 | I16: 6 | J16: 25 | K16: 30 | L16: 1875 | M16: 718 | N16: 1612 | O16: 71 | P16: 35 | Q16: 11 | R16: 1314 | S16: 22.66298724
A17: SAN PEDRO | B17: 14 | C17: 6732 | D17: 4902 | E17: 72.81639929 | F17: 4796 | G17: 108 | H17: 2 | I17: 9 | J17: 25 | K17: 21 | L17: 1984 | M17: 1105 | N17: 1467 | O17: 75 | P17: 89 | Q17: 17 | R17: 1830 | S17: 27.18360071
A18: SAN PABLO | B18: 10 | C18: 4660 | D18: 3506 | E18: 75.2360515 | F18: 3463 | G18: 94 | H18: 7 | I18: 7 | J18: 20 | K18: 34 | L18: 1376 | M18: 732 | N18: 1098 | O18: 95 | P18: 37 | Q18: 6 | R18: 1154 | S18: 24.7639485
A19: SAN ROQUE | B19: 4 | C19: 1944 | D19: 1505 | E19: 77.41769547 | F19: 1489 | G19: 38 | H19: 3 | I19: 2 | J19: 3 | K19: 11 | L19: 658 | M19: 246 | N19: 491 | O19: 37 | P19: 16 | Q19: 0 | R19: 439 | S19: 22.58230453
A20: SANTA LUCIA | B20: 9 | C20: 4271 | D20: 3324 | E20: 77.82720674 | F20: 3290 | G20: 71 | H20: 2 | I20: 6 | J20: 11 | K20: 16 | L20: 1428 | M20: 550 | N20: 1159 | O20: 47 | P20: 27 | Q20: 7 | R20: 947 | S20: 22.17279326
A21: SAN JOSÉ DE LA MONTAÑA | B21: 9 | C21: 3577 | D21: 2653 | E21: 74.16829746 | F21: 2613 | G21: 50 | H21: 3 | I21: 8 | J21: 8 | K21: 16 | L21: 1248 | M21: 566 | N21: 673 | O21: 41 | P21: 33 | Q21: 7 | R21: 924 | S21: 25.83170254
A22: CANTÓN 3 SANTO DOMINGO | B22: 63 | C22: 30208 | D22: 22877 | E22: 75.73159428 | F22: 22592 | G22: 638 | H22: 22 | I22: 18 | J22: 99 | K22: 88 | L22: 10469 | M22: 3970 | N22: 6808 | O22: 480 | P22: 230 | Q22: 55 | R22: 7331 | S22: 24.26840572
A23: SANTO DOMINGO | B23: 16 | C23: 7753 | D23: 5992 | E23: 77.28621179 | F23: 5938 | G23: 158 | H23: 4 | I23: 5 | J23: 22 | K23: 31 | L23: 2934 | M23: 863 | N23: 1846 | O23: 75 | P23: 46 | Q23: 8 | R23: 1761 | S23: 22.71378821
A24: SAN VICENTE | B24: 7 | C24: 3468 | D24: 2739 | E24: 78.97923875 | F24: 2712 | G24: 60 | H24: 3 | I24: 2 | J24: 5 | K24: 17 | L24: 1282 | M24: 360 | N24: 951 | O24: 32 | P24: 21 | Q24: 6 | R24: 729 | S24: 21.02076125
A25: SAN MIGUEL | B25: 10 | C25: 4534 | D25: 3458 | E25: 76.26819585 | F25: 3401 | G25: 96 | H25: 6 | I25: 2 | J25: 14 | K25: 7 | L25: 1305 | M25: 811 | N25: 1063 | O25: 97 | P25: 47 | Q25: 10 | R25: 1076 | S25: 23.73180415
A26: PARACITO | B26: 4 | C26: 1953 | D26: 1465 | E26: 75.01280082 | F26: 1448 | G26: 37 | H26: 2 | I26: 2 | J26: 11 | K26: 4 | L26: 753 | M26: 283 | N26: 314 | O26: 42 | P26: 15 | Q26: 2 | R26: 488 | S26: 24.98719918
A27: SANTO TOMÁS | B27: 7 | C27: 3358 | D27: 2591 | E27: 77.15902323 | F27: 2569 | G27: 65 | H27: 1 | I27: 1 | J27: 9 | K27: 7 | L27: 1167 | M27: 448 | N27: 817 | O27: 54 | P27: 16 | Q27: 6 | R27: 767 | S27: 22.84097677
A28: SANTA ROSA | B28: 9 | C28: 4402 | D28: 3147 | E28: 71.49023171 | F28: 3103 | G28: 109 | H28: 2 | I28: 3 | J28: 13 | K28: 11 | L28: 1491 | M28: 637 | N28: 762 | O28: 75 | P28: 34 | Q28: 10 | R28: 1255 | S28: 28.50976829
A29: TURES | B29: 5 | C29: 2474 | D29: 1834 | E29: 74.130962 | F29: 1792 | G29: 68 | H29: 3 | I29: 3 | J29: 6 | K29: 4 | L29: 835 | M29: 284 | N29: 532 | O29: 57 | P29: 34 | Q29: 8 | R29: 640 | S29: 25.869038
A30: PARÁ | B30: 5 | C30: 2266 | D30: 1651 | E30: 72.85966461 | F30: 1629 | G30: 45 | H30: 1 | I30: 0 | J30: 19 | K30: 7 | L30: 702 | M30: 284 | N30: 523 | O30: 48 | P30: 17 | Q30: 5 | R30: 615 | S30: 27.14033539
A31: CANTÓN 4 SANTA BÁRBARA | B31: 48 | C31: 22277 | D31: 16419 | E31: 73.70382008 | F31: 16146 | G31: 459 | H31: 14 | I31: 34 | J31: 93 | K31: 79 | L31: 7111 | M31: 3743 | N31: 4270 | O31: 343 | P31: 225 | Q31: 48 | R31: 5858 | S31: 26.29617992
A32: SANTA BÁRBARA | B32: 12 | C32: 5928 | D32: 4458 | E32: 75.20242915 | F32: 4384 | G32: 162 | H32: 8 | I32: 7 | J32: 24 | K32: 27 | L32: 1825 | M32: 958 | N32: 1288 | O32: 85 | P32: 62 | Q32: 12 | R32: 1470 | S32: 24.79757085
A33: SAN PEDRO | B33: 5 | C33: 2357 | D33: 1760 | E33: 74.67119219 | F33: 1742 | G33: 36 | H33: 0 | I33: 1 | J33: 7 | K33: 0 | L33: 808 | M33: 436 | N33: 425 | O33: 29 | P33: 17 | Q33: 1 | R33: 597 | S33: 25.32880781
A34: SAN JUAN | B34: 9 | C34: 4423 | D34: 3345 | E34: 75.62740222 | F34: 3295 | G34: 68 | H34: 0 | I34: 6 | J34: 12 | K34: 19 | L34: 1464 | M34: 799 | N34: 847 | O34: 80 | P34: 40 | Q34: 10 | R34: 1078 | S34: 24.37259778
A35: JESÚS | B35: 11 | C35: 5033 | D35: 3608 | E35: 71.68686668 | F35: 3530 | G35: 102 | H35: 5 | I35: 14 | J35: 24 | K35: 28 | L35: 1501 | M35: 843 | N35: 933 | O35: 80 | P35: 66 | Q35: 12 | R35: 1425 | S35: 28.31313332
A36: SANTO DOMINGO | B36: 5 | C36: 2052 | D36: 1439 | E36: 70.12670565 | F36: 1417 | G36: 46 | H36: 1 | I36: 5 | J36: 12 | K36: 3 | L36: 712 | M36: 299 | N36: 316 | O36: 23 | P36: 16 | Q36: 6 | R36: 613 | S36: 29.87329435
A37: PURABÁ | B37: 6 | C37: 2484 | D37: 1809 | E37: 72.82608696 | F37: 1778 | G37: 45 | H37: 0 | I37: 1 | J37: 14 | K37: 2 | L37: 801 | M37: 408 | N37: 461 | O37: 46 | P37: 24 | Q37: 7 | R37: 675 | S37: 27.17391304
A38: CANTÓN 5 SAN RAFAEL | B38: 62 | C38: 29077 | D38: 20853 | E38: 71.71647694 | F38: 20485 | G38: 575 | H38: 20 | I38: 20 | J38: 82 | K38: 94 | L38: 9076 | M38: 4324 | N38: 5930 | O38: 364 | P38: 284 | Q38: 84 | R38: 8224 | S38: 28.28352306
A39: SAN RAFAEL | B39: 17 | C39: 8090 | D39: 5966 | E39: 73.74536465 | F39: 5888 | G39: 147 | H39: 6 | I39: 4 | J39: 24 | K39: 26 | L39: 2615 | M39: 1152 | N39: 1830 | O39: 84 | P39: 68 | Q39: 10 | R39: 2124 | S39: 26.25463535
A40: SAN JOSECITO | B40: 14 | C40: 6741 | D40: 4626 | E40: =+D40/C40*100 -> 68.62483311 | F40: 4522 | G40: 151 | H40: 1 | I40: 5 | J40: 17 | K40: 25 | L40: 1994 | M40: 940 | N40: 1294 | O40: 95 | P40: 76 | Q40: 28 | R40: 2115 | S40: =+R40/C40*100 -> 31.37516689
A41: SANTIAGO | B41: 10 | C41: 4859 | D41: 3637 | E41: 74.85079234 | F41: 3581 | G41: 91 | H41: 6 | I41: 3 | J41: 15 | K41: 16 | L41: 1547 | M41: 698 | N41: 1139 | O41: 66 | P41: 43 | Q41: 13 | R41: 1222 | S41: 25.14920766
A42: LOS ÁNGELES | B42: 16 | C42: 7217 | D42: 5093 | E42: 70.56948871 | F42: 4991 | G42: 141 | H42: 6 | I42: 5 | J42: 18 | K42: 25 | L42: 2207 | M42: 1247 | N42: 1248 | O42: 94 | P42: 78 | Q42: 24 | R42: 2124 | S42: 29.43051129
A43: CONCEPCIÓN | B43: 5 | C43: 2170 | D43: 1531 | E43: 70.55299539 | F43: 1503 | G43: 45 | H43: 1 | I43: 3 | J43: 8 | K43: 2 | L43: 713 | M43: 287 | N43: 419 | O43: 25 | P43: 19 | Q43: 9 | R43: 639 | S43: 29.44700461
A44: CANTÓN 6 SAN ISIDRO | B44: 28 | C44: 12800 | D44: 9545 | E44: 74.5703125 | F44: 9374 | G44: 290 | H44: 3 | I44: 11 | J44: 38 | K44: 22 | L44: 4537 | M44: 1444 | N44: 2844 | O44: 185 | P44: 128 | Q44: 43 | R44: 3255 | S44: 25.4296875
A45: SAN ISIDRO | B45: 14 | C45: 6686 | D45: 4978 | E45: 74.45408316 | F45: 4888 | G45: 136 | H45: 2 | I45: 3 | J45: 23 | K45: 13 | L45: 2305 | M45: 746 | N45: 1546 | O45: 114 | P45: 70 | Q45: 20 | R45: 1708 | S45: 25.54591684
A46: SAN JOSÉ | B46: 7 | C46: 3016 | D46: 2240 | E46: 74.27055703 | F46: 2203 | G46: 74 | H46: 0 | I46: 2 | J46: 6 | K46: 7 | L46: 1142 | M46: 310 | N46: 635 | O46: 27 | P46: 32 | Q46: 5 | R46: 776 | S46: 25.72944297
A47: CONCEPCIÓN | B47: 4 | C47: 1665 | D47: 1254 | E47: 75.31531532 | F47: 1228 | G47: 61 | H47: 1 | I47: 2 | J47: 1 | K47: 0 | L47: 633 | M47: 228 | N47: 285 | O47: 17 | P47: 15 | Q47: 11 | R47: 411 | S47: 24.68468468
A48: SAN FRANCISCO | B48: 3 | C48: 1433 | D48: 1073 | E48: 74.87787858 | F48: 1055 | G48: 19 | H48: 0 | I48: 4 | J48: 8 | K48: 2 | L48: 457 | M48: 160 | N48: 378 | O48: 27 | P48: 11 | Q48: 7 | R48: 360 | S48: 25.12212142
A49: CANTÓN 7 BELÉN | B49: 32 | C49: 15687 | D49: 12012 | E49: 76.5729585 | F49: 11847 | G49: 558 | H49: 4 | I49: 10 | J49: 21 | K49: 31 | L49: 6152 | M49: 2137 | N49: 2742 | O49: 192 | P49: 136 | Q49: 29 | R49: 3675 | S49: 23.4270415
A50: SAN ANTONIO | B50: 15 | C50: 7381 | D50: 5623 | E50: 76.18208915 | F50: 5550 | G50: 231 | H50: 3 | I50: 5 | J50: 7 | K50: 13 | L50: 2771 | M50: 1056 | N50: 1378 | O50: 86 | P50: 63 | Q50: 10 | R50: 1758 | S50: 23.81791085
A51: LA RIBERA | B51: 11 | C51: 5344 | D51: 4070 | E51: 76.16017964 | F51: 3995 | G51: 188 | H51: 1 | I51: 4 | J51: 6 | K51: 10 | L51: 2089 | M51: 771 | N51: 843 | O51: 83 | P51: 59 | Q51: 16 | R51: 1274 | S51: 23.83982036
A52: LA ASUNCIÓN | B52: 6 | C52: 2962 | D52: 2319 | E52: 78.2916948 | F52: 2302 | G52: 139 | H52: 0 | I52: 1 | J52: 8 | K52: 8 | L52: 1292 | M52: 310 | N52: 521 | O52: 23 | P52: 14 | Q52: 3 | R52: 643 | S52: 21.7083052
A53: CANTÓN 8 FLORES | B53: 27 | C53: 13404 | D53: 10271 | E53: 76.62638019 | F53: 10116 | G53: 334 | H53: 5 | I53: 27 | J53: 39 | K53: 26 | L53: 5183 | M53: 1873 | N53: 2477 | O53: 152 | P53: 121 | Q53: 34 | R53: 3133 | S53: 23.37361981
A54: SAN JOAQUÍN | B54: 14 | C54: 6977 | D54: 5286 | E54: 75.76322202 | F54: 5218 | G54: 146 | H54: 3 | I54: 16 | J54: 15 | K54: 21 | L54: 2591 | M54: 954 | N54: 1396 | O54: 76 | P54: 59 | Q54: 9 | R54: 1691 | S54: 24.23677798
A55: BARRANTES | B55: 4 | C55: 2046 | D55: 1688 | E55: 82.50244379 | F55: 1655 | G55: 55 | H55: 0 | I55: 1 | J55: 7 | K55: 2 | L55: 887 | M55: 256 | N55: 428 | O55: 19 | P55: 23 | Q55: 10 | R55: 358 | S55: 17.49755621
A56: LLORENTE | B56: 9 | C56: 4381 | D56: 3297 | E56: 75.25679069 | F56: 3243 | G56: 133 | H56: 2 | I56: 10 | J56: 17 | K56: 3 | L56: 1705 | M56: 663 | N56: 653 | O56: 57 | P56: 39 | Q56: 15 | R56: 1084 | S56: 24.74320931
A57: CANTÓN 9 SAN PABLO | B57: 38 | C57: 17791 | D57: 13469 | E57: 75.70681805 | F57: 13304 | G57: 696 | H57: 9 | I57: 17 | J57: 61 | K57: 51 | L57: 6145 | M57: 2065 | N57: 4022 | O57: 238 | P57: 143 | Q57: 22 | R57: 4322 | S57: 24.29318195
A58: PARACITO | B58: 27 | C58: 13371 | D58: 10170 | E58: 76.06013013 | F58: 10043 | G58: 504 | H58: 7 | I58: 13 | J58: 44 | K58: 34 | L58: 4649 | M58: 1556 | N58: 3071 | O58: 165 | P58: 111 | Q58: 16 | R58: 3201 | S58: 23.93986987
A59: RINCÓN DE SABANILLA | B59: 11 | C59: 4420 | D59: 3299 | E59: 74.63800905 | F59: 3261 | G59: 192 | H59: 2 | I59: 4 | J59: 17 | K59: 17 | L59: 1496 | M59: 509 | N59: 951 | O59: 73 | P59: 32 | Q59: 6 | R59: 1121 | S59: 25.36199095
A60: CANTÓN 10 SARAPIQUÍ | B60: 72 | C60: 25807 | D60: 16513 | E60: 63.98651529 | F60: 15942 | G60: 434 | H60: 17 | I60: 49 | J60: 389 | K60: 51 | L60: 6604 | M60: 5131 | N60: 2996 | O60: 271 | P60: 502 | Q60: 69 | R60: 9294 | S60: 36.01348471
A61: PUERTO VIEJO | B61: 22 | C61: 7889 | D61: 4507 | E61: 57.13018127 | F61: 4379 | G61: 131 | H61: 3 | I61: 8 | J61: 66 | K61: 7 | L61: 1803 | M61: 1560 | N61: 751 | O61: 50 | P61: 102 | Q61: 26 | R61: 3382 | S61: 42.86981873
A62: LA VIRGEN | B62: 14 | C62: 4698 | D62: 3077 | E62: 65.49595573 | F62: 3000 | G62: 90 | H62: 1 | I62: 4 | J62: 141 | K62: 5 | L62: 1235 | M62: 1014 | N62: 460 | O62: 50 | P62: 65 | Q62: 12 | R62: 1621 | S62: 34.50404427
A63: HORQUETAS | B63: 33 | C63: 12701 | D63: 8633 | E63: 67.9710259 | F63: 8282 | G63: 200 | H63: 13 | I63: 34 | J63: 181 | K63: 38 | L63: 3458 | M63: 2456 | N63: 1732 | O63: 170 | P63: 322 | Q63: 29 | R63: 4068 | S63: 32.0289741
A64: LLANURAS DEL GASPAR | B64: 1 | C64: 282 | D64: 161 | E64: 57.09219858 | F64: 155 | G64: 2 | H64: 0 | I64: 1 | J64: 0 | K64: 0 | L64: 61 | M64: 73 | N64: 17 | O64: 1 | P64: 5 | Q64: 1 | R64: 121 | S64: 42.90780142
A65: CUREÑA | B65: 2 | C65: 237 | D65: 135 | E65: 56.96202532 | F65: 126 | G65: 11 | H65: 0 | I65: 2 | J65: 1 | K65: 1 | L65: 47 | M65: 28 | N65: 36 | O65: 0 | P65: 8 | Q65: 1 | R65: 102 | S65: 43.03797468

Sheet C1.7
A2: CUADRO 1.7 GUANACASTE: JUNTAS, ELECTORADO, PARTICIPACIÓN, VOTOS POR PARTIDO, NULOS, BLANCOS Y ABSTENCIONISMO PARA PRESIDENCIA Y VICEPRESIDENCIAS DE LA REPÚBLICA, SEGÚN CANTÓN Y DISTRITO ADMINISTRATIVO ELECCIONES 7 DE FEBRERO 2010
A4: CANTÓN Y DISTRITO ADMINISTRATIVO | B4: JUNTAS | C4: ELECTORADO | D4: VOTOS RECIBIDOS | R4: ABSTENCIONISMO
D5: TOTAL GENERAL | E5: % PARTICIPACIÓN | F5: VOTOS VÁLIDOS | P5: NULOS | Q5: BLANCOS | R5: ABSOLUTO | S5: %
F6: TOTAL | G6: UNIDAD SOCIAL CRISTIANA | H6: INTEGRACIÓN NACIONAL | I6: ALIANZA PATRIÓTICA | J6: RENOVACIÓN COSTARRICENSE | K6: FRENTE AMPLIO | L6: LIBERACIÓN NACIONAL | M6: MOVIMIENTO LIBERTARIO | N6: ACCIÓN CIUDADANA | O6: ACCESIBILIDAD SIN EXCLUSIÓN
A8: PROVINCIA GUANACASTE | B8: 550 | C8: 199237 | D8: 131940 | E8: =+D8/C8*100 -> 66.22263937 | F8: 128125 | G8: 7777 | H8: 97 | I8: 305 | J8: 1510 | K8: 373 | L8: 65843 | M8: 29841 | N8: 20341 | O8: 2038 | P8: 3063 | Q8: 752 | R8: 67297 | S8: =+R8/C8*100 -> 33.77736063
A9: CANTÓN 1 LIBERIA | B9: 84 | C9: 36952 | D9: 22680 | E9: 61.37692141 | F9: 22097 | G9: 1466 | H9: 18 | I9: 34 | J9: 258 | K9: 47 | L9: 9942 | M9: 5132 | N9: 4250 | O9: 950 | P9: 466 | Q9: 117 | R9: 14272 | S9: 38.62307859
A10: LIBERIA | B10: 70 | C10: 31547 | D10: 19323 | E10: 61.25146607 | F10: 18857 | G10: 1300 | H10: 16 | I10: 28 | J10: 199 | K10: 40 | L10: 8247 | M10: 4446 | N10: 3704 | O10: 877 | P10: 381 | Q10: 85 | R10: 12224 | S10: 38.74853393
A11: CAÑAS DULCES | B11: 5 | C11: 1837 | D11: 1262 | E11: 68.6989657 | F11: 1218 | G11: 85 | H11: 1 | I11: 5 | J11: 31 | K11: 2 | L11: 634 | M11: 243 | N11: 186 | O11: 31 | P11: 30 | Q11: 14 | R11: 575 | S11: 31.3010343
A12: MAYORGA | B12: 2 | C12: 865 | D12: 498 | E12: 57.57225434 | F12: 481 | G12: 15 | H12: 1 | I12: 0 | J12: 0 | K12: 1 | L12: 293 | M12: 46 | N12: 119 | O12: 6 | P12: 11 | Q12: 6 | R12: 367 | S12: 42.42774566
A13: NACASCOLO | B13: 3 | C13: 1335 | D13: 776 | E13: 58.12734082 | F13: 742 | G13: 33 | H13: 0 | I13: 0 | J13: 5 | K13: 0 | L13: 386 | M13: 202 | N13: 101 | O13: 15 | P13: 27 | Q13: 7 | R13: 559 | S13: 41.87265918
A14: CURUBANDÉ | B14: 4 | C14: 1368 | D14: 821 | E14: 60.01461988 | F14: 799 | G14: 33 | H14: 0 | I14: 1 | J14: 23 | K14: 4 | L14: 382 | M14: 195 | N14: 140 | O14: 21 | P14: 17 | Q14: 5 | R14: 547 | S14: 39.98538012
A15: CANTÓN 2 NICOYA | B15: 106 | C15: 34993 | D15: 24486 | E15: 69.9739948 | F15: 23722 | G15: 1728 | H15: 18 | I15: 57 | J15: 161 | K15: 105 | L15: 12875 | M15: 5603 | N15: 2921 | O15: 254 | P15: 615 | Q15: 149 | R15: 10507 | S15: 30.0260052
A16: NICOYA | B16: 46 | C16: 18080 | D16: 12591 | E16: 69.64048673 | F16: 12218 | G16: 876 | H16: 11 | I16: 22 | J16: 78 | K16: 52 | L16: 6353 | M16: 2947 | N16: 1740 | O16: 139 | P16: 301 | Q16: 72 | R16: 5489 | S16: 30.35951327
A17: MANSIÓN | B17: 11 | C17: 3632 | D17: 4902 | E17: 134.9669604 | F17: 2488 | G17: 172 | H17: 3 | I17: 12 | J17: 30 | K17: 10 | L17: 1361 | M17: 577 | N17: 284 | O17: 39 | P17: 61 | Q17: 15 | R17: 1068 | S17: 29.40528634
A18: SAN ANTONIO | B18: 18 | C18: 5037 | D18: 3658 | E18: 72.62259281 | F18: 3518 | G18: 238 | H18: 1 | I18: 11 | J18: 15 | K18: 25 | L18: 2110 | M18: 778 | N18: 316 | O18: 24 | P18: 116 | Q18: 24 | R18: 1379 | S18: 27.37740719
A19: QUEBRADA HONDA | B19: 7 | C19: 2000 | D19: 1460 | E19: 73 | F19: 1432 | G19: 121 | H19: 0 | I19: 3 | J19: 3 | K19: 4 | L19: 669 | M19: 495 | N19: 126 | O19: 11 | P19: 17 | Q19: 11 | R19: 540 | S19: 27
A20: SÁMARA | B20: 7 | C20: 2073 | D20: 1229 | E20: 59.28605885 | F20: 1179 | G20: 112 | H20: 2 | I20: 2 | J20: 10 | K20: 5 | L20: 662 | M20: 238 | N20: 134 | O20: 14 | P20: 45 | Q20: 5 | R20: 844 | S20: 40.71394115
A21: NOSARA | B21: 8 | C21: 2453 | D21: 1695 | E21: 69.09906237 | F21: 1635 | G21: 62 | H21: 1 | I21: 4 | J21: 23 | K21: 6 | L21: 1007 | M21: 368 | N21: 153 | O21: 11 | P21: 52 | Q21: 8 | R21: 758 | S21: 30.90093763
A22: BELÉN DE NOSARITA | B22: 9 | C22: 1718 | D22: 1289 | E22: 75.02910361 | F22: 1252 | G22: 147 | H22: 0 | I22: 3 | J22: 2 | K22: 3 | L22: 713 | M22: 200 | N22: 168 | O22: 16 | P22: 23 | Q22: 14 | R22: 429 | S22: 24.97089639
A23: CANTÓN 3 SANTA CRUZ | B23: 89 | C23: 33780 | D23: 22655 | E23: 67.06631143 | F23: 21879 | G23: 1279 | H23: 15 | I23: 47 | J23: 222 | K23: 69 | L23: 11650 | M23: 4991 | N23: 3379 | O23: 227 | P23: 628 | Q23: 148 | R23: 11125 | S23: 32.93368857
A24: SANTA CRUZ | B24: 35 | C24: 14935 | D24: 10005 | E24: 66.99029126 | F24: 9715 | G24: 479 | H24: 6 | I24: 13 | J24: 98 | K24: 42 | L24: 5020 | M24: 2133 | N24: 1801 | O24: 123 | P24: 247 | Q24: 43 | R24: 4930 | S24: 33.00970874
A25: BOLSÓN | B25: 3 | C25: 1210 | D25: 805 | E25: 66.52892562 | F25: 771 | G25: 93 | H25: 1 | I25: 0 | J25: 6 | K25: 3 | L25: 420 | M25: 125 | N25: 105 | O25: 18 | P25: 25 | Q25: 9 | R25: 405 | S25: 33.47107438
A26: VEINTISIETE DE ABRIL | B26: 13 | C26: 4332 | D26: 2973 | E26: 68.62880886 | F26: 2834 | G26: 180 | H26: 1 | I26: 9 | J26: 11 | K26: 5 | L26: 1708 | M26: 674 | N26: 230 | O26: 16 | P26: 116 | Q26: 23 | R26: 1359 | S26: 31.37119114
A27: TEMPATE | B27: 7 | C27: 2544 | D27: 1607 | E27: 63.16823899 | F27: 1550 | G27: 128 | H27: 1 | I27: 2 | J27: 22 | K27: 1 | L27: 834 | M27: 434 | N27: 121 | O27: 7 | P27: 45 | Q27: 12 | R27: 937 | S27: 36.83176101
A28: CARTAGENA | B28: 6 | C28: 2467 | D28: 1683 | E28: 68.22051074 | F28: 1631 | G28: 94 | H28: 1 | I28: 7 | J28: 51 | K28: 1 | L28: 841 | M28: 349 | N28: 268 | O28: 19 | P28: 39 | Q28: 13 | R28: 784 | S28: 31.77948926
A29: CUAJINIQUIL | B29: 6 | C29: 1163 | D29: 806 | E29: 69.30352537 | F29: 747 | G29: 40 | H29: 1 | I29: 9 | J29: 4 | K29: 11 | L29: 320 | M29: 253 | N29: 108 | O29: 1 | P29: 47 | Q29: 12 | R29: 357 | S29: 30.69647463
A30: DIRIÁ | B30: 7 | C30: 2708 | D30: 1948 | E30: 71.93500739 | F30: 1903 | G30: 105 | H30: 0 | I30: 0 | J30: 7 | K30: 3 | L30: 1029 | M30: 291 | N30: 452 | O30: 16 | P30: 36 | Q30: 9 | R30: 760 | S30: 28.06499261
A31: CABO VELAS | B31: 4 | C31: 1561 | D31: 994 | E31: 63.67713004 | F31: 962 | G31: 38 | H31: 1 | I31: 1 | J31: 5 | K31: 2 | L31: 540 | M31: 276 | N31: 92 | O31: 7 | P31: 20 | Q31: 12 | R31: 567 | S31: 36.32286996
A32: TAMARINDO | B32: 8 | C32: 2860 | D32: 1834 | E32: 64.12587413 | F32: 1766 | G32: 122 | H32: 3 | I32: 6 | J32: 18 | K32: 1 | L32: 938 | M32: 456 | N32: 202 | O32: 20 | P32: 53 | Q32: 15 | R32: 1026 | S32: 35.87412587
A33: CANTÓN 4 BAGACES | B33: 31 | C33: 10928 | D33: 7050 | E33: 64.51317716 | F33: 6872 | G33: 333 | H33: 5 | I33: 22 | J33: 154 | K33: 5 | L33: 3324 | M33: 1292 | N33: 1659 | O33: 78 | P33: 140 | Q33: 38 | R33: 3878 | S33: 35.48682284
A34: BAGACES | B34: 18 | C34: 6395 | D34: 3972 | E34: 62.11102424 | F34: 3868 | G34: 252 | H34: 1 | I34: 12 | J34: 63 | K34: 2 | L34: 1988 | M34: 860 | N34: 649 | O34: 41 | P34: 83 | Q34: 21 | R34: 2423 | S34: 37.88897576
A35: LA FORTUNA | B35: 5 | C35: 1781 | D35: 1220 | E35: 68.50084222 | F35: 1193 | G35: 36 | H35: 2 | I35: 3 | J35: 8 | K35: 1 | L35: 579 | M35: 156 | N35: 392 | O35: 16 | P35: 17 | Q35: 10 | R35: 561 | S35: 31.49915778
A36: MOGOTE | B36: 6 | C36: 2105 | D36: 1407 | E36: 66.84085511 | F36: 1368 | G36: 19 | H36: 1 | I36: 6 | J36: 79 | K36: 0 | L36: 520 | M36: 213 | N36: 516 | O36: 14 | P36: 35 | Q36: 4 | R36: 698 | S36: 33.15914489
A37: RÍO NARANJO | B37: 2 | C37: 647 | D37: 451 | E37: 69.70633694 | F37: 443 | G37: 26 | H37: 1 | I37: 1 | J37: 4 | K37: 2 | L37: 237 | M37: 63 | N37: 102 | O37: 7 | P37: 5 | Q37: 3 | R37: 196 | S37: 30.29366306
A38: CANTÓN 5 CARRILLO | B38: 47 | C38: 19540 | D38: 12272 | E38: 62.80450358 | F38: 11939 | G38: 896 | H38: 8 | I38: 22 | J38: 193 | K38: 34 | L38: 6618 | M38: 2800 | N38: 1213 | O38: 155 | P38: 262 | Q38: 71 | R38: 7268 | S38: 37.19549642
A39: FILADELFIA | B39: 12 | C39: 5058 | D39: 3199 | E39: 63.24634243 | F39: 3140 | G39: 340 | H39: 0 | I39: 6 | J39: 43 | K39: 4 | L39: 1794 | M39: 648 | N39: 261 | O39: 44 | P39: 43 | Q39: 16 | R39: 1859 | S39: 36.75365757
A40: PALMIRA | B40: 6 | C40: 2706 | D40: 1820 | E40: =+D40/C40*100 -> 67.25794531 | F40: 1776 | G40: 81 | H40: 0 | I40: 3 | J40: 15 | K40: 1 | L40: 1106 | M40: 362 | N40: 161 | O40: 47 | P40: 33 | Q40: 11 | R40: 886 | S40: =+R40/C40*100 -> 32.74205469
A41: SARDINAL | B41: 17 | C41: 7091 | D41: 4268 | E41: 60.18897194 | F41: 4140 | G41: 258 | H41: 3 | I41: 8 | J41: 60 | K41: 26 | L41: 2007 | M41: 1194 | N41: 561 | O41: 23 | P41: 103 | Q41: 25 | R41: 2823 | S41: 39.81102806
A42: BELÉN | B42: 12 | C42: 4685 | D42: 2985 | E42: 63.71398079 | F42: 2883 | G42: 217 | H42: 5 | I42: 5 | J42: 75 | K42: 3 | L42: 1711 | M42: 596 | N42: 230 | O42: 41 | P42: 83 | Q42: 19 | R42: 1700 | S42: 36.28601921
A43: CANTÓN 6 CAÑAS | B43: 42 | C43: 17069 | D43: 10691 | E43: 62.63401488 | F43: 10433 | G43: 663 | H43: 5 | I43: 13 | J43: 162 | K43: 23 | L43: 5520 | M43: 2141 | N43: 1766 | O43: 140 | P43: 203 | Q43: 55 | R43: 6378 | S43: 37.36598512
A44: CAÑAS | B44: 30 | C44: 13738 | D44: 8511 | E44: 61.95224924 | F44: 8314 | G44: 564 | H44: 4 | I44: 10 | J44: 156 | K44: 15 | L44: 4165 | M44: 1748 | N44: 1525 | O44: 127 | P44: 161 | Q44: 36 | R44: 5227 | S44: 38.04775076
A45: PALMIRA | B45: 2 | C45: 621 | D45: 418 | E45: 67.31078905 | F45: 400 | G45: 34 | H45: 1 | I45: 0 | J45: 1 | K45: 0 | L45: 208 | M45: 96 | N45: 57 | O45: 3 | P45: 13 | Q45: 5 | R45: 203 | S45: 32.68921095
A46: SAN MIGUEL | B46: 5 | C46: 1100 | D46: 730 | E46: 66.36363636 | F46: 713 | G46: 28 | H46: 0 | I46: 2 | J46: 1 | K46: 4 | L46: 457 | M46: 116 | N46: 100 | O46: 5 | P46: 10 | Q46: 7 | R46: 370 | S46: 33.63636364
A47: BEBEDERO | B47: 3 | C47: 1150 | D47: 709 | E47: 61.65217391 | F47: 690 | G47: 25 | H47: 0 | I47: 1 | J47: 2 | K47: 3 | L47: 499 | M47: 115 | N47: 40 | O47: 5 | P47: 14 | Q47: 5 | R47: 441 | S47: 38.34782609
A48: POROZAL | B48: 2 | C48: 460 | D48: 323 | E48: 70.2173913 | F48: 316 | G48: 12 | H48: 0 | I48: 0 | J48: 2 | K48: 1 | L48: 191 | M48: 66 | N48: 44 | O48: 0 | P48: 5 | Q48: 2 | R48: 137 | S48: 29.7826087
A49: CANTÓN 7 ABANGARES | B49: 37 | C49: 11481 | D49: 7808 | E49: 68.00801324 | F49: 7537 | G49: 396 | H49: 8 | I49: 45 | J49: 68 | K49: 51 | L49: 3560 | M49: 2156 | N49: 1187 | O49: 66 | P49: 227 | Q49: 44 | R49: 3673 | S49: 31.99198676
A50: LAS JUNTAS | B50: 16 | C50: 6089 | D50: 4075 | E50: 66.92396124 | F50: 3952 | G50: 230 | H50: 4 | I50: 23 | J50: 55 | K50: 11 | L50: 1887 | M50: 1047 | N50: 666 | O50: 29 | P50: 100 | Q50: 23 | R50: 2014 | S50: 33.07603876
A51: SIERRA | B51: 7 | C51: 1407 | D51: 972 | E51: 69.08315565 | F51: 940 | G51: 33 | H51: 2 | I51: 7 | J51: 5 | K51: 16 | L51: 435 | M51: 297 | N51: 135 | O51: 10 | P51: 29 | Q51: 3 | R51: 435 | S51: 30.91684435
A52: SAN JUAN | B52: 4 | C52: 1182 | D52: 790 | E52: 66.8358714 | F52: 760 | G52: 36 | H52: 1 | I52: 3 | J52: 5 | K52: 1 | L52: 347 | M52: 221 | N52: 131 | O52: 15 | P52: 26 | Q52: 4 | R52: 392 | S52: 33.1641286
A53: COLORADO | B53: 10 | C53: 2803 | D53: 1971 | E53: 70.31751695 | F53: 1885 | G53: 97 | H53: 1 | I53: 12 | J53: 3 | K53: 23 | L53: 891 | M53: 591 | N53: 255 | O53: 12 | P53: 72 | Q53: 14 | R53: 832 | S53: 29.68248305
A54: CANTÓN 8 TILARÁN | B54: 39 | C54: 13144 | D54: 9504 | E54: 72.30675593 | F54: 9261 | G54: 336 | H54: 8 | I54: 24 | J54: 114 | K54: 18 | L54: 4264 | M54: 2396 | N54: 2015 | O54: 86 | P54: 203 | Q54: 40 | R54: 3640 | S54: 27.69324407
A55: TILARÁN | B55: 15 | C55: 6292 | D55: 4599 | E55: 73.09281627 | F55: 4509 | G55: 181 | H55: 5 | I55: 5 | J55: 65 | K55: 9 | L55: 2004 | M55: 968 | N55: 1226 | O55: 46 | P55: 72 | Q55: 18 | R55: 1693 | S55: 26.90718373
A56: QUEBRADA GRANDE | B56: 6 | C56: 1708 | D56: 1266 | E56: 74.12177986 | F56: 1235 | G56: 33 | H56: 0 | I56: 5 | J56: 14 | K56: 3 | L56: 594 | M56: 446 | N56: 120 | O56: 20 | P56: 24 | Q56: 7 | R56: 442 | S56: 25.87822014
A57: TRONADORA | B57: 4 | C57: 1095 | D57: 781 | E57: 71.32420091 | F57: 756 | G57: 33 | H57: 0 | I57: 3 | J57: 20 | K57: 2 | L57: 302 | M57: 215 | N57: 176 | O57: 5 | P57: 23 | Q57: 2 | R57: 314 | S57: 28.67579909
A58: SANTA ROSA | B58: 3 | C58: 1071 | D58: 731 | E58: 68.25396825 | F58: 698 | G58: 10 | H58: 1 | I58: 5 | J58: 4 | K58: 1 | L58: 359 | M58: 159 | N58: 158 | O58: 1 | P58: 30 | Q58: 3 | R58: 340 | S58: 31.74603175
A59: LÍBANO | B59: 3 | C59: 588 | D59: 451 | E59: 76.70068027 | F59: 442 | G59: 15 | H59: 0 | I59: 1 | J59: 3 | K59: 1 | L59: 249 | M59: 102 | N59: 69 | O59: 2 | P59: 8 | Q59: 1 | R59: 137 | S59: 23.29931973
A60: TIERRAS MORENAS | B60: 4 | C60: 931 | D60: 675 | E60: 72.50268528 | F60: 660 | G60: 17 | H60: 1 | I60: 3 | J60: 2 | K60: 1 | L60: 358 | M60: 159 | N60: 112 | O60: 7 | P60: 13 | Q60: 2 | R60: 256 | S60: 27.49731472
A61: ARENAL | B61: 4 | C61: 1459 | D61: 1001 | E61: 68.60863605 | F61: 961 | G61: 47 | H61: 1 | I61: 2 | J61: 6 | K61: 1 | L61: 398 | M61: 347 | N61: 154 | O61: 5 | P61: 33 | Q61: 7 | R61: 458 | S61: 31.39136395
A62: CANTÓN 9 NANDAYURE | B62: 29 | C62: 7390 | D62: 5343 | E62: 72.30040595 | F62: 5183 | G62: 190 | H62: 4 | I62: 21 | J62: 42 | K62: 7 | L62: 3133 | M62: 947 | N62: 807 | O62: 32 | P62: 123 | Q62: 37 | R62: 2047 | S62: 27.69959405
A63: CARMONA | B63: 4 | C63: 1628 | D63: 1252 | E63: 76.9041769 | F63: 1221 | G63: 42 | H63: 1 | I63: 5 | J63: 4 | K63: 0 | L63: 677 | M63: 172 | N63: 308 | O63: 12 | P63: 19 | Q63: 12 | R63: 376 | S63: 23.0958231
A64: SANTA RITA | B64: 4 | C64: 1113 | D64: 847 | E64: 76.10062893 | F64: 818 | G64: 39 | H64: 0 | I64: 0 | J64: 12 | K64: 1 | L64: 505 | M64: 126 | N64: 134 | O64: 1 | P64: 25 | Q64: 4 | R64: 266 | S64: 23.89937107
A65: ZAPOTAL | B65: 5 | C65: 888 | D65: 643 | E65: 72.40990991 | F65: 627 | G65: 30 | H65: 1 | I65: 1 | J65: 2 | K65: 0 | L65: 335 | M65: 141 | N65: 112 | O65: 5 | P65: 12 | Q65: 4 | R65: 245 | S65: 27.59009009
A66: SAN PABLO | B66: 3 | C66: 1131 | D66: 806 | E66: 71.26436782 | F66: 787 | G66: 34 | H66: 0 | I66: 5 | J66: 4 | K66: 2 | L66: 547 | M66: 110 | N66: 82 | O66: 3 | P66: 15 | Q66: 4 | R66: 325 | S66: 28.73563218
A67: PORVENIR | B67: 4 | C67: 733 | D67: 530 | E67: 72.30559345 | F67: 507 | G67: 12 | H67: 1 | I67: 3 | J67: 2 | K67: 0 | L67: 351 | M67: 93 | N67: 45 | O67: 0 | P67: 19 | Q67: 4 | R67: 203 | S67: 27.69440655
A68: BEJUCO | B68: 9 | C68: 1897 | D68: 1265 | E68: 66.68423827 | F68: 1223 | G68: 33 | H68: 1 | I68: 7 | J68: 18 | K68: 4 | L68: 718 | M68: 305 | N68: 126 | O68: 11 | P68: 33 | Q68: 9 | R68: 632 | S68: 33.31576173
A69: CANTÓN 10 LA CRUZ | B69: 28 | C69: 9025 | D69: 5748 | E69: 63.68975069 | F69: 5596 | G69: 354 | H69: 6 | I69: 5 | J69: 102 | K69: 11 | L69: 2839 | M69: 1699 | N69: 556 | O69: 24 | P69: 128 | Q69: 24 | R69: 3277 | S69: 36.31024931
A70: LA CRUZ | B70: 14 | C70: 5012 | D70: 3402 | E70: 67.87709497 | F70: 3325 | G70: 143 | H70: 1 | I70: 3 | J70: 26 | K70: 7 | L70: 1673 | M70: 1120 | N70: 337 | O70: 15 | P70: 61 | Q70: 16 | R70: 1610 | S70: 32.12290503
A71: SANTA CECILIA | B71: 9 | C71: 2440 | D71: 1355 | E71: 55.53278689 | F71: 1309 | G71: 110 | H71: 5 | I71: 1 | J71: 61 | K71: 3 | L71: 660 | M71: 313 | N71: 150 | O71: 6 | P71: 42 | Q71: 4 | R71: 1085 | S71: 44.46721311
A72: LA GARITA | B72: 3 | C72: 572 | D72: 350 | E72: =+D72/C72*100 -> 61.18881119 | F72: 340 | G72: 45 | H72: 0 | I72: 0 | J72: 2 | K72: 0 | L72: 179 | M72: 80 | N72: 34 | O72: 0 | P72: 9 | Q72: 1 | R72: 222 | S72: =+R72/C72*100 -> 38.81118881
A73: SANTA ELENA | B73: 2 | C73: 1001 | D73: 641 | E73: 64.03596404 | F73: 622 | G73: 56 | H73: 0 | I73: 1 | J73: 13 | K73: 1 | L73: 327 | M73: 186 | N73: 35 | O73: 3 | P73: 16 | Q73: 3 | R73: 360 | S73: 35.96403596
A74: CANTÓN 11 HOJANCHA | B74: 18 | C74: 4935 | D74: 3703 | E74: 75.03546099 | F74: 3606 | G74: 136 | H74: 2 | I74: 15 | J74: 34 | K74: 3 | L74: 2118 | M74: 684 | N74: 588 | O74: 26 | P74: 68 | Q74: 29 | R74: 1232 | S74: 24.96453901
A75: HOJANCHA | B75: 8 | C75: 3027 | D75: 2280 | E75: 75.32210109 | F75: 2229 | G75: 74 | H75: 0 | I75: 9 | J75: 20 | K75: 2 | L75: 1221 | M75: 429 | N75: 458 | O75: 16 | P75: 33 | Q75: 18 | R75: 747 | S75: 24.67789891
A76: MONTE ROMO | B76: 3 | C76: 494 | D76: 379 | E76: 76.72064777 | F76: 366 | G76: 20 | H76: 0 | I76: 1 | J76: 2 | K76: 0 | L76: 233 | M76: 38 | N76: 68 | O76: 4 | P76: 11 | Q76: 2 | R76: 115 | S76: 23.27935223
A77: PUERTO CARRILLO | B77: 5 | C77: 962 | D77: 699 | E77: 72.66112266 | F77: 672 | G77: 37 | H77: 2 | I77: 3 | J77: 12 | K77: 0 | L77: 392 | M77: 174 | N77: 46 | O77: 6 | P77: 20 | Q77: 7 | R77: 263 | S77: 27.33887734
A78: HUACAS | B78: 2 | C78: 452 | D78: 345 | E78: 76.32743363 | F78: 339 | G78: 5 | H78: 0 | I78: 2 | J78: 0 | K78: 1 | L78: 272 | M78: 43 | N78: 16 | O78: 0 | P78: 4 | Q78: 2 | R78: 107 | S78: 23.67256637

Sheet C1.8
A2: CUADRO 1.8 PUNTARENAS: JUNTAS, ELECTORADO, PARTICIPACIÓN, VOTOS POR PARTIDO, NULOS, BLANCOS Y ABSTENCIONISMO PARA PRESIDENCIA Y VICEPRESIDENCIAS DE LA REPÚBLICA, SEGÚN CANTÓN Y DISTRITO ADMINISTRATIVO ELECCIONES 7 DE FEBRERO 2010
A4: CANTÓN Y DISTRITO ADMINISTRATIVO | B4: JUNTAS | C4: ELECTORADO | D4: VOTOS RECIBIDOS | R4: ABSTENCIONISMO
D5: TOTAL GENERAL | E5: % PARTICIPACIÓN | F5: VOTOS VÁLIDOS | P5: NULOS | Q5: BLANCOS | R5: ABSOLUTO | S5: %
F6: TOTAL | G6: UNIDAD SOCIAL CRISTIANA | H6: INTEGRACIÓN NACIONAL | I6: ALIANZA PATRIÓTICA | J6: RENOVACIÓN COSTARRICENSE | K6: FRENTE AMPLIO | L6: LIBERACIÓN NACIONAL | M6: MOVIMIENTO LIBERTARIO | N6: ACCIÓN CIUDADANA | O6: ACCESIBILIDAD SIN EXCLUSIÓN
A8: PROVINCIA PUNTARENAS | B8: 702 | C8: 259408 | D8: 154540 | E8: =+D8/C8*100 -> 59.5741072 | F8: 150167 | G8: 6676 | H8: 134 | I8: 303 | J8: 1131 | K8: 519 | L8: 73431 | M8: 40078 | N8: 26014 | O8: 1881 | P8: 3568 | Q8: 805 | R8: 104868 | S8: =+R8/C8*100 -> 40.4258928
A9: CANTÓN 1 PUNTARENAS | B9: 200 | C9: 76163 | D9: 46464 | E9: 61.00600029 | F9: 45328 | G9: 2816 | H9: 42 | I9: 73 | J9: 299 | K9: 190 | L9: 21882 | M9: 12851 | N9: 6537 | O9: 638 | P9: 954 | Q9: 182 | R9: 29699 | S9: 38.99399971
A10: PUNTARENAS | B10: 18 | C10: 8082 | D10: 5393 | E10: 66.72853254 | F10: 5322 | G10: 397 | H10: 9 | I10: 7 | J10: 19 | K10: 16 | L10: 2608 | M10: 1284 | N10: 919 | O10: 63 | P10: 57 | Q10: 14 | R10: 2689 | S10: 33.27146746
A11: PITAHAYA | B11: 4 | C11: 1104 | D11: 639 | E11: 57.88043478 | F11: 626 | G11: 31 | H11: 0 | I11: 3 | J11: 5 | K11: 1 | L11: 270 | M11: 217 | N11: 95 | O11: 4 | P11: 13 | Q11: 0 | R11: 465 | S11: 42.11956522
A12: CHOMES | B12: 9 | C12: 3035 | D12: 1791 | E12: 59.01153213 | F12: 1720 | G12: 92 | H12: 1 | I12: 2 | J12: 8 | K12: 4 | L12: 833 | M12: 530 | N12: 222 | O12: 28 | P12: 55 | Q12: 16 | R12: 1244 | S12: 40.98846787
A13: LEPANTO | B13: 25 | C13: 6926 | D13: 4376 | E13: 63.18221195 | F13: 4241 | G13: 364 | H13: 1 | I13: 8 | J13: 11 | K13: 8 | L13: 2516 | M13: 721 | N13: 549 | O13: 63 | P13: 118 | Q13: 17 | R13: 2550 | S13: 36.81778805
A14: PAQUERA | B14: 16 | C14: 3947 | D14: 2281 | E14: 57.79072713 | F14: 2218 | G14: 85 | H14: 4 | I14: 3 | J14: 15 | K14: 14 | L14: 967 | M14: 633 | N14: 473 | O14: 24 | P14: 54 | Q14: 9 | R14: 1666 | S14: 42.20927287
A15: MANZANILLO | B15: 6 | C15: 2128 | D15: 1184 | E15: 55.63909774 | F15: 1122 | G15: 61 | H15: 2 | I15: 4 | J15: 18 | K15: 2 | L15: 510 | M15: 355 | N15: 152 | O15: 18 | P15: 54 | Q15: 8 | R15: 944 | S15: 44.36090226
A16: GUACIMAL | B16: 2 | C16: 641 | D16: 451 | E16: 70.35881435 | F16: 442 | G16: 10 | H16: 0 | I16: 0 | J16: 4 | K16: 0 | L16: 236 | M16: 89 | N16: 96 | O16: 7 | P16: 7 | Q16: 2 | R16: 190 | S16: 29.64118565
A17: BARRANCA | B17: 42 | C17: 19219 | D17: 4902 | E17: 25.50600968 | F17: 11092 | G17: 588 | H17: 8 | I17: 17 | J17: 69 | K17: 51 | L17: 5205 | M17: 3658 | N17: 1313 | O17: 183 | P17: 250 | Q17: 42 | R17: 7835 | S17: 40.76694937
A18: MONTE VERDE | B18: 6 | C18: 2576 | D18: 1750 | E18: 67.93478261 | F18: 1713 | G18: 30 | H18: 0 | I18: 0 | J18: 33 | K18: 2 | L18: 777 | M18: 572 | N18: 284 | O18: 15 | P18: 28 | Q18: 9 | R18: 826 | S18: 32.06521739
A19: ISLA DEL COCO | B19: 1 | C19: 32 | D19: 6 | E19: 18.75 | F19: 6 | G19: 0 | H19: 0 | I19: 0 | J19: 0 | K19: 0 | L19: 3 | M19: 0 | N19: 3 | O19: 0 | P19: 0 | Q19: 0 | R19: 26 | S19: 81.25
A20: COBANO | B20: 14 | C20: 3745 | D20: 1927 | E20: 51.4552737 | F20: 1880 | G20: 49 | H20: 3 | I20: 7 | J20: 20 | K20: 25 | L20: 801 | M20: 521 | N20: 437 | O20: 17 | P20: 39 | Q20: 8 | R20: 1818 | S20: 48.5447263
A21: CHACARITA | B21: 26 | C21: 12450 | D21: 7179 | E21: 57.6626506 | F21: 6986 | G21: 567 | H21: 6 | I21: 10 | J21: 56 | K21: 31 | L21: 3240 | M21: 2275 | N21: 700 | O21: 101 | P21: 165 | Q21: 28 | R21: 5271 | S21: 42.3373494
A22: CHIRA | B22: 3 | C22: 1044 | D22: 686 | E22: 65.70881226 | F22: 663 | G22: 61 | H22: 0 | I22: 3 | J22: 3 | K22: 2 | L22: 317 | M22: 165 | N22: 107 | O22: 5 | P22: 17 | Q22: 6 | R22: 358 | S22: 34.29118774
A23: ACAPULCO | B23: 3 | C23: 887 | D23: 566 | E23: 63.81059752 | F23: 543 | G23: 48 | H23: 0 | I23: 1 | J23: 5 | K23: 3 | L23: 277 | M23: 142 | N23: 55 | O23: 12 | P23: 19 | Q23: 4 | R23: 321 | S23: 36.18940248
A24: EL ROBLE | B24: 22 | C24: 9771 | D24: 6444 | E24: 65.95026098 | F24: 6355 | G24: 410 | H24: 7 | I24: 8 | J24: 32 | K24: 31 | L24: 3141 | M24: 1606 | N24: 1029 | O24: 91 | P24: 74 | Q24: 15 | R24: 3327 | S24: 34.04973902
A25: ARANCIBIA | B25: 3 | C25: 576 | D25: 407 | E25: 70.65972222 | F25: 399 | G25: 23 | H25: 1 | I25: 0 | J25: 1 | K25: 0 | L25: 181 | M25: 83 | N25: 103 | O25: 7 | P25: 4 | Q25: 4 | R25: 169 | S25: 29.34027778
A26: CANTÓN 2 ESPARZA | B26: 47 | C26: 18283 | D26: 12688 | E26: 69.39780124 | F26: 12473 | G26: 636 | H26: 14 | I26: 13 | J26: 53 | K26: 19 | L26: 6173 | M26: 3181 | N26: 2216 | O26: 168 | P26: 193 | Q26: 22 | R26: 5595 | S26: 30.60219876
A27: ESPÍRITU SANTO | B27: 28 | C27: 12575 | D27: 8774 | E27: 69.77335984 | F27: 8648 | G27: 451 | H27: 10 | I27: 8 | J27: 40 | K27: 16 | L27: 4231 | M27: 2128 | N27: 1649 | O27: 115 | P27: 118 | Q27: 8 | R27: 3801 | S27: 30.22664016
A28: SAN JUAN GRANDE | B28: 8 | C28: 2587 | D28: 1675 | E28: 64.74681098 | F28: 1629 | G28: 96 | H28: 3 | I28: 4 | J28: 6 | K28: 0 | L28: 762 | M28: 542 | N28: 196 | O28: 20 | P28: 38 | Q28: 8 | R28: 912 | S28: 35.25318902
A29: MACACONA | B29: 4 | C29: 1720 | D29: 1238 | E29: 71.97674419 | F29: 1216 | G29: 57 | H29: 0 | I29: 0 | J29: 6 | K29: 0 | L29: 622 | M29: 310 | N29: 197 | O29: 24 | P29: 19 | Q29: 3 | R29: 482 | S29: 28.02325581
A30: SAN RAFAEL | B30: 3 | C30: 849 | D30: 624 | E30: 73.49823322 | F30: 614 | G30: 21 | H30: 1 | I30: 1 | J30: 1 | K30: 1 | L30: 361 | M30: 132 | N30: 90 | O30: 6 | P30: 7 | Q30: 3 | R30: 225 | S30: 26.50176678
A31: SAN JERÓNIMO | B31: 4 | C31: 552 | D31: 377 | E31: 68.29710145 | F31: 366 | G31: 11 | H31: 0 | I31: 0 | J31: 0 | K31: 2 | L31: 197 | M31: 69 | N31: 84 | O31: 3 | P31: 11 | Q31: 0 | R31: 175 | S31: 31.70289855
A32: CANTÓN 3 BUENOS AIRES | B32: 77 | C32: 26649 | D32: 15518 | E32: 58.23107809 | F32: 15039 | G32: 355 | H32: 15 | I32: 37 | J32: 91 | K32: 61 | L32: 7347 | M32: 3239 | N32: 3691 | O32: 203 | P32: 383 | Q32: 96 | R32: 11131 | S32: 41.76892191
A33: BUENOS AIRES | B33: 32 | C33: 12951 | D33: 7505 | E33: 57.94919311 | F33: 7288 | G33: 195 | H33: 9 | I33: 16 | J33: 44 | K33: 39 | L33: 3347 | M33: 1669 | N33: 1846 | O33: 123 | P33: 175 | Q33: 42 | R33: 5446 | S33: 42.05080689
A34: VOLCÁN | B34: 5 | C34: 2174 | D34: 1312 | E34: 60.34958602 | F34: 1251 | G34: 37 | H34: 0 | I34: 2 | J34: 2 | K34: 1 | L34: 779 | M34: 235 | N34: 177 | O34: 18 | P34: 51 | Q34: 10 | R34: 862 | S34: 39.65041398
A35: POTRERO GRANDE | B35: 10 | C35: 3227 | D35: 1932 | E35: 59.86984816 | F35: 1857 | G35: 37 | H35: 2 | I35: 10 | J35: 23 | K35: 14 | L35: 789 | M35: 466 | N35: 505 | O35: 11 | P35: 56 | Q35: 19 | R35: 1295 | S35: 40.13015184
A36: BORUCA | B36: 5 | C36: 1737 | D36: 1010 | E36: 58.14622913 | F36: 980 | G36: 13 | H36: 0 | I36: 2 | J36: 3 | K36: 3 | L36: 403 | M36: 242 | N36: 298 | O36: 16 | P36: 25 | Q36: 5 | R36: 727 | S36: 41.85377087
A37: PILAS | B37: 4 | C37: 1009 | D37: 615 | E37: 60.95143707 | F37: 610 | G37: 7 | H37: 0 | I37: 1 | J37: 0 | K37: 1 | L37: 276 | M37: 83 | N37: 234 | O37: 8 | P37: 3 | Q37: 2 | R37: 394 | S37: 39.04856293
A38: COLINAS | B38: 3 | C38: 925 | D38: 482 | E38: 52.10810811 | F38: 466 | G38: 11 | H38: 1 | I38: 1 | J38: 1 | K38: 1 | L38: 161 | M38: 89 | N38: 195 | O38: 6 | P38: 15 | Q38: 1 | R38: 443 | S38: 47.89189189
A39: CHÁNGUENA | B39: 8 | C39: 1389 | D39: 759 | E39: 54.64362851 | F39: 735 | G39: 16 | H39: 2 | I39: 1 | J39: 4 | K39: 0 | L39: 387 | M39: 144 | N39: 178 | O39: 3 | P39: 17 | Q39: 7 | R39: 630 | S39: 45.35637149
A40: BIOLLEY | B40: 5 | C40: 1466 | D40: 816 | E40: =+D40/C40*100 -> 55.66166439 | F40: 793 | G40: 6 | H40: 1 | I40: 0 | J40: 10 | K40: 0 | L40: 468 | M40: 147 | N40: 153 | O40: 8 | P40: 22 | Q40: 1 | R40: 650 | S40: =+R40/C40*100 -> 44.33833561
A41: BRUNKA | B41: 5 | C41: 1771 | D41: 1087 | E41: 61.37775268 | F41: 1059 | G41: 33 | H41: 0 | I41: 4 | J41: 4 | K41: 2 | L41: 737 | M41: 164 | N41: 105 | O41: 10 | P41: 19 | Q41: 9 | R41: 684 | S41: 38.62224732
A42: CANTÓN 4 MONTES DE ORO | B42: 25 | C42: 8556 | D42: 5779 | E42: 67.54324451 | F42: 5636 | G42: 234 | H42: 6 | I42: 13 | J42: 22 | K42: 13 | L42: 2582 | M42: 1327 | N42: 1369 | O42: 70 | P42: 114 | Q42: 29 | R42: 2777 | S42: 32.45675549
A43: MIRAMAR | B43: 16 | C43: 5742 | D43: 3809 | E43: 66.33577151 | F43: 3713 | G43: 147 | H43: 3 | I43: 9 | J43: 16 | K43: 10 | L43: 1689 | M43: 785 | N43: 998 | O43: 56 | P43: 79 | Q43: 17 | R43: 1933 | S43: 33.66422849
A44: LA UNIÓN | B44: 4 | C44: 892 | D44: 638 | E44: 71.52466368 | F44: 624 | G44: 14 | H44: 1 | I44: 1 | J44: 3 | K44: 2 | L44: 299 | M44: 112 | N44: 185 | O44: 7 | P44: 6 | Q44: 8 | R44: 254 | S44: 28.47533632
A45: SAN ISIDRO | B45: 5 | C45: 1922 | D45: 1332 | E45: 69.30280957 | F45: 1299 | G45: 73 | H45: 2 | I45: 3 | J45: 3 | K45: 1 | L45: 594 | M45: 430 | N45: 186 | O45: 7 | P45: 29 | Q45: 4 | R45: 590 | S45: 30.69719043
A46: CANTÓN 5 OSA | B46: 54 | C46: 18252 | D46: 10796 | E46: 59.14968223 | F46: 10436 | G46: 393 | H46: 11 | I46: 27 | J46: 110 | K46: 37 | L46: 5169 | M46: 3209 | N46: 1345 | O46: 135 | P46: 278 | Q46: 82 | R46: 7456 | S46: 40.85031777
A47: PUERTO CORTÉS | B47: 13 | C47: 5066 | D47: 3099 | E47: 61.1725227 | F47: 3006 | G47: 106 | H47: 1 | I47: 7 | J47: 24 | K47: 6 | L47: 1716 | M47: 848 | N47: 268 | O47: 30 | P47: 70 | Q47: 23 | R47: 1967 | S47: 38.8274773
A48: PALMAR | B48: 17 | C48: 6326 | D48: 3725 | E48: 58.88397091 | F48: 3616 | G48: 177 | H48: 6 | I48: 9 | J48: 18 | K48: 10 | L48: 1605 | M48: 1223 | N48: 513 | O48: 55 | P48: 80 | Q48: 29 | R48: 2601 | S48: 41.11602909
A49: SIERPE | B49: 12 | C49: 2544 | D49: 1431 | E49: 56.25 | F49: 1372 | G49: 39 | H49: 1 | I49: 7 | J49: 19 | K49: 9 | L49: 693 | M49: 404 | N49: 182 | O49: 18 | P49: 45 | Q49: 14 | R49: 1113 | S49: 43.75
A50: BAHÍA BALLENA | B50: 5 | C50: 1652 | D50: 1002 | E50: 60.65375303 | F50: 975 | G50: 27 | H50: 0 | I50: 0 | J50: 20 | K50: 5 | L50: 483 | M50: 224 | N50: 204 | O50: 12 | P50: 18 | Q50: 9 | R50: 650 | S50: 39.34624697
A51: PIEDRAS BLANCAS | B51: 7 | C51: 2664 | D51: 1539 | E51: 57.77027027 | F51: 1467 | G51: 44 | H51: 3 | I51: 4 | J51: 29 | K51: 7 | L51: 672 | M51: 510 | N51: 178 | O51: 20 | P51: 65 | Q51: 7 | R51: 1125 | S51: 42.22972973
A52: CANTÓN 6 AGUIRRE | B52: 44 | C52: 16283 | D52: 9529 | E52: 58.52115703 | F52: 9298 | G52: 467 | H52: 9 | I52: 21 | J52: 124 | K52: 28 | L52: 4809 | M52: 2410 | N52: 1290 | O52: 140 | P52: 188 | Q52: 43 | R52: 6754 | S52: 41.47884297
A53: QUEPOS | B53: 28 | C53: 12275 | D53: 6973 | E53: 56.80651731 | F53: 6809 | G53: 351 | H53: 6 | I53: 11 | J53: 89 | K53: 20 | L53: 3424 | M53: 1847 | N53: 947 | O53: 114 | P53: 139 | Q53: 25 | R53: 5302 | S53: 43.19348269
A54: SAVEGRE | B54: 10 | C54: 1906 | D54: 1261 | E54: 66.15949633 | F54: 1222 | G54: 60 | H54: 2 | I54: 5 | J54: 11 | K54: 5 | L54: 727 | M54: 252 | N54: 149 | O54: 11 | P54: 34 | Q54: 5 | R54: 645 | S54: 33.84050367
A55: NARANJITO | B55: 6 | C55: 2102 | D55: 1295 | E55: 61.60799239 | F55: 1267 | G55: 56 | H55: 1 | I55: 5 | J55: 24 | K55: 3 | L55: 658 | M55: 311 | N55: 194 | O55: 15 | P55: 15 | Q55: 13 | R55: 807 | S55: 38.39200761
A56: CANTÓN 7 GOLFITO | B56: 65 | C56: 24375 | D56: 13231 | E56: 54.28102564 | F56: 12800 | G56: 401 | H56: 10 | I56: 27 | J56: 69 | K56: 43 | L56: 6213 | M56: 3664 | N56: 2242 | O56: 131 | P56: 334 | Q56: 97 | R56: 11144 | S56: 45.71897436
A57: GOLFITO | B57: 19 | C57: 7857 | D57: 3838 | E57: 48.84816088 | F57: 3726 | G57: 126 | H57: 4 | I57: 5 | J57: 14 | K57: 4 | L57: 1917 | M57: 1078 | N57: 531 | O57: 47 | P57: 87 | Q57: 25 | R57: 4019 | S57: 51.15183912
A58: PUERTO JIMÉNEZ | B58: 11 | C58: 4662 | D58: 2732 | E58: 58.6014586 | F58: 2622 | G58: 106 | H58: 1 | I58: 3 | J58: 10 | K58: 7 | L58: 1212 | M58: 711 | N58: 549 | O58: 23 | P58: 83 | Q58: 27 | R58: 1930 | S58: 41.3985414
A59: GUAYCARÁ | B59: 21 | C59: 8306 | D59: 4741 | E59: 57.07921984 | F59: 4614 | G59: 128 | H59: 1 | I59: 7 | J59: 27 | K59: 18 | L59: 2444 | M59: 1294 | N59: 647 | O59: 48 | P59: 104 | Q59: 23 | R59: 3565 | S59: 42.92078016
A60: PAVÓN | B60: 14 | C60: 3550 | D60: 1920 | E60: 54.08450704 | F60: 1838 | G60: 41 | H60: 4 | I60: 12 | J60: 18 | K60: 14 | L60: 640 | M60: 581 | N60: 515 | O60: 13 | P60: 60 | Q60: 22 | R60: 1630 | S60: 45.91549296
A61: CANTÓN 8 COTO BRUS | B61: 72 | C61: 25753 | D61: 14592 | E61: 56.66135984 | F61: 14096 | G61: 374 | H61: 11 | I61: 32 | J61: 54 | K61: 42 | L61: 6958 | M61: 3394 | N61: 3068 | O61: 163 | P61: 395 | Q61: 101 | R61: 11161 | S61: 43.33864016
A62: SAN VITO | B62: 27 | C62: 10528 | D62: 6130 | E62: 58.22568389 | F62: 5986 | G62: 189 | H62: 3 | I62: 17 | J62: 16 | K62: 13 | L62: 3040 | M62: 1463 | N62: 1146 | O62: 99 | P62: 117 | Q62: 27 | R62: 4398 | S62: 41.77431611
A63: SABALITO | B63: 17 | C63: 6694 | D63: 3520 | E63: 52.58440394 | F63: 3410 | G63: 80 | H63: 2 | I63: 4 | J63: 15 | K63: 13 | L63: 1759 | M63: 1007 | N63: 505 | O63: 25 | P63: 84 | Q63: 26 | R63: 3174 | S63: 47.41559606
A64: AGUA BUENA | B64: 12 | C64: 4394 | D64: 2506 | E64: 57.0323168 | F64: 2381 | G64: 48 | H64: 5 | I64: 5 | J64: 14 | K64: 5 | L64: 1033 | M64: 461 | N64: 791 | O64: 19 | P64: 100 | Q64: 25 | R64: 1888 | S64: 42.9676832
A65: LIMONCITO | B65: 9 | C65: 2487 | D65: 1458 | E65: 58.62484922 | F65: 1375 | G65: 52 | H65: 1 | I65: 2 | J65: 2 | K65: 11 | L65: 608 | M65: 227 | N65: 458 | O65: 14 | P65: 66 | Q65: 17 | R65: 1029 | S65: 41.37515078
A66: PITTIER | B66: 7 | C66: 1650 | D66: 978 | E66: 59.27272727 | F66: 944 | G66: 5 | H66: 0 | I66: 4 | J66: 7 | K66: 0 | L66: 518 | M66: 236 | N66: 168 | O66: 6 | P66: 28 | Q66: 6 | R66: 672 | S66: 40.72727273
A67: CANTÓN 9 PARRITA | B67: 32 | C67: 9503 | D67: 6134 | E67: 64.54803746 | F67: 5942 | G67: 235 | H67: 6 | I67: 12 | J67: 112 | K67: 9 | L67: 3214 | M67: 1849 | N67: 463 | O67: 42 | P67: 153 | Q67: 39 | R67: 3369 | S67: 35.45196254
A68: PARRITA | B68: 32 | C68: 9503 | D68: 6134 | E68: 64.54803746 | F68: 5942 | G68: 235 | H68: 6 | I68: 12 | J68: 112 | K68: 9 | L68: 3214 | M68: 1849 | N68: 463 | O68: 42 | P68: 153 | Q68: 39 | R68: 3369 | S68: 35.45196254
A69: CANTÓN 10 CORREDORES | B69: 66 | C69: 27134 | D69: 14714 | E69: 54.22716887 | F69: 14143 | G69: 463 | H69: 8 | I69: 40 | J69: 183 | K69: 65 | L69: 6257 | M69: 3706 | N69: 3260 | O69: 161 | P69: 479 | Q69: 92 | R69: 12420 | S69: 45.77283113
A70: CORREDOR | B70: 31 | C70: 12373 | D70: 7206 | E70: 58.23971551 | F70: 6955 | G70: 235 | H70: 3 | I70: 22 | J70: 63 | K70: 27 | L70: 3151 | M70: 1792 | N70: 1566 | O70: 96 | P70: 222 | Q70: 29 | R70: 5167 | S70: 41.76028449
A71: LA CUESTA | B71: 6 | C71: 2579 | D71: 1344 | E71: 52.11322218 | F71: 1304 | G71: 42 | H71: 0 | I71: 5 | J71: 17 | K71: 8 | L71: 598 | M71: 289 | N71: 335 | O71: 10 | P71: 32 | Q71: 8 | R71: 1235 | S71: 47.88677782
A72: CANOAS | B72: 15 | C72: 6563 | D72: 3031 | E72: =+D72/C72*100 -> 46.18314795 | F72: 2904 | G72: 106 | H72: 4 | I72: 5 | J72: 53 | K72: 20 | L72: 1213 | M72: 816 | N72: 663 | O72: 24 | P72: 102 | Q72: 25 | R72: 3532 | S72: =+R72/C72*100 -> 53.81685205
A73: LAUREL | B73: 14 | C73: 5619 | D73: 3133 | E73: =+D73/C73*100 -> 55.75725218 | F73: 2980 | G73: 80 | H73: 1 | I73: 8 | J73: 50 | K73: 10 | L73: 1295 | M73: 809 | N73: 696 | O73: 31 | P73: 123 | Q73: 30 | R73: 2486 | S73: =+R73/C73*100 -> 44.24274782
A74: CANTÓN 11 GARABITO | B74: 20 | C74: 8457 | D74: 5095 | E74: =+D74/C74*100 -> 60.2459501 | F74: 4976 | G74: 302 | H74: 2 | I74: 8 | J74: 14 | K74: 12 | L74: 2827 | M74: 1248 | N74: 533 | O74: 30 | P74: 97 | Q74: 22 | R74: 3362 | S74: =+R74/C74*100 -> 39.7540499
A75: JACÓ | B75: 13 | C75: 5308 | D75: 3093 | E75: =+D75/C75*100 -> 58.27053504 | F75: 3034 | G75: 225 | H75: 2 | I75: 6 | J75: 9 | K75: 9 | L75: 1758 | M75: 659 | N75: 350 | O75: 16 | P75: 50 | Q75: 9 | R75: 2215 | S75: =+R75/C75*100 -> 41.72946496
A76: TÁRCOLES | B76: 7 | C76: 3149 | D76: 2002 | E76: =+D76/C76*100 -> 63.57573833 | F76: 1942 | G76: 77 | H76: 0 | I76: 2 | J76: 5 | K76: 3 | L76: 1069 | M76: 589 | N76: 183 | O76: 14 | P76: 47 | Q76: 13 | R76: 1147 | S76: =+R76/C76*100 -> 36.42426167

Sheet C1.9
A2: CUADRO 1.9 LIMÓN: JUNTAS, ELECTORADO, PARTICIPACIÓN, VOTOS POR PARTIDO, NULOS, BLANCOS Y ABSTENCIONISMO PARA PRESIDENCIA Y VICEPRESIDENCIAS DE LA REPÚBLICA, SEGÚN CANTÓN Y DISTRITO ADMINISTRATIVO ELECCIONES 7 DE FEBRERO 2010
A4: CANTÓN Y DISTRITO ADMINISTRATIVO | B4: JUNTAS | C4: ELECTORADO | D4: VOTOS RECIBIDOS | R4: ABSTENCIONISMO
D5: TOTAL GENERAL | E5: % PARTICIPACIÓN | F5: VOTOS VÁLIDOS | P5: NULOS | Q5: BLANCOS | R5: ABSOLUTO | S5: %
F6: TOTAL | G6: UNIDAD SOCIAL CRISTIANA | H6: INTEGRACIÓN NACIONAL | I6: ALIANZA PATRIÓTICA | J6: RENOVACIÓN COSTARRICENSE | K6: FRENTE AMPLIO | L6: LIBERACIÓN NACIONAL | M6: MOVIMIENTO LIBERTARIO | N6: ACCIÓN CIUDADANA | O6: ACCESIBILIDAD SIN EXCLUSIÓN
A8: PROVINCIA LIMÓN | B8: 531 | C8: 224128 | D8: 137721 | E8: =+D8/C8*100 -> 61.44747644 | F8: 132794 | G8: 6640 | H8: 168 | I8: 345 | J8: 2523 | K8: 682 | L8: 55214 | M8: 41733 | N8: 23221 | O8: 2268 | P8: 4045 | Q8: 882 | R8: 86407 | S8: =+R8/C8*100 -> 38.55252356
A9: CANTÓN 1 LIMÓN | B9: 142 | C9: 61180 | D9: 35348 | E9: 57.77705132 | F9: 34179 | G9: 1838 | H9: 58 | I9: 80 | J9: 520 | K9: 125 | L9: 14045 | M9: 9908 | N9: 6889 | O9: 716 | P9: 932 | Q9: 237 | R9: 25832 | S9: 42.22294868
A10: LIMÓN | B10: 93 | C10: 43715 | D10: 25672 | E10: 58.72583781 | F10: 24936 | G10: 1177 | H10: 41 | I10: 52 | J10: 367 | K10: 102 | L10: 9798 | M10: 7060 | N10: 5737 | O10: 602 | P10: 601 | Q10: 135 | R10: 18043 | S10: 41.27416219
A11: VALLE LA ESTRELLA | B11: 24 | C11: 8733 | D11: 4669 | E11: 53.46387267 | F11: 4424 | G11: 311 | H11: 9 | I11: 16 | J11: 90 | K11: 12 | L11: 2160 | M11: 1198 | N11: 581 | O11: 47 | P11: 174 | Q11: 71 | R11: 4064 | S11: 46.53612733
A12: RÍO BLANCO | B12: 14 | C12: 4537 | D12: 2551 | E12: 56.22658144 | F12: 2468 | G12: 223 | H12: 1 | I12: 6 | J12: 42 | K12: 7 | L12: 1048 | M12: 816 | N12: 286 | O12: 39 | P12: 70 | Q12: 13 | R12: 1986 | S12: 43.77341856
A13: MATAMA | B13: 11 | C13: 4195 | D13: 2456 | E13: 58.54588796 | F13: 2351 | G13: 127 | H13: 7 | I13: 6 | J13: 21 | K13: 4 | L13: 1039 | M13: 834 | N13: 285 | O13: 28 | P13: 87 | Q13: 18 | R13: 1739 | S13: 41.45411204
A14: CANTÓN 2 POCOCÍ | B14: 170 | C14: 73072 | D14: 47140 | E14: 64.51171447 | F14: 45630 | G14: 1472 | H14: 50 | I14: 92 | J14: 820 | K14: 239 | L14: 17254 | M14: 16400 | N14: 8475 | O14: 828 | P14: 1291 | Q14: 219 | R14: 25932 | S14: 35.48828553
A15: GUÁPILES | B15: 48 | C15: 22801 | D15: 15421 | E15: 67.63299855 | F15: 15114 | G15: 473 | H15: 9 | I15: 16 | J15: 130 | K15: 42 | L15: 6271 | M15: 4432 | N15: 3428 | O15: 313 | P15: 264 | Q15: 43 | R15: 7380 | S15: 32.36700145
A16: JIMÉNEZ | B16: 14 | C16: 5391 | D16: 3826 | E16: 70.97013541 | F16: 3749 | G16: 120 | H16: 3 | I16: 5 | J16: 41 | K16: 16 | L16: 1458 | M16: 1304 | N16: 732 | O16: 70 | P16: 64 | Q16: 13 | R16: 1565 | S16: 29.02986459
A17: RITA | B17: 37 | C17: 15023 | D17: 4902 | E17: 32.62996738 | F17: 9246 | G17: 285 | H17: 14 | I17: 26 | J17: 212 | K17: 57 | L17: 3255 | M17: 3729 | N17: 1504 | O17: 164 | P17: 331 | Q17: 57 | R17: 5389 | S17: 35.87166345
A18: ROXANA | B18: 23 | C18: 8566 | D18: 4996 | E18: 58.32360495 | F18: 4814 | G18: 174 | H18: 10 | I18: 17 | J18: 129 | K18: 33 | L18: 1758 | M18: 1974 | N18: 640 | O18: 79 | P18: 153 | Q18: 29 | R18: 3570 | S18: 41.67639505
A19: CARIARI | B19: 44 | C19: 19976 | D19: 12678 | E19: 63.46615939 | F19: 12176 | G19: 397 | H19: 13 | I19: 26 | J19: 302 | K19: 91 | L19: 4328 | M19: 4748 | N19: 2074 | O19: 197 | P19: 427 | Q19: 75 | R19: 7298 | S19: 36.53384061
A20: COLORADO | B20: 4 | C20: 1315 | D20: 585 | E20: 44.48669202 | F20: 531 | G20: 23 | H20: 1 | I20: 2 | J20: 6 | K20: 0 | L20: 184 | M20: 213 | N20: 97 | O20: 5 | P20: 52 | Q20: 2 | R20: 730 | S20: 55.51330798
A21: CANTÓN 3 SIQUIRRES | B21: 84 | C21: 33841 | D21: 20308 | E21: 60.01004698 | F21: 19570 | G21: 1062 | H21: 16 | I21: 40 | J21: 379 | K21: 172 | L21: 9717 | M21: 5351 | N21: 2511 | O21: 322 | P21: 631 | Q21: 107 | R21: 13533 | S21: 39.98995302
A22: SIQUIRRES | B22: 47 | C22: 20328 | D22: 12087 | E22: 59.45985832 | F22: 11641 | G22: 634 | H22: 5 | I22: 17 | J22: 222 | K22: 128 | L22: 5872 | M22: 2997 | N22: 1560 | O22: 206 | P22: 393 | Q22: 53 | R22: 8241 | S22: 40.54014168
A23: PACUARITO | B23: 12 | C23: 4608 | D23: 2399 | E23: 52.06163194 | F23: 2294 | G23: 131 | H23: 4 | I23: 6 | J23: 57 | K23: 14 | L23: 1125 | M23: 731 | N23: 189 | O23: 37 | P23: 83 | Q23: 22 | R23: 2209 | S23: 47.93836806
A24: FLORIDA | B24: 5 | C24: 1147 | D24: 791 | E24: 68.9625109 | F24: 770 | G24: 30 | H24: 1 | I24: 3 | J24: 11 | K24: 2 | L24: 359 | M24: 208 | N24: 147 | O24: 9 | P24: 17 | Q24: 4 | R24: 356 | S24: 31.0374891
A25: GERMANIA | B25: 5 | C25: 1803 | D25: 1139 | E25: 63.17249029 | F25: 1094 | G25: 48 | H25: 0 | I25: 6 | J25: 30 | K25: 8 | L25: 512 | M25: 336 | N25: 142 | O25: 12 | P25: 38 | Q25: 7 | R25: 664 | S25: 36.82750971
A26: EL CAIRO | B26: 9 | C26: 3492 | D26: 2160 | E26: 61.8556701 | F26: 2093 | G26: 123 | H26: 3 | I26: 4 | J26: 36 | K26: 12 | L26: 967 | M26: 647 | N26: 263 | O26: 38 | P26: 60 | Q26: 7 | R26: 1332 | S26: 38.1443299
A27: LA ALEGRÍA | B27: 6 | C27: 2463 | D27: 1732 | E27: 70.32074706 | F27: 1678 | G27: 96 | H27: 3 | I27: 4 | J27: 23 | K27: 8 | L27: 882 | M27: 432 | N27: 210 | O27: 20 | P27: 40 | Q27: 14 | R27: 731 | S27: 29.67925294
A28: CANTÓN 4 TALAMANCA | B28: 38 | C28: 15029 | D28: 8900 | E28: 59.21884357 | F28: 8492 | G28: 988 | H28: 14 | I28: 23 | J28: 125 | K28: 40 | L28: 3473 | M28: 1775 | N28: 1998 | O28: 56 | P28: 292 | Q28: 116 | R28: 6129 | S28: 40.78115643
A29: BRATSI | B29: 10 | C29: 4068 | D29: 2542 | E29: 62.48770895 | F29: 2436 | G29: 271 | H29: 2 | I29: 3 | J29: 35 | K29: 7 | L29: 1151 | M29: 406 | N29: 543 | O29: 18 | P29: 79 | Q29: 27 | R29: 1526 | S29: 37.51229105
A30: SIXAOLA | B30: 9 | C30: 3492 | D30: 2018 | E30: 57.78923253 | F30: 1909 | G30: 285 | H30: 5 | I30: 11 | J30: 28 | K30: 13 | L30: 700 | M30: 482 | N30: 373 | O30: 12 | P30: 90 | Q30: 19 | R30: 1474 | S30: 42.21076747
A31: CAHUITA | B31: 10 | C31: 3989 | D31: 2309 | E31: 57.8841815 | F31: 2211 | G31: 196 | H31: 2 | I31: 3 | J31: 51 | K31: 7 | L31: 813 | M31: 751 | N31: 373 | O31: 15 | P31: 71 | Q31: 27 | R31: 1680 | S31: 42.1158185
A32: TELIRE | B32: 9 | C32: 3480 | D32: 2031 | E32: 58.36206897 | F32: 1936 | G32: 236 | H32: 5 | I32: 6 | J32: 11 | K32: 13 | L32: 809 | M32: 136 | N32: 709 | O32: 11 | P32: 52 | Q32: 43 | R32: 1449 | S32: 41.63793103
A33: CANTÓN 5 MATINA | B33: 44 | C33: 17995 | D33: 11559 | E33: 64.23450959 | F33: 11028 | G33: 806 | H33: 14 | I33: 69 | J33: 457 | K33: 43 | L33: 4851 | M33: 3417 | N33: 1266 | O33: 105 | P33: 414 | Q33: 117 | R33: 6436 | S33: 35.76549041
A34: MATINA | B34: 12 | C34: 4538 | D34: 2807 | E34: 61.85544293 | F34: 2694 | G34: 182 | H34: 5 | I34: 12 | J34: 84 | K34: 11 | L34: 1132 | M34: 880 | N34: 363 | O34: 25 | P34: 84 | Q34: 29 | R34: 1731 | S34: 38.14455707
A35: BATÁN | B35: 21 | C35: 8784 | D35: 5654 | E35: 64.36703097 | F35: 5376 | G35: 435 | H35: 5 | I35: 47 | J35: 267 | K35: 26 | L35: 2372 | M35: 1501 | N35: 667 | O35: 56 | P35: 223 | Q35: 55 | R35: 3130 | S35: 35.63296903
A36: CARRANDI | B36: 11 | C36: 4673 | D36: 3098 | E36: 66.29574149 | F36: 2958 | G36: 189 | H36: 4 | I36: 10 | J36: 106 | K36: 6 | L36: 1347 | M36: 1036 | N36: 236 | O36: 24 | P36: 107 | Q36: 33 | R36: 1575 | S36: 33.70425851
A37: CANTÓN 6 GUÁCIMO | B37: 53 | C37: 23011 | D37: 14466 | E37: 62.86558602 | F37: 13895 | G37: 474 | H37: 16 | I37: 41 | J37: 222 | K37: 63 | L37: 5874 | M37: 4882 | N37: 2082 | O37: 241 | P37: 485 | Q37: 86 | R37: 8545 | S37: 37.13441398
A38: GUÁCIMO | B38: 22 | C38: 10067 | D38: 6257 | E38: 62.15357107 | F38: 6031 | G38: 188 | H38: 6 | I38: 14 | J38: 75 | K38: 21 | L38: 2407 | M38: 2163 | N38: 1042 | O38: 115 | P38: 199 | Q38: 27 | R38: 3810 | S38: 37.84642893
A39: MERCEDES | B39: 2 | C39: 754 | D39: 555 | E39: 73.60742706 | F39: 545 | G39: 12 | H39: 2 | I39: 1 | J39: 3 | K39: 1 | L39: 298 | M39: 106 | N39: 112 | O39: 10 | P39: 7 | Q39: 3 | R39: 199 | S39: 26.39257294
A40: POCORA | B40: 10 | C40: 3766 | D40: 2426 | E40: 64.41848115 | F40: 2341 | G40: 125 | H40: 3 | I40: 10 | J40: 18 | K40: 9 | L40: 1162 | M40: 698 | N40: 284 | O40: 32 | P40: 70 | Q40: 15 | R40: 1340 | S40: 35.58151885
A41: RÍO JIMÉNEZ | B41: 11 | C41: 5070 | D41: 3186 | E41: 62.84023669 | F41: 3018 | G41: 104 | H41: 4 | I41: 8 | J41: 82 | K41: 13 | L41: 1210 | M41: 1176 | N41: 370 | O41: 51 | P41: 142 | Q41: 26 | R41: 1884 | S41: 37.15976331
A42: DUACARÍ | B42: 8 | C42: 3354 | D42: 2042 | E42: 60.88252832 | F42: 1960 | G42: 45 | H42: 1 | I42: 8 | J42: 44 | K42: 19 | L42: 797 | M42: 739 | N42: 274 | O42: 33 | P42: 67 | Q42: 15 | R42: 1312 | S42: 39.11747168

Sheet M1.1
A1: MAPA 1.1
A2: COSTA RICA: PORCENTAJE1/ DE VOTOS DEL PARTIDO UNIDAD SOCIAL CRISTIANA PARA PRESIDENCIA
A3: Y VICEPRESIDENCIAS DE LA REPÚBLICA POR CANTÓN, ELECCIONES 7 DE FEBRERO 2010

Sheet M1.2
A1: MAPA 1.2
A2: COSTA RICA: PORCENTAJE1/ DE VOTOS DEL PARTIDO INTEGRACIÓN NACIONAL PARA PRESIDENCIA
A3: Y VICEPRESIDENCIAS DE LA REPÚBLICA POR CANTÓN, ELECCIONES 7 DE FEBRERO 2010

Sheet M1.3
A1: MAPA 1.3
A2: COSTA RICA: PORCENTAJE1/ DE VOTOS DEL PARTIDO ALIANZA PATRIÓTICA PARA PRESIDENCIA
A3: Y VICEPRESIDENCIAS DE LA REPÚBLICA POR CANTÓN, ELECCIONES 7 DE FEBRERO 2010

Sheet M1.4
A1: MAPA 1.4
A2: COSTA RICA: PORCENTAJE1/ DE VOTOS DEL PARTIDO RENOVACIÓN COSTARRICENSE PARA PRESIDENCIA
A3: Y VICEPRESIDENCIAS DE LA REPÚBLICA POR CANTÓN, ELECCIONES 7 DE FEBRERO 2010

Sheet M1.5
A1: MAPA 1.5
A2: COSTA RICA: PORCENTAJE1/ DE VOTOS DEL PARTIDO FRENTE AMPLIO PARA PRESIDENCIA Y
A3: VICEPRESIDENCIAS DE LA REPÚBLICA POR CANTÓN, ELECCIONES 7 DE FEBRERO 2010

Sheet M1.6
A1: MAPA 1.6
A2: COSTA RICA: PORCENTAJE1/ DE VOTOS DEL PARTIDO LIBERACIÓN NACIONAL PARA PRESIDENCIA
A3: Y VICEPRESIDENCIAS DE LA REPÚBLICA POR CANTÓN, ELECCIONES 7 DE FEBRERO 2010

Sheet M1.7
A1: MAPA 1.7
A2: COSTA RICA: PORCENTAJE1/ DE VOTOS DEL PARTIDO MOVIMIENTO LIBERTARIO PARA PRESIDENCIA
A3: Y VICEPRESIDENCIAS DE LA REPÚBLICA POR CANTÓN, ELECCIONES 7 DE FEBRERO 2010

Sheet M1.8
A1: MAPA 1.8
A2: COSTA RICA: PORCENTAJE1/ DE VOTOS DEL PARTIDO ACCIÓN CIUDADANA PARA PRESIDENCIA
A3: Y VICEPRESIDENCIAS DE LA REPÚBLICA POR CANTÓN, ELECCIONES 7 DE FEBRERO 2010

Sheet M1.9
A1: MAPA 1.9
A2: COSTA RICA: PORCENTAJE1/ DE VOTOS DEL PARTIDO ACCESIBILIDAD SIN EXCLUSIÓN PARA PRESIDENCIA
A3: Y VICEPRESIDENCIAS DE LA REPÚBLICA POR CANTÓN, ELECCIONES 7 DE FEBRERO 2010

Sheet C1.10
A2: CUADRO 1.10 SAN JOSÉ: JUNTAS, ELECTORADO, VOTOS POR PARTIDO, NULOS Y BLANCOS PARA PRESIDENCIA Y VICEPRESIDENCIAS DE LA REPÚBLICA
A3: SEGÚN CANTÓN, DISTRITO ADMINISTRATIVO Y DISTRITO ELECTORAL, ELECCIONES 7 DE FEBRERO 2010
A5: CANTÓN, DISTRITO ADMINISTRATIVO Y DISTRITO ELECTORAL | B5: JUNTAS | C5: ELECTORADO | D5: VOTOS RECIBIDOS | Q5: ABSTENCIONISMO
D6: TOTAL GENERAL | E6: VOTOS VÁLIDOS | O6: VOTOS NULOS | P6: VOTOS BLANCOS
E7: TOTAL | F7: UNIDAD SOCIAL CRISTIANA | G7: INTEGRACIÓN NACIONAL | H7: ALIANZA PATRIÓTICA | I7: RENOVACIÓN COSTARRICENSE | J7: FRENTE AMPLIO | K7: LIBERACIÓN NACIONAL | L7: MOVIMIENTO LIBERTARIO | M7: ACCIÓN CIUDADANA | N7: ACCESIBILIDAD SIN EXCLUSIÓN
A9: SAN JOSÉ | B9: 2232 | C9: 1008177 | D9: 704284 | E9: 692765 | F9: 24609 | G9: 970 | H9: 870 | I9: 3852 | J9: 2536 | K9: 322976 | L9: 122116 | M9: 200382 | N9: 14454 | O9: 9674 | P9: 1845 | Q9: 303893
A10: CANTÓN 1 SAN JOSÉ | B10: 469 | C10: 226027 | D10: 153333 | E10: 151017 | F10: 6436 | G10: 179 | H10: 164 | I10: 941 | J10: 618 | K10: 70913 | L10: 27690 | M10: 40882 | N10: 3194 | O10: 2023 | P10: 293 | Q10: 72694
A11: DISTRITO 1 CARMEN | B11: 11 | C11: 4665 | D11: 3097 | E11: 3058 | F11: 106 | G11: 4 | H11: 4 | I11: 7 | J11: 18 | K11: 1577 | L11: 411 | M11: 895 | N11: 36 | O11: 31 | P11: 8 | Q11: 1568
A12: CARMEN | B12: 3 | C12: 1107 | D12: 666 | E12: 659 | F12: 23 | G12: 0 | H12: 2 | I12: 2 | J12: 5 | K12: 355 | L12: 82 | M12: 182 | N12: 8 | O12: 7 | P12: 0 | Q12: 441
A13: ARANJUEZ | B13: 8 | C13: 3558 | D13: 2431 | E13: 2399 | F13: 83 | G13: 4 | H13: 2 | I13: 5 | J13: 13 | K13: 1222 | L13: 329 | M13: 713 | N13: 28 | O13: 24 | P13: 8 | Q13: 1127
A14: DISTRITO 2 MERCED | B14: 21 | C14: 9723 | D14: 6321 | E14: 6228 | F14: 273 | G14: 5 | H14: 6 | I14: 35 | J14: 24 | K14: 2908 | L14: 1207 | M14: 1651 | N14: 119 | O14: 77 | P14: 16 | Q14: 3402
A15: BARRIO MÉXICO | B15: 17 | C15: 8164 | D15: 5255 | E15: 5179 | F15: 229 | G15: 4 | H15: 4 | I15: 30 | J15: 20 | K15: 2415 | L15: 1027 | M15: 1348 | N15: 102 | O15: 62 | P15: 14 | Q15: 2909
A16: PITAHAYA | B16: 4 | C16: 1559 | D16: 1066 | E16: 1049 | F16: 44 | G16: 1 | H16: 2 | I16: 5 | J16: 4 | K16: 493 | L16: 180 | M16: 303 | N16: 17 | O16: 15 | P16: 2 | Q16: 493
A17: DISTRITO 3 HOSPITAL | B17: 40 | C17: 18596 | D17: 11807 | E17: 11598 | F17: 573 | G17: 6 | H17: 18 | I17: 70 | J17: 67 | K17: 5417 | L17: 2437 | M17: 2710 | N17: 300 | O17: 183 | P17: 26 | Q17: 6789
A18: HOSPITAL | B18: 3 | C18: 1353 | D18: 771 | E18: 755 | F18: 43 | G18: 1 | H18: 0 | I18: 1 | J18: 1 | K18: 378 | L18: 155 | M18: 162 | N18: 14 | O18: 15 | P18: 1 | Q18: 582
A19: CRISTO REY | B19: 9 | C19: 4184 | D19: 2712 | E19: 2665 | F19: 143 | G19: 1 | H19: 4 | I19: 17 | J19: 16 | K19: 1254 | L19: 591 | M19: 580 | N19: 59 | O19: 43 | P19: 4 | Q19: 1472
A20: OMAR DENGO | B20: 20 | C20: 9994 | D20: 6451 | E20: 6325 | F20: 312 | G20: 3 | H20: 11 | I20: 39 | J20: 45 | K20: 2828 | L20: 1413 | M20: 1482 | N20: 192 | O20: 109 | P20: 17 | Q20: 3543
A21: SAN BOSCO | B21: 6 | C21: 2623 | D21: 1812 | E21: 1794 | F21: 65 | G21: 1 | H21: 3 | I21: 13 | J21: 5 | K21: 925 | L21: 270 | M21: 480 | N21: 32 | O21: 15 | P21: 3 | Q21: 811
A22: C.P. CRISTO REY | B22: 2 | C22: 442 | D22: 61 | E22: 59 | F22: 10 | G22: 0 | H22: 0 | I22: 0 | J22: 0 | K22: 32 | L22: 8 | M22: 6 | N22: 3 | O22: 1 | P22: 1 | Q22: 381
A23: DISTRITO 4 CATEDRAL | B23: 32 | C23: 15318 | D23: 10338 | E23: 10203 | F23: 505 | G23: 19 | H23: 11 | I23: 48 | J23: 45 | K23: 4556 | L23: 1680 | M23: 3159 | N23: 180 | O23: 113 | P23: 22 | Q23: 4980
A24: CATEDRAL | B24: 3 | C24: 1514 | D24: 896 | E24: 891 | F24: 34 | G24: 0 | H24: 1 | I24: 4 | J24: 7 | K24: 400 | L24: 166 | M24: 261 | N24: 18 | O24: 5 | P24: 0 | Q24: 618
A25: GONZÁLEZ VÍQUEZ | B25: 14 | C25: 6730 | D25: 4497 | E25: 4424 | F25: 234 | G25: 12 | H25: 6 | I25: 20 | J25: 21 | K25: 1961 | L25: 661 | M25: 1423 | N25: 86 | O25: 62 | P25: 11 | Q25: 2233
A26: NACIONES UNIDAS | B26: 4 | C26: 1809 | D26: 1263 | E26: 1243 | F26: 65 | G26: 2 | H26: 2 | I26: 6 | J26: 8 | K26: 535 | L26: 239 | M26: 366 | N26: 20 | O26: 17 | P26: 3 | Q26: 546
A27: BARRIO LUJÁN | B27: 11 | C27: 5265 | D27: 3682 | E27: 3645 | F27: 172 | G27: 5 | H27: 2 | I27: 18 | J27: 9 | K27: 1660 | L27: 614 | M27: 1109 | N27: 56 | O27: 29 | P27: 8 | Q27: 1583
A28: DISTRITO 5 ZAPOTE | B28: 36 | C28: 17556 | D28: 12914 | E28: 12788 | F28: 376 | G28: 15 | H28: 8 | I28: 50 | J28: 41 | K28: 5814 | L28: 1739 | M28: 4538 | N28: 207 | O28: 102 | P28: 24 | Q28: 4642
A29: ZAPOTE | B29: 30 | C29: 14774 | D29: 10784 | E29: 10671 | F29: 326 | G29: 14 | H29: 6 | I29: 44 | J29: 34 | K29: 4840 | L29: 1482 | M29: 3749 | N29: 176 | O29: 91 | P29: 22 | Q29: 3990
A30: CÓRDOBA | B30: 6 | C30: 2782 | D30: 2130 | E30: 2117 | F30: 50 | G30: 1 | H30: 2 | I30: 6 | J30: 7 | K30: 974 | L30: 257 | M30: 789 | N30: 31 | O30: 11 | P30: 2 | Q30: 652
A31: DISTRITO 6 SAN FRANCISCO DE DOS RÍOS | B31: 38 | C31: 18426 | D31: 13551 | E31: 13429 | F31: 363 | G31: 19 | H31: 10 | I31: 57 | J31: 60 | K31: 6401 | L31: 1751 | M31: 4598 | N31: 170 | O31: 108 | P31: 14 | Q31: 4875
A32: SAN FRANCISCO DE DOS RÍOS | B32: 30 | C32: 14797 | D32: 10792 | E32: 10701 | F32: 313 | G32: 13 | H32: 9 | I32: 49 | J32: 41 | K32: 5146 | L32: 1374 | M32: 3634 | N32: 122 | O32: 82 | P32: 9 | Q32: 4005
A33: SANTA MARTA | B33: 8 | C33: 3629 | D33: 2759 | E33: 2728 | F33: 50 | G33: 6 | H33: 1 | I33: 8 | J33: 19 | K33: 1255 | L33: 377 | M33: 964 | N33: 48 | O33: 26 | P33: 5 | Q33: 870
A34: DISTRITO 7 URUCA | B34: 29 | C34: 13229 | D34: 8903 | E34: 8751 | F34: 323 | G34: 8 | H34: 15 | I34: 51 | J34: 23 | K34: 4232 | L34: 1948 | M34: 1999 | N34: 152 | O34: 131 | P34: 21 | Q34: 4326
A35: URUCA | B35: 9 | C35: 4214 | D35: 2833 | E35: 2805 | F35: 99 | G35: 3 | H35: 2 | I35: 9 | J35: 6 | K35: 1336 | L35: 510 | M35: 792 | N35: 48 | O35: 23 | P35: 5 | Q35: 1381
A36: LA CAJA | B36: 6 | C36: 2916 | D36: 2155 | E36: 2122 | F36: 42 | G36: 1 | H36: 5 | I36: 7 | J36: 3 | K36: 1159 | L36: 328 | M36: 559 | N36: 18 | O36: 29 | P36: 4 | Q36: 761
A37: CORAZÓN DE JESÚS | B37: 2 | C37: 845 | D37: 583 | E37: 566 | F37: 43 | G37: 2 | H37: 0 | I37: 2 | J37: 2 | K37: 281 | L37: 170 | M37: 53 | N37: 13 | O37: 16 | P37: 1 | Q37: 262
A38: ROSSITER CARBALLO (LAS BRISAS) | B38: 2 | C38: 917 | D38: 619 | E38: 604 | F38: 42 | G38: 1 | H38: 2 | I38: 16 | J38: 3 | K38: 267 | L38: 171 | M38: 85 | N38: 17 | O38: 13 | P38: 2 | Q38: 298
A39: LA CARPIO | B39: 6 | C39: 2551 | D39: 1407 | E39: 1363 | F39: 53 | G39: 1 | H39: 4 | I39: 9 | J39: 2 | K39: 614 | L39: 515 | M39: 147 | N39: 18 | O39: 37 | P39: 7 | Q39: 1144
A40: PEREGRINA (INVU) | B40: 4 | C40: 1786 | D40: 1306 | E40: 1291 | F40: 44 | G40: 0 | H40: 2 | I40: 8 | J40: 7 | K40: 575 | L40: 254 | M40: 363 | N40: 38 | O40: 13 | P40: 2 | Q40: 480
A41: DISTRITO 8 MATA REDONDA | B41: 15 | C41: 7347 | D41: 5159 | E41: 5117 | F41: 186 | G41: 6 | H41: 2 | I41: 20 | J41: 17 | K41: 2931 | L41: 718 | M41: 1166 | N41: 71 | O41: 38 | P41: 4 | Q41: 2188
A42: MATA REDONDA | B42: 10 | C42: 4841 | D42: 3327 | E42: 3302 | F42: 109 | G42: 4 | H42: 1 | I42: 14 | J42: 12 | K42: 2001 | L42: 450 | M42: 680 | N42: 31 | O42: 21 | P42: 4 | Q42: 1514
A43: PERPETUO SOCORRO | B43: 5 | C43: 2506 | D43: 1832 | E43: 1815 | F43: 77 | G43: 2 | H43: 1 | I43: 6 | J43: 5 | K43: 930 | L43: 268 | M43: 486 | N43: 40 | O43: 17 | P43: 0 | Q43: 674
A44: DISTRITO 9 PAVAS | B44: 97 | C44: 47928 | D44: 32036 | E44: 31448 | F44: 1466 | G44: 37 | H44: 33 | I44: 270 | J44: 96 | K44: 15431 | L44: 6996 | M44: 6494 | N44: 625 | O44: 527 | P44: 61 | Q44: 15892
A45: PAVAS | B45: 30 | C45: 14728 | D45: 10333 | E45: 10227 | F45: 324 | G45: 6 | H45: 3 | I45: 28 | J45: 40 | K45: 5545 | L45: 1664 | M45: 2479 | N45: 138 | O45: 94 | P45: 12 | Q45: 4395
A46: RINCÓN GRANDE | B46: 38 | C46: 18921 | D46: 12059 | E46: 11765 | F46: 644 | G46: 19 | H46: 13 | I46: 174 | J46: 27 | K46: 5354 | L46: 3301 | M46: 1935 | N46: 298 | O46: 265 | P46: 29 | Q46: 6862
A47: MARÍA REINA | B47: 11 | C47: 5420 | D47: 3920 | E47: 3876 | F47: 89 | G47: 4 | H47: 7 | I47: 26 | J47: 10 | K47: 1967 | L47: 558 | M47: 1161 | N47: 54 | O47: 38 | P47: 6 | Q47: 1500
A48: VILLA ESPERANZA | B48: 18 | C48: 8859 | D48: 5724 | E48: 5580 | F48: 409 | G48: 8 | H48: 10 | I48: 42 | J48: 19 | K48: 2565 | L48: 1473 | M48: 919 | N48: 135 | O48: 130 | P48: 14 | Q48: 3135
A49: DISTRITO 10 HATILLO | B49: 90 | C49: 43806 | D49: 28967 | E49: 28492 | F49: 1393 | G49: 23 | H49: 36 | I49: 221 | J49: 122 | K49: 12967 | L49: 5236 | M49: 7643 | N49: 851 | O49: 423 | P49: 52 | Q49: 14839
A50: HATILLO | B50: 52 | C50: 25647 | D50: 17242 | E50: 16983 | F50: 766 | G50: 14 | H50: 26 | I50: 126 | J50: 79 | K50: 7720 | L50: 2806 | M50: 4954 | N50: 492 | O50: 234 | P50: 25 | Q50: 8405
A51: SAGRADA FAMILIA | B51: 11 | C51: 5074 | D51: 2960 | E51: 2889 | F51: 210 | G51: 1 | H51: 5 | I51: 38 | J51: 4 | K51: 1402 | L51: 682 | M51: 470 | N51: 77 | O51: 59 | P51: 12 | Q51: 2114
A52: INVU # 8 | B52: 20 | C52: 9946 | D52: 6687 | E52: 6596 | F52: 311 | G52: 6 | H52: 4 | I52: 35 | J52: 31 | K52: 2881 | L52: 1341 | M52: 1772 | N52: 215 | O52: 83 | P52: 8 | Q52: 3259
A53: COLONIA 15 DE SETIEMBRE | B53: 7 | C53: 3139 | D53: 2078 | E53: 2024 | F53: 106 | G53: 2 | H53: 1 | I53: 22 | J53: 8 | K53: 964 | L53: 407 | M53: 447 | N53: 67 | O53: 47 | P53: 7 | Q53: 1061
A54: DISTRITO 11 SAN SEBASTIÁN | B54: 60 | C54: 29433 | D54: 20240 | E54: 19905 | F54: 872 | G54: 37 | H54: 21 | I54: 112 | J54: 105 | K54: 8679 | L54: 3567 | M54: 6029 | N54: 483 | O54: 290 | P54: 45 | Q54: 9193
A55: SAN SEBASTIÁN | B55: 24 | C55: 11869 | D55: 7987 | E55: 7850 | F55: 393 | G55: 10 | H55: 5 | I55: 42 | J55: 37 | K55: 3488 | L55: 1367 | M55: 2303 | N55: 205 | O55: 123 | P55: 14 | Q55: 3882
A56: PASO ANCHO SUR | B56: 19 | C56: 9511 | D56: 6728 | E56: 6618 | F56: 269 | G56: 16 | H56: 12 | I56: 32 | J56: 37 | K56: 2826 | L56: 1190 | M56: 2067 | N56: 169 | O56: 87 | P56: 23 | Q56: 2783
A57: PASO ANCHO NORTE | B57: 13 | C57: 6191 | D57: 4231 | E57: 4157 | F57: 165 | G57: 8 | H57: 3 | I57: 23 | J57: 25 | K57: 1811 | L57: 776 | M57: 1260 | N57: 86 | O57: 68 | P57: 6 | Q57: 1960
A58: COLONIA KENNEDY | B58: 4 | C58: 1862 | D58: 1294 | E58: 1280 | F58: 45 | G58: 3 | H58: 1 | I58: 15 | J58: 6 | K58: 554 | L58: 234 | M58: 399 | N58: 23 | O58: 12 | P58: 2 | Q58: 568
A59: CANTÓN 2 ESCAZÚ | B59: 82 | C59: 39855 | D59: 28967 | E59: 28571 | F59: 688 | G59: 21 | H59: 31 | I59: 115 | J59: 92 | K59: 14627 | L59: 5979 | M59: 6427 | N59: 591 | O59: 345 | P59: 51 | Q59: 10888
A60: DISTRITO 1 ESCAZÚ | B60: 23 | C60: 11404 | D60: 8436 | E60: 8326 | F60: 242 | G60: 7 | H60: 10 | I60: 42 | J60: 28 | K60: 4003 | L60: 1852 | M60: 1988 | N60: 154 | O60: 98 | P60: 12 | Q60: 2968
A61: ESCAZÚ | B61: 23 | C61: 11404 | D61: 8436 | E61: 8326 | F61: 242 | G61: 7 | H61: 10 | I61: 42 | J61: 28 | K61: 4003 | L61: 1852 | M61: 1988 | N61: 154 | O61: 98 | P61: 12 | Q61: 2968
A62: DISTRITO 2 SAN ANTONIO | B62: 26 | C62: 12763 | D62: 8898 | E62: 8710 | F62: 225 | G62: 4 | H62: 15 | I62: 49 | J62: 33 | K62: 3674 | L62: 2070 | M62: 2332 | N62: 308 | O62: 163 | P62: 25 | Q62: 3865
A63: SAN ANTONIO | B63: 20 | C63: 10022 | D63: 7049 | E63: 6894 | F63: 184 | G63: 3 | H63: 10 | I63: 39 | J63: 21 | K63: 2921 | L63: 1635 | M63: 1827 | N63: 254 | O63: 136 | P63: 19 | Q63: 2973
A64: BEBEDERO O SAN FRANCISCO | B64: 1 | C64: 397 | D64: 264 | E64: 257 | F64: 5 | G64: 0 | H64: 0 | I64: 1 | J64: 5 | K64: 111 | L64: 81 | M64: 49 | N64: 5 | O64: 6 | P64: 1 | Q64: 133
A65: CARMEN (CHIVERRAL) | B65: 5 | C65: 2344 | D65: 1585 | E65: 1559 | F65: 36 | G65: 1 | H65: 5 | I65: 9 | J65: 7 | K65: 642 | L65: 354 | M65: 456 | N65: 49 | O65: 21 | P65: 5 | Q65: 759
A66: DISTRITO 3 SAN RAFAEL | B66: 33 | C66: 15688 | D66: 11633 | E66: 11535 | F66: 221 | G66: 10 | H66: 6 | I66: 24 | J66: 31 | K66: 6950 | L66: 2057 | M66: 2107 | N66: 129 | O66: 84 | P66: 14 | Q66: 4055
A67: SAN RAFAEL | B67: 17 | C67: 8082 | D67: 5934 | E67: 5882 | F67: 105 | G67: 5 | H67: 2 | I67: 14 | J67: 15 | K67: 3844 | L67: 880 | M67: 979 | N67: 38 | O67: 43 | P67: 9 | Q67: 2148
A68: GUACHIPELÍN (SAN GABRIEL) | B68: 9 | C68: 4355 | D68: 3283 | E68: 3257 | F68: 77 | G68: 2 | H68: 2 | I68: 5 | J68: 4 | K68: 1940 | L68: 586 | M68: 596 | N68: 45 | O68: 26 | P68: 0 | Q68: 1072
A69: BELO HORIZONTE NORTE | B69: 7 | C69: 3251 | D69: 2416 | E69: 2396 | F69: 39 | G69: 3 | H69: 2 | I69: 5 | J69: 12 | K69: 1166 | L69: 591 | M69: 532 | N69: 46 | O69: 15 | P69: 5 | Q69: 835
A70: CANTÓN 3 DESAMPARADOS | B70: 308 | C70: 143636 | D70: 99995 | E70: 98265 | F70: 3711 | G70: 202 | H70: 123 | I70: 543 | J70: 337 | K70: 45760 | L70: 18539 | M70: 26706 | N70: 2344 | O70: 1532 | P70: 198 | Q70: 43641
A71: DISTRITO 1 DESAMPARADOS | B71: 61 | C71: 29804 | D71: 21553 | E71: 21256 | F71: 785 | G71: 40 | H71: 21 | I71: 119 | J71: 75 | K71: 9528 | L71: 3532 | M71: 6690 | N71: 466 | O71: 270 | P71: 27 | Q71: 8251
A72: DESAMPARADOS | B72: 20 | C72: 10050 | D72: 7388 | E72: 7295 | F72: 249 | G72: 16 | H72: 8 | I72: 21 | J72: 23 | K72: 3403 | L72: 1057 | M72: 2392 | N72: 126 | O72: 83 | P72: 10 | Q72: 2662
A73: CALLE FALLAS | B73: 27 | C73: 13383 | D73: 9590 | E73: 9456 | F73: 354 | G73: 16 | H73: 8 | I73: 63 | J73: 39 | K73: 4215 | L73: 1560 | M73: 2971 | N73: 230 | O73: 127 | P73: 7 | Q73: 3793
A74: SAN JERÓNIMO | B74: 13 | C74: 6266 | D74: 4509 | E74: 4447 | F74: 173 | G74: 8 | H74: 5 | I74: 34 | J74: 13 | K74: 1890 | L74: 905 | M74: 1313 | N74: 106 | O74: 57 | P74: 5 | Q74: 1757
A75: H.A. OFELIA CARVAJAL DE NARANJO | B75: 1 | C75: 105 | D75: 66 | E75: 58 | F75: 9 | G75: 0 | H75: 0 | I75: 1 | J75: 0 | K75: 20 | L75: 10 | M75: 14 | N75: 4 | O75: 3 | P75: 5 | Q75: 39
A76: DISTRITO 2 SAN MIGUEL | B76: 52 | C76: 23888 | D76: 15997 | E76: 15647 | F76: 652 | G76: 70 | H76: 21 | I76: 103 | J76: 44 | K76: 7472 | L76: 3326 | M76: 3575 | N76: 384 | O76: 313 | P76: 37 | Q76: 7891
A77: SAN MIGUEL | B77: 15 | C77: 7413 | D77: 4993 | E77: 4892 | F77: 188 | G77: 27 | H77: 9 | I77: 24 | J77: 16 | K77: 2332 | L77: 979 | M77: 1211 | N77: 106 | O77: 91 | P77: 10 | Q77: 2420
A78: JERICÓ | B78: 2 | C78: 771 | D78: 523 | E78: 517 | F78: 16 | G78: 2 | H78: 1 | I78: 2 | J78: 2 | K78: 278 | L78: 71 | M78: 141 | N78: 4 | O78: 4 | P78: 2 | Q78: 248
A79: HIGUITO | B79: 16 | C79: 7607 | D79: 5036 | E79: 4915 | F79: 166 | G79: 23 | H79: 4 | I79: 36 | J79: 10 | K79: 2327 | L79: 1098 | M79: 1131 | N79: 120 | O79: 110 | P79: 11 | Q79: 2571
A80: PACAYA | B80: 1 | C80: 75 | D80: 62 | E80: 60 | F80: 0 | G80: 0 | H80: 0 | I80: 0 | J80: 0 | K80: 58 | L80: 0 | M80: 2 | N80: 0 | O80: 2 | P80: 0 | Q80: 13
A81: EL LLANO | B81: 6 | C81: 2566 | D81: 1767 | E81: 1723 | F81: 90 | G81: 6 | H81: 2 | I81: 9 | J81: 2 | K81: 867 | L81: 332 | M81: 380 | N81: 35 | O81: 42 | P81: 2 | Q81: 799
A82: MANZANO (MANZANILLO) | B82: 1 | C82: 162 | D82: 104 | E82: 103 | F82: 12 | G82: 3 | H82: 1 | I82: 1 | J82: 0 | K82: 49 | L82: 14 | M82: 20 | N82: 3 | O82: 1 | P82: 0 | Q82: 58
A83: LAS LOMAS | B83: 2 | C83: 843 | D83: 559 | E83: 548 | F83: 48 | G83: 1 | H83: 1 | I83: 3 | J83: 0 | K83: 231 | L83: 136 | M83: 109 | N83: 19 | O83: 9 | P83: 2 | Q83: 284
A84: LA CAPRI | B84: 9 | C84: 4451 | D84: 2953 | E84: 2889 | F84: 132 | G84: 8 | H84: 3 | I84: 28 | J84: 14 | K84: 1330 | L84: 696 | M84: 581 | N84: 97 | O84: 54 | P84: 10 | Q84: 1498
A85: DISTRITO 3 SAN JUAN DE DIOS | B85: 23 | C85: 11533 | D85: 7762 | E85: 7630 | F85: 340 | G85: 10 | H85: 5 | I85: 61 | J85: 28 | K85: 3211 | L85: 1945 | M85: 1806 | N85: 224 | O85: 121 | P85: 11 | Q85: 3771
A86: SAN JUAN DE DIOS | B86: 23 | C86: 11533 | D86: 7762 | E86: 7630 | F86: 340 | G86: 10 | H86: 5 | I86: 61 | J86: 28 | K86: 3211 | L86: 1945 | M86: 1806 | N86: 224 | O86: 121 | P86: 11 | Q86: 3771
A87: DISTRITO 4 SAN RAFAEL ARRIBA | B87: 23 | C87: 10180 | D87: 7156 | E87: 7043 | F87: 278 | G87: 16 | H87: 9 | I87: 41 | J87: 16 | K87: 3173 | L87: 1215 | M87: 2104 | N87: 191 | O87: 100 | P87: 13 | Q87: 3024
A88: SAN RAFAEL ARRIBA | B88: 20 | C88: 9729 | D88: 6947 | E88: 6837 | F88: 261 | G88: 16 | H88: 7 | I88: 40 | J88: 16 | K88: 3025 | L88: 1199 | M88: 2085 | N88: 188 | O88: 97 | P88: 13 | Q88: 2782
A89: C.P. SAN RAFAEL ARRIBA | B89: 2 | C89: 396 | D89: 171 | E89: 169 | F89: 17 | G89: 0 | H89: 1 | I89: 1 | J89: 0 | K89: 113 | L89: 16 | M89: 18 | N89: 3 | O89: 2 | P89: 0 | Q89: 225
A90: H.A. SAN CAYETANO | B90: 1 | C90: 55 | D90: 38 | E90: 37 | F90: 0 | G90: 0 | H90: 1 | I90: 0 | J90: 0 | K90: 35 | L90: 0 | M90: 1 | N90: 0 | O90: 1 | P90: 0 | Q90: 17
A91: DISTRITO 5 SAN ANTONIO | B91: 17 | C91: 8403 | D91: 6271 | E91: 6199 | F91: 179 | G91: 3 | H91: 6 | I91: 19 | J91: 31 | K91: 3019 | L91: 869 | M91: 1967 | N91: 106 | O91: 63 | P91: 9 | Q91: 2132
A92: SAN ANTONIO | B92: 17 | C92: 8403 | D92: 6271 | E92: 6199 | F92: 179 | G92: 3 | H92: 6 | I92: 19 | J92: 31 | K92: 3019 | L92: 869 | M92: 1967 | N92: 106 | O92: 63 | P92: 9 | Q92: 2132
A93: DISTRITO 6 FRAILES | B93: 7 | C93: 2593 | D93: 1834 | E93: 1786 | F93: 64 | G93: 1 | H93: 3 | I93: 10 | J93: 8 | K93: 1203 | L93: 227 | M93: 254 | N93: 16 | O93: 39 | P93: 9 | Q93: 759
A94: FRAILES | B94: 4 | C94: 1609 | D94: 1120 | E94: 1097 | F94: 26 | G94: 1 | H94: 1 | I94: 4 | J94: 3 | K94: 737 | L94: 127 | M94: 189 | N94: 9 | O94: 18 | P94: 5 | Q94: 489
A95: BUSTAMANTE O ALCIRA | B95: 2 | C95: 830 | D95: 596 | E95: 574 | F95: 30 | G95: 0 | H95: 0 | I95: 4 | J95: 3 | K95: 395 | L95: 81 | M95: 56 | N95: 5 | O95: 19 | P95: 3 | Q95: 234
A96: VIOLETA (RINCÓN MORALES) | B96: 1 | C96: 154 | D96: 118 | E96: 115 | F96: 8 | G96: 0 | H96: 2 | I96: 2 | J96: 2 | K96: 71 | L96: 19 | M96: 9 | N96: 2 | O96: 2 | P96: 1 | Q96: 36
A97: DISTRITO 7 PATARRÁ | B97: 12 | C97: 5383 | D97: 3540 | E97: 3464 | F97: 145 | G97: 9 | H97: 6 | I97: 17 | J97: 15 | K97: 1636 | L97: 664 | M97: 894 | N97: 78 | O97: 64 | P97: 12 | Q97: 1843
A98: PATARRÁ | B98: 6 | C98: 2726 | D98: 1904 | E98: 1878 | F98: 72 | G98: 4 | H98: 3 | I98: 8 | J98: 11 | K98: 906 | L98: 283 | M98: 562 | N98: 29 | O98: 23 | P98: 3 | Q98: 822
A99: GUATUSO | B99: 6 | C99: 2657 | D99: 1636 | E99: 1586 | F99: 73 | G99: 5 | H99: 3 | I99: 9 | J99: 4 | K99: 730 | L99: 381 | M99: 332 | N99: 49 | O99: 41 | P99: 9 | Q99: 1021
A100: DISTRITO 8 SAN CRISTÓBAL | B100: 7 | C100: 2789 | D100: 2158 | E100: 2110 | F100: 30 | G100: 2 | H100: 6 | I100: 5 | J100: 5 | K100: 1376 | L100: 305 | M100: 335 | N100: 46 | O100: 38 | P100: 10 | Q100: 631
A101: SAN CRISTÓBAL SUR | B101: 2 | C101: 698 | D101: 547 | E101: 530 | F101: 10 | G101: 0 | H101: 0 | I101: 2 | J101: 2 | K101: 344 | L101: 66 | M101: 89 | N101: 17 | O101: 15 | P101: 2 | Q101: 151
A102: SAN CRISTÓBAL NORTE | B102: 2 | C102: 703 | D102: 537 | E102: 527 | F102: 12 | G102: 1 | H102: 1 | I102: 2 | J102: 1 | K102: 356 | L102: 88 | M102: 56 | N102: 10 | O102: 6 | P102: 4 | Q102: 166
A103: CRISTO REY | B103: 2 | C103: 938 | D103: 736 | E103: 719 | F103: 6 | G103: 1 | H103: 4 | I103: 1 | J103: 2 | K103: 480 | L103: 78 | M103: 134 | N103: 13 | O103: 14 | P103: 3 | Q103: 202
A104: EMPALME ARRIBA GUARIA (PARTE OESTE) | B104: 1 | C104: 450 | D104: 338 | E104: 334 | F104: 2 | G104: 0 | H104: 1 | I104: 0 | J104: 0 | K104: 196 | L104: 73 | M104: 56 | N104: 6 | O104: 3 | P104: 1 | Q104: 112
A105: DISTRITO 9 ROSARIO | B105: 9 | C105: 2478 | D105: 1749 | E105: 1711 | F105: 42 | G105: 1 | H105: 3 | I105: 2 | J105: 4 | K105: 1043 | L105: 328 | M105: 249 | N105: 39 | O105: 33 | P105: 5 | Q105: 729
A106: ROSARIO | B106: 3 | C106: 1157 | D106: 815 | E106: 797 | F106: 19 | G106: 1 | H106: 2 | I106: 1 | J106: 2 | K106: 470 | L106: 153 | M106: 134 | N106: 15 | O106: 15 | P106: 3 | Q106: 342
A107: GUADARRAMA | B107: 1 | C107: 359 | D107: 236 | E107: 232 | F107: 7 | G107: 0 | H107: 0 | I107: 0 | J107: 1 | K107: 175 | L107: 17 | M107: 25 | N107: 7 | O107: 3 | P107: 1 | Q107: 123
A108: LA JOYA | B108: 1 | C108: 142 | D108: 96 | E108: 93 | F108: 3 | G108: 0 | H108: 0 | I108: 1 | J108: 0 | K108: 68 | L108: 6 | M108: 14 | N108: 1 | O108: 2 | P108: 1 | Q108: 46
A109: TRINIDAD (PARTE ESTE) | B109: 2 | C109: 584 | D109: 407 | E109: 395 | F109: 11 | G109: 0 | H109: 1 | I109: 0 | J109: 0 | K109: 187 | L109: 130 | M109: 59 | N109: 7 | O109: 12 | P109: 0 | Q109: 177
A110: LLANO BONITO | B110: 1 | C110: 91 | D110: 72 | E110: 72 | F110: 2 | G110: 0 | H110: 0 | I110: 0 | J110: 0 | K110: 50 | L110: 17 | M110: 3 | N110: 0 | O110: 0 | P110: 0 | Q110: 19
A111: CHIROGRES | B111: 1 | C111: 145 | D111: 123 | E111: 122 | F111: 0 | G111: 0 | H111: 0 | I111: 0 | J111: 1 | K111: 93 | L111: 5 | M111: 14 | N111: 9 | O111: 1 | P111: 0 | Q111: 22
A112: DISTRITO 10 DAMAS | B112: 18 | C112: 8436 | D112: 6109 | E112: 6000 | F112: 218 | G112: 9 | H112: 16 | I112: 33 | J112: 23 | K112: 2723 | L112: 1015 | M112: 1763 | N112: 200 | O112: 89 | P112: 20 | Q112: 2327
A113: FÁTIMA DE DAMAS | B113: 5 | C113: 2329 | D113: 1798 | E113: 1772 | F113: 62 | G113: 3 | H113: 2 | I113: 9 | J113: 9 | K113: 826 | L113: 222 | M113: 588 | N113: 51 | O113: 20 | P113: 6 | Q113: 531
A114: SAN LORENZO | B114: 13 | C114: 6107 | D114: 4311 | E114: 4228 | F114: 156 | G114: 6 | H114: 14 | I114: 24 | J114: 14 | K114: 1897 | L114: 793 | M114: 1175 | N114: 149 | O114: 69 | P114: 14 | Q114: 1796
A115: DISTRITO 11 SAN RAFAEL ABAJO | B115: 30 | C115: 14551 | D115: 10250 | E115: 10089 | F115: 376 | G115: 14 | H115: 7 | I115: 38 | J115: 28 | K115: 4349 | L115: 2069 | M115: 2961 | N115: 247 | O115: 155 | P115: 6 | Q115: 4301
A116: SAN RAFAEL ABAJO | B116: 21 | C116: 10148 | D116: 7108 | E116: 7008 | F116: 252 | G116: 6 | H116: 6 | I116: 25 | J116: 22 | K116: 3029 | L116: 1326 | M116: 2165 | N116: 177 | O116: 96 | P116: 4 | Q116: 3040
A117: VALENCIA | B117: 9 | C117: 4403 | D117: 3142 | E117: 3081 | F117: 124 | G117: 8 | H117: 1 | I117: 13 | J117: 6 | K117: 1320 | L117: 743 | M117: 796 | N117: 70 | O117: 59 | P117: 2 | Q117: 1261
A118: DISTRITO 12 GRAVILIAS | B118: 26 | C118: 12489 | D118: 9292 | E118: 9191 | F118: 374 | G118: 16 | H118: 10 | I118: 36 | J118: 38 | K118: 3964 | L118: 1420 | M118: 3153 | N118: 180 | O118: 86 | P118: 15 | Q118: 3197
A119: GRAVILIAS | B119: 15 | C119: 7125 | D119: 5286 | E119: 5234 | F119: 225 | G119: 8 | H119: 5 | I119: 20 | J119: 24 | K119: 2280 | L119: 824 | M119: 1721 | N119: 127 | O119: 45 | P119: 7 | Q119: 1839
A120: EL PORVENIR | B120: 11 | C120: 5364 | D120: 4006 | E120: 3957 | F120: 149 | G120: 8 | H120: 5 | I120: 16 | J120: 14 | K120: 1684 | L120: 596 | M120: 1432 | N120: 53 | O120: 41 | P120: 8 | Q120: 1358
A121: DISTRITO 13 LOS GUIDO | B121: 23 | C121: 11109 | D121: 6324 | E121: 6139 | F121: 228 | G121: 11 | H121: 10 | I121: 59 | J121: 22 | K121: 3063 | L121: 1624 | M121: 955 | N121: 167 | O121: 161 | P121: 24 | Q121: 4785
A122: LOS GUIDO | B122: 23 | C122: 11109 | D122: 6324 | E122: 6139 | F122: 228 | G122: 11 | H122: 10 | I122: 59 | J122: 22 | K122: 3063 | L122: 1624 | M122: 955 | N122: 167 | O122: 161 | P122: 24 | Q122: 4785
A123: CANTÓN 4 PURISCAL | B123: 70 | C123: 24260 | D123: 17626 | E123: 17319 | F123: 640 | G123: 11 | H123: 36 | I123: 64 | J123: 40 | K123: 9127 | L123: 3067 | M123: 4086 | N123: 248 | O123: 213 | P123: 94 | Q123: 6634
A124: DISTRITO 1 SANTIAGO | B124: 21 | C124: 9303 | D124: 6867 | E124: 6780 | F124: 266 | G124: 2 | H124: 7 | I124: 26 | J124: 16 | K124: 3417 | L124: 1144 | M124: 1811 | N124: 91 | O124: 67 | P124: 20 | Q124: 2436
A125: SANTIAGO | B125: 16 | C125: 7912 | D125: 5863 | E125: 5796 | F125: 227 | G125: 2 | H125: 6 | I125: 26 | J125: 10 | K125: 2930 | L125: 980 | M125: 1527 | N125: 88 | O125: 52 | P125: 15 | Q125: 2049
A126: POZOS | B126: 2 | C126: 753 | D126: 526 | E126: 512 | F126: 18 | G126: 0 | H126: 0 | I126: 0 | J126: 5 | K126: 259 | L126: 91 | M126: 137 | N126: 2 | O126: 11 | P126: 3 | Q126: 227
A127: CARIT | B127: 1 | C127: 522 | D127: 399 | E127: 396 | F127: 15 | G127: 0 | H127: 1 | I127: 0 | J127: 1 | K127: 194 | L127: 60 | M127: 124 | N127: 1 | O127: 3 | P127: 0 | Q127: 123
A128: BAJO BADILLA | B128: 1 | C128: 64 | D128: 34 | E128: 31 | F128: 3 | G128: 0 | H128: 0 | I128: 0 | J128: 0 | K128: 2 | L128: 4 | M128: 22 | N128: 0 | O128: 1 | P128: 2 | Q128: 30
A129: H.A. CORAZÓN DE JESÚS | B129: 1 | C129: 52 | D129: 45 | E129: 45 | F129: 3 | G129: 0 | H129: 0 | I129: 0 | J129: 0 | K129: 32 | L129: 9 | M129: 1 | N129: 0 | O129: 0 | P129: 0 | Q129: 7
A130: DISTRITO 2 MERCEDES SUR | B130: 13 | C130: 3683 | D130: 2711 | E130: 2650 | F130: 80 | G130: 1 | H130: 9 | I130: 14 | J130: 6 | K130: 1370 | L130: 515 | M130: 617 | N130: 38 | O130: 42 | P130: 19 | Q130: 972
A131: MERCEDES SUR | B131: 1 | C131: 484 | D131: 336 | E131: 326 | F131: 8 | G131: 0 | H131: 4 | I131: 0 | J131: 0 | K131: 175 | L131: 43 | M131: 91 | N131: 5 | O131: 6 | P131: 4 | Q131: 148
A132: MERCEDES NORTE | B132: 2 | C132: 903 | D132: 673 | E132: 662 | F132: 26 | G132: 0 | H132: 0 | I132: 1 | J132: 4 | K132: 336 | L132: 135 | M132: 151 | N132: 9 | O132: 9 | P132: 2 | Q132: 230
A133: BOCANA | B133: 1 | C133: 103 | D133: 71 | E133: 70 | F133: 8 | G133: 0 | H133: 0 | I133: 0 | J133: 0 | K133: 36 | L133: 4 | M133: 22 | N133: 0 | O133: 1 | P133: 0 | Q133: 32
A134: JILGUERAL | B134: 1 | C134: 160 | D134: 124 | E134: 122 | F134: 2 | G134: 0 | H134: 0 | I134: 0 | J134: 0 | K134: 69 | L134: 23 | M134: 26 | N134: 2 | O134: 2 | P134: 0 | Q134: 36
A135: TÚFARES | B135: 1 | C135: 88 | D135: 54 | E135: 51 | F135: 0 | G135: 0 | H135: 0 | I135: 0 | J135: 0 | K135: 39 | L135: 5 | M135: 6 | N135: 1 | O135: 1 | P135: 2 | Q135: 34
A136: SALITRALES | B136: 1 | C136: 185 | D136: 119 | E136: 117 | F136: 6 | G136: 1 | H136: 1 | I136: 1 | J136: 0 | K136: 50 | L136: 25 | M136: 32 | N136: 1 | O136: 2 | P136: 0 | Q136: 66
A137: ALTO LA PALMA | B137: 1 | C137: 253 | D137: 191 | E137: 186 | F137: 12 | G137: 0 | H137: 0 | I137: 1 | J137: 1 | K137: 89 | L137: 46 | M137: 32 | N137: 5 | O137: 3 | P137: 2 | Q137: 62
A138: LLANO GRANDE | B138: 1 | C138: 83 | D138: 43 | E138: 42 | F138: 2 | G138: 0 | H138: 1 | I138: 0 | J138: 0 | K138: 28 | L138: 11 | M138: 0 | N138: 0 | O138: 1 | P138: 0 | Q138: 40
A139: SANTA MARTA | B139: 1 | C139: 304 | D139: 237 | E139: 233 | F139: 2 | G139: 0 | H139: 1 | I139: 0 | J139: 0 | K139: 130 | L139: 72 | M139: 25 | N139: 3 | O139: 0 | P139: 4 | Q139: 67
A140: CERBATANA | B140: 3 | C140: 1120 | D140: 863 | E140: 841 | F140: 14 | G140: 0 | H140: 2 | I140: 11 | J140: 1 | K140: 418 | L140: 151 | M140: 232 | N140: 12 | O140: 17 | P140: 5 | Q140: 257
A141: DISTRITO 3 BARBACOAS | B141: 8 | C141: 2894 | D141: 2212 | E141: 2166 | F141: 53 | G141: 4 | H141: 5 | I141: 2 | J141: 2 | K141: 1192 | L141: 392 | M141: 482 | N141: 34 | O141: 34 | P141: 12 | Q141: 682
A142: BARBACOAS (SAN ISIDRO) | B142: 3 | C142: 1119 | D142: 867 | E142: 849 | F142: 27 | G142: 1 | H142: 1 | I142: 1 | J142: 1 | K142: 389 | L142: 181 | M142: 237 | N142: 11 | O142: 12 | P142: 6 | Q142: 252
A143: PIEDADES | B143: 2 | C143: 622 | D143: 462 | E143: 453 | F143: 13 | G143: 1 | H143: 1 | I143: 1 | J143: 0 | K143: 222 | L143: 100 | M143: 109 | N143: 6 | O143: 9 | P143: 0 | Q143: 160
A144: SAN JUAN | B144: 2 | C144: 855 | D144: 676 | E144: 663 | F144: 11 | G144: 2 | H144: 3 | I144: 0 | J144: 1 | K144: 428 | L144: 83 | M144: 120 | N144: 15 | O144: 9 | P144: 4 | Q144: 179
A145: CORTEZAL | B145: 1 | C145: 298 | D145: 207 | E145: 201 | F145: 2 | G145: 0 | H145: 0 | I145: 0 | J145: 0 | K145: 153 | L145: 28 | M145: 16 | N145: 2 | O145: 4 | P145: 2 | Q145: 91
A146: DISTRITO 4 GRIFO ALTO | B146: 3 | C146: 847 | D146: 600 | E146: 591 | F146: 18 | G146: 1 | H146: 6 | I146: 4 | J146: 3 | K146: 268 | L146: 92 | M146: 190 | N146: 9 | O146: 6 | P146: 3 | Q146: 247
A147: GRIFO ALTO | B147: 2 | C147: 707 | D147: 500 | E147: 494 | F147: 15 | G147: 1 | H147: 5 | I147: 4 | J147: 3 | K147: 222 | L147: 73 | M147: 164 | N147: 7 | O147: 4 | P147: 2 | Q147: 207
A148: GRIFO BAJO | B148: 1 | C148: 140 | D148: 100 | E148: 97 | F148: 3 | G148: 0 | H148: 1 | I148: 0 | J148: 0 | K148: 46 | L148: 19 | M148: 26 | N148: 2 | O148: 2 | P148: 1 | Q148: 40
A149: DISTRITO 5 SAN RAFAEL | B149: 3 | C149: 1165 | D149: 796 | E149: 778 | F149: 77 | G149: 0 | H149: 1 | I149: 1 | J149: 3 | K149: 380 | L149: 153 | M149: 147 | N149: 16 | O149: 11 | P149: 7 | Q149: 369
A150: SAN RAFAEL ARRIBA | B150: 2 | C150: 866 | D150: 595 | E150: 582 | F150: 29 | G150: 0 | H150: 0 | I150: 1 | J150: 3 | K150: 300 | L150: 127 | M150: 110 | N150: 12 | O150: 8 | P150: 5 | Q150: 271
A151: FLORALIA | B151: 1 | C151: 299 | D151: 201 | E151: 196 | F151: 48 | G151: 0 | H151: 1 | I151: 0 | J151: 0 | K151: 80 | L151: 26 | M151: 37 | N151: 4 | O151: 3 | P151: 2 | Q151: 98
A152: DISTRITO 6 CANDELARITA | B152: 4 | C152: 1268 | D152: 943 | E152: 929 | F152: 26 | G152: 0 | H152: 3 | I152: 3 | J152: 3 | K152: 615 | L152: 122 | M152: 147 | N152: 10 | O152: 9 | P152: 5 | Q152: 325
A153: CANDELARITA | B153: 2 | C153: 685 | D153: 516 | E153: 508 | F153: 18 | G153: 0 | H153: 2 | I153: 1 | J153: 1 | K153: 332 | L153: 66 | M153: 86 | N153: 2 | O153: 6 | P153: 2 | Q153: 169
A154: PEDERNAL O SAN PEDRO | B154: 2 | C154: 583 | D154: 427 | E154: 421 | F154: 8 | G154: 0 | H154: 1 | I154: 2 | J154: 2 | K154: 283 | L154: 56 | M154: 61 | N154: 8 | O154: 3 | P154: 3 | Q154: 156
A155: DISTRITO 7 DESAMPARADITOS | B155: 1 | C155: 488 | D155: 353 | E155: 350 | F155: 16 | G155: 0 | H155: 0 | I155: 1 | J155: 1 | K155: 146 | L155: 69 | M155: 109 | N155: 8 | O155: 2 | P155: 1 | Q155: 135
A156: DESAMPARADITOS | B156: 1 | C156: 488 | D156: 353 | E156: 350 | F156: 16 | G156: 0 | H156: 0 | I156: 1 | J156: 1 | K156: 146 | L156: 69 | M156: 109 | N156: 8 | O156: 2 | P156: 1 | Q156: 135
A157: DISTRITO 8 SAN ANTONIO | B157: 6 | C157: 2501 | D157: 1746 | E157: 1718 | F157: 67 | G157: 2 | H157: 1 | I157: 7 | J157: 3 | K157: 911 | L157: 363 | M157: 341 | N157: 23 | O157: 17 | P157: 11 | Q157: 755
A158: SAN ANTONIO | B158: 5 | C158: 2325 | D158: 1626 | E158: 1602 | F158: 67 | G158: 2 | H158: 1 | I158: 6 | J158: 2 | K158: 835 | L158: 330 | M158: 337 | N158: 22 | O158: 16 | P158: 8 | Q158: 699
A159: CHARCÓN (RÍO VIEJO) | B159: 1 | C159: 176 | D159: 120 | E159: 116 | F159: 0 | G159: 0 | H159: 0 | I159: 1 | J159: 1 | K159: 76 | L159: 33 | M159: 4 | N159: 1 | O159: 1 | P159: 3 | Q159: 56
A160: DISTRITO 9 CHIRES | B160: 11 | C160: 2111 | D160: 1398 | E160: 1357 | F160: 37 | G160: 1 | H160: 4 | I160: 6 | J160: 3 | K160: 828 | L160: 217 | M160: 242 | N160: 19 | O160: 25 | P160: 16 | Q160: 713
A161: GUARUMAL | B161: 1 | C161: 189 | D161: 137 | E161: 130 | F161: 4 | G161: 0 | H161: 0 | I161: 0 | J161: 0 | K161: 92 | L161: 7 | M161: 26 | N161: 1 | O161: 3 | P161: 4 | Q161: 52
A162: ZAPATÓN (SAN CARLOS) | B162: 1 | C162: 306 | D162: 214 | E162: 210 | F162: 14 | G162: 1 | H162: 1 | I162: 0 | J162: 0 | K162: 129 | L162: 24 | M162: 40 | N162: 1 | O162: 1 | P162: 3 | Q162: 92
A163: GAMALOTILLO | B163: 1 | C163: 266 | D163: 168 | E163: 164 | F163: 7 | G163: 0 | H163: 0 | I163: 2 | J163: 1 | K163: 75 | L163: 34 | M163: 44 | N163: 1 | O163: 3 | P163: 1 | Q163: 98
A164: LOS ÁNGELES | B164: 1 | C164: 140 | D164: 91 | E164: 91 | F164: 1 | G164: 0 | H164: 2 | I164: 0 | J164: 0 | K164: 43 | L164: 27 | M164: 17 | N164: 1 | O164: 0 | P164: 0 | Q164: 49
A165: LA GLORIA | B165: 1 | C165: 191 | D165: 115 | E165: 114 | F165: 1 | G165: 0 | H165: 0 | I165: 0 | J165: 1 | K165: 59 | L165: 21 | M165: 27 | N165: 5 | O165: 1 | P165: 0 | Q165: 76
A166: MASTATAL | B166: 1 | C166: 105 | D166: 72 | E166: 69 | F166: 0 | G166: 0 | H166: 0 | I166: 0 | J166: 0 | K166: 51 | L166: 10 | M166: 7 | N166: 1 | O166: 3 | P166: 0 | Q166: 33
A167: SAN MARTÍN | B167: 1 | C167: 127 | D167: 75 | E167: 71 | F167: 3 | G167: 0 | H167: 0 | I167: 0 | J167: 0 | K167: 33 | L167: 18 | M167: 15 | N167: 2 | O167: 2 | P167: 2 | Q167: 52
A168: CRISTO REY | B168: 1 | C168: 417 | D168: 291 | E168: 282 | F168: 4 | G168: 0 | H168: 0 | I168: 4 | J168: 1 | K168: 199 | L168: 34 | M168: 34 | N168: 6 | O168: 7 | P168: 2 | Q168: 126
A169: SAN MIGUEL | B169: 1 | C169: 132 | D169: 80 | E169: 76 | F169: 2 | G169: 0 | H169: 1 | I169: 0 | J169: 0 | K169: 56 | L169: 6 | M169: 11 | N169: 0 | O169: 2 | P169: 2 | Q169: 52
A170: VISTA DE MAR NORTE | B170: 1 | C170: 193 | D170: 130 | E170: 125 | F170: 1 | G170: 0 | H170: 0 | I170: 0 | J170: 0 | K170: 71 | L170: 33 | M170: 19 | N170: 1 | O170: 3 | P170: 2 | Q170: 63
A171: BAJO REY | B171: 1 | C171: 45 | D171: 25 | E171: 25 | F171: 0 | G171: 0 | H171: 0 | I171: 0 | J171: 0 | K171: 20 | L171: 3 | M171: 2 | N171: 0 | O171: 0 | P171: 0 | Q171: 20
A172: CANTÓN 5 TARRAZÚ | B172: 28 | C172: 10376 | D172: 6954 | E172: 6782 | F172: 351 | G172: 17 | H172: 14 | I172: 30 | J172: 17 | K172: 3263 | L172: 1266 | M172: 1737 | N172: 87 | O172: 122 | P172: 50 | Q172: 3422
A173: DISTRITO 1 SAN MARCOS | B173: 15 | C173: 6550 | D173: 4462 | E173: 4383 | F173: 238 | G173: 9 | H173: 9 | I173: 20 | J173: 14 | K173: 2046 | L173: 775 | M173: 1208 | N173: 64 | O173: 54 | P173: 25 | Q173: 2088
A174: SAN MARCOS | B174: 9 | C174: 4226 | D174: 2914 | E174: 2868 | F174: 145 | G174: 7 | H174: 7 | I174: 13 | J174: 10 | K174: 1290 | L174: 520 | M174: 832 | N174: 44 | O174: 30 | P174: 16 | Q174: 1312
A175: SAN PEDRO | B175: 1 | C175: 366 | D175: 264 | E175: 259 | F175: 34 | G175: 1 | H175: 1 | I175: 0 | J175: 3 | K175: 93 | L175: 62 | M175: 57 | N175: 8 | O175: 4 | P175: 1 | Q175: 102
A176: GUADALUPE | B176: 2 | C176: 946 | D176: 651 | E176: 637 | F176: 22 | G176: 0 | H176: 1 | I176: 3 | J176: 0 | K176: 299 | L176: 67 | M176: 234 | N176: 11 | O176: 9 | P176: 5 | Q176: 295
A177: RODEO NORTE | B177: 2 | C177: 949 | D177: 602 | E177: 589 | F177: 35 | G177: 1 | H177: 0 | I177: 4 | J177: 1 | K177: 347 | L177: 126 | M177: 74 | N177: 1 | O177: 11 | P177: 2 | Q177: 347
A178: H.A. LOS SANTOS | B178: 1 | C178: 63 | D178: 31 | E178: 30 | F178: 2 | G178: 0 | H178: 0 | I178: 0 | J178: 0 | K178: 17 | L178: 0 | M178: 11 | N178: 0 | O178: 0 | P178: 1 | Q178: 32
A179: DISTRITO 2 SAN LORENZO | B179: 10 | C179: 2589 | D179: 1679 | E179: 1633 | F179: 88 | G179: 6 | H179: 3 | I179: 6 | J179: 3 | K179: 823 | L179: 295 | M179: 395 | N179: 14 | O179: 27 | P179: 19 | Q179: 910
A180: SAN MARTÍN | B180: 1 | C180: 112 | D180: 72 | E180: 71 | F180: 2 | G180: 1 | H180: 0 | I180: 0 | J180: 0 | K180: 38 | L180: 25 | M180: 5 | N180: 0 | O180: 0 | P180: 1 | Q180: 40
A181: SAN LORENZO | B181: 4 | C181: 1761 | D181: 1139 | E181: 1109 | F181: 61 | G181: 1 | H181: 1 | I181: 3 | J181: 2 | K181: 552 | L181: 174 | M181: 304 | N181: 11 | O181: 17 | P181: 13 | Q181: 622
A182: ESQUIPULAS | B182: 1 | C182: 35 | D182: 13 | E182: 12 | F182: 0 | G182: 0 | H182: 0 | I182: 0 | J182: 0 | K182: 1 | L182: 10 | M182: 1 | N182: 0 | O182: 1 | P182: 0 | Q182: 22
A183: SAN MIGUEL O SALADO | B183: 1 | C183: 131 | D183: 83 | E183: 79 | F183: 3 | G183: 0 | H183: 0 | I183: 0 | J183: 1 | K183: 39 | L183: 14 | M183: 21 | N183: 1 | O183: 3 | P183: 1 | Q183: 48
A184: ZAPOTAL | B184: 1 | C184: 214 | D184: 138 | E184: 136 | F184: 5 | G184: 0 | H184: 0 | I184: 0 | J184: 0 | K184: 96 | L184: 22 | M184: 12 | N184: 1 | O184: 0 | P184: 2 | Q184: 76
A185: NÁPOLES | B185: 1 | C185: 281 | D185: 194 | E185: 187 | F185: 15 | G185: 0 | H185: 1 | I185: 0 | J185: 0 | K185: 87 | L185: 43 | M185: 40 | N185: 1 | O185: 5 | P185: 2 | Q185: 87
A186: QUEBRADA ARROYO | B186: 1 | C186: 55 | D186: 40 | E186: 39 | F186: 2 | G186: 4 | H186: 1 | I186: 3 | J186: 0 | K186: 10 | L186: 7 | M186: 12 | N186: 0 | O186: 1 | P186: 0 | Q186: 15
A187: DISTRITO 3 SAN CARLOS | B187: 3 | C187: 1237 | D187: 813 | E187: 766 | F187: 25 | G187: 2 | H187: 2 | I187: 4 | J187: 0 | K187: 394 | L187: 196 | M187: 134 | N187: 9 | O187: 41 | P187: 6 | Q187: 424
A188: SAN CARLOS | B188: 2 | C188: 809 | D188: 541 | E188: 513 | F188: 15 | G188: 2 | H188: 0 | I188: 1 | J188: 0 | K188: 243 | L188: 145 | M188: 102 | N188: 5 | O188: 25 | P188: 3 | Q188: 268
A189: SAN JERÓNIMO | B189: 1 | C189: 428 | D189: 272 | E189: 253 | F189: 10 | G189: 0 | H189: 2 | I189: 3 | J189: 0 | K189: 151 | L189: 51 | M189: 32 | N189: 4 | O189: 16 | P189: 3 | Q189: 156
A190: CANTÓN 6 ASERRÍ | B190: 86 | C190: 36900 | D190: 25385 | E190: 24852 | F190: 945 | G190: 78 | H190: 24 | I190: 122 | J190: 113 | K190: 11430 | L190: 4977 | M190: 6560 | N190: 603 | O190: 425 | P190: 108 | Q190: 11515
A191: DISTRITO 1 ASERRÍ | B191: 44 | C191: 21006 | D191: 14365 | E191: 14077 | F191: 579 | G191: 46 | H191: 8 | I191: 68 | J191: 57 | K191: 6239 | L191: 2782 | M191: 3931 | N191: 367 | O191: 244 | P191: 44 | Q191: 6641
A192: ASERRÍ | B192: 33 | C192: 16258 | D192: 11148 | E192: 10927 | F192: 405 | G192: 30 | H192: 7 | I192: 41 | J192: 49 | K192: 4909 | L192: 2106 | M192: 3109 | N192: 271 | O192: 189 | P192: 32 | Q192: 5110
A193: POÁS | B193: 10 | C193: 4718 | D193: 3196 | E193: 3131 | F193: 172 | G193: 16 | H193: 0 | I193: 27 | J193: 7 | K193: 1327 | L193: 664 | M193: 822 | N193: 96 | O193: 55 | P193: 10 | Q193: 1522
A194: H.A. SAN FRANCISCO DE ASÍS | B194: 1 | C194: 30 | D194: 21 | E194: 19 | F194: 2 | G194: 0 | H194: 1 | I194: 0 | J194: 1 | K194: 3 | L194: 12 | M194: 0 | N194: 0 | O194: 0 | P194: 2 | Q194: 9
A195: DISTRITO 2 TARBACA | B195: 5 | C195: 1530 | D195: 1056 | E195: 1037 | F195: 38 | G195: 6 | H195: 1 | I195: 1 | J195: 4 | K195: 502 | L195: 206 | M195: 257 | N195: 22 | O195: 14 | P195: 5 | Q195: 474
A196: TARBACA O PRAGA | B196: 3 | C196: 1084 | D196: 741 | E196: 724 | F196: 25 | G196: 6 | H196: 0 | I196: 0 | J196: 4 | K196: 353 | L196: 139 | M196: 181 | N196: 16 | O196: 13 | P196: 4 | Q196: 343
A197: EL TIGRE | B197: 1 | C197: 168 | D197: 112 | E197: 111 | F197: 0 | G197: 0 | H197: 0 | I197: 0 | J197: 0 | K197: 70 | L197: 10 | M197: 30 | N197: 1 | O197: 1 | P197: 0 | Q197: 56
A198: CEDRAL | B198: 1 | C198: 278 | D198: 203 | E198: 202 | F198: 13 | G198: 0 | H198: 1 | I198: 1 | J198: 0 | K198: 79 | L198: 57 | M198: 46 | N198: 5 | O198: 0 | P198: 1 | Q198: 75
A199: DISTRITO 3 VUELTA DE JORCO | B199: 11 | C199: 4225 | D199: 3068 | E199: 3003 | F199: 116 | G199: 11 | H199: 7 | I199: 12 | J199: 7 | K199: 1343 | L199: 692 | M199: 758 | N199: 57 | O199: 49 | P199: 16 | Q199: 1157
A200: JOCOTAL ABAJO | B200: 1 | C200: 198 | D200: 121 | E200: 117 | F200: 5 | G200: 1 | H200: 1 | I200: 0 | J200: 2 | K200: 34 | L200: 45 | M200: 28 | N200: 1 | O200: 4 | P200: 0 | Q200: 77
A201: VUELTA DE JORCO | B201: 6 | C201: 2719 | D201: 1992 | E201: 1950 | F201: 93 | G201: 4 | H201: 4 | I201: 12 | J201: 4 | K201: 796 | L201: 443 | M201: 553 | N201: 41 | O201: 29 | P201: 13 | Q201: 727
A202: MONTE REDONDO | B202: 2 | C202: 593 | D202: 438 | E202: 425 | F202: 10 | G202: 5 | H202: 0 | I202: 0 | J202: 1 | K202: 183 | L202: 99 | M202: 117 | N202: 10 | O202: 12 | P202: 1 | Q202: 155
A203: LEGUA DE LOS NARANJOS | B203: 1 | C203: 310 | D203: 201 | E203: 197 | F203: 4 | G203: 0 | H203: 1 | I203: 0 | J203: 0 | K203: 128 | L203: 44 | M203: 18 | N203: 2 | O203: 2 | P203: 2 | Q203: 109
... 380 more rows

Sheet C1.11
A2: CUADRO 1.11 ALAJUELA: JUNTAS, ELECTORADO, VOTOS POR PARTIDO, NULOS, BLANCOS Y ABSTENCIONISMO PARA PRESIDENCIA Y VICEPRESIDENCIAS DE LA REPÚBLICA
A3: SEGÚN CANTÓN, DISTRITO ADMINISTRATIVO Y DISTRITO ELECTORAL, ELECCIONES 7 DE FEBRERO 2010
A5: CANTÓN, DISTRITO ADMINISTRATIVO Y DISTRITO ELECTORAL | B5: JUNTAS | C5: ELECTORADO | D5: VOTOS RECIBIDOS | Q5: ABSTENCIONISMO
D6: TOTAL GENERAL | E6: VOTOS VÁLIDOS | O6: VOTOS NULOS | P6: VOTOS BLANCOS
E7: TOTAL | F7: UNIDAD SOCIAL CRISTIANA | G7: INTEGRACIÓN NACIONAL | H7: ALIANZA PATRIÓTICA | I7: RENOVACIÓN COSTARRICENSE | J7: FRENTE AMPLIO | K7: LIBERACIÓN NACIONAL | L7: MOVIMIENTO LIBERTARIO | M7: ACCIÓN CIUDADANA | N7: ACCESIBILIDAD SIN EXCLUSIÓN
A9: ALAJUELA | B9: 1252 | C9: 524215 | D9: 374952 | E9: 367843 | F9: 11887 | G9: 275 | H9: 659 | I9: 2788 | J9: 830 | K9: 166655 | L9: 80590 | M9: 97399 | N9: 6760 | O9: 5798 | P9: 1311 | Q9: 149263
A10: CANTÓN 1 ALAJUELA | B10: 376 | C10: 170966 | D10: 119832 | E10: 117764 | F10: 3868 | G10: 97 | H10: 159 | I10: 682 | J10: 279 | K10: 54697 | L10: 27992 | M10: 27209 | N10: 2781 | O10: 1810 | P10: 258 | Q10: 51134
A11: DISTRITO 1 ALAJUELA | B11: 78 | C11: 37877 | D11: 27042 | E11: 26708 | F11: 887 | G11: 24 | H11: 32 | I11: 133 | J11: 80 | K11: 12725 | L11: 5462 | M11: 6847 | N11: 518 | O11: 286 | P11: 48 | Q11: 10835
A12: ALAJUELA | B12: 24 | C12: 11960 | D12: 8513 | E12: 8436 | F12: 268 | G12: 7 | H12: 4 | I12: 24 | J12: 29 | K12: 4172 | L12: 1470 | M12: 2341 | N12: 121 | O12: 67 | P12: 10 | Q12: 3447
A13: CONCEPCIÓN O EL LLANO | B13: 18 | C13: 8984 | D13: 6687 | E13: 6629 | F13: 244 | G13: 2 | H13: 6 | I13: 33 | J13: 15 | K13: 3097 | L13: 1257 | M13: 1838 | N13: 137 | O13: 50 | P13: 8 | Q13: 2297
A14: CANOAS | B14: 15 | C14: 7523 | D14: 5241 | E14: 5129 | F14: 147 | G14: 8 | H14: 10 | I14: 34 | J14: 14 | K14: 2269 | L14: 1245 | M14: 1273 | N14: 129 | O14: 99 | P14: 13 | Q14: 2282
A15: MONTECILLOS (PARTE NORTE) | B15: 10 | C15: 4606 | D15: 3153 | E15: 3102 | F15: 104 | G15: 3 | H15: 8 | I15: 24 | J15: 10 | K15: 1467 | L15: 865 | M15: 548 | N15: 73 | O15: 43 | P15: 8 | Q15: 1453
A16: H.A. SANTIAGO CRESPO CALVO | B16: 1 | C16: 181 | D16: 103 | E16: 100 | F16: 9 | G16: 1 | H16: 0 | I16: 2 | J16: 0 | K16: 55 | L16: 12 | M16: 18 | N16: 3 | O16: 1 | P16: 2 | Q16: 78
A17: CORAZÓN DE JESÚS | B17: 1 | C17: 526 | D17: 397 | E17: 395 | F17: 17 | G17: 0 | H17: 0 | I17: 2 | J17: 2 | K17: 190 | L17: 74 | M17: 103 | N17: 7 | O17: 1 | P17: 1 | Q17: 129
A18: EL ARROYO | B18: 2 | C18: 761 | D18: 601 | E18: 596 | F18: 11 | G18: 1 | H18: 0 | I18: 2 | J18: 7 | K18: 334 | L18: 87 | M18: 151 | N18: 3 | O18: 3 | P18: 2 | Q18: 160
A19: EL CARMEN | B19: 7 | C19: 3336 | D19: 2347 | E19: 2321 | F19: 87 | G19: 2 | H19: 4 | I19: 12 | J19: 3 | K19: 1141 | L19: 452 | M19: 575 | N19: 45 | O19: 22 | P19: 4 | Q19: 989
A20: DISTRITO 2 SAN JOSÉ | B20: 59 | C20: 28420 | D20: 19944 | E20: 19618 | F20: 607 | G20: 16 | H20: 24 | I20: 107 | J20: 53 | K20: 8630 | L20: 4897 | M20: 4834 | N20: 450 | O20: 274 | P20: 52 | Q20: 8476
A21: SAN JOSÉ | B21: 17 | C21: 8303 | D21: 5533 | E21: 5435 | F21: 177 | G21: 6 | H21: 5 | I21: 28 | J21: 17 | K21: 2465 | L21: 1474 | M21: 1153 | N21: 110 | O21: 87 | P21: 11 | Q21: 2770
A22: EL COYOL | B22: 11 | C22: 5188 | D22: 3735 | E22: 3672 | F22: 92 | G22: 3 | H22: 4 | I22: 26 | J22: 11 | K22: 1579 | L22: 1023 | M22: 856 | N22: 78 | O22: 53 | P22: 10 | Q22: 1453
A23: TUETAL SUR | B23: 3 | C23: 1338 | D23: 858 | E23: 832 | F23: 30 | G23: 0 | H23: 1 | I23: 7 | J23: 1 | K23: 406 | L23: 217 | M23: 148 | N23: 22 | O23: 19 | P23: 7 | Q23: 480
A24: PUEBLO NUEVO | B24: 7 | C24: 3432 | D24: 2432 | E24: 2399 | F24: 116 | G24: 3 | H24: 2 | I24: 12 | J24: 7 | K24: 967 | L24: 575 | M24: 656 | N24: 61 | O24: 31 | P24: 2 | Q24: 1000
A25: PACTO DEL JOCOTE | B25: 21 | C25: 10159 | D25: 7386 | E25: 7280 | F25: 192 | G25: 4 | H25: 12 | I25: 34 | J25: 17 | K25: 3213 | L25: 1608 | M25: 2021 | N25: 179 | O25: 84 | P25: 22 | Q25: 2773
A26: DISTRITO 3 CARRIZAL | B26: 10 | C26: 4008 | D26: 2757 | E26: 2676 | F26: 110 | G26: 3 | H26: 5 | I26: 10 | J26: 5 | K26: 1187 | L26: 559 | M26: 728 | N26: 69 | O26: 70 | P26: 11 | Q26: 1251
A27: CARRIZAL | B27: 5 | C27: 2195 | D27: 1573 | E27: 1534 | F27: 82 | G27: 2 | H27: 3 | I27: 3 | J27: 2 | K27: 636 | L27: 319 | M27: 455 | N27: 32 | O27: 32 | P27: 7 | Q27: 622
A28: CINCO ESQUINAS | B28: 2 | C28: 631 | D28: 408 | E28: 389 | F28: 13 | G28: 0 | H28: 0 | I28: 4 | J28: 3 | K28: 174 | L28: 87 | M28: 82 | N28: 26 | O28: 17 | P28: 2 | Q28: 223
A29: PAVAS (GUARARÍ) | B29: 3 | C29: 1182 | D29: 776 | E29: 753 | F29: 15 | G29: 1 | H29: 2 | I29: 3 | J29: 0 | K29: 377 | L29: 153 | M29: 191 | N29: 11 | O29: 21 | P29: 2 | Q29: 406
A30: DISTRITO 4 SAN ANTONIO | B30: 39 | C30: 19195 | D30: 13339 | E30: 13104 | F30: 328 | G30: 6 | H30: 16 | I30: 114 | J30: 28 | K30: 6134 | L30: 3331 | M30: 2835 | N30: 312 | O30: 211 | P30: 24 | Q30: 5856
A31: SAN ANTONIO DEL TEJAR | B31: 5 | C31: 2476 | D31: 1814 | E31: 1785 | F31: 35 | G31: 2 | H31: 4 | I31: 13 | J31: 5 | K31: 859 | L31: 410 | M31: 432 | N31: 25 | O31: 27 | P31: 2 | Q31: 662
A32: EL ROBLE | B32: 15 | C32: 7440 | D32: 5096 | E32: 5010 | F32: 145 | G32: 3 | H32: 3 | I32: 46 | J32: 13 | K32: 2301 | L32: 1275 | M32: 1112 | N32: 112 | O32: 79 | P32: 7 | Q32: 2344
A33: VILLA BONITA (PARTE SUR) | B33: 12 | C33: 5907 | D33: 4087 | E33: 4023 | F33: 102 | G33: 1 | H33: 7 | I33: 30 | J33: 6 | K33: 1933 | L33: 945 | M33: 903 | N33: 96 | O33: 52 | P33: 12 | Q33: 1820
A34: CIRUELAS | B34: 7 | C34: 3372 | D34: 2342 | E34: 2286 | F34: 46 | G34: 0 | H34: 2 | I34: 25 | J34: 4 | K34: 1041 | L34: 701 | M34: 388 | N34: 79 | O34: 53 | P34: 3 | Q34: 1030
A35: DISTRITO 5 GUÁCIMA | B35: 24 | C35: 10822 | D35: 7767 | E35: 7572 | F35: 242 | G35: 7 | H35: 16 | I35: 66 | J35: 8 | K35: 3594 | L35: 1864 | M35: 1526 | N35: 249 | O35: 183 | P35: 12 | Q35: 3055
A36: GUÁCIMA (SANTIAGO OESTE) | B36: 8 | C36: 4039 | D36: 2957 | E36: 2898 | F36: 94 | G36: 2 | H36: 3 | I36: 17 | J36: 4 | K36: 1407 | L36: 589 | M36: 678 | N36: 104 | O36: 54 | P36: 5 | Q36: 1082
A37: EL COCO | B37: 7 | C37: 3060 | D37: 2069 | E37: 2014 | F37: 53 | G37: 2 | H37: 4 | I37: 21 | J37: 3 | K37: 866 | L37: 639 | M37: 376 | N37: 50 | O37: 49 | P37: 6 | Q37: 991
A38: LAS VUELTAS | B38: 2 | C38: 930 | D38: 725 | E38: 714 | F38: 16 | G38: 1 | H38: 2 | I38: 5 | J38: 0 | K38: 393 | L38: 119 | M38: 164 | N38: 14 | O38: 11 | P38: 0 | Q38: 205
A39: NUESTRO AMO | B39: 3 | C39: 1198 | D39: 970 | E39: 939 | F39: 48 | G39: 1 | H39: 0 | I39: 4 | J39: 0 | K39: 448 | L39: 226 | M39: 174 | N39: 38 | O39: 31 | P39: 0 | Q39: 228
A40: RINCÓN CHIQUITO | B40: 4 | C40: 1595 | D40: 1046 | E40: 1007 | F40: 31 | G40: 1 | H40: 7 | I40: 19 | J40: 1 | K40: 480 | L40: 291 | M40: 134 | N40: 43 | O40: 38 | P40: 1 | Q40: 549
A41: DISTRITO 6 SAN ISIDRO | B41: 23 | C41: 10208 | D41: 7096 | E41: 6913 | F41: 255 | G41: 2 | H41: 5 | I41: 29 | J41: 11 | K41: 3202 | L41: 1712 | M41: 1492 | N41: 205 | O41: 161 | P41: 22 | Q41: 3112
A42: SAN ISIDRO | B42: 4 | C42: 1653 | D42: 1117 | E42: 1090 | F42: 36 | G42: 0 | H42: 2 | I42: 1 | J42: 1 | K42: 517 | L42: 249 | M42: 252 | N42: 32 | O42: 20 | P42: 7 | Q42: 536
A43: ITIQUÍS | B43: 6 | C43: 2809 | D43: 1898 | E43: 1853 | F43: 75 | G43: 0 | H43: 0 | I43: 8 | J43: 8 | K43: 895 | L43: 466 | M43: 357 | N43: 44 | O43: 41 | P43: 4 | Q43: 911
A44: DULCE NOMBRE DE LAGUNA | B44: 3 | C44: 1286 | D44: 871 | E44: 824 | F44: 21 | G44: 1 | H44: 0 | I44: 3 | J44: 0 | K44: 373 | L44: 263 | M44: 137 | N44: 26 | O44: 44 | P44: 3 | Q44: 415
A45: SAN MARTÍN | B45: 4 | C45: 1922 | D45: 1418 | E45: 1395 | F45: 57 | G45: 0 | H45: 2 | I45: 6 | J45: 1 | K45: 670 | L45: 288 | M45: 343 | N45: 28 | O45: 21 | P45: 2 | Q45: 504
A46: TACACORÍ | B46: 3 | C46: 1417 | D46: 993 | E46: 972 | F46: 48 | G46: 1 | H46: 0 | I46: 8 | J46: 1 | K46: 432 | L46: 286 | M46: 173 | N46: 23 | O46: 19 | P46: 2 | Q46: 424
A47: CERRILLAL | B47: 1 | C47: 308 | D47: 208 | E47: 201 | F47: 8 | G47: 0 | H47: 1 | I47: 1 | J47: 0 | K47: 80 | L47: 54 | M47: 37 | N47: 20 | O47: 6 | P47: 1 | Q47: 100
A48: LAS PILAS | B48: 2 | C48: 813 | D48: 591 | E48: 578 | F48: 10 | G48: 0 | H48: 0 | I48: 2 | J48: 0 | K48: 235 | L48: 106 | M48: 193 | N48: 32 | O48: 10 | P48: 3 | Q48: 222
A49: DISTRITO 7 SABANILLA | B49: 12 | C49: 4480 | D49: 3107 | E49: 3033 | F49: 75 | G49: 4 | H49: 5 | I49: 20 | J49: 2 | K49: 1442 | L49: 805 | M49: 597 | N49: 83 | O49: 64 | P49: 10 | Q49: 1373
A50: SABANILLA | B50: 3 | C50: 1146 | D50: 824 | E50: 808 | F50: 18 | G50: 3 | H50: 1 | I50: 3 | J50: 0 | K50: 380 | L50: 163 | M50: 223 | N50: 17 | O50: 15 | P50: 1 | Q50: 322
A51: SAN LUIS | B51: 2 | C51: 806 | D51: 588 | E51: 582 | F51: 8 | G51: 0 | H51: 1 | I51: 3 | J51: 1 | K51: 309 | L51: 139 | M51: 106 | N51: 15 | O51: 5 | P51: 1 | Q51: 218
A52: LOS ÁNGELES | B52: 2 | C52: 773 | D52: 510 | E52: 497 | F52: 12 | G52: 0 | H52: 0 | I52: 2 | J52: 0 | K52: 242 | L52: 139 | M52: 83 | N52: 19 | O52: 12 | P52: 1 | Q52: 263
A53: FRAIJANES | B53: 2 | C53: 616 | D53: 408 | E53: 397 | F53: 10 | G53: 0 | H53: 1 | I53: 1 | J53: 1 | K53: 183 | L53: 126 | M53: 63 | N53: 12 | O53: 8 | P53: 3 | Q53: 208
A54: POASITO | B54: 2 | C54: 686 | D54: 469 | E54: 454 | F54: 20 | G54: 1 | H54: 0 | I54: 7 | J54: 0 | K54: 210 | L54: 159 | M54: 43 | N54: 14 | O54: 13 | P54: 2 | Q54: 217
A55: EL CERRO | B55: 1 | C55: 453 | D55: 308 | E55: 295 | F55: 7 | G55: 0 | H55: 2 | I55: 4 | J55: 0 | K55: 118 | L55: 79 | M55: 79 | N55: 6 | O55: 11 | P55: 2 | Q55: 145
A56: DISTRITO 8 SAN RAFAEL | B56: 39 | C56: 14357 | D56: 9543 | E56: 9411 | F56: 462 | G56: 7 | H56: 20 | I56: 42 | J56: 25 | K56: 4499 | L56: 2259 | M56: 1891 | N56: 206 | O56: 117 | P56: 15 | Q56: 4814
A57: SAN RAFAEL ESTE | B57: 12 | C57: 6006 | D57: 4404 | E57: 4348 | F57: 207 | G57: 3 | H57: 8 | I57: 18 | J57: 13 | K57: 2001 | L57: 1032 | M57: 980 | N57: 86 | O57: 52 | P57: 4 | Q57: 1602
A58: SAN RAFAEL OESTE | B58: 13 | C58: 6078 | D58: 4364 | E58: 4311 | F58: 165 | G58: 4 | H58: 8 | I58: 18 | J58: 8 | K58: 1976 | L58: 1181 | M58: 846 | N58: 105 | O58: 47 | P58: 6 | Q58: 1714
A59: C.P. TALLERES INDUSTRIALES | B59: 1 | C59: 154 | D59: 60 | E59: 58 | F59: 3 | G59: 0 | H59: 1 | I59: 0 | J59: 1 | K59: 41 | L59: 2 | M59: 8 | N59: 2 | O59: 1 | P59: 1 | Q59: 94
A60: C.P. SAN RAFAEL | B60: 2 | C60: 353 | D60: 102 | E60: 98 | F60: 11 | G60: 0 | H60: 0 | I60: 0 | J60: 1 | K60: 72 | L60: 6 | M60: 5 | N60: 3 | O60: 3 | P60: 1 | Q60: 251
A61: C.P. ÁMBITO B (MÍNIMA) | B61: 2 | C61: 336 | D61: 87 | E61: 87 | F61: 14 | G61: 0 | H61: 0 | I61: 2 | J61: 0 | K61: 47 | L61: 10 | M61: 12 | N61: 2 | O61: 0 | P61: 0 | Q61: 249
A62: C.P. ÁMBITO C (MEDIANA ABIERTA) | B62: 2 | C62: 356 | D62: 114 | E62: 109 | F62: 18 | G62: 0 | H62: 0 | I62: 0 | J62: 0 | K62: 76 | L62: 7 | M62: 8 | N62: 0 | O62: 3 | P62: 2 | Q62: 242
A63: C.P. ÁMBITOS D (MED CERRADA) E (MÁXIMA) | B63: 2 | C63: 317 | D63: 118 | E63: 115 | F63: 13 | G63: 0 | H63: 1 | I63: 2 | J63: 0 | K63: 83 | L63: 5 | M63: 9 | N63: 2 | O63: 3 | P63: 0 | Q63: 199
A64: C.P. GERARDO RODRÍGUEZ ECHEVERRÍA | B64: 3 | C64: 564 | D64: 181 | E64: 179 | F64: 14 | G64: 0 | H64: 1 | I64: 1 | J64: 1 | K64: 140 | L64: 8 | M64: 12 | N64: 2 | O64: 1 | P64: 1 | Q64: 383
A65: C.P. ADULTO MAYOR | B65: 1 | C65: 147 | D65: 86 | E65: 86 | F65: 16 | G65: 0 | H65: 1 | I65: 1 | J65: 1 | K65: 45 | L65: 8 | M65: 11 | N65: 3 | O65: 0 | P65: 0 | Q65: 61
A66: C.P. ADULTO JOVEN | B66: 1 | C66: 46 | D66: 27 | E66: 20 | F66: 1 | G66: 0 | H66: 0 | I66: 0 | J66: 0 | K66: 18 | L66: 0 | M66: 0 | N66: 1 | O66: 7 | P66: 0 | Q66: 19
A67: DISTRITO 9 RÍO SEGUNDO | B67: 18 | C67: 8807 | D67: 6086 | E67: 5988 | F67: 183 | G67: 7 | H67: 9 | I67: 30 | J67: 12 | K67: 2877 | L67: 1494 | M67: 1220 | N67: 156 | O67: 89 | P67: 9 | Q67: 2721
A68: RÍO SEGUNDO (SANTIAGO ESTE) | B68: 9 | C68: 4484 | D68: 3173 | E68: 3128 | F68: 83 | G68: 5 | H68: 4 | I68: 11 | J68: 10 | K68: 1483 | L68: 827 | M68: 618 | N68: 87 | O68: 39 | P68: 6 | Q68: 1311
A69: CACIQUE | B69: 5 | C69: 2478 | D69: 1710 | E69: 1682 | F69: 52 | G69: 2 | H69: 2 | I69: 9 | J69: 2 | K69: 849 | L69: 312 | M69: 414 | N69: 40 | O69: 25 | P69: 3 | Q69: 768
A70: VILLA HELIA (FINCA HELIA) | B70: 2 | C70: 899 | D70: 632 | E70: 620 | F70: 19 | G70: 0 | H70: 2 | I70: 4 | J70: 0 | K70: 293 | L70: 169 | M70: 113 | N70: 20 | O70: 12 | P70: 0 | Q70: 267
A71: CALIFORNIA | B71: 2 | C71: 946 | D71: 571 | E71: 558 | F71: 29 | G71: 0 | H71: 1 | I71: 6 | J71: 0 | K71: 252 | L71: 186 | M71: 75 | N71: 9 | O71: 13 | P71: 0 | Q71: 375
A72: DISTRITO 10 DESAMPARADOS | B72: 31 | C72: 14840 | D72: 10433 | E72: 10229 | F72: 320 | G72: 8 | H72: 12 | I72: 63 | J72: 16 | K72: 4602 | L72: 2715 | M72: 2221 | N72: 272 | O72: 179 | P72: 25 | Q72: 4407
A73: DESAMPARADOS | B73: 17 | C73: 8217 | D73: 5804 | E73: 5699 | F73: 185 | G73: 2 | H73: 8 | I73: 34 | J73: 10 | K73: 2531 | L73: 1591 | M73: 1198 | N73: 140 | O73: 91 | P73: 14 | Q73: 2413
A74: INVU LOS RODRÍGUEZ | B74: 12 | C74: 5842 | D74: 4089 | E74: 4003 | F74: 127 | G74: 5 | H74: 3 | I74: 28 | J74: 5 | K74: 1798 | L74: 995 | M74: 915 | N74: 127 | O74: 76 | P74: 10 | Q74: 1753
A75: ROSALES | B75: 2 | C75: 781 | D75: 540 | E75: 527 | F75: 8 | G75: 1 | H75: 1 | I75: 1 | J75: 1 | K75: 273 | L75: 129 | M75: 108 | N75: 5 | O75: 12 | P75: 1 | Q75: 241
A76: DISTRITO 11 TURRÚCARES | B76: 11 | C76: 4585 | D76: 3351 | E76: 3287 | F76: 110 | G76: 3 | H76: 3 | I76: 7 | J76: 10 | K76: 1543 | L76: 647 | M76: 895 | N76: 69 | O76: 55 | P76: 9 | Q76: 1234
A77: TURRÚCARES | B77: 6 | C77: 3040 | D77: 2218 | E77: 2175 | F77: 75 | G77: 0 | H77: 3 | I77: 5 | J77: 5 | K77: 1018 | L77: 464 | M77: 559 | N77: 46 | O77: 37 | P77: 6 | Q77: 822
A78: CEBADILLA | B78: 2 | C78: 736 | D78: 539 | E78: 532 | F78: 17 | G78: 2 | H78: 0 | I78: 1 | J78: 1 | K78: 226 | L78: 84 | M78: 192 | N78: 9 | O78: 6 | P78: 1 | Q78: 197
A79: SAN MIGUEL O CERRILLOS | B79: 2 | C79: 623 | D79: 444 | E79: 431 | F79: 16 | G79: 1 | H79: 0 | I79: 1 | J79: 2 | K79: 211 | L79: 79 | M79: 112 | N79: 9 | O79: 11 | P79: 2 | Q79: 179
A80: SIQUIARES | B80: 1 | C80: 186 | D80: 150 | E80: 149 | F80: 2 | G80: 0 | H80: 0 | I80: 0 | J80: 2 | K80: 88 | L80: 20 | M80: 32 | N80: 5 | O80: 1 | P80: 0 | Q80: 36
A81: DISTRITO 12 TAMBOR | B81: 17 | C81: 7696 | D81: 5471 | E81: 5389 | F81: 164 | G81: 4 | H81: 7 | I81: 40 | J81: 16 | K81: 2422 | L81: 1391 | M81: 1216 | N81: 129 | O81: 74 | P81: 8 | Q81: 2225
A82: TAMBOR (SANTA ANA) | B82: 4 | C82: 1649 | D82: 1251 | E82: 1239 | F82: 59 | G82: 0 | H82: 3 | I82: 9 | J82: 4 | K82: 534 | L82: 240 | M82: 363 | N82: 27 | O82: 11 | P82: 1 | Q82: 398
A83: CACAO | B83: 5 | C83: 2546 | D83: 1800 | E83: 1764 | F83: 32 | G83: 1 | H83: 2 | I83: 19 | J83: 1 | K83: 762 | L83: 578 | M83: 327 | N83: 42 | O83: 32 | P83: 4 | Q83: 746
A84: TUETAL NORTE (PARTE) | B84: 5 | C84: 2412 | D84: 1588 | E84: 1564 | F84: 49 | G84: 2 | H84: 2 | I84: 6 | J84: 5 | K84: 722 | L84: 418 | M84: 318 | N84: 42 | O84: 23 | P84: 1 | Q84: 824
A85: QUEBRADAS | B85: 3 | C85: 1089 | D85: 832 | E85: 822 | F85: 24 | G85: 1 | H85: 0 | I85: 6 | J85: 6 | K85: 404 | L85: 155 | M85: 208 | N85: 18 | O85: 8 | P85: 2 | Q85: 257
A86: DISTRITO 13 GARITA | B86: 9 | C86: 4105 | D86: 2838 | E86: 2794 | F86: 78 | G86: 4 | H86: 2 | I86: 14 | J86: 4 | K86: 1293 | L86: 670 | M86: 682 | N86: 47 | O86: 37 | P86: 7 | Q86: 1267
A87: GARITA | B87: 5 | C87: 2549 | D87: 1758 | E87: 1734 | F87: 53 | G87: 4 | H87: 1 | I87: 5 | J87: 3 | K87: 757 | L87: 428 | M87: 460 | N87: 23 | O87: 23 | P87: 1 | Q87: 791
A88: DULCE NOMBRE O LAS ÁNIMAS | B88: 4 | C88: 1556 | D88: 1080 | E88: 1060 | F88: 25 | G88: 0 | H88: 1 | I88: 9 | J88: 1 | K88: 536 | L88: 242 | M88: 222 | N88: 24 | O88: 14 | P88: 6 | Q88: 476
A89: DISTRITO 14 SARAPIQUÍ | B89: 6 | C89: 1566 | D89: 1058 | E89: 1042 | F89: 47 | G89: 2 | H89: 3 | I89: 7 | J89: 9 | K89: 547 | L89: 186 | M89: 225 | N89: 16 | O89: 10 | P89: 6 | Q89: 508
A90: UJARRÁS | B90: 2 | C90: 636 | D90: 417 | E90: 408 | F90: 13 | G90: 2 | H90: 1 | I90: 4 | J90: 1 | K90: 272 | L90: 51 | M90: 58 | N90: 6 | O90: 6 | P90: 3 | Q90: 219
A91: SAN MIGUEL DE SARAPIQUÍ | B91: 2 | C91: 801 | D91: 540 | E91: 535 | F91: 32 | G91: 0 | H91: 2 | I91: 3 | J91: 7 | K91: 225 | L91: 103 | M91: 155 | N91: 8 | O91: 2 | P91: 3 | Q91: 261
A92: CORAZÓN DE JESÚS | B92: 1 | C92: 71 | D92: 54 | E92: 54 | F92: 2 | G92: 0 | H92: 0 | I92: 0 | J92: 1 | K92: 34 | L92: 10 | M92: 6 | N92: 1 | O92: 0 | P92: 0 | Q92: 17
A93: EL PARAÍSO | B93: 1 | C93: 58 | D93: 47 | E93: 45 | F93: 0 | G93: 0 | H93: 0 | I93: 0 | J93: 0 | K93: 16 | L93: 22 | M93: 6 | N93: 1 | O93: 2 | P93: 0 | Q93: 11
A94: CANTÓN 2 SAN RAMÓN | B94: 126 | C94: 52853 | D94: 38829 | E94: 38088 | F94: 889 | G94: 25 | H94: 83 | I94: 289 | J94: 104 | K94: 15201 | L94: 5793 | M94: 15177 | N94: 527 | O94: 566 | P94: 175 | Q94: 14024
A95: DISTRITO 1 SAN RAMÓN | B95: 27 | C95: 13065 | D95: 9887 | E95: 9743 | F95: 201 | G95: 8 | H95: 15 | I95: 63 | J95: 29 | K95: 3925 | L95: 1184 | M95: 4196 | N95: 122 | O95: 112 | P95: 32 | Q95: 3178
A96: SAN RAMÓN | B96: 27 | C96: 13065 | D96: 9887 | E96: 9743 | F96: 201 | G96: 8 | H96: 15 | I96: 63 | J96: 29 | K96: 3925 | L96: 1184 | M96: 4196 | N96: 122 | O96: 112 | P96: 32 | Q96: 3178
A97: DISTRITO 2 SANTIAGO | B97: 8 | C97: 2914 | D97: 2174 | E97: 2129 | F97: 27 | G97: 1 | H97: 1 | I97: 13 | J97: 9 | K97: 981 | L97: 281 | M97: 788 | N97: 28 | O97: 28 | P97: 17 | Q97: 740
A98: SANTIAGO | B98: 4 | C98: 1863 | D98: 1403 | E98: 1380 | F98: 24 | G98: 1 | H98: 1 | I98: 6 | J98: 5 | K98: 611 | L98: 166 | M98: 547 | N98: 19 | O98: 11 | P98: 12 | Q98: 460
A99: SAN JOSÉ (RÍO JESÚS) | B99: 1 | C99: 356 | D99: 244 | E99: 236 | F99: 1 | G99: 0 | H99: 0 | I99: 2 | J99: 2 | K99: 114 | L99: 32 | M99: 82 | N99: 3 | O99: 4 | P99: 4 | Q99: 112
A100: ANGOSTURA | B100: 1 | C100: 161 | D100: 129 | E100: 127 | F100: 2 | G100: 0 | H100: 0 | I100: 0 | J100: 0 | K100: 75 | L100: 10 | M100: 38 | N100: 2 | O100: 2 | P100: 0 | Q100: 32
A101: CALLE LEÓN | B101: 1 | C101: 227 | D101: 165 | E101: 160 | F101: 0 | G101: 0 | H101: 0 | I101: 2 | J101: 1 | K101: 70 | L101: 29 | M101: 55 | N101: 3 | O101: 5 | P101: 0 | Q101: 62
A102: EMPALME | B102: 1 | C102: 307 | D102: 233 | E102: 226 | F102: 0 | G102: 0 | H102: 0 | I102: 3 | J102: 1 | K102: 111 | L102: 44 | M102: 66 | N102: 1 | O102: 6 | P102: 1 | Q102: 74
A103: DISTRITO 3 SAN JUAN | B103: 18 | C103: 8195 | D103: 5799 | E103: 5705 | F103: 142 | G103: 2 | H103: 11 | I103: 42 | J103: 18 | K103: 2205 | L103: 988 | M103: 2199 | N103: 98 | O103: 75 | P103: 19 | Q103: 2396
A104: SAN JUAN | B104: 17 | C104: 8141 | D104: 5769 | E104: 5676 | F104: 137 | G104: 2 | H104: 8 | I104: 42 | J104: 18 | K104: 2195 | L104: 983 | M104: 2193 | N104: 98 | O104: 74 | P104: 19 | Q104: 2372
A105: H.A. SAN RAMÓN | B105: 1 | C105: 54 | D105: 30 | E105: 29 | F105: 5 | G105: 0 | H105: 3 | I105: 0 | J105: 0 | K105: 10 | L105: 5 | M105: 6 | N105: 0 | O105: 1 | P105: 0 | Q105: 24
A106: DISTRITO 4 PIEDADES NORTE | B106: 11 | C106: 4335 | D106: 3249 | E106: 3193 | F106: 46 | G106: 4 | H106: 5 | I106: 17 | J106: 5 | K106: 1210 | L106: 624 | M106: 1222 | N106: 60 | O106: 40 | P106: 16 | Q106: 1086
A107: PIEDADES NORTE | B107: 2 | C107: 788 | D107: 575 | E107: 562 | F107: 9 | G107: 0 | H107: 0 | I107: 3 | J107: 1 | K107: 202 | L107: 136 | M107: 203 | N107: 8 | O107: 9 | P107: 4 | Q107: 213
A108: PIEDADES NOROESTE | B108: 1 | C108: 271 | D108: 222 | E108: 215 | F108: 0 | G108: 0 | H108: 1 | I108: 2 | J108: 0 | K108: 89 | L108: 31 | M108: 84 | N108: 8 | O108: 4 | P108: 3 | Q108: 49
A109: BOLÍVAR (ESPERANZA) | B109: 5 | C109: 2120 | D109: 1510 | E109: 1488 | F109: 18 | G109: 2 | H109: 3 | I109: 9 | J109: 3 | K109: 565 | L109: 294 | M109: 577 | N109: 17 | O109: 18 | P109: 4 | Q109: 610
A110: LA ESPERANZA | B110: 1 | C110: 527 | D110: 409 | E110: 401 | F110: 10 | G110: 0 | H110: 0 | I110: 1 | J110: 0 | K110: 140 | L110: 95 | M110: 149 | N110: 6 | O110: 4 | P110: 4 | Q110: 118
A111: LA PAZ | B111: 2 | C111: 629 | D111: 533 | E111: 527 | F111: 9 | G111: 2 | H111: 1 | I111: 2 | J111: 1 | K111: 214 | L111: 68 | M111: 209 | N111: 21 | O111: 5 | P111: 1 | Q111: 96
A112: DISTRITO 5 PIEDADES SUR | B112: 9 | C112: 2579 | D112: 1935 | E112: 1894 | F112: 22 | G112: 0 | H112: 5 | I112: 15 | J112: 8 | K112: 637 | L112: 211 | M112: 968 | N112: 28 | O112: 29 | P112: 12 | Q112: 644
A113: PIEDADES SUR | B113: 3 | C113: 1083 | D113: 795 | E113: 776 | F113: 12 | G113: 0 | H113: 1 | I113: 3 | J113: 4 | K113: 245 | L113: 68 | M113: 430 | N113: 13 | O113: 13 | P113: 6 | Q113: 288
A114: SALVADOR | B114: 1 | C114: 155 | D114: 130 | E114: 127 | F114: 1 | G114: 0 | H114: 0 | I114: 0 | J114: 0 | K114: 71 | L114: 9 | M114: 45 | N114: 1 | O114: 1 | P114: 2 | Q114: 25
A115: SAN FRANCISCO | B115: 1 | C115: 175 | D115: 131 | E115: 128 | F115: 2 | G115: 0 | H115: 1 | I115: 0 | J115: 0 | K115: 25 | L115: 7 | M115: 93 | N115: 0 | O115: 3 | P115: 0 | Q115: 44
A116: SAN MIGUEL | B116: 1 | C116: 534 | D116: 413 | E116: 404 | F116: 2 | G116: 0 | H116: 1 | I116: 7 | J116: 2 | K116: 155 | L116: 86 | M116: 143 | N116: 8 | O116: 7 | P116: 2 | Q116: 121
A117: BUREAL | B117: 1 | C117: 105 | D117: 79 | E117: 79 | F117: 1 | G117: 0 | H117: 1 | I117: 5 | J117: 0 | K117: 22 | L117: 7 | M117: 42 | N117: 1 | O117: 0 | P117: 0 | Q117: 26
A118: SOCORRO | B118: 1 | C118: 144 | D118: 107 | E118: 104 | F118: 2 | G118: 0 | H118: 1 | I118: 0 | J118: 1 | K118: 31 | L118: 9 | M118: 60 | N118: 0 | O118: 2 | P118: 1 | Q118: 37
A119: LA GUARIA | B119: 1 | C119: 383 | D119: 280 | E119: 276 | F119: 2 | G119: 0 | H119: 0 | I119: 0 | J119: 1 | K119: 88 | L119: 25 | M119: 155 | N119: 5 | O119: 3 | P119: 1 | Q119: 103
A120: DISTRITO 6 SAN RAFAEL | B120: 11 | C120: 4886 | D120: 3544 | E120: 3461 | F120: 97 | G120: 2 | H120: 5 | I120: 27 | J120: 9 | K120: 1474 | L120: 542 | M120: 1273 | N120: 32 | O120: 69 | P120: 14 | Q120: 1342
A121: SAN RAFAEL | B121: 5 | C121: 2299 | D121: 1714 | E121: 1683 | F121: 38 | G121: 1 | H121: 3 | I121: 17 | J121: 5 | K121: 659 | L121: 204 | M121: 738 | N121: 18 | O121: 28 | P121: 3 | Q121: 585
A122: BERLÍN | B122: 1 | C122: 493 | D122: 360 | E122: 353 | F122: 12 | G122: 0 | H122: 0 | I122: 0 | J122: 1 | K122: 207 | L122: 55 | M122: 77 | N122: 1 | O122: 4 | P122: 3 | Q122: 133
A123: CALLE ZAMORA | B123: 4 | C123: 1649 | D123: 1136 | E123: 1100 | F123: 42 | G123: 1 | H123: 0 | I123: 7 | J123: 3 | K123: 464 | L123: 199 | M123: 371 | N123: 13 | O123: 29 | P123: 7 | Q123: 513
A124: LLANO DE BRENES | B124: 1 | C124: 445 | D124: 334 | E124: 325 | F124: 5 | G124: 0 | H124: 2 | I124: 3 | J124: 0 | K124: 144 | L124: 84 | M124: 87 | N124: 0 | O124: 8 | P124: 1 | Q124: 111
A125: DISTRITO 7 SAN ISIDRO | B125: 5 | C125: 2314 | D125: 1683 | E125: 1644 | F125: 22 | G125: 2 | H125: 9 | I125: 7 | J125: 4 | K125: 697 | L125: 233 | M125: 643 | N125: 27 | O125: 27 | P125: 12 | Q125: 631
A126: SAN ISIDRO | B126: 3 | C126: 1512 | D126: 1137 | E126: 1117 | F126: 12 | G126: 1 | H126: 7 | I126: 3 | J126: 3 | K126: 450 | L126: 120 | M126: 502 | N126: 19 | O126: 12 | P126: 8 | Q126: 375
A127: GUARIA (RÍO GRANDE) | B127: 2 | C127: 802 | D127: 546 | E127: 527 | F127: 10 | G127: 1 | H127: 2 | I127: 4 | J127: 1 | K127: 247 | L127: 113 | M127: 141 | N127: 8 | O127: 15 | P127: 4 | Q127: 256
A128: DISTRITO 8 ÁNGELES | B128: 11 | C128: 4412 | D128: 3233 | E128: 3155 | F128: 81 | G128: 1 | H128: 5 | I128: 24 | J128: 7 | K128: 1060 | L128: 592 | M128: 1352 | N128: 33 | O128: 63 | P128: 15 | Q128: 1179
A129: LOS ÁNGELES SUR | B129: 2 | C129: 834 | D129: 618 | E129: 606 | F129: 20 | G129: 0 | H129: 1 | I129: 3 | J129: 0 | K129: 237 | L129: 89 | M129: 253 | N129: 3 | O129: 10 | P129: 2 | Q129: 216
A130: BAJO CÓRDOBA | B130: 1 | C130: 62 | D130: 39 | E130: 37 | F130: 2 | G130: 0 | H130: 0 | I130: 0 | J130: 1 | K130: 15 | L130: 10 | M130: 9 | N130: 0 | O130: 2 | P130: 0 | Q130: 23
A131: BAJO DE LOS RODRÍGUEZ | B131: 2 | C131: 978 | D131: 672 | E131: 650 | F131: 10 | G131: 0 | H131: 1 | I131: 6 | J131: 3 | K131: 243 | L131: 190 | M131: 188 | N131: 9 | O131: 16 | P131: 6 | Q131: 306
A132: LOS CRIQUES | B132: 1 | C132: 363 | D132: 293 | E132: 289 | F132: 3 | G132: 1 | H132: 0 | I132: 3 | J132: 0 | K132: 65 | L132: 18 | M132: 196 | N132: 3 | O132: 4 | P132: 0 | Q132: 70
A133: VALLE AZUL | B133: 2 | C133: 827 | D133: 636 | E133: 617 | F133: 20 | G133: 0 | H133: 3 | I133: 5 | J133: 0 | K133: 170 | L133: 98 | M133: 318 | N133: 3 | O133: 14 | P133: 5 | Q133: 191
A134: BAJO ZÚÑIGA | B134: 1 | C134: 323 | D134: 242 | E134: 237 | F134: 14 | G134: 0 | H134: 0 | I134: 1 | J134: 1 | K134: 52 | L134: 38 | M134: 130 | N134: 1 | O134: 4 | P134: 1 | Q134: 81
A135: CIUDADELA JARDINES | B135: 2 | C135: 1025 | D135: 733 | E135: 719 | F135: 12 | G135: 0 | H135: 0 | I135: 6 | J135: 2 | K135: 278 | L135: 149 | M135: 258 | N135: 14 | O135: 13 | P135: 1 | Q135: 292
A136: DISTRITO 9 ALFARO | B136: 8 | C136: 3129 | D136: 2255 | E136: 2205 | F136: 59 | G136: 1 | H136: 4 | I136: 23 | J136: 10 | K136: 842 | L136: 318 | M136: 916 | N136: 32 | O136: 35 | P136: 15 | Q136: 874
A137: ALFARO | B137: 5 | C137: 2410 | D137: 1783 | E137: 1748 | F137: 41 | G137: 0 | H137: 1 | I137: 23 | J137: 10 | K137: 631 | L137: 265 | M137: 747 | N137: 30 | O137: 26 | P137: 9 | Q137: 627
A138: CATARATA | B138: 2 | C138: 630 | D138: 449 | E138: 435 | F138: 16 | G138: 1 | H138: 3 | I138: 0 | J138: 0 | K138: 197 | L138: 49 | M138: 167 | N138: 2 | O138: 8 | P138: 6 | Q138: 181
A139: C.P. SAN RAMÓN | B139: 1 | C139: 89 | D139: 23 | E139: 22 | F139: 2 | G139: 0 | H139: 0 | I139: 0 | J139: 0 | K139: 14 | L139: 4 | M139: 2 | N139: 0 | O139: 1 | P139: 0 | Q139: 66
A140: DISTRITO 10 VOLIO | B140: 3 | C140: 1275 | D140: 932 | E140: 914 | F140: 21 | G140: 1 | H140: 4 | I140: 4 | J140: 1 | K140: 400 | L140: 165 | M140: 304 | N140: 14 | O140: 12 | P140: 6 | Q140: 343
A141: VOLIO | B141: 2 | C141: 1001 | D141: 719 | E141: 707 | F141: 14 | G141: 1 | H141: 3 | I141: 4 | J141: 1 | K141: 296 | L141: 136 | M141: 241 | N141: 11 | O141: 6 | P141: 6 | Q141: 282
A142: ALTO VILLEGAS | B142: 1 | C142: 274 | D142: 213 | E142: 207 | F142: 7 | G142: 0 | H142: 1 | I142: 0 | J142: 0 | K142: 104 | L142: 29 | M142: 63 | N142: 3 | O142: 6 | P142: 0 | Q142: 61
A143: DISTRITO 11 CONCEPCIÓN | B143: 3 | C143: 1459 | D143: 1082 | E143: 1060 | F143: 16 | G143: 0 | H143: 9 | I143: 11 | J143: 2 | K143: 435 | L143: 215 | M143: 343 | N143: 29 | O143: 17 | P143: 5 | Q143: 377
A144: CONCEPCIÓN | B144: 3 | C144: 1459 | D144: 1082 | E144: 1060 | F144: 16 | G144: 0 | H144: 9 | I144: 11 | J144: 2 | K144: 435 | L144: 215 | M144: 343 | N144: 29 | O144: 17 | P144: 5 | Q144: 377
A145: DISTRITO 12 ZAPOTAL | B145: 3 | C145: 303 | D145: 223 | E145: 215 | F145: 8 | G145: 0 | H145: 1 | I145: 0 | J145: 0 | K145: 101 | L145: 40 | M145: 64 | N145: 1 | O145: 6 | P145: 2 | Q145: 80
A146: SAN ANTONIO DE ZAPOTAL | B146: 1 | C146: 130 | D146: 98 | E146: 93 | F146: 3 | G146: 0 | H146: 0 | I146: 0 | J146: 0 | K146: 66 | L146: 16 | M146: 7 | N146: 1 | O146: 4 | P146: 1 | Q146: 32
A147: CARRERA BUENA | B147: 1 | C147: 116 | D147: 85 | E147: 83 | F147: 2 | G147: 0 | H147: 1 | I147: 0 | J147: 0 | K147: 24 | L147: 8 | M147: 48 | N147: 0 | O147: 2 | P147: 0 | Q147: 31
A148: ZAPOTAL PARTE ESTE | B148: 1 | C148: 57 | D148: 40 | E148: 39 | F148: 3 | G148: 0 | H148: 0 | I148: 0 | J148: 0 | K148: 11 | L148: 16 | M148: 9 | N148: 0 | O148: 0 | P148: 1 | Q148: 17
A149: DISTRITO 13 PEÑAS BLANCAS | B149: 9 | C149: 3987 | D149: 2833 | E149: 2770 | F149: 147 | G149: 3 | H149: 9 | I149: 43 | J149: 2 | K149: 1234 | L149: 400 | M149: 909 | N149: 23 | O149: 53 | P149: 10 | Q149: 1154
A150: SAN ISIDRO DE PEÑAS BLANCAS | B150: 2 | C150: 969 | D150: 673 | E150: 653 | F150: 76 | G150: 1 | H150: 2 | I150: 11 | J150: 0 | K150: 253 | L150: 101 | M150: 201 | N150: 8 | O150: 17 | P150: 3 | Q150: 296
A151: CHACHAGUA | B151: 3 | C151: 1547 | D151: 1075 | E151: 1054 | F151: 25 | G151: 1 | H151: 4 | I151: 16 | J151: 1 | K151: 520 | L151: 131 | M151: 349 | N151: 7 | O151: 17 | P151: 4 | Q151: 472
A152: COLONIA TRINIDAD | B152: 1 | C152: 476 | D152: 368 | E152: 362 | F152: 23 | G152: 0 | H152: 2 | I152: 1 | J152: 0 | K152: 133 | L152: 39 | M152: 159 | N152: 5 | O152: 4 | P152: 2 | Q152: 108
A153: SECTOR LOS ÁNGELES | B153: 1 | C153: 450 | D153: 324 | E153: 317 | F153: 13 | G153: 1 | H153: 1 | I153: 1 | J153: 0 | K153: 165 | L153: 44 | M153: 90 | N153: 2 | O153: 7 | P153: 0 | Q153: 126
A154: EL CASTILLO | B154: 1 | C154: 166 | D154: 112 | E154: 112 | F154: 3 | G154: 0 | H154: 0 | I154: 10 | J154: 1 | K154: 51 | L154: 30 | M154: 16 | N154: 1 | O154: 0 | P154: 0 | Q154: 54
A155: SAN MARTIN (EL BOSQUE) | B155: 1 | C155: 379 | D155: 281 | E155: 272 | F155: 7 | G155: 0 | H155: 0 | I155: 4 | J155: 0 | K155: 112 | L155: 55 | M155: 94 | N155: 0 | O155: 8 | P155: 1 | Q155: 98
A156: CANTÓN 3 GRECIA | B156: 119 | C156: 50109 | D156: 36847 | E156: 36246 | F156: 997 | G156: 28 | H156: 59 | I156: 243 | J156: 89 | K156: 16519 | L156: 7943 | M156: 9432 | N156: 936 | O156: 491 | P156: 110 | Q156: 13262
A157: DISTRITO 1 GRECIA | B157: 28 | C157: 13674 | D157: 10073 | E157: 9969 | F157: 271 | G157: 6 | H157: 8 | I157: 77 | J157: 30 | K157: 4630 | L157: 1976 | M157: 2727 | N157: 244 | O157: 81 | P157: 23 | Q157: 3601
A158: GRECIA | B158: 22 | C158: 10973 | D158: 8201 | E158: 8131 | F158: 240 | G158: 6 | H158: 7 | I158: 59 | J158: 24 | K158: 3774 | L158: 1461 | M158: 2382 | N158: 178 | O158: 55 | P158: 15 | Q158: 2772
A159: RINCÓN DE ARIAS | B159: 4 | C159: 2027 | D159: 1425 | E159: 1396 | F159: 20 | G159: 0 | H159: 0 | I159: 14 | J159: 6 | K159: 676 | L159: 364 | M159: 272 | N159: 44 | O159: 22 | P159: 7 | Q159: 602
A160: LOS LOTES (SAN VICENTE) | B160: 2 | C160: 674 | D160: 447 | E160: 442 | F160: 11 | G160: 0 | H160: 1 | I160: 4 | J160: 0 | K160: 180 | L160: 151 | M160: 73 | N160: 22 | O160: 4 | P160: 1 | Q160: 227
A161: DISTRITO 2 SAN ISIDRO | B161: 10 | C161: 3716 | D161: 2798 | E161: 2746 | F161: 115 | G161: 4 | H161: 5 | I161: 19 | J161: 4 | K161: 1141 | L161: 673 | M161: 716 | N161: 69 | O161: 46 | P161: 6 | Q161: 918
A162: MESÓN O DULCE NOMBRE | B162: 4 | C162: 1553 | D162: 1184 | E162: 1156 | F162: 75 | G162: 2 | H162: 2 | I162: 13 | J162: 1 | K162: 502 | L162: 250 | M162: 278 | N162: 33 | O162: 26 | P162: 2 | Q162: 369
A163: SAN FRANCISCO | B163: 2 | C163: 585 | D163: 398 | E163: 394 | F163: 14 | G163: 0 | H163: 0 | I163: 1 | J163: 1 | K163: 183 | L163: 100 | M163: 87 | N163: 8 | O163: 4 | P163: 0 | Q163: 187
A164: CALLE ACHIOTE | B164: 2 | C164: 580 | D164: 435 | E164: 429 | F164: 11 | G164: 1 | H164: 1 | I164: 2 | J164: 1 | K164: 164 | L164: 123 | M164: 111 | N164: 15 | O164: 6 | P164: 0 | Q164: 145
A165: SAN ISIDRO | B165: 2 | C165: 998 | D165: 781 | E165: 767 | F165: 15 | G165: 1 | H165: 2 | I165: 3 | J165: 1 | K165: 292 | L165: 200 | M165: 240 | N165: 13 | O165: 10 | P165: 4 | Q165: 217
A166: DISTRITO 3 SAN JOSÉ | B166: 11 | C166: 5261 | D166: 4053 | E166: 3995 | F166: 103 | G166: 5 | H166: 10 | I166: 18 | J166: 7 | K166: 1713 | L166: 897 | M166: 1143 | N166: 99 | O166: 43 | P166: 15 | Q166: 1208
A167: SAN JOSÉ Y SANTA GERTRUDIS NORTE | B167: 3 | C167: 1492 | D167: 1155 | E167: 1146 | F167: 29 | G167: 3 | H167: 6 | I167: 5 | J167: 2 | K167: 525 | L167: 222 | M167: 328 | N167: 26 | O167: 7 | P167: 2 | Q167: 337
A168: SANTA GERTRUDIS SUR | B168: 3 | C168: 1313 | D168: 1045 | E168: 1030 | F168: 38 | G168: 0 | H168: 1 | I168: 4 | J168: 1 | K168: 492 | L168: 238 | M168: 239 | N168: 17 | O168: 10 | P168: 5 | Q168: 268
A169: LA ARENA | B169: 2 | C169: 1019 | D169: 722 | E169: 708 | F169: 16 | G169: 2 | H169: 1 | I169: 5 | J169: 3 | K169: 255 | L169: 208 | M169: 197 | N169: 21 | O169: 11 | P169: 3 | Q169: 297
A170: CALLE RODRÍGUEZ | B170: 1 | C170: 420 | D170: 301 | E170: 296 | F170: 4 | G170: 0 | H170: 0 | I170: 0 | J170: 0 | K170: 82 | L170: 55 | M170: 140 | N170: 15 | O170: 5 | P170: 0 | Q170: 119
A171: CALLE SAN JOSÉ | B171: 1 | C171: 543 | D171: 419 | E171: 410 | F171: 2 | G171: 0 | H171: 1 | I171: 3 | J171: 0 | K171: 164 | L171: 103 | M171: 121 | N171: 16 | O171: 6 | P171: 3 | Q171: 124
A172: CEDRO | B172: 1 | C172: 474 | D172: 411 | E172: 405 | F172: 14 | G172: 0 | H172: 1 | I172: 1 | J172: 1 | K172: 195 | L172: 71 | M172: 118 | N172: 4 | O172: 4 | P172: 2 | Q172: 63
A173: DISTRITO 4 SAN ROQUE | B173: 18 | C173: 7196 | D173: 5733 | E173: 5636 | F173: 111 | G173: 1 | H173: 4 | I173: 25 | J173: 13 | K173: 2506 | L173: 985 | M173: 1854 | N173: 137 | O173: 77 | P173: 20 | Q173: 1463
A174: SAN ROQUE | B174: 7 | C174: 3368 | D174: 2708 | E174: 2658 | F174: 49 | G174: 1 | H174: 3 | I174: 5 | J174: 2 | K174: 1184 | L174: 516 | M174: 833 | N174: 65 | O174: 42 | P174: 8 | Q174: 660
A175: SAN MIGUEL | B175: 1 | C175: 425 | D175: 356 | E175: 354 | F175: 6 | G175: 0 | H175: 1 | I175: 0 | J175: 0 | K175: 124 | L175: 50 | M175: 172 | N175: 1 | O175: 1 | P175: 1 | Q175: 69
A176: BARRIO LATINO (AGUALOTE) | B176: 4 | C176: 1802 | D176: 1355 | E176: 1329 | F176: 27 | G176: 0 | H176: 0 | I176: 11 | J176: 6 | K176: 599 | L176: 254 | M176: 394 | N176: 38 | O176: 21 | P176: 5 | Q176: 447
A177: CARBONAL (CRISTO REY) | B177: 2 | C177: 773 | D177: 664 | E177: 655 | F177: 16 | G177: 0 | H177: 0 | I177: 3 | J177: 2 | K177: 328 | L177: 65 | M177: 225 | N177: 16 | O177: 7 | P177: 2 | Q177: 109
A178: SAN MIGUEL ARRIBA | B178: 1 | C178: 185 | D178: 154 | E178: 152 | F178: 0 | G178: 0 | H178: 0 | I178: 0 | J178: 0 | K178: 50 | L178: 16 | M178: 85 | N178: 1 | O178: 0 | P178: 2 | Q178: 31
A179: LEÓN CORTÉS CASTRO | B179: 2 | C179: 565 | D179: 446 | E179: 438 | F179: 8 | G179: 0 | H179: 0 | I179: 4 | J179: 3 | K179: 198 | L179: 79 | M179: 130 | N179: 16 | O179: 6 | P179: 2 | Q179: 119
A180: H.A. JAFETH JIMÉNEZ MORALES | B180: 1 | C180: 78 | D180: 50 | E180: 50 | F180: 5 | G180: 0 | H180: 0 | I180: 2 | J180: 0 | K180: 23 | L180: 5 | M180: 15 | N180: 0 | O180: 0 | P180: 0 | Q180: 28
A181: DISTRITO 5 TACARES | B181: 10 | C181: 4682 | D181: 3401 | E181: 3344 | F181: 93 | G181: 6 | H181: 5 | I181: 19 | J181: 14 | K181: 1600 | L181: 967 | M181: 549 | N181: 91 | O181: 44 | P181: 13 | Q181: 1281
A182: TACARES | B182: 5 | C182: 2233 | D182: 1607 | E182: 1582 | F182: 35 | G182: 4 | H182: 4 | I182: 11 | J182: 9 | K182: 697 | L182: 532 | M182: 247 | N182: 43 | O182: 19 | P182: 6 | Q182: 626
A183: CATALUÑA | B183: 2 | C183: 937 | D183: 707 | E183: 695 | F183: 22 | G183: 1 | H183: 0 | I183: 1 | J183: 1 | K183: 422 | L183: 155 | M183: 73 | N183: 20 | O183: 9 | P183: 3 | Q183: 230
A184: BODEGAS | B184: 3 | C184: 1512 | D184: 1087 | E184: 1067 | F184: 36 | G184: 1 | H184: 1 | I184: 7 | J184: 4 | K184: 481 | L184: 280 | M184: 229 | N184: 28 | O184: 16 | P184: 4 | Q184: 425
A185: DISTRITO 6 RÍO CUARTO | B185: 14 | C185: 4612 | D185: 2734 | E185: 2670 | F185: 71 | G185: 1 | H185: 4 | I185: 29 | J185: 2 | K185: 1280 | L185: 662 | M185: 585 | N185: 36 | O185: 55 | P185: 9 | Q185: 1878
A186: COLONIA AGRÍCOLA DEL TORO | B186: 1 | C186: 208 | D186: 160 | E186: 158 | F186: 4 | G186: 0 | H186: 0 | I186: 3 | J186: 0 | K186: 64 | L186: 16 | M186: 69 | N186: 2 | O186: 2 | P186: 0 | Q186: 48
A187: RÍO CUARTO | B187: 3 | C187: 1384 | D187: 963 | E187: 947 | F187: 31 | G187: 0 | H187: 1 | I187: 9 | J187: 0 | K187: 474 | L187: 203 | M187: 219 | N187: 10 | O187: 12 | P187: 4 | Q187: 421
A188: SAN RAFAEL DE RÍO CUARTO (CUCARACHO) | B188: 1 | C188: 321 | D188: 170 | E188: 166 | F188: 10 | G188: 0 | H188: 1 | I188: 0 | J188: 1 | K188: 53 | L188: 66 | M188: 32 | N188: 3 | O188: 4 | P188: 0 | Q188: 151
A189: LA TABLA | B189: 1 | C189: 442 | D189: 221 | E189: 212 | F189: 2 | G189: 0 | H189: 0 | I189: 2 | J189: 0 | K189: 96 | L189: 55 | M189: 53 | N189: 4 | O189: 9 | P189: 0 | Q189: 221
A190: LOS ÁNGELES | B190: 1 | C190: 120 | D190: 60 | E190: 57 | F190: 3 | G190: 0 | H190: 0 | I190: 1 | J190: 0 | K190: 27 | L190: 6 | M190: 20 | N190: 0 | O190: 2 | P190: 1 | Q190: 60
A191: SANTA RITA | B191: 2 | C191: 1024 | D191: 525 | E191: 504 | F191: 7 | G191: 0 | H191: 1 | I191: 6 | J191: 0 | K191: 287 | L191: 123 | M191: 70 | N191: 10 | O191: 19 | P191: 2 | Q191: 499
A192: SANTA ISABEL | B192: 1 | C192: 546 | D192: 310 | E192: 304 | F192: 2 | G192: 1 | H192: 0 | I192: 4 | J192: 1 | K192: 135 | L192: 92 | M192: 65 | N192: 4 | O192: 5 | P192: 1 | Q192: 236
A193: LA VICTORIA | B193: 1 | C193: 271 | D193: 142 | E193: 141 | F193: 5 | G193: 0 | H193: 1 | I193: 2 | J193: 0 | K193: 62 | L193: 46 | M193: 25 | N193: 0 | O193: 0 | P193: 1 | Q193: 129
A194: SAN VICENTE | B194: 1 | C194: 109 | D194: 60 | E194: 59 | F194: 2 | G194: 0 | H194: 0 | I194: 0 | J194: 0 | K194: 20 | L194: 21 | M194: 14 | N194: 2 | O194: 1 | P194: 0 | Q194: 49
A195: LA ESPAÑOLITA | B195: 1 | C195: 154 | D195: 102 | E195: 101 | F195: 5 | G195: 0 | H195: 0 | I195: 1 | J195: 0 | K195: 48 | L195: 30 | M195: 16 | N195: 1 | O195: 1 | P195: 0 | Q195: 52
A196: PATA DE GALLO | B196: 1 | C196: 33 | D196: 21 | E196: 21 | F196: 0 | G196: 0 | H196: 0 | I196: 1 | J196: 0 | K196: 14 | L196: 4 | M196: 2 | N196: 0 | O196: 0 | P196: 0 | Q196: 12
A197: DISTRITO 7 PUENTE DE PIEDRA | B197: 16 | C197: 6392 | D197: 4771 | E197: 4671 | F197: 163 | G197: 2 | H197: 12 | I197: 32 | J197: 13 | K197: 2319 | L197: 1139 | M197: 799 | N197: 192 | O197: 88 | P197: 12 | Q197: 1621
A198: PUENTE DE PIEDRA | B198: 3 | C198: 1285 | D198: 974 | E198: 947 | F198: 36 | G198: 0 | H198: 1 | I198: 9 | J198: 3 | K198: 457 | L198: 236 | M198: 176 | N198: 29 | O198: 25 | P198: 2 | Q198: 311
A199: RINCÓN DE SALAS | B199: 3 | C199: 1122 | D199: 856 | E199: 841 | F199: 18 | G199: 0 | H199: 3 | I199: 5 | J199: 1 | K199: 342 | L199: 222 | M199: 195 | N199: 55 | O199: 14 | P199: 1 | Q199: 266
A200: ALTOS DE PERALTA | B200: 4 | C200: 1605 | D200: 1180 | E200: 1161 | F200: 30 | G200: 1 | H200: 1 | I200: 7 | J200: 3 | K200: 692 | L200: 271 | M200: 120 | N200: 36 | O200: 16 | P200: 3 | Q200: 425
A201: PORÓ | B201: 3 | C201: 1072 | D201: 795 | E201: 781 | F201: 32 | G201: 1 | H201: 4 | I201: 8 | J201: 3 | K201: 344 | L201: 165 | M201: 196 | N201: 28 | O201: 13 | P201: 1 | Q201: 277
A202: BAJO ROSALES | B202: 1 | C202: 268 | D202: 185 | E202: 175 | F202: 30 | G202: 0 | H202: 0 | I202: 0 | J202: 1 | K202: 67 | L202: 55 | M202: 14 | N202: 8 | O202: 7 | P202: 3 | Q202: 83
A203: LA ARGENTINA | B203: 2 | C203: 1040 | D203: 781 | E203: 766 | F203: 17 | G203: 0 | H203: 3 | I203: 3 | J203: 2 | K203: 417 | L203: 190 | M203: 98 | N203: 36 | O203: 13 | P203: 2 | Q203: 259
... 365 more rows

Sheet C1.12
A2: CUADRO 1.12 CARTAGO: JUNTAS, ELECTORADO, VOTOS POR PARTIDO, NULOS Y BLANCOS PARA PRESIDENCIA Y VICEPRESIDENCIAS DE LA REPÚBLICA
A3: SEGÚN CANTÓN, DISTRITO ADMINISTRATIVO Y DISTRITO ELECTORAL, ELECCIONES 7 DE FEBRERO 2010
A5: CANTÓN, DISTRITO ADMINISTRATIVO Y DISTRITO ELECTORAL | B5: JUNTAS | C5: ELECTORADO | D5: VOTOS RECIBIDOS | Q5: ABSTENCIONISMO
D6: TOTAL GENERAL | E6: VOTOS VÁLIDOS | O6: VOTOS NULOS | P6: VOTOS BLANCOS
E7: TOTAL | F7: UNIDAD SOCIAL CRISTIANA | G7: INTEGRACIÓN NACIONAL | H7: ALIANZA PATRIÓTICA | I7: RENOVACIÓN COSTARRICENSE | J7: FRENTE AMPLIO | K7: LIBERACIÓN NACIONAL | L7: MOVIMIENTO LIBERTARIO | M7: ACCIÓN CIUDADANA | N7: ACCESIBILIDAD SIN EXCLUSIÓN
A9: CARTAGO | B9: 746 | C9: 328782 | D9: 243705 | E9: 239146 | F9: 10143 | G9: 240 | H9: 388 | I9: 977 | J9: 937 | K9: 118926 | L9: 46414 | M9: 56095 | N9: 5026 | O9: 3763 | P9: 796 | Q9: 85077
A10: CANTÓN 1 CARTAGO | B10: 223 | C10: 104564 | D10: 79840 | E10: 78498 | F10: 2861 | G10: 79 | H10: 101 | I10: 316 | J10: 391 | K10: 40298 | L10: 14738 | M10: 18176 | N10: 1538 | O10: 1126 | P10: 216 | Q10: 24724
A11: DISTRITO 1 ORIENTAL | B11: 27 | C11: 13347 | D11: 10489 | E11: 10370 | F11: 401 | G11: 12 | H11: 18 | I11: 29 | J11: 63 | K11: 5235 | L11: 1484 | M11: 2992 | N11: 136 | O11: 110 | P11: 9 | Q11: 2858
A12: ORIENTAL | B12: 27 | C12: 13347 | D12: 10489 | E12: 10370 | F12: 401 | G12: 12 | H12: 18 | I12: 29 | J12: 63 | K12: 5235 | L12: 1484 | M12: 2992 | N12: 136 | O12: 110 | P12: 9 | Q12: 2858
A13: DISTRITO 2 OCCIDENTAL | B13: 20 | C13: 9665 | D13: 7674 | E13: 7588 | F13: 234 | G13: 6 | H13: 5 | I13: 25 | J13: 54 | K13: 3850 | L13: 1170 | M13: 2133 | N13: 111 | O13: 71 | P13: 15 | Q13: 1991
A14: OCCIDENTAL | B14: 19 | C14: 9546 | D14: 7603 | E14: 7522 | F14: 223 | G14: 6 | H14: 4 | I14: 25 | J14: 54 | K14: 3813 | L14: 1163 | M14: 2124 | N14: 110 | O14: 67 | P14: 14 | Q14: 1943
A15: H.A. ASILO DE LA VEJEZ | B15: 1 | C15: 119 | D15: 71 | E15: 66 | F15: 11 | G15: 0 | H15: 1 | I15: 0 | J15: 0 | K15: 37 | L15: 7 | M15: 9 | N15: 1 | O15: 4 | P15: 1 | Q15: 48
A16: DISTRITO 3 CARMEN | B16: 25 | C16: 11878 | D16: 9072 | E16: 8935 | F16: 296 | G16: 3 | H16: 6 | I16: 27 | J16: 64 | K16: 4485 | L16: 1668 | M16: 2179 | N16: 207 | O16: 119 | P16: 18 | Q16: 2806
A17: EL CARMEN | B17: 14 | C17: 6679 | D17: 5031 | E17: 4939 | F17: 147 | G17: 2 | H17: 2 | I17: 11 | J17: 36 | K17: 2466 | L17: 961 | M17: 1209 | N17: 105 | O17: 77 | P17: 15 | Q17: 1648
A18: SAN BLAS | B18: 11 | C18: 5199 | D18: 4041 | E18: 3996 | F18: 149 | G18: 1 | H18: 4 | I18: 16 | J18: 28 | K18: 2019 | L18: 707 | M18: 970 | N18: 102 | O18: 42 | P18: 3 | Q18: 1158
A19: DISTRITO 4 SAN NICOLÁS | B19: 34 | C19: 16082 | D19: 12020 | E19: 11815 | F19: 422 | G19: 10 | H19: 15 | I19: 72 | J19: 58 | K19: 6218 | L19: 2480 | M19: 2282 | N19: 258 | O19: 175 | P19: 30 | Q19: 4062
A20: SAN NICOLÁS | B20: 12 | C20: 5825 | D20: 4451 | E20: 4387 | F20: 144 | G20: 3 | H20: 2 | I20: 24 | J20: 14 | K20: 2270 | L20: 847 | M20: 1002 | N20: 81 | O20: 50 | P20: 14 | Q20: 1374
A21: ALTO DE OCHOMOGO | B21: 5 | C21: 2121 | D21: 1508 | E21: 1480 | F21: 85 | G21: 1 | H21: 4 | I21: 11 | J21: 5 | K21: 798 | L21: 312 | M21: 243 | N21: 21 | O21: 25 | P21: 3 | Q21: 613
A22: LA LIMA | B22: 5 | C22: 2452 | D22: 1778 | E22: 1743 | F22: 76 | G22: 1 | H22: 3 | I22: 4 | J22: 13 | K22: 925 | L22: 383 | M22: 311 | N22: 27 | O22: 30 | P22: 5 | Q22: 674
A23: QUIRCOT | B23: 7 | C23: 3417 | D23: 2531 | E23: 2484 | F23: 70 | G23: 4 | H23: 4 | I23: 27 | J23: 18 | K23: 1260 | L23: 576 | M23: 433 | N23: 92 | O23: 43 | P23: 4 | Q23: 886
A24: PÓLVORA O LOYOLA | B24: 5 | C24: 2267 | D24: 1752 | E24: 1721 | F24: 47 | G24: 1 | H24: 2 | I24: 6 | J24: 8 | K24: 965 | L24: 362 | M24: 293 | N24: 37 | O24: 27 | P24: 4 | Q24: 515
A25: DISTRITO 5 AGUACALIENTE O SAN FRANCISCO | B25: 44 | C25: 20317 | D25: 15359 | E25: 15074 | F25: 643 | G25: 19 | H25: 20 | I25: 73 | J25: 68 | K25: 7628 | L25: 3336 | M25: 2949 | N25: 338 | O25: 237 | P25: 48 | Q25: 4958
A26: SAN FRANCISCO | B26: 15 | C26: 7263 | D26: 5688 | E26: 5599 | F26: 253 | G26: 6 | H26: 3 | I26: 31 | J26: 28 | K26: 2953 | L26: 1134 | M26: 1041 | N26: 150 | O26: 75 | P26: 14 | Q26: 1575
A27: LOURDES | B27: 5 | C27: 2436 | D27: 1906 | E27: 1844 | F27: 78 | G27: 5 | H27: 4 | I27: 5 | J27: 6 | K27: 858 | L27: 511 | M27: 332 | N27: 45 | O27: 55 | P27: 7 | Q27: 530
A28: PITAHAYA | B28: 13 | C28: 6149 | D28: 4786 | E28: 4729 | F28: 147 | G28: 4 | H28: 7 | I28: 22 | J28: 17 | K28: 2286 | L28: 958 | M28: 1213 | N28: 75 | O28: 42 | P28: 15 | Q28: 1363
A29: MANUEL DE JESÚS JIMÉNEZ | B29: 8 | C29: 3999 | D29: 2781 | E29: 2708 | F29: 143 | G29: 3 | H29: 6 | I29: 13 | J29: 15 | K29: 1396 | L29: 710 | M29: 355 | N29: 67 | O29: 62 | P29: 11 | Q29: 1218
A30: C.P. SAN FRANCISCO | B30: 3 | C30: 470 | D30: 198 | E30: 194 | F30: 22 | G30: 1 | H30: 0 | I30: 2 | J30: 2 | K30: 135 | L30: 23 | M30: 8 | N30: 1 | O30: 3 | P30: 1 | Q30: 272
A31: DISTRITO 6 GUADALUPE | B31: 20 | C31: 10009 | D31: 7823 | E31: 7711 | F31: 279 | G31: 7 | H31: 12 | I31: 25 | J31: 33 | K31: 3885 | L31: 1742 | M31: 1577 | N31: 151 | O31: 95 | P31: 17 | Q31: 2186
A32: GUADALUPE O ARENILLA | B32: 20 | C32: 10009 | D32: 7823 | E32: 7711 | F32: 279 | G32: 7 | H32: 12 | I32: 25 | J32: 33 | K32: 3885 | L32: 1742 | M32: 1577 | N32: 151 | O32: 95 | P32: 17 | Q32: 2186
A33: DISTRITO 7 CORRALILLO | B33: 18 | C33: 7164 | D33: 5416 | E33: 5277 | F33: 144 | G33: 11 | H33: 5 | I33: 30 | J33: 12 | K33: 3411 | L33: 639 | M33: 937 | N33: 88 | O33: 107 | P33: 32 | Q33: 1748
A34: CORRALILLO | B34: 3 | C34: 1303 | D34: 935 | E34: 900 | F34: 32 | G34: 1 | H34: 2 | I34: 14 | J34: 4 | K34: 502 | L34: 132 | M34: 197 | N34: 16 | O34: 26 | P34: 9 | Q34: 368
A35: SAN JUAN NORTE | B35: 1 | C35: 492 | D35: 397 | E35: 388 | F35: 7 | G35: 1 | H35: 0 | I35: 1 | J35: 0 | K35: 256 | L35: 33 | M35: 76 | N35: 14 | O35: 6 | P35: 3 | Q35: 95
A36: SAN JUAN SUR | B36: 3 | C36: 1286 | D36: 992 | E36: 971 | F36: 12 | G36: 2 | H36: 1 | I36: 2 | J36: 1 | K36: 669 | L36: 122 | M36: 143 | N36: 19 | O36: 16 | P36: 5 | Q36: 294
A37: SANTA ELENA ARRIBA | B37: 2 | C37: 977 | D37: 731 | E37: 710 | F37: 14 | G37: 2 | H37: 0 | I37: 4 | J37: 1 | K37: 466 | L37: 110 | M37: 94 | N37: 19 | O37: 16 | P37: 5 | Q37: 246
A38: LLANO DE LOS ÁNGELES | B38: 2 | C38: 934 | D38: 708 | E38: 694 | F38: 27 | G38: 1 | H38: 1 | I38: 3 | J38: 1 | K38: 529 | L38: 48 | M38: 80 | N38: 4 | O38: 12 | P38: 2 | Q38: 226
A39: SAN ANTONIO | B39: 2 | C39: 674 | D39: 559 | E39: 549 | F39: 35 | G39: 0 | H39: 0 | I39: 0 | J39: 2 | K39: 319 | L39: 66 | M39: 125 | N39: 2 | O39: 8 | P39: 2 | Q39: 115
A40: SAN ISIDRO O EL ALUMBRE | B40: 2 | C40: 586 | D40: 388 | E40: 370 | F40: 12 | G40: 2 | H40: 1 | I40: 4 | J40: 2 | K40: 197 | L40: 61 | M40: 87 | N40: 4 | O40: 12 | P40: 6 | Q40: 198
A41: RÍO CONEJO | B41: 2 | C41: 633 | D41: 476 | E41: 467 | F41: 3 | G41: 1 | H41: 0 | I41: 2 | J41: 0 | K41: 314 | L41: 42 | M41: 99 | N41: 6 | O41: 9 | P41: 0 | Q41: 157
A42: LOMA LARGA | B42: 1 | C42: 279 | D42: 230 | E42: 228 | F42: 2 | G42: 1 | H42: 0 | I42: 0 | J42: 1 | K42: 159 | L42: 25 | M42: 36 | N42: 4 | O42: 2 | P42: 0 | Q42: 49
A43: DISTRITO 8 TIERRA BLANCA | B43: 8 | C43: 3851 | D43: 2973 | E43: 2911 | F43: 74 | G43: 4 | H43: 4 | I43: 10 | J43: 9 | K43: 1130 | L43: 446 | M43: 1178 | N43: 56 | O43: 58 | P43: 4 | Q43: 878
A44: TIERRA BLANCA | B44: 8 | C44: 3851 | D44: 2973 | E44: 2911 | F44: 74 | G44: 4 | H44: 4 | I44: 10 | J44: 9 | K44: 1130 | L44: 446 | M44: 1178 | N44: 56 | O44: 58 | P44: 4 | Q44: 878
A45: DISTRITO 9 DULCE NOMBRE | B45: 13 | C45: 6049 | D45: 4671 | E45: 4585 | F45: 208 | G45: 4 | H45: 10 | I45: 14 | J45: 18 | K45: 2296 | L45: 866 | M45: 1038 | N45: 131 | O45: 70 | P45: 16 | Q45: 1378
A46: DULCE NOMBRE | B46: 7 | C46: 3359 | D46: 2665 | E46: 2617 | F46: 127 | G46: 2 | H46: 8 | I46: 5 | J46: 9 | K46: 1299 | L46: 484 | M46: 602 | N46: 81 | O46: 36 | P46: 12 | Q46: 694
A47: NAVARRO | B47: 1 | C47: 206 | D47: 150 | E47: 144 | F47: 10 | G47: 0 | H47: 1 | I47: 0 | J47: 0 | K47: 91 | L47: 18 | M47: 24 | N47: 0 | O47: 6 | P47: 0 | Q47: 56
A48: CABALLO BLANCO (SUR CARRETERA) | B48: 5 | C48: 2484 | D48: 1856 | E48: 1824 | F48: 71 | G48: 2 | H48: 1 | I48: 9 | J48: 9 | K48: 906 | L48: 364 | M48: 412 | N48: 50 | O48: 28 | P48: 4 | Q48: 628
A49: DISTRITO 10 LLANO GRANDE | B49: 6 | C49: 2763 | D49: 1917 | E49: 1878 | F49: 64 | G49: 2 | H49: 5 | I49: 2 | J49: 5 | K49: 860 | L49: 341 | M49: 560 | N49: 39 | O49: 26 | P49: 13 | Q49: 846
A50: LLANO GRANDE | B50: 4 | C50: 1918 | D50: 1269 | E50: 1244 | F50: 30 | G50: 1 | H50: 5 | I50: 2 | J50: 2 | K50: 579 | L50: 250 | M50: 355 | N50: 20 | O50: 17 | P50: 8 | Q50: 649
A51: AZAHAR (PÉNJAMO) | B51: 2 | C51: 845 | D51: 648 | E51: 634 | F51: 34 | G51: 1 | H51: 0 | I51: 0 | J51: 3 | K51: 281 | L51: 91 | M51: 205 | N51: 19 | O51: 9 | P51: 5 | Q51: 197
A52: DISTRITO 11 QUEBRADILLA | B52: 8 | C52: 3439 | D52: 2426 | E52: 2354 | F52: 96 | G52: 1 | H52: 1 | I52: 9 | J52: 7 | K52: 1300 | L52: 566 | M52: 351 | N52: 23 | O52: 58 | P52: 14 | Q52: 1013
A53: QUEBRADILLA | B53: 5 | C53: 2210 | D53: 1626 | E53: 1589 | F53: 46 | G53: 0 | H53: 1 | I53: 9 | J53: 6 | K53: 855 | L53: 391 | M53: 260 | N53: 21 | O53: 31 | P53: 6 | Q53: 584
A54: BERMEJO | B54: 2 | C54: 995 | D54: 619 | E54: 589 | F54: 50 | G54: 1 | H54: 0 | I54: 0 | J54: 1 | K54: 312 | L54: 160 | M54: 63 | N54: 2 | O54: 23 | P54: 7 | Q54: 376
A55: COPALCHÍ | B55: 1 | C55: 234 | D55: 181 | E55: 176 | F55: 0 | G55: 0 | H55: 0 | I55: 0 | J55: 0 | K55: 133 | L55: 15 | M55: 28 | N55: 0 | O55: 4 | P55: 1 | Q55: 53
A56: CANTÓN 2 PARAÍSO | B56: 87 | C56: 39163 | D56: 28997 | E56: 28389 | F56: 1366 | G56: 19 | H56: 47 | I56: 103 | J56: 115 | K56: 13033 | L56: 6026 | M56: 7079 | N56: 601 | O56: 488 | P56: 120 | Q56: 10166
A57: DISTRITO 1 PARAÍSO | B57: 34 | C57: 16468 | D57: 12532 | E57: 12319 | F57: 500 | G57: 8 | H57: 13 | I57: 21 | J57: 52 | K57: 5611 | L57: 2137 | M57: 3659 | N57: 318 | O57: 169 | P57: 44 | Q57: 3936
A58: PARAÍSO | B58: 29 | C58: 14322 | D58: 11044 | E58: 10874 | F58: 456 | G58: 7 | H58: 7 | I58: 17 | J58: 49 | K58: 4823 | L58: 1825 | M58: 3388 | N58: 302 | O58: 138 | P58: 32 | Q58: 3278
A59: BIRRISITO | B59: 3 | C59: 1385 | D59: 995 | E59: 966 | F59: 18 | G59: 1 | H59: 3 | I59: 3 | J59: 3 | K59: 533 | L59: 196 | M59: 198 | N59: 11 | O59: 23 | P59: 6 | Q59: 390
A60: UJARRÁS | B60: 2 | C60: 761 | D60: 493 | E60: 479 | F60: 26 | G60: 0 | H60: 3 | I60: 1 | J60: 0 | K60: 255 | L60: 116 | M60: 73 | N60: 5 | O60: 8 | P60: 6 | Q60: 268
A61: DISTRITO 2 SANTIAGO | B61: 9 | C61: 3381 | D61: 2440 | E61: 2368 | F61: 82 | G61: 1 | H61: 3 | I61: 27 | J61: 8 | K61: 1430 | L61: 376 | M61: 402 | N61: 39 | O61: 58 | P61: 14 | Q61: 941
A62: SANTIAGO | B62: 3 | C62: 1158 | D62: 849 | E62: 813 | F62: 27 | G62: 0 | H62: 1 | I62: 13 | J62: 6 | K62: 550 | L62: 100 | M62: 108 | N62: 8 | O62: 29 | P62: 7 | Q62: 309
A63: EL YAS | B63: 3 | C63: 1142 | D63: 822 | E63: 802 | F63: 24 | G63: 1 | H63: 0 | I63: 5 | J63: 1 | K63: 488 | L63: 125 | M63: 147 | N63: 11 | O63: 16 | P63: 4 | Q63: 320
A64: LA FLOR | B64: 1 | C64: 433 | D64: 323 | E64: 318 | F64: 14 | G64: 0 | H64: 1 | I64: 7 | J64: 1 | K64: 173 | L64: 47 | M64: 66 | N64: 9 | O64: 4 | P64: 1 | Q64: 110
A65: AJENJAL | B65: 1 | C65: 466 | D65: 313 | E65: 304 | F65: 17 | G65: 0 | H65: 1 | I65: 2 | J65: 0 | K65: 147 | L65: 79 | M65: 48 | N65: 10 | O65: 7 | P65: 2 | Q65: 153
A66: LAPUENTE | B66: 1 | C66: 182 | D66: 133 | E66: 131 | F66: 0 | G66: 0 | H66: 0 | I66: 0 | J66: 0 | K66: 72 | L66: 25 | M66: 33 | N66: 1 | O66: 2 | P66: 0 | Q66: 49
A67: DISTRITO 3 OROSI | B67: 15 | C67: 6204 | D67: 4576 | E67: 4447 | F67: 260 | G67: 3 | H67: 10 | I67: 8 | J67: 7 | K67: 1861 | L67: 1092 | M67: 1144 | N67: 62 | O67: 111 | P67: 18 | Q67: 1628
A68: OROSI | B68: 8 | C68: 3590 | D68: 2718 | E68: 2656 | F68: 155 | G68: 1 | H68: 4 | I68: 5 | J68: 4 | K68: 1067 | L68: 573 | M68: 805 | N68: 42 | O68: 54 | P68: 8 | Q68: 872
A69: RÍO MACHO | B69: 2 | C69: 695 | D69: 468 | E69: 461 | F69: 14 | G69: 0 | H69: 2 | I69: 0 | J69: 1 | K69: 215 | L69: 99 | M69: 126 | N69: 4 | O69: 6 | P69: 1 | Q69: 227
A70: PALOMO | B70: 3 | C70: 1492 | D70: 1064 | E70: 1020 | F70: 69 | G70: 1 | H70: 3 | I70: 1 | J70: 1 | K70: 457 | L70: 296 | M70: 180 | N70: 12 | O70: 39 | P70: 5 | Q70: 428
A71: PURISIL | B71: 1 | C71: 181 | D71: 142 | E71: 140 | F71: 14 | G71: 0 | H71: 0 | I71: 0 | J71: 0 | K71: 57 | L71: 60 | M71: 8 | N71: 1 | O71: 2 | P71: 0 | Q71: 39
A72: ALTO DE ARAYA | B72: 1 | C72: 246 | D72: 184 | E72: 170 | F72: 8 | G72: 1 | H72: 1 | I72: 2 | J72: 1 | K72: 65 | L72: 64 | M72: 25 | N72: 3 | O72: 10 | P72: 4 | Q72: 62
A73: DISTRITO 4 CACHÍ | B73: 10 | C73: 3917 | D73: 2970 | E73: 2917 | F73: 211 | G73: 1 | H73: 6 | I73: 14 | J73: 17 | K73: 1361 | L73: 521 | M73: 730 | N73: 56 | O73: 34 | P73: 19 | Q73: 947
A74: CACHÍ | B74: 6 | C74: 2769 | D74: 2099 | E74: 2068 | F74: 145 | G74: 0 | H74: 4 | I74: 10 | J74: 10 | K74: 1015 | L74: 335 | M74: 518 | N74: 31 | O74: 17 | P74: 14 | Q74: 670
A75: URASCA | B75: 1 | C75: 442 | D75: 361 | E75: 359 | F75: 47 | G75: 0 | H75: 0 | I75: 0 | J75: 3 | K75: 141 | L75: 73 | M75: 91 | N75: 4 | O75: 1 | P75: 1 | Q75: 81
A76: LA LOAIZA | B76: 1 | C76: 239 | D76: 162 | E76: 153 | F76: 9 | G76: 1 | H76: 2 | I76: 2 | J76: 0 | K76: 71 | L76: 26 | M76: 38 | N76: 4 | O76: 7 | P76: 2 | Q76: 77
A77: SAN JERÓNIMO O GUATUSO | B77: 1 | C77: 374 | D77: 284 | E77: 277 | F77: 10 | G77: 0 | H77: 0 | I77: 2 | J77: 4 | K77: 101 | L77: 76 | M77: 71 | N77: 13 | O77: 5 | P77: 2 | Q77: 90
A78: SAN MIGUEL O HAMACA (PARTE OESTE) | B78: 1 | C78: 93 | D78: 64 | E78: 60 | F78: 0 | G78: 0 | H78: 0 | I78: 0 | J78: 0 | K78: 33 | L78: 11 | M78: 12 | N78: 4 | O78: 4 | P78: 0 | Q78: 29
A79: DISTRITO 5 LLANOS DE SANTA LUCÍA | B79: 19 | C79: 9193 | D79: 6479 | E79: 6338 | F79: 313 | G79: 6 | H79: 15 | I79: 33 | J79: 31 | K79: 2770 | L79: 1900 | M79: 1144 | N79: 126 | O79: 116 | P79: 25 | Q79: 2714
A80: LLANOS DE SANTA LUCÍA | B80: 19 | C80: 9193 | D80: 6479 | E80: 6338 | F80: 313 | G80: 6 | H80: 15 | I80: 33 | J80: 31 | K80: 2770 | L80: 1900 | M80: 1144 | N80: 126 | O80: 116 | P80: 25 | Q80: 2714
A81: CANTÓN 3 LA UNIÓN | B81: 123 | C81: 57841 | D81: 41471 | E81: 40756 | F81: 1638 | G81: 57 | H81: 67 | I81: 240 | J81: 164 | K81: 18046 | L81: 8093 | M81: 11334 | N81: 1117 | O81: 623 | P81: 92 | Q81: 16370
A82: DISTRITO 1 TRES RÍOS | B82: 21 | C82: 10238 | D82: 7842 | E82: 7758 | F82: 268 | G82: 10 | H82: 10 | I82: 37 | J82: 37 | K82: 3450 | L82: 1276 | M82: 2457 | N82: 213 | O82: 73 | P82: 11 | Q82: 2396
A83: TRES RÍOS | B83: 21 | C83: 10238 | D83: 7842 | E83: 7758 | F83: 268 | G83: 10 | H83: 10 | I83: 37 | J83: 37 | K83: 3450 | L83: 1276 | M83: 2457 | N83: 213 | O83: 73 | P83: 11 | Q83: 2396
A84: DISTRITO 2 SAN DIEGO | B84: 23 | C84: 11059 | D84: 7674 | E84: 7545 | F84: 394 | G84: 12 | H84: 8 | I84: 46 | J84: 30 | K84: 3179 | L84: 1659 | M84: 2027 | N84: 190 | O84: 114 | P84: 15 | Q84: 3385
A85: SAN DIEGO | B85: 11 | C85: 5230 | D85: 3835 | E85: 3782 | F85: 161 | G85: 7 | H85: 3 | I85: 14 | J85: 13 | K85: 1534 | L85: 756 | M85: 1210 | N85: 84 | O85: 44 | P85: 9 | Q85: 1395
A86: SANTIAGO DEL MONTE | B86: 10 | C86: 4917 | D86: 3274 | E86: 3216 | F86: 201 | G86: 5 | H86: 5 | I86: 29 | J86: 15 | K86: 1411 | L86: 775 | M86: 683 | N86: 92 | O86: 53 | P86: 5 | Q86: 1643
A87: RINCÓN MESÉN ESTE | B87: 2 | C87: 912 | D87: 565 | E87: 547 | F87: 32 | G87: 0 | H87: 0 | I87: 3 | J87: 2 | K87: 234 | L87: 128 | M87: 134 | N87: 14 | O87: 17 | P87: 1 | Q87: 347
A88: DISTRITO 3 SAN JUAN | B88: 14 | C88: 6792 | D88: 5153 | E88: 5093 | F88: 116 | G88: 8 | H88: 7 | I88: 17 | J88: 15 | K88: 2346 | L88: 746 | M88: 1732 | N88: 106 | O88: 51 | P88: 9 | Q88: 1639
A89: SAN JUAN | B89: 7 | C89: 3345 | D89: 2570 | E89: 2543 | F89: 57 | G89: 3 | H89: 7 | I89: 8 | J89: 8 | K89: 1237 | L89: 312 | M89: 856 | N89: 55 | O89: 23 | P89: 4 | Q89: 775
A90: VILLAS DE AYARCO | B90: 7 | C90: 3447 | D90: 2583 | E90: 2550 | F90: 59 | G90: 5 | H90: 0 | I90: 9 | J90: 7 | K90: 1109 | L90: 434 | M90: 876 | N90: 51 | O90: 28 | P90: 5 | Q90: 864
A91: DISTRITO 4 SAN RAFAEL | B91: 16 | C91: 7055 | D91: 5045 | E91: 4928 | F91: 200 | G91: 6 | H91: 14 | I91: 43 | J91: 23 | K91: 2178 | L91: 1051 | M91: 1231 | N91: 182 | O91: 109 | P91: 8 | Q91: 2010
A92: SAN RAFAEL | B92: 7 | C92: 3077 | D92: 2363 | E92: 2327 | F92: 87 | G92: 3 | H92: 9 | I92: 12 | J92: 13 | K92: 1025 | L92: 392 | M92: 719 | N92: 67 | O92: 33 | P92: 3 | Q92: 714
A93: QUEBRADA DE FIERRO | B93: 2 | C93: 1030 | D93: 681 | E93: 655 | F93: 23 | G93: 1 | H93: 4 | I93: 2 | J93: 2 | K93: 303 | L93: 187 | M93: 115 | N93: 18 | O93: 24 | P93: 2 | Q93: 349
A94: SAN VICENTE | B94: 4 | C94: 1870 | D94: 1230 | E94: 1185 | F94: 50 | G94: 1 | H94: 0 | I94: 27 | J94: 3 | K94: 533 | L94: 347 | M94: 174 | N94: 50 | O94: 43 | P94: 2 | Q94: 640
A95: YERBABUENA | B95: 3 | C95: 1078 | D95: 771 | E95: 761 | F95: 40 | G95: 1 | H95: 1 | I95: 2 | J95: 5 | K95: 317 | L95: 125 | M95: 223 | N95: 47 | O95: 9 | P95: 1 | Q95: 307
A96: DISTRITO 5 CONCEPCIÓN | B96: 20 | C96: 9234 | D96: 6766 | E96: 6634 | F96: 239 | G96: 9 | H96: 10 | I96: 33 | J96: 32 | K96: 2847 | L96: 1413 | M96: 1854 | N96: 197 | O96: 113 | P96: 19 | Q96: 2468
A97: CONCEPCIÓN | B97: 15 | C97: 7059 | D97: 5222 | E97: 5134 | F97: 164 | G97: 8 | H97: 7 | I97: 28 | J97: 30 | K97: 2223 | L97: 1029 | M97: 1497 | N97: 148 | O97: 72 | P97: 16 | Q97: 1837
A98: SALITRILLO | B98: 1 | C98: 539 | D98: 414 | E98: 408 | F98: 28 | G98: 1 | H98: 2 | I98: 3 | J98: 1 | K98: 175 | L98: 63 | M98: 115 | N98: 20 | O98: 5 | P98: 1 | Q98: 125
A99: SAN FRANCISCO | B99: 3 | C99: 1490 | D99: 1028 | E99: 998 | F99: 39 | G99: 0 | H99: 1 | I99: 2 | J99: 0 | K99: 413 | L99: 301 | M99: 215 | N99: 27 | O99: 28 | P99: 2 | Q99: 462
A100: LA CIMA (PARTE OESTE) | B100: 1 | C100: 146 | D100: 102 | E100: 94 | F100: 8 | G100: 0 | H100: 0 | I100: 0 | J100: 1 | K100: 36 | L100: 20 | M100: 27 | N100: 2 | O100: 8 | P100: 0 | Q100: 44
A101: DISTRITO 6 DULCE NOMBRE | B101: 12 | C101: 5181 | D101: 3527 | E101: 3455 | F101: 228 | G101: 5 | H101: 6 | I101: 29 | J101: 11 | K101: 1535 | L101: 737 | M101: 796 | N101: 108 | O101: 62 | P101: 10 | Q101: 1654
A102: DULCE NOMBRE | B102: 7 | C102: 3092 | D102: 2063 | E102: 2024 | F102: 154 | G102: 3 | H102: 5 | I102: 12 | J102: 8 | K102: 849 | L102: 385 | M102: 552 | N102: 56 | O102: 35 | P102: 4 | Q102: 1029
A103: EL CARMEN | B103: 5 | C103: 2089 | D103: 1464 | E103: 1431 | F103: 74 | G103: 2 | H103: 1 | I103: 17 | J103: 3 | K103: 686 | L103: 352 | M103: 244 | N103: 52 | O103: 27 | P103: 6 | Q103: 625
A104: DISTRITO 7 SAN RAMÓN | B104: 6 | C104: 3018 | D104: 2212 | E104: 2181 | F104: 41 | G104: 3 | H104: 2 | I104: 15 | J104: 10 | K104: 1030 | L104: 319 | M104: 713 | N104: 48 | O104: 22 | P104: 9 | Q104: 806
A105: SAN RAMÓN | B105: 6 | C105: 3018 | D105: 2212 | E105: 2181 | F105: 41 | G105: 3 | H105: 2 | I105: 15 | J105: 10 | K105: 1030 | L105: 319 | M105: 713 | N105: 48 | O105: 22 | P105: 9 | Q105: 806
A106: DISTRITO 8 RÍO AZUL | B106: 11 | C106: 5264 | D106: 3252 | E106: 3162 | F106: 152 | G106: 4 | H106: 10 | I106: 20 | J106: 6 | K106: 1481 | L106: 892 | M106: 524 | N106: 73 | O106: 79 | P106: 11 | Q106: 2012
A107: RÍO AZUL | B107: 5 | C107: 2388 | D107: 1501 | E107: 1457 | F107: 70 | G107: 4 | H107: 4 | I107: 12 | J107: 5 | K107: 660 | L107: 391 | M107: 280 | N107: 31 | O107: 40 | P107: 4 | Q107: 887
A108: LINDA VISTA | B108: 6 | C108: 2876 | D108: 1751 | E108: 1705 | F108: 82 | G108: 0 | H108: 6 | I108: 8 | J108: 1 | K108: 821 | L108: 501 | M108: 244 | N108: 42 | O108: 39 | P108: 7 | Q108: 1125
A109: CANTÓN 4 JIMÉNEZ | B109: 28 | C109: 10397 | D109: 7787 | E109: 7581 | F109: 416 | G109: 9 | H109: 13 | I109: 25 | J109: 12 | K109: 4144 | L109: 1264 | M109: 1526 | N109: 172 | O109: 146 | P109: 60 | Q109: 2610
A110: DISTRITO 1 JUAN VIÑAS | B110: 14 | C110: 4872 | D110: 3657 | E110: 3560 | F110: 144 | G110: 6 | H110: 4 | I110: 15 | J110: 7 | K110: 2204 | L110: 467 | M110: 609 | N110: 104 | O110: 68 | P110: 29 | Q110: 1215
A111: JUAN VIÑAS | B111: 6 | C111: 2715 | D111: 2059 | E111: 2018 | F111: 89 | G111: 3 | H111: 1 | I111: 10 | J111: 2 | K111: 1265 | L111: 223 | M111: 362 | N111: 63 | O111: 28 | P111: 13 | Q111: 656
A112: ALTO VICTORIA | B112: 3 | C112: 1147 | D112: 878 | E112: 861 | F112: 26 | G112: 2 | H112: 2 | I112: 5 | J112: 3 | K112: 504 | L112: 132 | M112: 159 | N112: 28 | O112: 14 | P112: 3 | Q112: 269
A113: SANTA MARTA | B113: 1 | C113: 52 | D113: 52 | E113: 41 | F113: 0 | G113: 0 | H113: 0 | I113: 0 | J113: 0 | K113: 23 | L113: 13 | M113: 2 | N113: 3 | O113: 3 | P113: 8 | Q113: 0
A114: EL NARANJO | B114: 2 | C114: 627 | D114: 454 | E114: 437 | F114: 24 | G114: 1 | H114: 1 | I114: 0 | J114: 2 | K114: 275 | L114: 65 | M114: 66 | N114: 3 | O114: 14 | P114: 3 | Q114: 173
A115: LA GLORIA | B115: 1 | C115: 54 | D115: 25 | E115: 23 | F115: 3 | G115: 0 | H115: 0 | I115: 0 | J115: 0 | K115: 14 | L115: 3 | M115: 1 | N115: 2 | O115: 2 | P115: 0 | Q115: 29
A116: SAN MARTÍN | B116: 1 | C116: 277 | D116: 189 | E116: 180 | F116: 2 | G116: 0 | H116: 0 | I116: 0 | J116: 0 | K116: 123 | L116: 31 | M116: 19 | N116: 5 | O116: 7 | P116: 2 | Q116: 88
A117: DISTRITO 2 TUCURRIQUE | B117: 7 | C117: 3089 | D117: 2303 | E117: 2245 | F117: 217 | G117: 1 | H117: 8 | I117: 4 | J117: 5 | K117: 940 | L117: 514 | M117: 532 | N117: 24 | O117: 40 | P117: 18 | Q117: 786
A118: TUCURRIQUE | B118: 4 | C118: 1981 | D118: 1482 | E118: 1455 | F118: 155 | G118: 1 | H118: 6 | I118: 2 | J118: 3 | K118: 571 | L118: 339 | M118: 361 | N118: 17 | O118: 17 | P118: 10 | Q118: 499
A119: SABANILLA | B119: 2 | C119: 584 | D119: 438 | E119: 424 | F119: 50 | G119: 0 | H119: 0 | I119: 2 | J119: 1 | K119: 204 | L119: 81 | M119: 79 | N119: 7 | O119: 9 | P119: 5 | Q119: 146
A120: LAS VUELTAS | B120: 1 | C120: 524 | D120: 383 | E120: 366 | F120: 12 | G120: 0 | H120: 2 | I120: 0 | J120: 1 | K120: 165 | L120: 94 | M120: 92 | N120: 0 | O120: 14 | P120: 3 | Q120: 141
A121: DISTRITO 3 PEJIBAYE | B121: 7 | C121: 2436 | D121: 1827 | E121: 1776 | F121: 55 | G121: 2 | H121: 1 | I121: 6 | J121: 0 | K121: 1000 | L121: 283 | M121: 385 | N121: 44 | O121: 38 | P121: 13 | Q121: 609
A122: PEJIBAYE | B122: 4 | C122: 1693 | D122: 1241 | E122: 1203 | F122: 48 | G122: 2 | H122: 0 | I122: 3 | J122: 0 | K122: 657 | L122: 186 | M122: 275 | N122: 32 | O122: 28 | P122: 10 | Q122: 452
A123: ORIENTE | B123: 1 | C123: 178 | D123: 111 | E123: 108 | F123: 2 | G123: 0 | H123: 0 | I123: 3 | J123: 0 | K123: 65 | L123: 25 | M123: 11 | N123: 2 | O123: 3 | P123: 0 | Q123: 67
A124: HUMO | B124: 2 | C124: 565 | D124: 475 | E124: 465 | F124: 5 | G124: 0 | H124: 1 | I124: 0 | J124: 0 | K124: 278 | L124: 72 | M124: 99 | N124: 10 | O124: 7 | P124: 3 | Q124: 90
A125: CANTÓN 5 TURRIALBA | B125: 140 | C125: 51433 | D125: 36209 | E125: 35464 | F125: 1787 | G125: 33 | H125: 78 | I125: 120 | J125: 99 | K125: 18415 | L125: 6490 | M125: 7871 | N125: 571 | O125: 600 | P125: 145 | Q125: 15224
A126: DISTRITO 1 TURRIALBA | B126: 49 | C126: 20825 | D126: 15538 | E126: 15325 | F126: 730 | G126: 8 | H126: 19 | I126: 42 | J126: 49 | K126: 7930 | L126: 2298 | M126: 4009 | N126: 240 | O126: 174 | P126: 39 | Q126: 5287
A127: TURRIALBA | B127: 9 | C127: 4437 | D127: 3358 | E127: 3327 | F127: 177 | G127: 4 | H127: 2 | I127: 5 | J127: 9 | K127: 1677 | L127: 456 | M127: 947 | N127: 50 | O127: 24 | P127: 7 | Q127: 1079
A128: EL PORÓ | B128: 5 | C128: 2177 | D128: 1612 | E128: 1579 | F128: 70 | G128: 0 | H128: 2 | I128: 9 | J128: 5 | K128: 823 | L128: 229 | M128: 410 | N128: 31 | O128: 27 | P128: 6 | Q128: 565
A129: SAN JUAN NORTE | B129: 2 | C129: 770 | D129: 567 | E129: 562 | F129: 27 | G129: 1 | H129: 1 | I129: 0 | J129: 1 | K129: 354 | L129: 87 | M129: 78 | N129: 13 | O129: 1 | P129: 4 | Q129: 203
A130: SAN JUAN SUR | B130: 2 | C130: 720 | D130: 538 | E130: 525 | F130: 30 | G130: 0 | H130: 0 | I130: 1 | J130: 2 | K130: 331 | L130: 91 | M130: 65 | N130: 5 | O130: 10 | P130: 3 | Q130: 182
A131: LAS AMÉRICAS | B131: 11 | C131: 5085 | D131: 3828 | E131: 3790 | F131: 176 | G131: 0 | H131: 5 | I131: 15 | J131: 19 | K131: 1864 | L131: 531 | M131: 1127 | N131: 53 | O131: 28 | P131: 10 | Q131: 1257
A132: FLORENCIA | B132: 1 | C132: 256 | D132: 173 | E132: 169 | F132: 10 | G132: 0 | H132: 0 | I132: 0 | J132: 2 | K132: 99 | L132: 23 | M132: 32 | N132: 3 | O132: 3 | P132: 1 | Q132: 83
A133: COLORADO | B133: 2 | C133: 676 | D133: 477 | E133: 464 | F133: 14 | G133: 0 | H133: 1 | I133: 1 | J133: 1 | K133: 273 | L133: 87 | M133: 80 | N133: 7 | O133: 11 | P133: 2 | Q133: 199
A134: ESMERALDA | B134: 1 | C134: 134 | D134: 82 | E134: 80 | F134: 0 | G134: 0 | H134: 0 | I134: 0 | J134: 0 | K134: 48 | L134: 12 | M134: 19 | N134: 1 | O134: 2 | P134: 0 | Q134: 52
A135: RECREO | B135: 2 | C135: 794 | D135: 610 | E135: 607 | F135: 44 | G135: 0 | H135: 0 | I135: 0 | J135: 0 | K135: 288 | L135: 65 | M135: 200 | N135: 10 | O135: 3 | P135: 0 | Q135: 184
A136: NOCHEBUENA | B136: 2 | C136: 606 | D136: 414 | E136: 399 | F136: 34 | G136: 0 | H136: 0 | I136: 0 | J136: 0 | K136: 251 | L136: 63 | M136: 45 | N136: 6 | O136: 15 | P136: 0 | Q136: 192
A137: CARMEN LYRA | B137: 7 | C137: 3078 | D137: 2280 | E137: 2245 | F137: 102 | G137: 1 | H137: 5 | I137: 10 | J137: 8 | K137: 1115 | L137: 411 | M137: 558 | N137: 35 | O137: 32 | P137: 3 | Q137: 798
A138: H.A. SAN BUENAVENTURA | B138: 1 | C138: 68 | D138: 44 | E138: 42 | F138: 3 | G138: 1 | H138: 0 | I138: 1 | J138: 1 | K138: 25 | L138: 5 | M138: 6 | N138: 0 | O138: 2 | P138: 0 | Q138: 24
A139: MARGOT | B139: 4 | C139: 2024 | D139: 1555 | E139: 1536 | F139: 43 | G139: 1 | H139: 3 | I139: 0 | J139: 1 | K139: 782 | L139: 238 | M139: 442 | N139: 26 | O139: 16 | P139: 3 | Q139: 469
A140: DISTRITO 2 LA SUIZA | B140: 17 | C140: 6076 | D140: 4288 | E140: 4198 | F140: 179 | G140: 5 | H140: 13 | I140: 13 | J140: 10 | K140: 2097 | L140: 880 | M140: 913 | N140: 88 | O140: 81 | P140: 9 | Q140: 1788
A141: PACAYITAS | B141: 1 | C141: 467 | D141: 358 | E141: 354 | F141: 11 | G141: 0 | H141: 1 | I141: 0 | J141: 1 | K141: 215 | L141: 65 | M141: 57 | N141: 4 | O141: 4 | P141: 0 | Q141: 109
A142: LA SUIZA | B142: 7 | C142: 3389 | D142: 2320 | E142: 2267 | F142: 103 | G142: 4 | H142: 6 | I142: 9 | J142: 5 | K142: 958 | L142: 482 | M142: 643 | N142: 57 | O142: 47 | P142: 6 | Q142: 1069
A143: ATIRRO | B143: 1 | C143: 232 | D143: 134 | E143: 132 | F143: 5 | G143: 0 | H143: 0 | I143: 0 | J143: 1 | K143: 83 | L143: 19 | M143: 22 | N143: 2 | O143: 2 | P143: 0 | Q143: 98
A144: MOLLEJONES | B144: 1 | C144: 170 | D144: 130 | E144: 127 | F144: 1 | G144: 0 | H144: 0 | I144: 0 | J144: 0 | K144: 87 | L144: 19 | M144: 17 | N144: 3 | O144: 3 | P144: 0 | Q144: 40
A145: CARMEN | B145: 1 | C145: 215 | D145: 158 | E145: 150 | F145: 17 | G145: 0 | H145: 0 | I145: 0 | J145: 0 | K145: 79 | L145: 35 | M145: 17 | N145: 2 | O145: 6 | P145: 2 | Q145: 57
A146: SAN VICENTE | B146: 1 | C146: 126 | D146: 106 | E146: 106 | F146: 4 | G146: 0 | H146: 0 | I146: 2 | J146: 0 | K146: 66 | L146: 20 | M146: 12 | N146: 2 | O146: 0 | P146: 0 | Q146: 20
A147: EL SILENCIO | B147: 1 | C147: 242 | D147: 169 | E147: 169 | F147: 7 | G147: 0 | H147: 3 | I147: 0 | J147: 1 | K147: 115 | L147: 26 | M147: 14 | N147: 3 | O147: 0 | P147: 0 | Q147: 73
A148: CANADÁ | B148: 3 | C148: 1178 | D148: 879 | E148: 859 | F148: 31 | G148: 1 | H148: 2 | I148: 2 | J148: 2 | K148: 475 | L148: 206 | M148: 126 | N148: 14 | O148: 19 | P148: 1 | Q148: 299
A149: PACUARE | B149: 1 | C149: 57 | D149: 34 | E149: 34 | F149: 0 | G149: 0 | H149: 1 | I149: 0 | J149: 0 | K149: 19 | L149: 8 | M149: 5 | N149: 1 | O149: 0 | P149: 0 | Q149: 23
A150: DISTRITO 3 PERALTA | B150: 1 | C150: 296 | D150: 211 | E150: 205 | F150: 61 | G150: 0 | H150: 0 | I150: 1 | J150: 0 | K150: 93 | L150: 37 | M150: 12 | N150: 1 | O150: 6 | P150: 0 | Q150: 85
A151: PERALTA | B151: 1 | C151: 296 | D151: 211 | E151: 205 | F151: 61 | G151: 0 | H151: 0 | I151: 1 | J151: 0 | K151: 93 | L151: 37 | M151: 12 | N151: 1 | O151: 6 | P151: 0 | Q151: 85
A152: DISTRITO 4 SANTA CRUZ | B152: 9 | C152: 2413 | D152: 1580 | E152: 1537 | F152: 41 | G152: 5 | H152: 3 | I152: 5 | J152: 0 | K152: 855 | L152: 319 | M152: 288 | N152: 21 | O152: 40 | P152: 3 | Q152: 833
A153: SANTA CRUZ | B153: 2 | C153: 633 | D153: 425 | E153: 409 | F153: 13 | G153: 2 | H153: 1 | I153: 0 | J153: 0 | K153: 222 | L153: 68 | M153: 97 | N153: 6 | O153: 14 | P153: 2 | Q153: 208
A154: LA PASTORA | B154: 1 | C154: 330 | D154: 240 | E154: 238 | F154: 5 | G154: 0 | H154: 0 | I154: 1 | J154: 0 | K154: 143 | L154: 60 | M154: 25 | N154: 4 | O154: 2 | P154: 0 | Q154: 90
A155: SAN ANTONIO | B155: 2 | C155: 637 | D155: 420 | E155: 406 | F155: 7 | G155: 2 | H155: 0 | I155: 4 | J155: 0 | K155: 223 | L155: 90 | M155: 75 | N155: 5 | O155: 14 | P155: 0 | Q155: 217
A156: EL VOLCÁN | B156: 1 | C156: 69 | D156: 6 | E156: 6 | F156: 0 | G156: 0 | H156: 0 | I156: 0 | J156: 0 | K156: 3 | L156: 2 | M156: 1 | N156: 0 | O156: 0 | P156: 0 | Q156: 63
A157: CALLE VARGAS | B157: 1 | C157: 303 | D157: 175 | E157: 173 | F157: 1 | G157: 0 | H157: 1 | I157: 0 | J157: 0 | K157: 106 | L157: 31 | M157: 32 | N157: 2 | O157: 1 | P157: 1 | Q157: 128
A158: EL CARMEN DE SANTA CRUZ | B158: 1 | C158: 335 | D158: 241 | E158: 233 | F158: 10 | G158: 1 | H158: 1 | I158: 0 | J158: 0 | K158: 116 | L158: 55 | M158: 46 | N158: 4 | O158: 8 | P158: 0 | Q158: 94
A159: LAS VIRTUDES | B159: 1 | C159: 106 | D159: 73 | E159: 72 | F159: 5 | G159: 0 | H159: 0 | I159: 0 | J159: 0 | K159: 42 | L159: 13 | M159: 12 | N159: 0 | O159: 1 | P159: 0 | Q159: 33
A160: DISTRITO 5 SANTA TERESITA | B160: 12 | C160: 3468 | D160: 2403 | E160: 2350 | F160: 86 | G160: 4 | H160: 10 | I160: 10 | J160: 4 | K160: 1247 | L160: 591 | M160: 369 | N160: 29 | O160: 40 | P160: 13 | Q160: 1065
A161: BONILLA ARRIBA | B161: 1 | C161: 53 | D161: 36 | E161: 35 | F161: 7 | G161: 0 | H161: 0 | I161: 0 | J161: 0 | K161: 4 | L161: 7 | M161: 16 | N161: 1 | O161: 0 | P161: 1 | Q161: 17
A162: TORITO ARRIBA O NORTE | B162: 1 | C162: 128 | D162: 86 | E162: 83 | F162: 7 | G162: 0 | H162: 0 | I162: 0 | J162: 0 | K162: 38 | L162: 26 | M162: 12 | N162: 0 | O162: 2 | P162: 1 | Q162: 42
A163: SANTA TERESITA (LAJAS) | B163: 3 | C163: 1068 | D163: 701 | E163: 679 | F163: 29 | G163: 3 | H163: 1 | I163: 1 | J163: 1 | K163: 365 | L163: 182 | M163: 91 | N163: 6 | O163: 17 | P163: 5 | Q163: 367
A164: COLONIA GUAYABO | B164: 1 | C164: 407 | D164: 304 | E164: 298 | F164: 8 | G164: 0 | H164: 0 | I164: 1 | J164: 1 | K164: 140 | L164: 91 | M164: 55 | N164: 2 | O164: 3 | P164: 3 | Q164: 103
A165: CIMARRONES | B165: 1 | C165: 346 | D165: 244 | E165: 240 | F165: 21 | G165: 0 | H165: 5 | I165: 1 | J165: 0 | K165: 71 | L165: 86 | M165: 48 | N165: 8 | O165: 4 | P165: 0 | Q165: 102
A166: PALOMO | B166: 1 | C166: 286 | D166: 201 | E166: 200 | F166: 2 | G166: 0 | H166: 1 | I166: 1 | J166: 0 | K166: 140 | L166: 40 | M166: 12 | N166: 4 | O166: 1 | P166: 0 | Q166: 85
A167: SAN RAMÓN | B167: 1 | C167: 274 | D167: 195 | E167: 193 | F167: 2 | G167: 0 | H167: 0 | I167: 2 | J167: 1 | K167: 120 | L167: 32 | M167: 34 | N167: 2 | O167: 0 | P167: 2 | Q167: 79
A168: FUENTE | B168: 1 | C168: 166 | D168: 111 | E168: 111 | F168: 2 | G168: 0 | H168: 1 | I168: 0 | J168: 0 | K168: 41 | L168: 29 | M168: 38 | N168: 0 | O168: 0 | P168: 0 | Q168: 55
A169: SAUCE | B169: 1 | C169: 513 | D169: 366 | E169: 359 | F169: 8 | G169: 0 | H169: 0 | I169: 2 | J169: 1 | K169: 267 | L169: 50 | M169: 28 | N169: 3 | O169: 6 | P169: 1 | Q169: 147
A170: GUAYABO ABAJO | B170: 1 | C170: 227 | D170: 159 | E170: 152 | F170: 0 | G170: 1 | H170: 2 | I170: 2 | J170: 0 | K170: 61 | L170: 48 | M170: 35 | N170: 3 | O170: 7 | P170: 0 | Q170: 68
A171: DISTRITO 6 PAVONES | B171: 7 | C171: 3205 | D171: 2182 | E171: 2123 | F171: 140 | G171: 3 | H171: 7 | I171: 12 | J171: 2 | K171: 1076 | L171: 425 | M171: 421 | N171: 37 | O171: 37 | P171: 22 | Q171: 1023
A172: PAVONES | B172: 2 | C172: 955 | D172: 605 | E172: 592 | F172: 30 | G172: 0 | H172: 2 | I172: 4 | J172: 1 | K172: 331 | L172: 100 | M172: 115 | N172: 9 | O172: 8 | P172: 5 | Q172: 350
A173: SITIO DE MATA | B173: 1 | C173: 429 | D173: 303 | E173: 296 | F173: 22 | G173: 1 | H173: 0 | I173: 2 | J173: 1 | K173: 164 | L173: 50 | M173: 50 | N173: 6 | O173: 5 | P173: 2 | Q173: 126
A174: CHITARÍA | B174: 1 | C174: 510 | D174: 369 | E174: 361 | F174: 28 | G174: 0 | H174: 0 | I174: 0 | J174: 0 | K174: 205 | L174: 87 | M174: 37 | N174: 4 | O174: 3 | P174: 5 | Q174: 141
A175: ESLABÓN | B175: 1 | C175: 457 | D175: 322 | E175: 313 | F175: 24 | G175: 1 | H175: 1 | I175: 2 | J175: 0 | K175: 118 | L175: 68 | M175: 95 | N175: 4 | O175: 7 | P175: 2 | Q175: 135
A176: JABILLOS | B176: 2 | C176: 854 | D176: 583 | E176: 561 | F176: 36 | G176: 1 | H176: 4 | I176: 4 | J176: 0 | K176: 258 | L176: 120 | M176: 124 | N176: 14 | O176: 14 | P176: 8 | Q176: 271
A177: DISTRITO 7 TUIS | B177: 6 | C177: 1710 | D177: 1207 | E177: 1164 | F177: 34 | G177: 3 | H177: 5 | I177: 4 | J177: 1 | K177: 573 | L177: 261 | M177: 260 | N177: 23 | O177: 36 | P177: 7 | Q177: 503
A178: TUIS | B178: 3 | C178: 1174 | D178: 817 | E178: 782 | F178: 25 | G178: 1 | H178: 4 | I178: 1 | J178: 0 | K178: 387 | L178: 197 | M178: 150 | N178: 17 | O178: 29 | P178: 6 | Q178: 357
A179: SAN JOAQUÍN (CABEZA DE BUEY) | B179: 1 | C179: 233 | D179: 172 | E179: 170 | F179: 4 | G179: 0 | H179: 0 | I179: 1 | J179: 1 | K179: 75 | L179: 32 | M179: 52 | N179: 5 | O179: 1 | P179: 1 | Q179: 61
A180: CIEN MANZANAS | B180: 1 | C180: 242 | D180: 183 | E180: 177 | F180: 2 | G180: 2 | H180: 1 | I180: 1 | J180: 0 | K180: 97 | L180: 20 | M180: 53 | N180: 1 | O180: 6 | P180: 0 | Q180: 59
A181: LAS NUBES | B181: 1 | C181: 61 | D181: 35 | E181: 35 | F181: 3 | G181: 0 | H181: 0 | I181: 1 | J181: 0 | K181: 14 | L181: 12 | M181: 5 | N181: 0 | O181: 0 | P181: 0 | Q181: 26
A182: DISTRITO 8 TAYUTIC | B182: 5 | C182: 1680 | D182: 1143 | E182: 1119 | F182: 30 | G182: 1 | H182: 4 | I182: 4 | J182: 3 | K182: 645 | L182: 203 | M182: 195 | N182: 34 | O182: 18 | P182: 6 | Q182: 537
A183: PLATANILLO | B183: 3 | C183: 1196 | D183: 839 | E183: 822 | F183: 24 | G183: 1 | H183: 2 | I183: 2 | J183: 2 | K183: 453 | L183: 157 | M183: 149 | N183: 32 | O183: 13 | P183: 4 | Q183: 357
A184: BAJO PACUARE O SUR | B184: 1 | C184: 186 | D184: 108 | E184: 106 | F184: 4 | G184: 0 | H184: 1 | I184: 0 | J184: 1 | K184: 53 | L184: 21 | M184: 25 | N184: 1 | O184: 0 | P184: 2 | Q184: 78
A185: JICOTEA | B185: 1 | C185: 298 | D185: 196 | E185: 191 | F185: 2 | G185: 0 | H185: 1 | I185: 2 | J185: 0 | K185: 139 | L185: 25 | M185: 21 | N185: 1 | O185: 5 | P185: 0 | Q185: 102
A186: DISTRITO 9 SANTA ROSA | B186: 8 | C186: 3757 | D186: 2827 | E186: 2777 | F186: 103 | G186: 0 | H186: 8 | I186: 7 | J186: 7 | K186: 1585 | L186: 475 | M186: 562 | N186: 30 | O186: 43 | P186: 7 | Q186: 930
A187: AQUIARES O LA ISLA | B187: 2 | C187: 1022 | D187: 775 | E187: 764 | F187: 24 | G187: 0 | H187: 2 | I187: 3 | J187: 0 | K187: 507 | L187: 109 | M187: 109 | N187: 10 | O187: 10 | P187: 1 | Q187: 247
A188: SANTA ROSA | B188: 4 | C188: 1995 | D188: 1455 | E188: 1427 | F188: 69 | G188: 0 | H188: 4 | I188: 1 | J188: 5 | K188: 741 | L188: 233 | M188: 363 | N188: 11 | O188: 24 | P188: 4 | Q188: 540
A189: VERBENA NORTE | B189: 1 | C189: 445 | D189: 353 | E189: 343 | F189: 3 | G189: 0 | H189: 1 | I189: 1 | J189: 2 | K189: 187 | L189: 86 | M189: 60 | N189: 3 | O189: 9 | P189: 1 | Q189: 92
A190: SAN RAFAEL | B190: 1 | C190: 295 | D190: 244 | E190: 243 | F190: 7 | G190: 0 | H190: 1 | I190: 2 | J190: 0 | K190: 150 | L190: 47 | M190: 30 | N190: 6 | O190: 0 | P190: 1 | Q190: 51
A191: DISTRITO 10 TRES EQUIS | B191: 4 | C191: 1248 | D191: 856 | E191: 827 | F191: 71 | G191: 0 | H191: 0 | I191: 5 | J191: 1 | K191: 424 | L191: 194 | M191: 121 | N191: 11 | O191: 23 | P191: 6 | Q191: 392
A192: LA FLOR DE TRES EQUIS | B192: 1 | C192: 197 | D192: 141 | E192: 137 | F192: 8 | G192: 0 | H192: 0 | I192: 0 | J192: 0 | K192: 88 | L192: 38 | M192: 3 | N192: 0 | O192: 3 | P192: 1 | Q192: 56
A193: TRES EQUIS | B193: 3 | C193: 1051 | D193: 715 | E193: 690 | F193: 63 | G193: 0 | H193: 0 | I193: 5 | J193: 1 | K193: 336 | L193: 156 | M193: 118 | N193: 11 | O193: 20 | P193: 5 | Q193: 336
A194: DISTRITO 11 LA ISABEL | B194: 11 | C194: 4359 | D194: 3132 | E194: 3064 | F194: 203 | G194: 2 | H194: 7 | I194: 10 | J194: 15 | K194: 1522 | L194: 685 | M194: 572 | N194: 48 | O194: 55 | P194: 13 | Q194: 1227
A195: EL MORA | B195: 5 | C195: 2156 | D195: 1523 | E195: 1483 | F195: 65 | G195: 1 | H195: 2 | I195: 7 | J195: 8 | K195: 762 | L195: 339 | M195: 278 | N195: 21 | O195: 36 | P195: 4 | Q195: 633
A196: SAN MARTÍN | B196: 1 | C196: 442 | D196: 280 | E196: 275 | F196: 42 | G196: 0 | H196: 1 | I196: 0 | J196: 2 | K196: 129 | L196: 62 | M196: 34 | N196: 5 | O196: 4 | P196: 1 | Q196: 162
A197: ALTO VARAL | B197: 1 | C197: 196 | D197: 152 | E197: 149 | F197: 20 | G197: 0 | H197: 0 | I197: 0 | J197: 1 | K197: 81 | L197: 16 | M197: 29 | N197: 2 | O197: 2 | P197: 1 | Q197: 44
A198: AZUL | B198: 4 | C198: 1565 | D198: 1177 | E198: 1157 | F198: 76 | G198: 1 | H198: 4 | I198: 3 | J198: 4 | K198: 550 | L198: 268 | M198: 231 | N198: 20 | O198: 13 | P198: 7 | Q198: 388
A199: DISTRITO 12 CHIRRIPÓ | B199: 11 | C199: 2396 | D199: 842 | E199: 775 | F199: 109 | G199: 2 | H199: 2 | I199: 7 | J199: 7 | K199: 368 | L199: 122 | M199: 149 | N199: 9 | O199: 47 | P199: 20 | Q199: 1554
A200: GRANO DE ORO O XARA | B200: 2 | C200: 575 | D200: 296 | E200: 284 | F200: 37 | G200: 1 | H200: 1 | I200: 2 | J200: 0 | K200: 119 | L200: 42 | M200: 75 | N200: 7 | O200: 9 | P200: 3 | Q200: 279
A201: SIMIRIÑAC (JACUY) | B201: 1 | C201: 195 | D201: 56 | E201: 52 | F201: 2 | G201: 0 | H201: 0 | I201: 2 | J201: 0 | K201: 39 | L201: 5 | M201: 4 | N201: 0 | O201: 3 | P201: 1 | Q201: 139
A202: DUCLAC (ALTO PACUARE) | B202: 1 | C202: 253 | D202: 23 | E202: 21 | F202: 6 | G202: 0 | H202: 0 | I202: 0 | J202: 2 | K202: 6 | L202: 4 | M202: 3 | N202: 0 | O202: 2 | P202: 0 | Q202: 230
A203: JAKI (CAPILLA DOS CHIRRIPÓ ARRIBA) | B203: 1 | C203: 277 | D203: 49 | E203: 35 | F203: 9 | G203: 0 | H203: 0 | I203: 0 | J203: 0 | K203: 19 | L203: 4 | M203: 2 | N203: 1 | O203: 12 | P203: 2 | Q203: 228
... 57 more rows

Sheet C1.13
A2: CUADRO 1.13 HEREDIA: JUNTAS, ELECTORADO, VOTOS POR PARTIDO, NULOS Y BLANCOS PARA PRESIDENCIA Y VICEPRESIDENCIAS DE LA REPÚBLICA
A3: SEGÚN CANTÓN, DISTRITO ADMINISTRATIVO Y DISTRITO ELECTORAL, ELECCIONES 7 DE FEBRERO 2010
A5: CANTÓN, DISTRITO ADMINISTRATIVO Y DISTRITO ELECTORAL | B5: JUNTAS | C5: ELECTORADO | D5: VOTOS RECIBIDOS | Q5: ABSTENCIONISMO
D6: TOTAL GENERAL | E6: VOTOS VÁLIDOS | O6: VOTOS NULOS | P6: VOTOS BLANCOS
E7: TOTAL | F7: UNIDAD SOCIAL CRISTIANA | G7: INTEGRACIÓN NACIONAL | H7: ALIANZA PATRIÓTICA | I7: RENOVACIÓN COSTARRICENSE | J7: FRENTE AMPLIO | K7: LIBERACIÓN NACIONAL | L7: MOVIMIENTO LIBERTARIO | M7: ACCIÓN CIUDADANA | N7: ACCESIBILIDAD SIN EXCLUSIÓN
A9: HEREDIA | B9: 604 | C9: 278544 | D9: 203705 | E9: 200493 | F9: 6382 | G9: 165 | H9: 288 | I9: 1164 | J9: 905 | K9: 93471 | L9: 39016 | M9: 55425 | N9: 3677 | O9: 2644 | P9: 568 | Q9: 74839
A10: CANTÓN 1 HEREDIA | B10: 176 | C10: 84511 | D10: 61372 | E10: 60598 | F10: 1939 | G10: 51 | H10: 64 | I10: 250 | J10: 335 | K10: 29625 | L10: 10412 | M10: 16836 | N10: 1086 | O10: 638 | P10: 136 | Q10: 23139
A11: DISTRITO 1 HEREDIA | B11: 38 | C11: 18262 | D11: 13605 | E11: 13478 | F11: 449 | G11: 9 | H11: 11 | I11: 44 | J11: 112 | K11: 6652 | L11: 1821 | M11: 4172 | N11: 208 | O11: 103 | P11: 24 | Q11: 4657
A12: HEREDIA | B12: 37 | C12: 18242 | D12: 13592 | E12: 13465 | F12: 448 | G12: 9 | H12: 11 | I12: 44 | J12: 112 | K12: 6640 | L12: 1821 | M12: 4172 | N12: 208 | O12: 103 | P12: 24 | Q12: 4650
A13: C.P. SAN AGUSTÍN | B13: 1 | C13: 20 | D13: 13 | E13: 13 | F13: 1 | G13: 0 | H13: 0 | I13: 0 | J13: 0 | K13: 12 | L13: 0 | M13: 0 | N13: 0 | O13: 0 | P13: 0 | Q13: 7
A14: DISTRITO 2 MERCEDES | B14: 37 | C14: 18289 | D14: 14157 | E14: 14011 | F14: 383 | G14: 13 | H14: 13 | I14: 39 | J14: 72 | K14: 6620 | L14: 2035 | M14: 4603 | N14: 233 | O14: 116 | P14: 30 | Q14: 4132
A15: MERCEDES NORTE | B15: 17 | C15: 8349 | D15: 6560 | E15: 6499 | F15: 166 | G15: 5 | H15: 10 | I15: 14 | J15: 43 | K15: 2996 | L15: 966 | M15: 2186 | N15: 113 | O15: 48 | P15: 13 | Q15: 1789
A16: MERCEDES SUR | B16: 20 | C16: 9940 | D16: 7597 | E16: 7512 | F16: 217 | G16: 8 | H16: 3 | I16: 25 | J16: 29 | K16: 3624 | L16: 1069 | M16: 2417 | N16: 120 | O16: 68 | P16: 17 | Q16: 2343
A17: DISTRITO 3 SAN FRANCISCO | B17: 64 | C17: 30848 | D17: 21381 | E17: 21033 | F17: 663 | G17: 16 | H17: 27 | I17: 102 | J17: 101 | K17: 10196 | L17: 4300 | M17: 5224 | N17: 404 | O17: 294 | P17: 54 | Q17: 9467
A18: SAN FRANCISCO | B18: 27 | C18: 13229 | D18: 9676 | E18: 9549 | F18: 207 | G18: 8 | H18: 10 | I18: 30 | J18: 45 | K18: 4743 | L18: 1646 | M18: 2702 | N18: 158 | O18: 112 | P18: 15 | Q18: 3553
A19: LOS LAGOS | B19: 9 | C19: 4169 | D19: 3023 | E19: 2987 | F19: 95 | G19: 2 | H19: 4 | I19: 13 | J19: 17 | K19: 1318 | L19: 559 | M19: 927 | N19: 52 | O19: 31 | P19: 5 | Q19: 1146
A20: BERNARDO BENAVIDES [INVU] | B20: 9 | C20: 4220 | D20: 2970 | E20: 2919 | F20: 83 | G20: 1 | H20: 4 | I20: 14 | J20: 15 | K20: 1429 | L20: 539 | M20: 761 | N20: 73 | O20: 47 | P20: 4 | Q20: 1250
A21: GUARARÍ | B21: 19 | C21: 9230 | D21: 5712 | E21: 5578 | F21: 278 | G21: 5 | H21: 9 | I21: 45 | J21: 24 | K21: 2706 | L21: 1556 | M21: 834 | N21: 121 | O21: 104 | P21: 30 | Q21: 3518
A22: DISTRITO 4 ULLOA | B22: 35 | C22: 16621 | D22: 11918 | E22: 11772 | F22: 408 | G22: 13 | H22: 13 | I22: 65 | J22: 49 | K22: 5996 | L22: 2175 | M22: 2815 | N22: 238 | O22: 121 | P22: 25 | Q22: 4703
A23: BARREAL [SAN JOSÉ] | B23: 10 | C23: 4730 | D23: 3425 | E23: 3377 | F23: 120 | G23: 3 | H23: 3 | I23: 17 | J23: 11 | K23: 1768 | L23: 656 | M23: 737 | N23: 62 | O23: 37 | P23: 11 | Q23: 1305
A24: LA AURORA [PARTE SUR] | B24: 17 | C24: 8200 | D24: 5795 | E24: 5728 | F24: 178 | G24: 8 | H24: 9 | I24: 37 | J24: 29 | K24: 2828 | L24: 1028 | M24: 1480 | N24: 131 | O24: 55 | P24: 12 | Q24: 2405
A25: LAGUNILLA | B25: 8 | C25: 3691 | D25: 2698 | E25: 2667 | F25: 110 | G25: 2 | H25: 1 | I25: 11 | J25: 9 | K25: 1400 | L25: 491 | M25: 598 | N25: 45 | O25: 29 | P25: 2 | Q25: 993
A26: DISTRITO 5 VARABLANCA | B26: 2 | C26: 491 | D26: 311 | E26: 304 | F26: 36 | G26: 0 | H26: 0 | I26: 0 | J26: 1 | K26: 161 | L26: 81 | M26: 22 | N26: 3 | O26: 4 | P26: 3 | Q26: 180
A27: VARABLANCA | B27: 1 | C27: 344 | D27: 222 | E27: 215 | F27: 18 | G27: 0 | H27: 0 | I27: 0 | J27: 1 | K27: 122 | L27: 55 | M27: 16 | N27: 3 | O27: 4 | P27: 3 | Q27: 122
A28: SAN RAFAEL DE VARABLANCA | B28: 1 | C28: 147 | D28: 89 | E28: 89 | F28: 18 | G28: 0 | H28: 0 | I28: 0 | J28: 0 | K28: 39 | L28: 26 | M28: 6 | N28: 0 | O28: 0 | P28: 0 | Q28: 58
A29: CANTÓN 2 BARVA | B29: 58 | C29: 26982 | D29: 20374 | E29: 20089 | F29: 459 | G29: 20 | H29: 38 | I29: 92 | J29: 128 | K29: 8569 | L29: 3917 | M29: 6500 | N29: 366 | O29: 237 | P29: 48 | Q29: 6608
A30: DISTRITO 1 BARVA | B30: 12 | C30: 5798 | D30: 4484 | E30: 4438 | F30: 98 | G30: 3 | H30: 6 | I30: 25 | J30: 30 | K30: 1875 | L30: 718 | M30: 1612 | N30: 71 | O30: 35 | P30: 11 | Q30: 1314
A31: BARVA | B31: 12 | C31: 5798 | D31: 4484 | E31: 4438 | F31: 98 | G31: 3 | H31: 6 | I31: 25 | J31: 30 | K31: 1875 | L31: 718 | M31: 1612 | N31: 71 | O31: 35 | P31: 11 | Q31: 1314
A32: DISTRITO 2 SAN PEDRO | B32: 14 | C32: 6732 | D32: 4902 | E32: 4796 | F32: 108 | G32: 2 | H32: 9 | I32: 25 | J32: 21 | K32: 1984 | L32: 1105 | M32: 1467 | N32: 75 | O32: 89 | P32: 17 | Q32: 1830
A33: SAN PEDRO | B33: 9 | C33: 4294 | D33: 3196 | E33: 3140 | F33: 65 | G33: 2 | H33: 4 | I33: 15 | J33: 12 | K33: 1275 | L33: 689 | M33: 1030 | N33: 48 | O33: 47 | P33: 9 | Q33: 1098
A34: PUENTE DE SALAS | B34: 5 | C34: 2438 | D34: 1706 | E34: 1656 | F34: 43 | G34: 0 | H34: 5 | I34: 10 | J34: 9 | K34: 709 | L34: 416 | M34: 437 | N34: 27 | O34: 42 | P34: 8 | Q34: 732
A35: DISTRITO 3 SAN PABLO | B35: 10 | C35: 4660 | D35: 3506 | E35: 3463 | F35: 94 | G35: 7 | H35: 7 | I35: 20 | J35: 34 | K35: 1376 | L35: 732 | M35: 1098 | N35: 95 | O35: 37 | P35: 6 | Q35: 1154
A36: SAN PABLO | B36: 7 | C36: 3443 | D36: 2544 | E36: 2509 | F36: 56 | G36: 3 | H36: 3 | I36: 17 | J36: 28 | K36: 949 | L36: 563 | M36: 822 | N36: 68 | O36: 30 | P36: 5 | Q36: 899
A37: BUENAVISTA [ALTO DE ABRA] | B37: 3 | C37: 1217 | D37: 962 | E37: 954 | F37: 38 | G37: 4 | H37: 4 | I37: 3 | J37: 6 | K37: 427 | L37: 169 | M37: 276 | N37: 27 | O37: 7 | P37: 1 | Q37: 255
A38: DISTRITO 4 SAN ROQUE | B38: 4 | C38: 1944 | D38: 1505 | E38: 1489 | F38: 38 | G38: 3 | H38: 2 | I38: 3 | J38: 11 | K38: 658 | L38: 246 | M38: 491 | N38: 37 | O38: 16 | P38: 0 | Q38: 439
A39: SAN ROQUE | B39: 4 | C39: 1944 | D39: 1505 | E39: 1489 | F39: 38 | G39: 3 | H39: 2 | I39: 3 | J39: 11 | K39: 658 | L39: 246 | M39: 491 | N39: 37 | O39: 16 | P39: 0 | Q39: 439
A40: DISTRITO 5 SANTA LUCÍA | B40: 9 | C40: 4271 | D40: 3324 | E40: 3290 | F40: 71 | G40: 2 | H40: 6 | I40: 11 | J40: 16 | K40: 1428 | L40: 550 | M40: 1159 | N40: 47 | O40: 27 | P40: 7 | Q40: 947
A41: SANTA LUCÍA | B41: 9 | C41: 4271 | D41: 3324 | E41: 3290 | F41: 71 | G41: 2 | H41: 6 | I41: 11 | J41: 16 | K41: 1428 | L41: 550 | M41: 1159 | N41: 47 | O41: 27 | P41: 7 | Q41: 947
A42: DISTRITO 6 SAN JOSÉ DE LA MONTAÑA | B42: 9 | C42: 3577 | D42: 2653 | E42: 2613 | F42: 50 | G42: 3 | H42: 8 | I42: 8 | J42: 16 | K42: 1248 | L42: 566 | M42: 673 | N42: 41 | O42: 33 | P42: 7 | Q42: 924
A43: SAN JOSÉ DE LA MONTAÑA | B43: 6 | C43: 2856 | D43: 2168 | E43: 2134 | F43: 35 | G43: 2 | H43: 6 | I43: 6 | J43: 16 | K43: 1028 | L43: 423 | M43: 585 | N43: 33 | O43: 28 | P43: 6 | Q43: 688
A44: SACRAMENTO | B44: 1 | C44: 92 | D44: 59 | E44: 58 | F44: 0 | G44: 0 | H44: 0 | I44: 1 | J44: 0 | K44: 38 | L44: 11 | M44: 8 | N44: 0 | O44: 0 | P44: 1 | Q44: 33
A45: PASO LLANO O PORROSATÍ | B45: 1 | C45: 255 | D45: 160 | E45: 155 | F45: 4 | G45: 1 | H45: 1 | I45: 0 | J45: 0 | K45: 60 | L45: 67 | M45: 21 | N45: 1 | O45: 5 | P45: 0 | Q45: 95
A46: SAN MIGUEL | B46: 1 | C46: 374 | D46: 266 | E46: 266 | F46: 11 | G46: 0 | H46: 1 | I46: 1 | J46: 0 | K46: 122 | L46: 65 | M46: 59 | N46: 7 | O46: 0 | P46: 0 | Q46: 108
A47: CANTÓN 3 SANTO DOMINGO | B47: 63 | C47: 30208 | D47: 22877 | E47: 22592 | F47: 638 | G47: 22 | H47: 18 | I47: 99 | J47: 88 | K47: 10469 | L47: 3970 | M47: 6808 | N47: 480 | O47: 230 | P47: 55 | Q47: 7331
A48: DISTRITO 1 SANTO DOMINGO | B48: 16 | C48: 7753 | D48: 5992 | E48: 5938 | F48: 158 | G48: 4 | H48: 5 | I48: 22 | J48: 31 | K48: 2934 | L48: 863 | M48: 1846 | N48: 75 | O48: 46 | P48: 8 | Q48: 1761
A49: SANTO DOMINGO | B49: 16 | C49: 7753 | D49: 5992 | E49: 5938 | F49: 158 | G49: 4 | H49: 5 | I49: 22 | J49: 31 | K49: 2934 | L49: 863 | M49: 1846 | N49: 75 | O49: 46 | P49: 8 | Q49: 1761
A50: DISTRITO 2 SAN VICENTE | B50: 7 | C50: 3468 | D50: 2739 | E50: 2712 | F50: 60 | G50: 3 | H50: 2 | I50: 5 | J50: 17 | K50: 1282 | L50: 360 | M50: 951 | N50: 32 | O50: 21 | P50: 6 | Q50: 729
A51: SAN VICENTE | B51: 7 | C51: 3468 | D51: 2739 | E51: 2712 | F51: 60 | G51: 3 | H51: 2 | I51: 5 | J51: 17 | K51: 1282 | L51: 360 | M51: 951 | N51: 32 | O51: 21 | P51: 6 | Q51: 729
A52: DISTRITO 3 SAN MIGUEL | B52: 10 | C52: 4534 | D52: 3458 | E52: 3401 | F52: 96 | G52: 6 | H52: 2 | I52: 14 | J52: 7 | K52: 1305 | L52: 811 | M52: 1063 | N52: 97 | O52: 47 | P52: 10 | Q52: 1076
A53: SAN MIGUEL | B53: 7 | C53: 3205 | D53: 2433 | E53: 2401 | F53: 58 | G53: 5 | H53: 2 | I53: 11 | J53: 4 | K53: 939 | L53: 572 | M53: 743 | N53: 67 | O53: 27 | P53: 5 | Q53: 772
A54: SOCORRO | B54: 1 | C54: 469 | D54: 361 | E54: 359 | F54: 21 | G54: 0 | H54: 0 | I54: 0 | J54: 2 | K54: 155 | L54: 51 | M54: 124 | N54: 6 | O54: 1 | P54: 1 | Q54: 108
A55: CASTILLA [EL CARMEN] | B55: 2 | C55: 860 | D55: 664 | E55: 641 | F55: 17 | G55: 1 | H55: 0 | I55: 3 | J55: 1 | K55: 211 | L55: 188 | M55: 196 | N55: 24 | O55: 19 | P55: 4 | Q55: 196
A56: DISTRITO 4 PARACITO | B56: 4 | C56: 1953 | D56: 1465 | E56: 1448 | F56: 37 | G56: 2 | H56: 2 | I56: 11 | J56: 4 | K56: 753 | L56: 283 | M56: 314 | N56: 42 | O56: 15 | P56: 2 | Q56: 488
A57: PARACITO | B57: 4 | C57: 1953 | D57: 1465 | E57: 1448 | F57: 37 | G57: 2 | H57: 2 | I57: 11 | J57: 4 | K57: 753 | L57: 283 | M57: 314 | N57: 42 | O57: 15 | P57: 2 | Q57: 488
A58: DISTRITO 5 SANTO TOMÁS | B58: 7 | C58: 3358 | D58: 2591 | E58: 2569 | F58: 65 | G58: 1 | H58: 1 | I58: 9 | J58: 7 | K58: 1167 | L58: 448 | M58: 817 | N58: 54 | O58: 16 | P58: 6 | Q58: 767
A59: SANTO TOMÁS | B59: 7 | C59: 3358 | D59: 2591 | E59: 2569 | F59: 65 | G59: 1 | H59: 1 | I59: 9 | J59: 7 | K59: 1167 | L59: 448 | M59: 817 | N59: 54 | O59: 16 | P59: 6 | Q59: 767
A60: DISTRITO 6 SANTA ROSA | B60: 9 | C60: 4402 | D60: 3147 | E60: 3103 | F60: 109 | G60: 2 | H60: 3 | I60: 13 | J60: 11 | K60: 1491 | L60: 637 | M60: 762 | N60: 75 | O60: 34 | P60: 10 | Q60: 1255
A61: SANTA ROSA | B61: 9 | C61: 4402 | D61: 3147 | E61: 3103 | F61: 109 | G61: 2 | H61: 3 | I61: 13 | J61: 11 | K61: 1491 | L61: 637 | M61: 762 | N61: 75 | O61: 34 | P61: 10 | Q61: 1255
A62: DISTRITO 7 TURES | B62: 5 | C62: 2474 | D62: 1834 | E62: 1792 | F62: 68 | G62: 3 | H62: 3 | I62: 6 | J62: 4 | K62: 835 | L62: 284 | M62: 532 | N62: 57 | O62: 34 | P62: 8 | Q62: 640
A63: LOS ÁNGELES | B63: 5 | C63: 2474 | D63: 1834 | E63: 1792 | F63: 68 | G63: 3 | H63: 3 | I63: 6 | J63: 4 | K63: 835 | L63: 284 | M63: 532 | N63: 57 | O63: 34 | P63: 8 | Q63: 640
A64: DISTRITO 8 PARÁ | B64: 5 | C64: 2266 | D64: 1651 | E64: 1629 | F64: 45 | G64: 1 | H64: 0 | I64: 19 | J64: 7 | K64: 702 | L64: 284 | M64: 523 | N64: 48 | O64: 17 | P64: 5 | Q64: 615
A65: SAN LUIS | B65: 5 | C65: 2266 | D65: 1651 | E65: 1629 | F65: 45 | G65: 1 | H65: 0 | I65: 19 | J65: 7 | K65: 702 | L65: 284 | M65: 523 | N65: 48 | O65: 17 | P65: 5 | Q65: 615
A66: CANTÓN 4 SANTA BÁRBARA | B66: 48 | C66: 22277 | D66: 16419 | E66: 16146 | F66: 459 | G66: 14 | H66: 34 | I66: 93 | J66: 79 | K66: 7111 | L66: 3743 | M66: 4270 | N66: 343 | O66: 225 | P66: 48 | Q66: 5858
A67: DISTRITO 1 SANTA BÁRBARA | B67: 12 | C67: 5928 | D67: 4458 | E67: 4384 | F67: 162 | G67: 8 | H67: 7 | I67: 24 | J67: 27 | K67: 1825 | L67: 958 | M67: 1288 | N67: 85 | O67: 62 | P67: 12 | Q67: 1470
A68: SANTA BÁRBARA | B68: 12 | C68: 5928 | D68: 4458 | E68: 4384 | F68: 162 | G68: 8 | H68: 7 | I68: 24 | J68: 27 | K68: 1825 | L68: 958 | M68: 1288 | N68: 85 | O68: 62 | P68: 12 | Q68: 1470
A69: DISTRITO 2 SAN PEDRO | B69: 5 | C69: 2357 | D69: 1760 | E69: 1742 | F69: 36 | G69: 0 | H69: 1 | I69: 7 | J69: 0 | K69: 808 | L69: 436 | M69: 425 | N69: 29 | O69: 17 | P69: 1 | Q69: 597
A70: SAN PEDRO | B70: 5 | C70: 2357 | D70: 1760 | E70: 1742 | F70: 36 | G70: 0 | H70: 1 | I70: 7 | J70: 0 | K70: 808 | L70: 436 | M70: 425 | N70: 29 | O70: 17 | P70: 1 | Q70: 597
A71: DISTRITO 3 SAN JUAN | B71: 9 | C71: 4423 | D71: 3345 | E71: 3295 | F71: 68 | G71: 0 | H71: 6 | I71: 12 | J71: 19 | K71: 1464 | L71: 799 | M71: 847 | N71: 80 | O71: 40 | P71: 10 | Q71: 1078
A72: SAN JUAN ABAJO | B72: 9 | C72: 4423 | D72: 3345 | E72: 3295 | F72: 68 | G72: 0 | H72: 6 | I72: 12 | J72: 19 | K72: 1464 | L72: 799 | M72: 847 | N72: 80 | O72: 40 | P72: 10 | Q72: 1078
A73: DISTRITO 4 JESÚS | B73: 11 | C73: 5033 | D73: 3608 | E73: 3530 | F73: 102 | G73: 5 | H73: 14 | I73: 24 | J73: 28 | K73: 1501 | L73: 843 | M73: 933 | N73: 80 | O73: 66 | P73: 12 | Q73: 1425
A74: JESÚS | B74: 5 | C74: 2263 | D74: 1653 | E74: 1612 | F74: 49 | G74: 2 | H74: 7 | I74: 9 | J74: 19 | K74: 604 | L74: 396 | M74: 488 | N74: 38 | O74: 34 | P74: 7 | Q74: 610
A75: BIRRÍ | B75: 6 | C75: 2770 | D75: 1955 | E75: 1918 | F75: 53 | G75: 3 | H75: 7 | I75: 15 | J75: 9 | K75: 897 | L75: 447 | M75: 445 | N75: 42 | O75: 32 | P75: 5 | Q75: 815
A76: DISTRITO 5 SANTO DOMINGO | B76: 5 | C76: 2052 | D76: 1439 | E76: 1417 | F76: 46 | G76: 1 | H76: 5 | I76: 12 | J76: 3 | K76: 712 | L76: 299 | M76: 316 | N76: 23 | O76: 16 | P76: 6 | Q76: 613
A77: SANTO DOMINGO DEL ROBLE | B77: 3 | C77: 1330 | D77: 921 | E77: 904 | F77: 35 | G77: 1 | H77: 4 | I77: 9 | J77: 3 | K77: 441 | L77: 186 | M77: 214 | N77: 11 | O77: 13 | P77: 4 | Q77: 409
A78: CHAGÜITE | B78: 1 | C78: 529 | D78: 388 | E78: 384 | F78: 10 | G78: 0 | H78: 1 | I78: 3 | J78: 0 | K78: 189 | L78: 80 | M78: 96 | N78: 5 | O78: 2 | P78: 2 | Q78: 141
A79: LOS CARTAGOS | B79: 1 | C79: 193 | D79: 130 | E79: 129 | F79: 1 | G79: 0 | H79: 0 | I79: 0 | J79: 0 | K79: 82 | L79: 33 | M79: 6 | N79: 7 | O79: 1 | P79: 0 | Q79: 63
A80: DISTRITO 6 PURABÁ | B80: 6 | C80: 2484 | D80: 1809 | E80: 1778 | F80: 45 | G80: 0 | H80: 1 | I80: 14 | J80: 2 | K80: 801 | L80: 408 | M80: 461 | N80: 46 | O80: 24 | P80: 7 | Q80: 675
A81: SETILLAL | B81: 2 | C81: 844 | D81: 604 | E81: 591 | F81: 10 | G81: 0 | H81: 0 | I81: 3 | J81: 1 | K81: 266 | L81: 125 | M81: 167 | N81: 19 | O81: 10 | P81: 3 | Q81: 240
A82: SAN BOSCO | B82: 4 | C82: 1640 | D82: 1205 | E82: 1187 | F82: 35 | G82: 0 | H82: 1 | I82: 11 | J82: 1 | K82: 535 | L82: 283 | M82: 294 | N82: 27 | O82: 14 | P82: 4 | Q82: 435
A83: CANTÓN 5 SAN RAFAEL | B83: 62 | C83: 29077 | D83: 20853 | E83: 20485 | F83: 575 | G83: 20 | H83: 20 | I83: 82 | J83: 94 | K83: 9076 | L83: 4324 | M83: 5930 | N83: 364 | O83: 284 | P83: 84 | Q83: 8224
A84: DISTRITO 1 SAN RAFAEL | B84: 17 | C84: 8090 | D84: 5966 | E84: 5888 | F84: 147 | G84: 6 | H84: 4 | I84: 24 | J84: 26 | K84: 2615 | L84: 1152 | M84: 1830 | N84: 84 | O84: 68 | P84: 10 | Q84: 2124
A85: SAN RAFAEL | B85: 17 | C85: 8090 | D85: 5966 | E85: 5888 | F85: 147 | G85: 6 | H85: 4 | I85: 24 | J85: 26 | K85: 2615 | L85: 1152 | M85: 1830 | N85: 84 | O85: 68 | P85: 10 | Q85: 2124
A86: DISTRITO 2 SAN JOSECITO | B86: 14 | C86: 6741 | D86: 4626 | E86: 4522 | F86: 151 | G86: 1 | H86: 5 | I86: 17 | J86: 25 | K86: 1994 | L86: 940 | M86: 1294 | N86: 95 | O86: 76 | P86: 28 | Q86: 2115
A87: SAN JOSECITO | B87: 14 | C87: 6741 | D87: 4626 | E87: 4522 | F87: 151 | G87: 1 | H87: 5 | I87: 17 | J87: 25 | K87: 1994 | L87: 940 | M87: 1294 | N87: 95 | O87: 76 | P87: 28 | Q87: 2115
A88: DISTRITO 3 SANTIAGO | B88: 10 | C88: 4859 | D88: 3637 | E88: 3581 | F88: 91 | G88: 6 | H88: 3 | I88: 15 | J88: 16 | K88: 1547 | L88: 698 | M88: 1139 | N88: 66 | O88: 43 | P88: 13 | Q88: 1222
A89: SANTIAGO | B89: 8 | C89: 3834 | D89: 2820 | E89: 2773 | F89: 70 | G89: 5 | H89: 3 | I89: 11 | J89: 15 | K89: 1181 | L89: 554 | M89: 881 | N89: 53 | O89: 34 | P89: 13 | Q89: 1014
A90: LA SUIZA | B90: 2 | C90: 1025 | D90: 817 | E90: 808 | F90: 21 | G90: 1 | H90: 0 | I90: 4 | J90: 1 | K90: 366 | L90: 144 | M90: 258 | N90: 13 | O90: 9 | P90: 0 | Q90: 208
A91: DISTRITO 4 LOS ÁNGELES | B91: 16 | C91: 7217 | D91: 5093 | E91: 4991 | F91: 141 | G91: 6 | H91: 5 | I91: 18 | J91: 25 | K91: 2207 | L91: 1247 | M91: 1248 | N91: 94 | O91: 78 | P91: 24 | Q91: 2124
A92: LOS ÁNGELES | B92: 7 | C92: 3196 | D92: 2329 | E92: 2290 | F92: 58 | G92: 1 | H92: 2 | I92: 9 | J92: 15 | K92: 1040 | L92: 492 | M92: 631 | N92: 42 | O92: 29 | P92: 10 | Q92: 867
A93: GETSEMANÍ [PARTE ESTE] | B93: 4 | C93: 1992 | D93: 1383 | E93: 1351 | F93: 40 | G93: 1 | H93: 2 | I93: 6 | J93: 7 | K93: 604 | L93: 362 | M93: 300 | N93: 29 | O93: 20 | P93: 12 | Q93: 609
A94: MONTECITO | B94: 1 | C94: 405 | D94: 299 | E94: 290 | F94: 5 | G94: 1 | H94: 0 | I94: 0 | J94: 0 | K94: 149 | L94: 67 | M94: 62 | N94: 6 | O94: 8 | P94: 1 | Q94: 106
A95: SAN MIGUEL O PALMAR [ESTE] | B95: 4 | C95: 1624 | D95: 1082 | E95: 1060 | F95: 38 | G95: 3 | H95: 1 | I95: 3 | J95: 3 | K95: 414 | L95: 326 | M95: 255 | N95: 17 | O95: 21 | P95: 1 | Q95: 542
A96: DISTRITO 5 CONCEPCIÓN | B96: 5 | C96: 2170 | D96: 1531 | E96: 1503 | F96: 45 | G96: 1 | H96: 3 | I96: 8 | J96: 2 | K96: 713 | L96: 287 | M96: 419 | N96: 25 | O96: 19 | P96: 9 | Q96: 639
A97: CONCEPCIÓN | B97: 5 | C97: 2170 | D97: 1531 | E97: 1503 | F97: 45 | G97: 1 | H97: 3 | I97: 8 | J97: 2 | K97: 713 | L97: 287 | M97: 419 | N97: 25 | O97: 19 | P97: 9 | Q97: 639
A98: CANTÓN 6 SAN ISIDRO | B98: 28 | C98: 12800 | D98: 9545 | E98: 9374 | F98: 290 | G98: 3 | H98: 11 | I98: 38 | J98: 22 | K98: 4537 | L98: 1444 | M98: 2844 | N98: 185 | O98: 128 | P98: 43 | Q98: 3255
A99: DISTRITO 1 SAN ISIDRO | B99: 14 | C99: 6686 | D99: 4978 | E99: 4888 | F99: 136 | G99: 2 | H99: 3 | I99: 23 | J99: 13 | K99: 2305 | L99: 746 | M99: 1546 | N99: 114 | O99: 70 | P99: 20 | Q99: 1708
A100: SAN ISIDRO | B100: 14 | C100: 6686 | D100: 4978 | E100: 4888 | F100: 136 | G100: 2 | H100: 3 | I100: 23 | J100: 13 | K100: 2305 | L100: 746 | M100: 1546 | N100: 114 | O100: 70 | P100: 20 | Q100: 1708
A101: DISTRITO 2 SAN JOSÉ | B101: 7 | C101: 3016 | D101: 2240 | E101: 2203 | F101: 74 | G101: 0 | H101: 2 | I101: 6 | J101: 7 | K101: 1142 | L101: 310 | M101: 635 | N101: 27 | O101: 32 | P101: 5 | Q101: 776
A102: SAN JOSECITO | B102: 5 | C102: 2297 | D102: 1729 | E102: 1703 | F102: 53 | G102: 0 | H102: 2 | I102: 3 | J102: 5 | K102: 882 | L102: 253 | M102: 484 | N102: 21 | O102: 23 | P102: 3 | Q102: 568
A103: SANTA ELENA | B103: 2 | C103: 719 | D103: 511 | E103: 500 | F103: 21 | G103: 0 | H103: 0 | I103: 3 | J103: 2 | K103: 260 | L103: 57 | M103: 151 | N103: 6 | O103: 9 | P103: 2 | Q103: 208
A104: DISTRITO 3 CONCEPCIÓN | B104: 4 | C104: 1665 | D104: 1254 | E104: 1228 | F104: 61 | G104: 1 | H104: 2 | I104: 1 | J104: 0 | K104: 633 | L104: 228 | M104: 285 | N104: 17 | O104: 15 | P104: 11 | Q104: 411
A105: CONCEPCIÓN | B105: 3 | C105: 1147 | D105: 864 | E105: 845 | F105: 49 | G105: 1 | H105: 2 | I105: 1 | J105: 0 | K105: 429 | L105: 142 | M105: 207 | N105: 14 | O105: 14 | P105: 5 | Q105: 283
A106: SANTA CECILIA [ALHAJAS] | B106: 1 | C106: 518 | D106: 390 | E106: 383 | F106: 12 | G106: 0 | H106: 0 | I106: 0 | J106: 0 | K106: 204 | L106: 86 | M106: 78 | N106: 3 | O106: 1 | P106: 6 | Q106: 128
A107: DISTRITO 4 SAN FRANCISCO | B107: 3 | C107: 1433 | D107: 1073 | E107: 1055 | F107: 19 | G107: 0 | H107: 4 | I107: 8 | J107: 2 | K107: 457 | L107: 160 | M107: 378 | N107: 27 | O107: 11 | P107: 7 | Q107: 360
A108: SAN FRANCISCO | B108: 3 | C108: 1433 | D108: 1073 | E108: 1055 | F108: 19 | G108: 0 | H108: 4 | I108: 8 | J108: 2 | K108: 457 | L108: 160 | M108: 378 | N108: 27 | O108: 11 | P108: 7 | Q108: 360
A109: CANTÓN 7 BELÉN | B109: 32 | C109: 15687 | D109: 12012 | E109: 11847 | F109: 558 | G109: 4 | H109: 10 | I109: 21 | J109: 31 | K109: 6152 | L109: 2137 | M109: 2742 | N109: 192 | O109: 136 | P109: 29 | Q109: 3675
A110: DISTRITO 1 SAN ANTONIO | B110: 15 | C110: 7381 | D110: 5623 | E110: 5550 | F110: 231 | G110: 3 | H110: 5 | I110: 7 | J110: 13 | K110: 2771 | L110: 1056 | M110: 1378 | N110: 86 | O110: 63 | P110: 10 | Q110: 1758
A111: SAN ANTONIO | B111: 15 | C111: 7381 | D111: 5623 | E111: 5550 | F111: 231 | G111: 3 | H111: 5 | I111: 7 | J111: 13 | K111: 2771 | L111: 1056 | M111: 1378 | N111: 86 | O111: 63 | P111: 10 | Q111: 1758
A112: DISTRITO 2 LA RIBERA | B112: 11 | C112: 5344 | D112: 4070 | E112: 3995 | F112: 188 | G112: 1 | H112: 4 | I112: 6 | J112: 10 | K112: 2089 | L112: 771 | M112: 843 | N112: 83 | O112: 59 | P112: 16 | Q112: 1274
A113: LA RIBERA | B113: 11 | C113: 5344 | D113: 4070 | E113: 3995 | F113: 188 | G113: 1 | H113: 4 | I113: 6 | J113: 10 | K113: 2089 | L113: 771 | M113: 843 | N113: 83 | O113: 59 | P113: 16 | Q113: 1274
A114: DISTRITO 3 ASUNCIÓN | B114: 6 | C114: 2962 | D114: 2319 | E114: 2302 | F114: 139 | G114: 0 | H114: 1 | I114: 8 | J114: 8 | K114: 1292 | L114: 310 | M114: 521 | N114: 23 | O114: 14 | P114: 3 | Q114: 643
A115: LA ASUNCIÓN | B115: 6 | C115: 2962 | D115: 2319 | E115: 2302 | F115: 139 | G115: 0 | H115: 1 | I115: 8 | J115: 8 | K115: 1292 | L115: 310 | M115: 521 | N115: 23 | O115: 14 | P115: 3 | Q115: 643
A116: CANTÓN 8 FLORES | B116: 27 | C116: 13404 | D116: 10271 | E116: 10116 | F116: 334 | G116: 5 | H116: 27 | I116: 39 | J116: 26 | K116: 5183 | L116: 1873 | M116: 2477 | N116: 152 | O116: 121 | P116: 34 | Q116: 3133
A117: DISTRITO 1 SAN JOAQUÍN | B117: 14 | C117: 6977 | D117: 5286 | E117: 5218 | F117: 146 | G117: 3 | H117: 16 | I117: 15 | J117: 21 | K117: 2591 | L117: 954 | M117: 1396 | N117: 76 | O117: 59 | P117: 9 | Q117: 1691
A118: SAN JOAQUÍN | B118: 14 | C118: 6977 | D118: 5286 | E118: 5218 | F118: 146 | G118: 3 | H118: 16 | I118: 15 | J118: 21 | K118: 2591 | L118: 954 | M118: 1396 | N118: 76 | O118: 59 | P118: 9 | Q118: 1691
A119: DISTRITO 2 BARRANTES | B119: 4 | C119: 2046 | D119: 1688 | E119: 1655 | F119: 55 | G119: 0 | H119: 1 | I119: 7 | J119: 2 | K119: 887 | L119: 256 | M119: 428 | N119: 19 | O119: 23 | P119: 10 | Q119: 358
A120: SAN LORENZO | B120: 4 | C120: 2046 | D120: 1688 | E120: 1655 | F120: 55 | G120: 0 | H120: 1 | I120: 7 | J120: 2 | K120: 887 | L120: 256 | M120: 428 | N120: 19 | O120: 23 | P120: 10 | Q120: 358
A121: DISTRITO 3 LLORENTE | B121: 9 | C121: 4381 | D121: 3297 | E121: 3243 | F121: 133 | G121: 2 | H121: 10 | I121: 17 | J121: 3 | K121: 1705 | L121: 663 | M121: 653 | N121: 57 | O121: 39 | P121: 15 | Q121: 1084
A122: LLORENTE | B122: 9 | C122: 4381 | D122: 3297 | E122: 3243 | F122: 133 | G122: 2 | H122: 10 | I122: 17 | J122: 3 | K122: 1705 | L122: 663 | M122: 653 | N122: 57 | O122: 39 | P122: 15 | Q122: 1084
A123: CANTÓN 9 SAN PABLO | B123: 38 | C123: 17791 | D123: 13469 | E123: 13304 | F123: 696 | G123: 9 | H123: 17 | I123: 61 | J123: 51 | K123: 6145 | L123: 2065 | M123: 4022 | N123: 238 | O123: 143 | P123: 22 | Q123: 4322
A124: DISTRITO 1 SAN PABLO | B124: 27 | C124: 13371 | D124: 10170 | E124: 10043 | F124: 504 | G124: 7 | H124: 13 | I124: 44 | J124: 34 | K124: 4649 | L124: 1556 | M124: 3071 | N124: 165 | O124: 111 | P124: 16 | Q124: 3201
A125: SAN PABLO | B125: 27 | C125: 13371 | D125: 10170 | E125: 10043 | F125: 504 | G125: 7 | H125: 13 | I125: 44 | J125: 34 | K125: 4649 | L125: 1556 | M125: 3071 | N125: 165 | O125: 111 | P125: 16 | Q125: 3201
A126: DISTRITO 2 RINCÓN DE SABANILLA | B126: 11 | C126: 4420 | D126: 3299 | E126: 3261 | F126: 192 | G126: 2 | H126: 4 | I126: 17 | J126: 17 | K126: 1496 | L126: 509 | M126: 951 | N126: 73 | O126: 32 | P126: 6 | Q126: 1121
A127: RINCÓN DE RICARDO | B127: 3 | C127: 1196 | D127: 865 | E127: 855 | F127: 63 | G127: 2 | H127: 1 | I127: 5 | J127: 6 | K127: 380 | L127: 177 | M127: 197 | N127: 24 | O127: 8 | P127: 2 | Q127: 331
A128: MIRAFLORES | B128: 7 | C128: 3102 | D128: 2375 | E128: 2347 | F128: 126 | G128: 0 | H128: 3 | I128: 12 | J128: 11 | K128: 1077 | L128: 325 | M128: 745 | N128: 48 | O128: 24 | P128: 4 | Q128: 727
A129: H.A.ALFREDO Y DELIA GONZÁLEZ FLORES | B129: 1 | C129: 122 | D129: 59 | E129: 59 | F129: 3 | G129: 0 | H129: 0 | I129: 0 | J129: 0 | K129: 39 | L129: 7 | M129: 9 | N129: 1 | O129: 0 | P129: 0 | Q129: 63
